Workbook

Sheet Pie Chart
A1: Choose Congressional District: | D1: Source of Meals | E1: Meals Equivalents
A2: 5 | D2: SNAP | E2: =INDEX(SNAP!V97:V105,MATCH($A$2,SNAP!S97:S105,0)) -> 82956277.75
A3: =VLOOKUP(A2,A29:B38,2,FALSE) -> Susan Brooks-R | D3: F&R School/Summer | E3: =INDEX('School Meals'!H100:H108,MATCH($A$2,'School Meals'!G100:G108,0))+INDEX('Summer Meals'!I98:I106,MATCH($A$2,'Summer Meals'!H98:H106,0)) -> 12381169.41
D4: WIC | E4: =INDEX(WIC!D100:D108,MATCH($A$2,WIC!A100:A108,0)) -> 6082152.26
D5: FA Food Bank-non-Federal | E5: =INDEX('Feeding America Food Bank'!K99:K107,MATCH($A$2,'Feeding America Food Bank'!I99:I107,0)) -> 6740406.351
D6: FA Food Bank-Federal | E6: =INDEX('Feeding America Food Bank'!V99:V107,MATCH($A$2,'Feeding America Food Bank'!T99:T107,0)) -> 1689510.741
D7: Charitable Response | E7: =INDEX('Charitable Response'!G97:G105,MATCH($A$2,'Charitable Response'!E97:E105,0)) -> 3179285.951
D8: Other Private | E8: =INDEX('Other Sources'!N98:N106,MATCH($A$2,'Other Sources'!M98:M106,0)) -> 1854810.004
D9: Other Federal | E9: =INDEX('Other Sources'!Y98:Y106,MATCH($A$2,'Other Sources'!X98:X106,0)) -> 86961.35638
D10: -----------------------------------------------------------------
D11: Total | E11: =SUM(E2:E9) -> 114970573.8
J14: Sources of Food into Congressional District | P14: =A2 -> 5
D15: Federal | E15: =E2+E3+E4+E6+E9 -> 103196071.5 | G15: =E15/E11 -> 0.897586818
D16: Non-Federal | E16: =E5+E7+E8 -> 11774502.31 | G16: =E16/E11 -> 0.102413182
G25: Conversion from $ to Pounds
G26: Conversion from Pounds to Meals
A28: District | B28: Congress Person | L28: 1.66
A29: 1 | B29: Peter Visclosky-D | L29: 1.2
A30: 2 | B30: Jackie Walorski-R
A31: 3 | B31: Marlin Stutzman-R
A32: 4 | B32: Todd Rokita-R
A33: 5 | B33: Susan Brooks-R
A34: 6 | B34: Luke Messer-R
A35: 7 | B35: Andre Carson-D
A36: 8 | B36: Larry Bucshon-R
A37: 9 | B37: Todd Young-R

Sheet Congressional Districts (hidden)
A1: County | B1: Congressional District | C1: % in District | D1: Second District | E1: Second % in District | G1: Methodology:
A2: ADAMS | B2: 3 | C2: 1 | F2: =C2+E2 -> 1 | I2: Assume even spread of needy population across the county.
A3: ALLEN | B3: 3 | C3: 1 | F3: =C3+E3 -> 1 | I3: 1. Estimate the area of the couinty in each congressional district.
A4: BARTHOLOMEW | B4: 6 | C4: 1 | F4: 1 | J4: www.in.gov/legislative/house_republicans/rd/.../Congressional.pdf
A5: BENTON | B5: 4 | C5: 1 | F5: 1 | I5: 2. Assess the total population and % in poverty in the county and the largest city.
A6: BLACKFORD | B6: 3 | C6: =J41 -> 0.2545992641 | D6: 5 | E6: =K41 -> 0.7454007359 | F6: 1 | J6: http://quickfacts.census.gov/qfd/states/18/18091.html
A7: BOONE | B7: 4 | C7: =J65 -> 0.5168040852 | D7: 5 | E7: =K65 -> 0.4831959148 | F7: 1 | I7: 3. Adjust result of step 1 with result of step 2.
A8: BROWN | B8: 9 | C8: 1 | F8: 1
A9: CARROLL | B9: 4 | C9: 1 | F9: 1 | G9: 1 | H9: LaPorte County
A10: CASS | B10: 4 | C10: 1 | F10: 1 | I10: 1. About 30% of area is in District 1 and 70% of area is in District 2
A11: CLARK | B11: 9 | C11: 1 | F11: 1 | I11: 2 | J11: LaPorte county population | M11: 111246
A12: CLAY | B12: 8 | C12: 1 | F12: 1 | J12: LaPorte city population | M12: 22033 | N12: =M12/M11 -> 0.1980565593 | O12: of the county population
A13: CLINTON | B13: 4 | C13: 1 | F13: 1 | I13: 3. Re-estimate split between District 1 and District 2
A14: CRAWFORD | B14: 8 | C14: =J97 -> 0.2348804501 | D14: 9 | E14: =K97 -> 0.7651195499 | F14: 1
A15: DAVIESS | B15: 8 | C15: 1 | F15: 1 | J15: District 1 | K15: District 2 | L15: Major city
A16: DE KALB | B16: 3 | C16: 1 | F16: 1 | I16: Area | J16: 0.3 | K16: 0.7
A17: DEARBORN | B17: 6 | C17: 1 | F17: 1 | I17: Population | J17: =(1-N12)*J16 -> 0.2405830322 | K17: =(1-N12)*K16 -> 0.5613604085
A18: DECATUR | B18: 6 | C18: 1 | F18: 1 | I18: LaPorte | K18: =N12 -> 0.1980565593
A19: DELAWARE | B19: 6 | C19: 1 | F19: 1 | J19: =J17 -> 0.2405830322 | K19: =K17+K18 -> 0.7594169678
A20: DUBOIS | B20: 8 | C20: 1 | F20: 1
A21: ELKHART | B21: 2 | C21: 1 | F21: 1 | G21: 2 | H21: Kosciusko County
A22: FAYETTE | B22: 6 | C22: 1 | F22: 1
A23: FLOYD | B23: 9 | C23: 1 | F23: 1 | I23: 1. About 67% is in District 2 and 33 % is in District 3 | J23: Kosciusko County Population = 77,609
A24: FOUNTAIN | B24: 4 | C24: 1 | F24: 1 | I24: 2 | J24: Warsaw In Population = 13,557 = | N24: 0.175 | O24: of the county population
A25: FRANKLIN | B25: 6 | C25: 1 | F25: 1
A26: FULTON | B26: 2 | C26: 1 | F26: 1
A27: GIBSON | B27: 8 | C27: 1 | F27: 1 | I27: 3. Re-estimate split between Districts 2 and 3 | J27: District 2 | K27: District 3
A28: GRANT | B28: 5 | C28: 1 | F28: 1 | I28: 3 | J28: 0.67 | K28: 0.33
A29: GREENE | B29: 8 | C29: 1 | F29: 1 | I29: Area | J29: =(1-N24)*J28 -> 0.55275 | K29: =(1-N24)*K28 -> 0.27225 | L29: 0.175
A30: HAMILTON | B30: 5 | C30: 1 | F30: 1 | I30: Population | J30: =J29 -> 0.55275 | K30: =K29+L29 -> 0.44725
A31: HANCOCK | B31: 6 | C31: 1 | F31: 1
A32: HARRISON | B32: 9 | C32: 1 | F32: 1 | G32: 3 | H32: Blackford County
A33: HENDRICKS | B33: 4 | C33: 1 | F33: 1
A34: HENRY | B34: 6 | C34: 1 | F34: 1 | I34: 1. About 50% is in District 3 and 50% in District 5 | J34: Blackford County Population = 12,502
A35: HOWARD | B35: 4 | C35: =J52 -> 0.8512094292 | D35: 5 | E35: =K52 -> 0.1487905708 | F35: 1 | I35: 2 | J35: Hartford City population = 6,136 | N35: =6136/12502 -> 0.4908014718 | O35: of the county population
A36: HUNTINGTON | B36: 3 | C36: 1 | F36: 1
A37: JACKSON | B37: 9 | C37: 1 | F37: 1 | I37: 3. Re-estimate split between Districts 3 and 5 | J37: District 3 | K37: District 5
A38: JASPER | B38: 4 | C38: 1 | F38: 1 | I38: Area | J38: 0.5 | K38: 0.5
A39: JAY | B39: 3 | C39: 1 | F39: 1 | I39: Population | J39: =(1-K40)*J38 -> 0.2545992641 | K39: =(1-K40)*K38 -> 0.2545992641
A40: JEFFERSON | B40: 6 | C40: 1 | F40: 1 | I40: Hartford City | K40: =N35 -> 0.4908014718
A41: JENNINGS | B41: 6 | C41: 1 | F41: 1 | J41: =J39 -> 0.2545992641 | K41: =K39+K40 -> 0.7454007359
A42: JOHNSON | B42: 9 | C42: 1 | F42: 1
A43: KNOX | B43: 8 | C43: 1 | F43: 1 | G43: 4 | H43: Howard County
A44: KOSCIUSKO | B44: 2 | C44: =J30 -> 0.55275 | D44: 3 | E44: =K30 -> 0.44725 | F44: 1
A45: LA PORTE | B45: 1 | C45: =J19 -> 0.2405830322 | D45: 2 | E45: =K19 -> 0.7594169678 | F45: 1 | I45: 1. About 33% in District 5 and 67% in District 4 | J45: Howard County Population = | M45: 82849
A46: LAGRANGE | B46: 3 | C46: 1 | F46: 1 | I46: 2 | J46: Kokomo Population = | M46: 45494 | N46: =M46/M45 -> 0.5491194824 | O46: of the county population
A47: LAKE | B47: 1 | C47: 1 | F47: 1
A48: LAWRENCE | B48: 9 | C48: 1 | F48: 1 | I48: 3. Re-estimate split between Districts 4 and 5 | J48: District 4 | K48: District 5
A49: MADISON | B49: 5 | C49: 1 | F49: 1 | I49: Area | J49: 0.67 | K49: 0.33
A50: MARION | B50: 5 | C50: =J73 -> 0.25 | D50: 7 | E50: 0.75 | F50: 1 | I50: Population | J50: =(1-N46)*J49 -> 0.3020899468 | K50: =(1-N46)*K49 -> 0.1487905708
A51: MARSHALL | B51: 2 | C51: 1 | F51: 1 | I51: Kokomo | J51: =N46 -> 0.5491194824
A52: MARTIN | B52: 8 | C52: 1 | F52: 1 | J52: =J50+J51 -> 0.8512094292 | K52: =K50 -> 0.1487905708
A53: MIAMI | B53: 2 | C53: 1 | F53: 1
A54: MONROE | B54: 9 | C54: 1 | F54: 1 | G54: 5 | H54: Boone County
A55: MONTGOMERY | B55: 4 | C55: 1 | F55: 1
A56: MORGAN | B56: 4 | C56: =J87 -> 0.2484269566 | D56: 9 | E56: =K87 -> 0.7515730434 | F56: 1 | I56: 1. About 75% in District 4 and 25% in District 5 | J56: Boone County Population | M56: 58944 | N56: =(M56-M57-M58)/M56 -> 0.3266490228
A57: NEWTON | B57: 4 | C57: 1 | F57: 1 | I57: 2 | J57: Zionsville population | M57: 23668 | N57: =M57/M56 -> 0.4015336591
A58: NOBLE | B58: 3 | C58: 1 | F58: 1 | I58: Distr 5 | J58: Lebanon population | M58: 16022 | N58: =M58/M56 -> 0.2718173181
A59: OHIO | B59: 6 | C59: 1 | F59: 1 | I59: Distr 4
A60: ORANGE | B60: 9 | C60: 1 | F60: 1
A61: OWEN | B61: 8 | C61: 1 | F61: 1 | I61: 3 Re-estimate split between Districts 4 and 5 | J61: District 4 | K61: District 5
A62: PARKE | B62: 8 | C62: 1 | F62: 1 | I62: Area | J62: 0.75 | K62: 0.25
A63: PERRY | B63: 8 | C63: 1 | F63: 1 | I63: County Population | J63: =J62*N56 -> 0.2449867671 | K63: =N56*K62 -> 0.0816622557
A64: PIKE | B64: 8 | C64: 1 | F64: 1 | I64: City Population | J64: =N58 -> 0.2718173181 | K64: =N57 -> 0.4015336591
A65: PORTER | B65: 1 | C65: 1 | F65: 1 | J65: =J63+J64 -> 0.5168040852 | K65: =K64+K63 -> 0.4831959148
A66: POSEY | B66: 8 | C66: 1 | F66: 1
A67: PULASKI | B67: 2 | C67: 1 | F67: =C67+E67 -> 1 | G67: 6 | H67: Marion County
A68: PUTNAM | B68: 4 | C68: 1 | F68: 1
A69: RANDOLPH | B69: 6 | C69: 1 | F69: 1 | I69: 1. About 25% in District 5 and 75% in District 7
A70: RIPLEY | B70: 6 | C70: 1 | F70: 1 | J70: Marion County Population | M70: 918977
A71: RUSH | B71: 6 | C71: 1 | F71: 1 | I71: 2 | J71: Assume even spread across the county
A72: SCOTT | B72: 6 | C72: =K107 -> 0.7125467614 | D72: 9 | E72: =J107 -> 0.2874532386 | F72: 1 | J72: District 5 | K72: District 7
A73: SHELBY | B73: 6 | C73: 1 | F73: 1 | J73: =25% -> 0.25 | K73: 0.75
A74: SPENCER | B74: 8 | C74: 1 | F74: 1
A75: Saint JOSEPH | B75: 2 | C75: 1 | F75: 1 | I75: http://www.census.gov/did/www/saipe/data/interactive/#view=Mapping
A76: STARKE | B76: 2 | C76: 1 | F76: 1 | I76: Shows povery by school district. All Indy is same
A77: STEUBEN | B77: 3 | C77: 1 | F77: 1 | G77: 7 | H77: Morgan
A78: SULLIVAN | B78: 8 | C78: 1 | F78: 1 | I78: 1. About 30% is in District 4 and 70% in District 9
A79: SWITZERLAND | B79: 6 | C79: 1 | F79: 1 | J79: Morgan County population | M79: 69356
A80: TIPPECANOE | B80: 4 | C80: 1 | F80: 1 | I80: 2 | J80: Martinsville population | M80: 11923 | N80: =M80/M79 -> 0.1719101448 | O80: of the county population
A81: TIPTON | B81: 5 | C81: 1 | F81: 1 | I81: District 9
A82: UNION | B82: 6 | C82: 1 | F82: 1
A83: VANDERBURGH | B83: 8 | C83: 1 | F83: 1 | I83: 3. Re-estimate the split between Districy 4 and District 9 | J83: District 4 | K83: District 9
A84: VERMILLION | B84: 8 | C84: 1 | F84: 1 | I84: Area | J84: 0.3 | K84: 0.7
A85: VIGO | B85: 8 | C85: 1 | F85: 1 | I85: Population | J85: =(1-N80)*J84 -> 0.2484269566 | K85: =(1-N80)*K84 -> 0.5796628987
A86: WABASH | B86: 2 | C86: 1 | F86: 1 | I86: Martinsville | K86: =N80 -> 0.1719101448
A87: WARREN | B87: 4 | C87: 1 | F87: 1 | J87: =J85 -> 0.2484269566 | K87: =K85+K86 -> 0.7515730434
A88: WARRICK | B88: 8 | C88: 1 | F88: 1
A89: WASHINGTON | B89: 9 | C89: 1 | F89: 1 | G89: 8 | H89: Crawford
A90: WAYNE | B90: 6 | C90: 1 | F90: 1 | I90: 1. About 25% is in District 8 and 75% in District 9
A91: WELLS | B91: 3 | C91: 1 | F91: 1 | I91: 2 | J91: Crawford County Population | M91: 10665
A92: WHITE | B92: 4 | C92: 1 | F92: 1 | J92: English IN | M92: 645 | N92: =M92/M91 -> 0.06047819972 | O92: of the county population
A93: WHITLEY | B93: 3 | C93: 1 | F93: 1 | J93: District 8 | K93: District 9
I94: Area | J94: 0.25 | K94: 0.75
I95: Population | J95: =(1-N92)*J94 -> 0.2348804501 | K95: =(1-N92)*K94 -> 0.7046413502
I96: English | K96: =N92 -> 0.06047819972
J97: =J95 -> 0.2348804501 | K97: =K96+K95 -> 0.7651195499
G99: 9 | H99: Scott | I99: 1. About 40% is in District 9 and 60% is in District 6
I100: 2
I101: District 9 | J101: Scott County Population | M101: 23791
J102: Scottsburgh Population | M102: 6694 | N102: =M102/M101 -> 0.2813669035 | O102: of the county population
I103: Area | J103: District 9 | K103: District 6
I104: Population | J104: 0.4 | K104: 0.6
I105: Scottsburgh | J105: =(1-N102)*J104 -> 0.2874532386 | K105: =(1-N102)*K104 -> 0.4311798579
K106: =N102 -> 0.2813669035
J107: =J105 -> 0.2874532386 | K107: =K105+K106 -> 0.7125467614

Sheet SNAP (hidden)
A1: County | B1: Jan | C1: Feb | D1: Mar | E1: Apr | F1: May | G1: Jun | H1: Jul | I1: Aug | J1: Sept | K1: Oct | L1: Nov | M1: Dec | N1: Total | Q1: Total | S1: 1 | T1: 2 | U1: 3 | V1: 4 | W1: 5 | X1: 6 | Y1: 7 | Z1: 8 | AA1: 9
A2: Adams | B2: 381.3 | C2: 383 | D2: 387.1 | E2: 378.5 | F2: 380.1 | G2: 388.6 | H2: 402.4 | I2: 410.3 | J2: 381.5 | K2: 384 | L2: 387.8 | M2: 386.2 | N2: =SUM(B2:M2) -> 4650.8 | P2: =A2 -> Adams | Q2: =N2*1000 -> 4650800 | S2: =IF(VLOOKUP($P2,'Congressional Districts'!$A$1:$E$93,2,FALSE)=SNAP!S$1,VLOOKUP($P2,'Congressional Districts'!$A$1:$E$93,3,FALSE)*SNAP!$Q2,IF(VLOOKUP($P2,'Congressional Districts'!$A$1:$E$93,4,FALSE)=SNAP!S$1,VLOOKUP($P2,'Congressional Districts'!$A$1:$E$93,5,FALSE)*SNAP!$Q2,0)) -> 0 | T2: =IF(VLOOKUP($P2,'Congressional Districts'!$A$1:$E$93,2,FALSE)=SNAP!T$1,VLOOKUP($P2,'Congressional Districts'!$A$1:$E$93,3,FALSE)*SNAP!$Q2,IF(VLOOKUP($P2,'Congressional Districts'!$A$1:$E$93,4,FALSE)=SNAP!T$1,VLOOKUP($P2,'Congressional Districts'!$A$1:$E$93,5,FALSE)*SNAP!$Q2,0)) -> 0 | U2: =IF(VLOOKUP($P2,'Congressional Districts'!$A$1:$E$93,2,FALSE)=SNAP!U$1,VLOOKUP($P2,'Congressional Districts'!$A$1:$E$93,3,FALSE)*SNAP!$Q2,IF(VLOOKUP($P2,'Congressional Districts'!$A$1:$E$93,4,FALSE)=SNAP!U$1,VLOOKUP($P2,'Congressional Districts'!$A$1:$E$93,5,FALSE)*SNAP!$Q2,0)) -> 4650800 | V2: =IF(VLOOKUP($P2,'Congressional Districts'!$A$1:$E$93,2,FALSE)=SNAP!V$1,VLOOKUP($P2,'Congressional Districts'!$A$1:$E$93,3,FALSE)*SNAP!$Q2,IF(VLOOKUP($P2,'Congressional Districts'!$A$1:$E$93,4,FALSE)=SNAP!V$1,VLOOKUP($P2,'Congressional Districts'!$A$1:$E$93,5,FALSE)*SNAP!$Q2,0)) -> 0 | W2: =IF(VLOOKUP($P2,'Congressional Districts'!$A$1:$E$93,2,FALSE)=SNAP!W$1,VLOOKUP($P2,'Congressional Districts'!$A$1:$E$93,3,FALSE)*SNAP!$Q2,IF(VLOOKUP($P2,'Congressional Districts'!$A$1:$E$93,4,FALSE)=SNAP!W$1,VLOOKUP($P2,'Congressional Districts'!$A$1:$E$93,5,FALSE)*SNAP!$Q2,0)) -> 0 | X2: =IF(VLOOKUP($P2,'Congressional Districts'!$A$1:$E$93,2,FALSE)=SNAP!X$1,VLOOKUP($P2,'Congressional Districts'!$A$1:$E$93,3,FALSE)*SNAP!$Q2,IF(VLOOKUP($P2,'Congressional Districts'!$A$1:$E$93,4,FALSE)=SNAP!X$1,VLOOKUP($P2,'Congressional Districts'!$A$1:$E$93,5,FALSE)*SNAP!$Q2,0)) -> 0 | Y2: =IF(VLOOKUP($P2,'Congressional Districts'!$A$1:$E$93,2,FALSE)=SNAP!Y$1,VLOOKUP($P2,'Congressional Districts'!$A$1:$E$93,3,FALSE)*SNAP!$Q2,IF(VLOOKUP($P2,'Congressional Districts'!$A$1:$E$93,4,FALSE)=SNAP!Y$1,VLOOKUP($P2,'Congressional Districts'!$A$1:$E$93,5,FALSE)*SNAP!$Q2,0)) -> 0 | Z2: =IF(VLOOKUP($P2,'Congressional Districts'!$A$1:$E$93,2,FALSE)=SNAP!Z$1,VLOOKUP($P2,'Congressional Districts'!$A$1:$E$93,3,FALSE)*SNAP!$Q2,IF(VLOOKUP($P2,'Congressional Districts'!$A$1:$E$93,4,FALSE)=SNAP!Z$1,VLOOKUP($P2,'Congressional Districts'!$A$1:$E$93,5,FALSE)*SNAP!$Q2,0)) -> 0 | AA2: =IF(VLOOKUP($P2,'Congressional Districts'!$A$1:$E$93,2,FALSE)=SNAP!AA$1,VLOOKUP($P2,'Congressional Districts'!$A$1:$E$93,3,FALSE)*SNAP!$Q2,IF(VLOOKUP($P2,'Congressional Districts'!$A$1:$E$93,4,FALSE)=SNAP!AA$1,VLOOKUP($P2,'Congressional Districts'!$A$1:$E$93,5,FALSE)*SNAP!$Q2,0)) -> 0
A3: Allen | B3: 7225.5 | C3: 7215.8 | D3: 7234.6 | E3: 7184.5 | F3: 7239 | G3: 7231.5 | H3: 8968.2 | I3: 7383.1 | J3: 7363.6 | K3: 7392.3 | L3: 7365.1 | M3: 7372.9 | N3: 89176.1 | P3: =A3 -> Allen | Q3: =N3*1000 -> 89176100 | S3: =IF(VLOOKUP($P3,'Congressional Districts'!$A$1:$E$93,2,FALSE)=SNAP!S$1,VLOOKUP($P3,'Congressional Districts'!$A$1:$E$93,3,FALSE)*SNAP!$Q3,IF(VLOOKUP($P3,'Congressional Districts'!$A$1:$E$93,4,FALSE)=SNAP!S$1,VLOOKUP($P3,'Congressional Districts'!$A$1:$E$93,5,FALSE)*SNAP!$Q3,0)) -> 0 | T3: =IF(VLOOKUP($P3,'Congressional Districts'!$A$1:$E$93,2,FALSE)=SNAP!T$1,VLOOKUP($P3,'Congressional Districts'!$A$1:$E$93,3,FALSE)*SNAP!$Q3,IF(VLOOKUP($P3,'Congressional Districts'!$A$1:$E$93,4,FALSE)=SNAP!T$1,VLOOKUP($P3,'Congressional Districts'!$A$1:$E$93,5,FALSE)*SNAP!$Q3,0)) -> 0 | U3: =IF(VLOOKUP($P3,'Congressional Districts'!$A$1:$E$93,2,FALSE)=SNAP!U$1,VLOOKUP($P3,'Congressional Districts'!$A$1:$E$93,3,FALSE)*SNAP!$Q3,IF(VLOOKUP($P3,'Congressional Districts'!$A$1:$E$93,4,FALSE)=SNAP!U$1,VLOOKUP($P3,'Congressional Districts'!$A$1:$E$93,5,FALSE)*SNAP!$Q3,0)) -> 89176100 | V3: =IF(VLOOKUP($P3,'Congressional Districts'!$A$1:$E$93,2,FALSE)=SNAP!V$1,VLOOKUP($P3,'Congressional Districts'!$A$1:$E$93,3,FALSE)*SNAP!$Q3,IF(VLOOKUP($P3,'Congressional Districts'!$A$1:$E$93,4,FALSE)=SNAP!V$1,VLOOKUP($P3,'Congressional Districts'!$A$1:$E$93,5,FALSE)*SNAP!$Q3,0)) -> 0 | W3: =IF(VLOOKUP($P3,'Congressional Districts'!$A$1:$E$93,2,FALSE)=SNAP!W$1,VLOOKUP($P3,'Congressional Districts'!$A$1:$E$93,3,FALSE)*SNAP!$Q3,IF(VLOOKUP($P3,'Congressional Districts'!$A$1:$E$93,4,FALSE)=SNAP!W$1,VLOOKUP($P3,'Congressional Districts'!$A$1:$E$93,5,FALSE)*SNAP!$Q3,0)) -> 0 | X3: =IF(VLOOKUP($P3,'Congressional Districts'!$A$1:$E$93,2,FALSE)=SNAP!X$1,VLOOKUP($P3,'Congressional Districts'!$A$1:$E$93,3,FALSE)*SNAP!$Q3,IF(VLOOKUP($P3,'Congressional Districts'!$A$1:$E$93,4,FALSE)=SNAP!X$1,VLOOKUP($P3,'Congressional Districts'!$A$1:$E$93,5,FALSE)*SNAP!$Q3,0)) -> 0 | Y3: =IF(VLOOKUP($P3,'Congressional Districts'!$A$1:$E$93,2,FALSE)=SNAP!Y$1,VLOOKUP($P3,'Congressional Districts'!$A$1:$E$93,3,FALSE)*SNAP!$Q3,IF(VLOOKUP($P3,'Congressional Districts'!$A$1:$E$93,4,FALSE)=SNAP!Y$1,VLOOKUP($P3,'Congressional Districts'!$A$1:$E$93,5,FALSE)*SNAP!$Q3,0)) -> 0 | Z3: =IF(VLOOKUP($P3,'Congressional Districts'!$A$1:$E$93,2,FALSE)=SNAP!Z$1,VLOOKUP($P3,'Congressional Districts'!$A$1:$E$93,3,FALSE)*SNAP!$Q3,IF(VLOOKUP($P3,'Congressional Districts'!$A$1:$E$93,4,FALSE)=SNAP!Z$1,VLOOKUP($P3,'Congressional Districts'!$A$1:$E$93,5,FALSE)*SNAP!$Q3,0)) -> 0 | AA3: =IF(VLOOKUP($P3,'Congressional Districts'!$A$1:$E$93,2,FALSE)=SNAP!AA$1,VLOOKUP($P3,'Congressional Districts'!$A$1:$E$93,3,FALSE)*SNAP!$Q3,IF(VLOOKUP($P3,'Congressional Districts'!$A$1:$E$93,4,FALSE)=SNAP!AA$1,VLOOKUP($P3,'Congressional Districts'!$A$1:$E$93,5,FALSE)*SNAP!$Q3,0)) -> 0
A4: Bartholomew | B4: 1061 | C4: 1050.5 | D4: 1060.5 | E4: 1036 | F4: 1049.8 | G4: 1018.9 | H4: 1031 | I4: 1051.4 | J4: 1047 | K4: 1053.2 | L4: 1040.9 | M4: 1062.8 | N4: 12563 | P4: Bartholomew | Q4: 12563000 | S4: =IF(VLOOKUP($P4,'Congressional Districts'!$A$1:$E$93,2,FALSE)=SNAP!S$1,VLOOKUP($P4,'Congressional Districts'!$A$1:$E$93,3,FALSE)*SNAP!$Q4,IF(VLOOKUP($P4,'Congressional Districts'!$A$1:$E$93,4,FALSE)=SNAP!S$1,VLOOKUP($P4,'Congressional Districts'!$A$1:$E$93,5,FALSE)*SNAP!$Q4,0)) -> 0 | T4: =IF(VLOOKUP($P4,'Congressional Districts'!$A$1:$E$93,2,FALSE)=SNAP!T$1,VLOOKUP($P4,'Congressional Districts'!$A$1:$E$93,3,FALSE)*SNAP!$Q4,IF(VLOOKUP($P4,'Congressional Districts'!$A$1:$E$93,4,FALSE)=SNAP!T$1,VLOOKUP($P4,'Congressional Districts'!$A$1:$E$93,5,FALSE)*SNAP!$Q4,0)) -> 0 | U4: =IF(VLOOKUP($P4,'Congressional Districts'!$A$1:$E$93,2,FALSE)=SNAP!U$1,VLOOKUP($P4,'Congressional Districts'!$A$1:$E$93,3,FALSE)*SNAP!$Q4,IF(VLOOKUP($P4,'Congressional Districts'!$A$1:$E$93,4,FALSE)=SNAP!U$1,VLOOKUP($P4,'Congressional Districts'!$A$1:$E$93,5,FALSE)*SNAP!$Q4,0)) -> 0 | V4: =IF(VLOOKUP($P4,'Congressional Districts'!$A$1:$E$93,2,FALSE)=SNAP!V$1,VLOOKUP($P4,'Congressional Districts'!$A$1:$E$93,3,FALSE)*SNAP!$Q4,IF(VLOOKUP($P4,'Congressional Districts'!$A$1:$E$93,4,FALSE)=SNAP!V$1,VLOOKUP($P4,'Congressional Districts'!$A$1:$E$93,5,FALSE)*SNAP!$Q4,0)) -> 0 | W4: =IF(VLOOKUP($P4,'Congressional Districts'!$A$1:$E$93,2,FALSE)=SNAP!W$1,VLOOKUP($P4,'Congressional Districts'!$A$1:$E$93,3,FALSE)*SNAP!$Q4,IF(VLOOKUP($P4,'Congressional Districts'!$A$1:$E$93,4,FALSE)=SNAP!W$1,VLOOKUP($P4,'Congressional Districts'!$A$1:$E$93,5,FALSE)*SNAP!$Q4,0)) -> 0 | X4: =IF(VLOOKUP($P4,'Congressional Districts'!$A$1:$E$93,2,FALSE)=SNAP!X$1,VLOOKUP($P4,'Congressional Districts'!$A$1:$E$93,3,FALSE)*SNAP!$Q4,IF(VLOOKUP($P4,'Congressional Districts'!$A$1:$E$93,4,FALSE)=SNAP!X$1,VLOOKUP($P4,'Congressional Districts'!$A$1:$E$93,5,FALSE)*SNAP!$Q4,0)) -> 12563000 | Y4: =IF(VLOOKUP($P4,'Congressional Districts'!$A$1:$E$93,2,FALSE)=SNAP!Y$1,VLOOKUP($P4,'Congressional Districts'!$A$1:$E$93,3,FALSE)*SNAP!$Q4,IF(VLOOKUP($P4,'Congressional Districts'!$A$1:$E$93,4,FALSE)=SNAP!Y$1,VLOOKUP($P4,'Congressional Districts'!$A$1:$E$93,5,FALSE)*SNAP!$Q4,0)) -> 0 | Z4: =IF(VLOOKUP($P4,'Congressional Districts'!$A$1:$E$93,2,FALSE)=SNAP!Z$1,VLOOKUP($P4,'Congressional Districts'!$A$1:$E$93,3,FALSE)*SNAP!$Q4,IF(VLOOKUP($P4,'Congressional Districts'!$A$1:$E$93,4,FALSE)=SNAP!Z$1,VLOOKUP($P4,'Congressional Districts'!$A$1:$E$93,5,FALSE)*SNAP!$Q4,0)) -> 0 | AA4: =IF(VLOOKUP($P4,'Congressional Districts'!$A$1:$E$93,2,FALSE)=SNAP!AA$1,VLOOKUP($P4,'Congressional Districts'!$A$1:$E$93,3,FALSE)*SNAP!$Q4,IF(VLOOKUP($P4,'Congressional Districts'!$A$1:$E$93,4,FALSE)=SNAP!AA$1,VLOOKUP($P4,'Congressional Districts'!$A$1:$E$93,5,FALSE)*SNAP!$Q4,0)) -> 0
A5: Benton | B5: 160.5 | C5: 154.1 | D5: 150.8 | E5: 144.3 | F5: 146 | G5: 139 | H5: 133.6 | I5: 147.5 | J5: 150.9 | K5: 145.2 | L5: 143.8 | M5: 143.5 | N5: 1759.2 | P5: Benton | Q5: 1759200 | S5: =IF(VLOOKUP($P5,'Congressional Districts'!$A$1:$E$93,2,FALSE)=SNAP!S$1,VLOOKUP($P5,'Congressional Districts'!$A$1:$E$93,3,FALSE)*SNAP!$Q5,IF(VLOOKUP($P5,'Congressional Districts'!$A$1:$E$93,4,FALSE)=SNAP!S$1,VLOOKUP($P5,'Congressional Districts'!$A$1:$E$93,5,FALSE)*SNAP!$Q5,0)) -> 0 | T5: =IF(VLOOKUP($P5,'Congressional Districts'!$A$1:$E$93,2,FALSE)=SNAP!T$1,VLOOKUP($P5,'Congressional Districts'!$A$1:$E$93,3,FALSE)*SNAP!$Q5,IF(VLOOKUP($P5,'Congressional Districts'!$A$1:$E$93,4,FALSE)=SNAP!T$1,VLOOKUP($P5,'Congressional Districts'!$A$1:$E$93,5,FALSE)*SNAP!$Q5,0)) -> 0 | U5: =IF(VLOOKUP($P5,'Congressional Districts'!$A$1:$E$93,2,FALSE)=SNAP!U$1,VLOOKUP($P5,'Congressional Districts'!$A$1:$E$93,3,FALSE)*SNAP!$Q5,IF(VLOOKUP($P5,'Congressional Districts'!$A$1:$E$93,4,FALSE)=SNAP!U$1,VLOOKUP($P5,'Congressional Districts'!$A$1:$E$93,5,FALSE)*SNAP!$Q5,0)) -> 0 | V5: =IF(VLOOKUP($P5,'Congressional Districts'!$A$1:$E$93,2,FALSE)=SNAP!V$1,VLOOKUP($P5,'Congressional Districts'!$A$1:$E$93,3,FALSE)*SNAP!$Q5,IF(VLOOKUP($P5,'Congressional Districts'!$A$1:$E$93,4,FALSE)=SNAP!V$1,VLOOKUP($P5,'Congressional Districts'!$A$1:$E$93,5,FALSE)*SNAP!$Q5,0)) -> 1759200 | W5: =IF(VLOOKUP($P5,'Congressional Districts'!$A$1:$E$93,2,FALSE)=SNAP!W$1,VLOOKUP($P5,'Congressional Districts'!$A$1:$E$93,3,FALSE)*SNAP!$Q5,IF(VLOOKUP($P5,'Congressional Districts'!$A$1:$E$93,4,FALSE)=SNAP!W$1,VLOOKUP($P5,'Congressional Districts'!$A$1:$E$93,5,FALSE)*SNAP!$Q5,0)) -> 0 | X5: =IF(VLOOKUP($P5,'Congressional Districts'!$A$1:$E$93,2,FALSE)=SNAP!X$1,VLOOKUP($P5,'Congressional Districts'!$A$1:$E$93,3,FALSE)*SNAP!$Q5,IF(VLOOKUP($P5,'Congressional Districts'!$A$1:$E$93,4,FALSE)=SNAP!X$1,VLOOKUP($P5,'Congressional Districts'!$A$1:$E$93,5,FALSE)*SNAP!$Q5,0)) -> 0 | Y5: =IF(VLOOKUP($P5,'Congressional Districts'!$A$1:$E$93,2,FALSE)=SNAP!Y$1,VLOOKUP($P5,'Congressional Districts'!$A$1:$E$93,3,FALSE)*SNAP!$Q5,IF(VLOOKUP($P5,'Congressional Districts'!$A$1:$E$93,4,FALSE)=SNAP!Y$1,VLOOKUP($P5,'Congressional Districts'!$A$1:$E$93,5,FALSE)*SNAP!$Q5,0)) -> 0 | Z5: =IF(VLOOKUP($P5,'Congressional Districts'!$A$1:$E$93,2,FALSE)=SNAP!Z$1,VLOOKUP($P5,'Congressional Districts'!$A$1:$E$93,3,FALSE)*SNAP!$Q5,IF(VLOOKUP($P5,'Congressional Districts'!$A$1:$E$93,4,FALSE)=SNAP!Z$1,VLOOKUP($P5,'Congressional Districts'!$A$1:$E$93,5,FALSE)*SNAP!$Q5,0)) -> 0 | AA5: =IF(VLOOKUP($P5,'Congressional Districts'!$A$1:$E$93,2,FALSE)=SNAP!AA$1,VLOOKUP($P5,'Congressional Districts'!$A$1:$E$93,3,FALSE)*SNAP!$Q5,IF(VLOOKUP($P5,'Congressional Districts'!$A$1:$E$93,4,FALSE)=SNAP!AA$1,VLOOKUP($P5,'Congressional Districts'!$A$1:$E$93,5,FALSE)*SNAP!$Q5,0)) -> 0
A6: Blackford | B6: 284.5 | C6: 283.5 | D6: 288.2 | E6: 285.5 | F6: 282.2 | G6: 275.6 | H6: 274 | I6: 279.7 | J6: 283.9 | K6: 279.6 | L6: 281.8 | M6: 288.7 | N6: 3387.2 | P6: Blackford | Q6: 3387200 | S6: =IF(VLOOKUP($P6,'Congressional Districts'!$A$1:$E$93,2,FALSE)=SNAP!S$1,VLOOKUP($P6,'Congressional Districts'!$A$1:$E$93,3,FALSE)*SNAP!$Q6,IF(VLOOKUP($P6,'Congressional Districts'!$A$1:$E$93,4,FALSE)=SNAP!S$1,VLOOKUP($P6,'Congressional Districts'!$A$1:$E$93,5,FALSE)*SNAP!$Q6,0)) -> 0 | T6: =IF(VLOOKUP($P6,'Congressional Districts'!$A$1:$E$93,2,FALSE)=SNAP!T$1,VLOOKUP($P6,'Congressional Districts'!$A$1:$E$93,3,FALSE)*SNAP!$Q6,IF(VLOOKUP($P6,'Congressional Districts'!$A$1:$E$93,4,FALSE)=SNAP!T$1,VLOOKUP($P6,'Congressional Districts'!$A$1:$E$93,5,FALSE)*SNAP!$Q6,0)) -> 0 | U6: =IF(VLOOKUP($P6,'Congressional Districts'!$A$1:$E$93,2,FALSE)=SNAP!U$1,VLOOKUP($P6,'Congressional Districts'!$A$1:$E$93,3,FALSE)*SNAP!$Q6,IF(VLOOKUP($P6,'Congressional Districts'!$A$1:$E$93,4,FALSE)=SNAP!U$1,VLOOKUP($P6,'Congressional Districts'!$A$1:$E$93,5,FALSE)*SNAP!$Q6,0)) -> 862378.6274 | V6: =IF(VLOOKUP($P6,'Congressional Districts'!$A$1:$E$93,2,FALSE)=SNAP!V$1,VLOOKUP($P6,'Congressional Districts'!$A$1:$E$93,3,FALSE)*SNAP!$Q6,IF(VLOOKUP($P6,'Congressional Districts'!$A$1:$E$93,4,FALSE)=SNAP!V$1,VLOOKUP($P6,'Congressional Districts'!$A$1:$E$93,5,FALSE)*SNAP!$Q6,0)) -> 0 | W6: =IF(VLOOKUP($P6,'Congressional Districts'!$A$1:$E$93,2,FALSE)=SNAP!W$1,VLOOKUP($P6,'Congressional Districts'!$A$1:$E$93,3,FALSE)*SNAP!$Q6,IF(VLOOKUP($P6,'Congressional Districts'!$A$1:$E$93,4,FALSE)=SNAP!W$1,VLOOKUP($P6,'Congressional Districts'!$A$1:$E$93,5,FALSE)*SNAP!$Q6,0)) -> 2524821.373 | X6: =IF(VLOOKUP($P6,'Congressional Districts'!$A$1:$E$93,2,FALSE)=SNAP!X$1,VLOOKUP($P6,'Congressional Districts'!$A$1:$E$93,3,FALSE)*SNAP!$Q6,IF(VLOOKUP($P6,'Congressional Districts'!$A$1:$E$93,4,FALSE)=SNAP!X$1,VLOOKUP($P6,'Congressional Districts'!$A$1:$E$93,5,FALSE)*SNAP!$Q6,0)) -> 0 | Y6: =IF(VLOOKUP($P6,'Congressional Districts'!$A$1:$E$93,2,FALSE)=SNAP!Y$1,VLOOKUP($P6,'Congressional Districts'!$A$1:$E$93,3,FALSE)*SNAP!$Q6,IF(VLOOKUP($P6,'Congressional Districts'!$A$1:$E$93,4,FALSE)=SNAP!Y$1,VLOOKUP($P6,'Congressional Districts'!$A$1:$E$93,5,FALSE)*SNAP!$Q6,0)) -> 0 | Z6: =IF(VLOOKUP($P6,'Congressional Districts'!$A$1:$E$93,2,FALSE)=SNAP!Z$1,VLOOKUP($P6,'Congressional Districts'!$A$1:$E$93,3,FALSE)*SNAP!$Q6,IF(VLOOKUP($P6,'Congressional Districts'!$A$1:$E$93,4,FALSE)=SNAP!Z$1,VLOOKUP($P6,'Congressional Districts'!$A$1:$E$93,5,FALSE)*SNAP!$Q6,0)) -> 0 | AA6: =IF(VLOOKUP($P6,'Congressional Districts'!$A$1:$E$93,2,FALSE)=SNAP!AA$1,VLOOKUP($P6,'Congressional Districts'!$A$1:$E$93,3,FALSE)*SNAP!$Q6,IF(VLOOKUP($P6,'Congressional Districts'!$A$1:$E$93,4,FALSE)=SNAP!AA$1,VLOOKUP($P6,'Congressional Districts'!$A$1:$E$93,5,FALSE)*SNAP!$Q6,0)) -> 0
A7: Boone | B7: 499.8 | C7: 501 | D7: 499.6 | E7: 504.2 | F7: 500.8 | G7: 499.4 | H7: 492.8 | I7: 497.1 | J7: 498.9 | K7: 507.2 | L7: 501.5 | M7: 501.1 | N7: 6003.4 | P7: Boone | Q7: 6003400 | S7: =IF(VLOOKUP($P7,'Congressional Districts'!$A$1:$E$93,2,FALSE)=SNAP!S$1,VLOOKUP($P7,'Congressional Districts'!$A$1:$E$93,3,FALSE)*SNAP!$Q7,IF(VLOOKUP($P7,'Congressional Districts'!$A$1:$E$93,4,FALSE)=SNAP!S$1,VLOOKUP($P7,'Congressional Districts'!$A$1:$E$93,5,FALSE)*SNAP!$Q7,0)) -> 0 | T7: =IF(VLOOKUP($P7,'Congressional Districts'!$A$1:$E$93,2,FALSE)=SNAP!T$1,VLOOKUP($P7,'Congressional Districts'!$A$1:$E$93,3,FALSE)*SNAP!$Q7,IF(VLOOKUP($P7,'Congressional Districts'!$A$1:$E$93,4,FALSE)=SNAP!T$1,VLOOKUP($P7,'Congressional Districts'!$A$1:$E$93,5,FALSE)*SNAP!$Q7,0)) -> 0 | U7: =IF(VLOOKUP($P7,'Congressional Districts'!$A$1:$E$93,2,FALSE)=SNAP!U$1,VLOOKUP($P7,'Congressional Districts'!$A$1:$E$93,3,FALSE)*SNAP!$Q7,IF(VLOOKUP($P7,'Congressional Districts'!$A$1:$E$93,4,FALSE)=SNAP!U$1,VLOOKUP($P7,'Congressional Districts'!$A$1:$E$93,5,FALSE)*SNAP!$Q7,0)) -> 0 | V7: =IF(VLOOKUP($P7,'Congressional Districts'!$A$1:$E$93,2,FALSE)=SNAP!V$1,VLOOKUP($P7,'Congressional Districts'!$A$1:$E$93,3,FALSE)*SNAP!$Q7,IF(VLOOKUP($P7,'Congressional Districts'!$A$1:$E$93,4,FALSE)=SNAP!V$1,VLOOKUP($P7,'Congressional Districts'!$A$1:$E$93,5,FALSE)*SNAP!$Q7,0)) -> 3102581.645 | W7: =IF(VLOOKUP($P7,'Congressional Districts'!$A$1:$E$93,2,FALSE)=SNAP!W$1,VLOOKUP($P7,'Congressional Districts'!$A$1:$E$93,3,FALSE)*SNAP!$Q7,IF(VLOOKUP($P7,'Congressional Districts'!$A$1:$E$93,4,FALSE)=SNAP!W$1,VLOOKUP($P7,'Congressional Districts'!$A$1:$E$93,5,FALSE)*SNAP!$Q7,0)) -> 2900818.355 | X7: =IF(VLOOKUP($P7,'Congressional Districts'!$A$1:$E$93,2,FALSE)=SNAP!X$1,VLOOKUP($P7,'Congressional Districts'!$A$1:$E$93,3,FALSE)*SNAP!$Q7,IF(VLOOKUP($P7,'Congressional Districts'!$A$1:$E$93,4,FALSE)=SNAP!X$1,VLOOKUP($P7,'Congressional Districts'!$A$1:$E$93,5,FALSE)*SNAP!$Q7,0)) -> 0 | Y7: =IF(VLOOKUP($P7,'Congressional Districts'!$A$1:$E$93,2,FALSE)=SNAP!Y$1,VLOOKUP($P7,'Congressional Districts'!$A$1:$E$93,3,FALSE)*SNAP!$Q7,IF(VLOOKUP($P7,'Congressional Districts'!$A$1:$E$93,4,FALSE)=SNAP!Y$1,VLOOKUP($P7,'Congressional Districts'!$A$1:$E$93,5,FALSE)*SNAP!$Q7,0)) -> 0 | Z7: =IF(VLOOKUP($P7,'Congressional Districts'!$A$1:$E$93,2,FALSE)=SNAP!Z$1,VLOOKUP($P7,'Congressional Districts'!$A$1:$E$93,3,FALSE)*SNAP!$Q7,IF(VLOOKUP($P7,'Congressional Districts'!$A$1:$E$93,4,FALSE)=SNAP!Z$1,VLOOKUP($P7,'Congressional Districts'!$A$1:$E$93,5,FALSE)*SNAP!$Q7,0)) -> 0 | AA7: =IF(VLOOKUP($P7,'Congressional Districts'!$A$1:$E$93,2,FALSE)=SNAP!AA$1,VLOOKUP($P7,'Congressional Districts'!$A$1:$E$93,3,FALSE)*SNAP!$Q7,IF(VLOOKUP($P7,'Congressional Districts'!$A$1:$E$93,4,FALSE)=SNAP!AA$1,VLOOKUP($P7,'Congressional Districts'!$A$1:$E$93,5,FALSE)*SNAP!$Q7,0)) -> 0
A8: Brown | B8: 198 | C8: 203 | D8: 203.3 | E8: 196.9 | F8: 205.2 | G8: 201.2 | H8: 199.7 | I8: 207 | J8: 207.3 | K8: 206.4 | L8: 208.4 | M8: 204.5 | N8: 2440.9 | P8: Brown | Q8: 2440900 | S8: =IF(VLOOKUP($P8,'Congressional Districts'!$A$1:$E$93,2,FALSE)=SNAP!S$1,VLOOKUP($P8,'Congressional Districts'!$A$1:$E$93,3,FALSE)*SNAP!$Q8,IF(VLOOKUP($P8,'Congressional Districts'!$A$1:$E$93,4,FALSE)=SNAP!S$1,VLOOKUP($P8,'Congressional Districts'!$A$1:$E$93,5,FALSE)*SNAP!$Q8,0)) -> 0 | T8: =IF(VLOOKUP($P8,'Congressional Districts'!$A$1:$E$93,2,FALSE)=SNAP!T$1,VLOOKUP($P8,'Congressional Districts'!$A$1:$E$93,3,FALSE)*SNAP!$Q8,IF(VLOOKUP($P8,'Congressional Districts'!$A$1:$E$93,4,FALSE)=SNAP!T$1,VLOOKUP($P8,'Congressional Districts'!$A$1:$E$93,5,FALSE)*SNAP!$Q8,0)) -> 0 | U8: =IF(VLOOKUP($P8,'Congressional Districts'!$A$1:$E$93,2,FALSE)=SNAP!U$1,VLOOKUP($P8,'Congressional Districts'!$A$1:$E$93,3,FALSE)*SNAP!$Q8,IF(VLOOKUP($P8,'Congressional Districts'!$A$1:$E$93,4,FALSE)=SNAP!U$1,VLOOKUP($P8,'Congressional Districts'!$A$1:$E$93,5,FALSE)*SNAP!$Q8,0)) -> 0 | V8: =IF(VLOOKUP($P8,'Congressional Districts'!$A$1:$E$93,2,FALSE)=SNAP!V$1,VLOOKUP($P8,'Congressional Districts'!$A$1:$E$93,3,FALSE)*SNAP!$Q8,IF(VLOOKUP($P8,'Congressional Districts'!$A$1:$E$93,4,FALSE)=SNAP!V$1,VLOOKUP($P8,'Congressional Districts'!$A$1:$E$93,5,FALSE)*SNAP!$Q8,0)) -> 0 | W8: =IF(VLOOKUP($P8,'Congressional Districts'!$A$1:$E$93,2,FALSE)=SNAP!W$1,VLOOKUP($P8,'Congressional Districts'!$A$1:$E$93,3,FALSE)*SNAP!$Q8,IF(VLOOKUP($P8,'Congressional Districts'!$A$1:$E$93,4,FALSE)=SNAP!W$1,VLOOKUP($P8,'Congressional Districts'!$A$1:$E$93,5,FALSE)*SNAP!$Q8,0)) -> 0 | X8: =IF(VLOOKUP($P8,'Congressional Districts'!$A$1:$E$93,2,FALSE)=SNAP!X$1,VLOOKUP($P8,'Congressional Districts'!$A$1:$E$93,3,FALSE)*SNAP!$Q8,IF(VLOOKUP($P8,'Congressional Districts'!$A$1:$E$93,4,FALSE)=SNAP!X$1,VLOOKUP($P8,'Congressional Districts'!$A$1:$E$93,5,FALSE)*SNAP!$Q8,0)) -> 0 | Y8: =IF(VLOOKUP($P8,'Congressional Districts'!$A$1:$E$93,2,FALSE)=SNAP!Y$1,VLOOKUP($P8,'Congressional Districts'!$A$1:$E$93,3,FALSE)*SNAP!$Q8,IF(VLOOKUP($P8,'Congressional Districts'!$A$1:$E$93,4,FALSE)=SNAP!Y$1,VLOOKUP($P8,'Congressional Districts'!$A$1:$E$93,5,FALSE)*SNAP!$Q8,0)) -> 0 | Z8: =IF(VLOOKUP($P8,'Congressional Districts'!$A$1:$E$93,2,FALSE)=SNAP!Z$1,VLOOKUP($P8,'Congressional Districts'!$A$1:$E$93,3,FALSE)*SNAP!$Q8,IF(VLOOKUP($P8,'Congressional Districts'!$A$1:$E$93,4,FALSE)=SNAP!Z$1,VLOOKUP($P8,'Congressional Districts'!$A$1:$E$93,5,FALSE)*SNAP!$Q8,0)) -> 0 | AA8: =IF(VLOOKUP($P8,'Congressional Districts'!$A$1:$E$93,2,FALSE)=SNAP!AA$1,VLOOKUP($P8,'Congressional Districts'!$A$1:$E$93,3,FALSE)*SNAP!$Q8,IF(VLOOKUP($P8,'Congressional Districts'!$A$1:$E$93,4,FALSE)=SNAP!AA$1,VLOOKUP($P8,'Congressional Districts'!$A$1:$E$93,5,FALSE)*SNAP!$Q8,0)) -> 2440900
A9: Carroll | B9: 198.9 | C9: 194.5 | D9: 197.2 | E9: 192.3 | F9: 192.8 | G9: 201.4 | H9: 198.7 | I9: 202.1 | J9: 202.9 | K9: 207.6 | L9: 202.4 | M9: 204.1 | N9: 2394.9 | P9: Carroll | Q9: 2394900 | S9: =IF(VLOOKUP($P9,'Congressional Districts'!$A$1:$E$93,2,FALSE)=SNAP!S$1,VLOOKUP($P9,'Congressional Districts'!$A$1:$E$93,3,FALSE)*SNAP!$Q9,IF(VLOOKUP($P9,'Congressional Districts'!$A$1:$E$93,4,FALSE)=SNAP!S$1,VLOOKUP($P9,'Congressional Districts'!$A$1:$E$93,5,FALSE)*SNAP!$Q9,0)) -> 0 | T9: =IF(VLOOKUP($P9,'Congressional Districts'!$A$1:$E$93,2,FALSE)=SNAP!T$1,VLOOKUP($P9,'Congressional Districts'!$A$1:$E$93,3,FALSE)*SNAP!$Q9,IF(VLOOKUP($P9,'Congressional Districts'!$A$1:$E$93,4,FALSE)=SNAP!T$1,VLOOKUP($P9,'Congressional Districts'!$A$1:$E$93,5,FALSE)*SNAP!$Q9,0)) -> 0 | U9: =IF(VLOOKUP($P9,'Congressional Districts'!$A$1:$E$93,2,FALSE)=SNAP!U$1,VLOOKUP($P9,'Congressional Districts'!$A$1:$E$93,3,FALSE)*SNAP!$Q9,IF(VLOOKUP($P9,'Congressional Districts'!$A$1:$E$93,4,FALSE)=SNAP!U$1,VLOOKUP($P9,'Congressional Districts'!$A$1:$E$93,5,FALSE)*SNAP!$Q9,0)) -> 0 | V9: =IF(VLOOKUP($P9,'Congressional Districts'!$A$1:$E$93,2,FALSE)=SNAP!V$1,VLOOKUP($P9,'Congressional Districts'!$A$1:$E$93,3,FALSE)*SNAP!$Q9,IF(VLOOKUP($P9,'Congressional Districts'!$A$1:$E$93,4,FALSE)=SNAP!V$1,VLOOKUP($P9,'Congressional Districts'!$A$1:$E$93,5,FALSE)*SNAP!$Q9,0)) -> 2394900 | W9: =IF(VLOOKUP($P9,'Congressional Districts'!$A$1:$E$93,2,FALSE)=SNAP!W$1,VLOOKUP($P9,'Congressional Districts'!$A$1:$E$93,3,FALSE)*SNAP!$Q9,IF(VLOOKUP($P9,'Congressional Districts'!$A$1:$E$93,4,FALSE)=SNAP!W$1,VLOOKUP($P9,'Congressional Districts'!$A$1:$E$93,5,FALSE)*SNAP!$Q9,0)) -> 0 | X9: =IF(VLOOKUP($P9,'Congressional Districts'!$A$1:$E$93,2,FALSE)=SNAP!X$1,VLOOKUP($P9,'Congressional Districts'!$A$1:$E$93,3,FALSE)*SNAP!$Q9,IF(VLOOKUP($P9,'Congressional Districts'!$A$1:$E$93,4,FALSE)=SNAP!X$1,VLOOKUP($P9,'Congressional Districts'!$A$1:$E$93,5,FALSE)*SNAP!$Q9,0)) -> 0 | Y9: =IF(VLOOKUP($P9,'Congressional Districts'!$A$1:$E$93,2,FALSE)=SNAP!Y$1,VLOOKUP($P9,'Congressional Districts'!$A$1:$E$93,3,FALSE)*SNAP!$Q9,IF(VLOOKUP($P9,'Congressional Districts'!$A$1:$E$93,4,FALSE)=SNAP!Y$1,VLOOKUP($P9,'Congressional Districts'!$A$1:$E$93,5,FALSE)*SNAP!$Q9,0)) -> 0 | Z9: =IF(VLOOKUP($P9,'Congressional Districts'!$A$1:$E$93,2,FALSE)=SNAP!Z$1,VLOOKUP($P9,'Congressional Districts'!$A$1:$E$93,3,FALSE)*SNAP!$Q9,IF(VLOOKUP($P9,'Congressional Districts'!$A$1:$E$93,4,FALSE)=SNAP!Z$1,VLOOKUP($P9,'Congressional Districts'!$A$1:$E$93,5,FALSE)*SNAP!$Q9,0)) -> 0 | AA9: =IF(VLOOKUP($P9,'Congressional Districts'!$A$1:$E$93,2,FALSE)=SNAP!AA$1,VLOOKUP($P9,'Congressional Districts'!$A$1:$E$93,3,FALSE)*SNAP!$Q9,IF(VLOOKUP($P9,'Congressional Districts'!$A$1:$E$93,4,FALSE)=SNAP!AA$1,VLOOKUP($P9,'Congressional Districts'!$A$1:$E$93,5,FALSE)*SNAP!$Q9,0)) -> 0
A10: Cass | B10: 703 | C10: 697.7 | D10: 706.5 | E10: 697.2 | F10: 689.7 | G10: 685.4 | H10: 705.3 | I10: 700 | J10: 705.3 | K10: 722.1 | L10: 725.3 | M10: 725 | N10: 8462.5 | P10: Cass | Q10: 8462500 | S10: =IF(VLOOKUP($P10,'Congressional Districts'!$A$1:$E$93,2,FALSE)=SNAP!S$1,VLOOKUP($P10,'Congressional Districts'!$A$1:$E$93,3,FALSE)*SNAP!$Q10,IF(VLOOKUP($P10,'Congressional Districts'!$A$1:$E$93,4,FALSE)=SNAP!S$1,VLOOKUP($P10,'Congressional Districts'!$A$1:$E$93,5,FALSE)*SNAP!$Q10,0)) -> 0 | T10: =IF(VLOOKUP($P10,'Congressional Districts'!$A$1:$E$93,2,FALSE)=SNAP!T$1,VLOOKUP($P10,'Congressional Districts'!$A$1:$E$93,3,FALSE)*SNAP!$Q10,IF(VLOOKUP($P10,'Congressional Districts'!$A$1:$E$93,4,FALSE)=SNAP!T$1,VLOOKUP($P10,'Congressional Districts'!$A$1:$E$93,5,FALSE)*SNAP!$Q10,0)) -> 0 | U10: =IF(VLOOKUP($P10,'Congressional Districts'!$A$1:$E$93,2,FALSE)=SNAP!U$1,VLOOKUP($P10,'Congressional Districts'!$A$1:$E$93,3,FALSE)*SNAP!$Q10,IF(VLOOKUP($P10,'Congressional Districts'!$A$1:$E$93,4,FALSE)=SNAP!U$1,VLOOKUP($P10,'Congressional Districts'!$A$1:$E$93,5,FALSE)*SNAP!$Q10,0)) -> 0 | V10: =IF(VLOOKUP($P10,'Congressional Districts'!$A$1:$E$93,2,FALSE)=SNAP!V$1,VLOOKUP($P10,'Congressional Districts'!$A$1:$E$93,3,FALSE)*SNAP!$Q10,IF(VLOOKUP($P10,'Congressional Districts'!$A$1:$E$93,4,FALSE)=SNAP!V$1,VLOOKUP($P10,'Congressional Districts'!$A$1:$E$93,5,FALSE)*SNAP!$Q10,0)) -> 8462500 | W10: =IF(VLOOKUP($P10,'Congressional Districts'!$A$1:$E$93,2,FALSE)=SNAP!W$1,VLOOKUP($P10,'Congressional Districts'!$A$1:$E$93,3,FALSE)*SNAP!$Q10,IF(VLOOKUP($P10,'Congressional Districts'!$A$1:$E$93,4,FALSE)=SNAP!W$1,VLOOKUP($P10,'Congressional Districts'!$A$1:$E$93,5,FALSE)*SNAP!$Q10,0)) -> 0 | X10: =IF(VLOOKUP($P10,'Congressional Districts'!$A$1:$E$93,2,FALSE)=SNAP!X$1,VLOOKUP($P10,'Congressional Districts'!$A$1:$E$93,3,FALSE)*SNAP!$Q10,IF(VLOOKUP($P10,'Congressional Districts'!$A$1:$E$93,4,FALSE)=SNAP!X$1,VLOOKUP($P10,'Congressional Districts'!$A$1:$E$93,5,FALSE)*SNAP!$Q10,0)) -> 0 | Y10: =IF(VLOOKUP($P10,'Congressional Districts'!$A$1:$E$93,2,FALSE)=SNAP!Y$1,VLOOKUP($P10,'Congressional Districts'!$A$1:$E$93,3,FALSE)*SNAP!$Q10,IF(VLOOKUP($P10,'Congressional Districts'!$A$1:$E$93,4,FALSE)=SNAP!Y$1,VLOOKUP($P10,'Congressional Districts'!$A$1:$E$93,5,FALSE)*SNAP!$Q10,0)) -> 0 | Z10: =IF(VLOOKUP($P10,'Congressional Districts'!$A$1:$E$93,2,FALSE)=SNAP!Z$1,VLOOKUP($P10,'Congressional Districts'!$A$1:$E$93,3,FALSE)*SNAP!$Q10,IF(VLOOKUP($P10,'Congressional Districts'!$A$1:$E$93,4,FALSE)=SNAP!Z$1,VLOOKUP($P10,'Congressional Districts'!$A$1:$E$93,5,FALSE)*SNAP!$Q10,0)) -> 0 | AA10: =IF(VLOOKUP($P10,'Congressional Districts'!$A$1:$E$93,2,FALSE)=SNAP!AA$1,VLOOKUP($P10,'Congressional Districts'!$A$1:$E$93,3,FALSE)*SNAP!$Q10,IF(VLOOKUP($P10,'Congressional Districts'!$A$1:$E$93,4,FALSE)=SNAP!AA$1,VLOOKUP($P10,'Congressional Districts'!$A$1:$E$93,5,FALSE)*SNAP!$Q10,0)) -> 0
A11: Clark | B11: 1669 | C11: 1644.6 | D11: 1870 | E11: 1635.4 | F11: 1647.1 | G11: 1628.9 | H11: 1642 | I11: 1639.8 | J11: 1616.5 | K11: 1626.1 | L11: 1619.3 | M11: 1614.6 | N11: 19853.3 | P11: Clark | Q11: 19853300 | S11: =IF(VLOOKUP($P11,'Congressional Districts'!$A$1:$E$93,2,FALSE)=SNAP!S$1,VLOOKUP($P11,'Congressional Districts'!$A$1:$E$93,3,FALSE)*SNAP!$Q11,IF(VLOOKUP($P11,'Congressional Districts'!$A$1:$E$93,4,FALSE)=SNAP!S$1,VLOOKUP($P11,'Congressional Districts'!$A$1:$E$93,5,FALSE)*SNAP!$Q11,0)) -> 0 | T11: =IF(VLOOKUP($P11,'Congressional Districts'!$A$1:$E$93,2,FALSE)=SNAP!T$1,VLOOKUP($P11,'Congressional Districts'!$A$1:$E$93,3,FALSE)*SNAP!$Q11,IF(VLOOKUP($P11,'Congressional Districts'!$A$1:$E$93,4,FALSE)=SNAP!T$1,VLOOKUP($P11,'Congressional Districts'!$A$1:$E$93,5,FALSE)*SNAP!$Q11,0)) -> 0 | U11: =IF(VLOOKUP($P11,'Congressional Districts'!$A$1:$E$93,2,FALSE)=SNAP!U$1,VLOOKUP($P11,'Congressional Districts'!$A$1:$E$93,3,FALSE)*SNAP!$Q11,IF(VLOOKUP($P11,'Congressional Districts'!$A$1:$E$93,4,FALSE)=SNAP!U$1,VLOOKUP($P11,'Congressional Districts'!$A$1:$E$93,5,FALSE)*SNAP!$Q11,0)) -> 0 | V11: =IF(VLOOKUP($P11,'Congressional Districts'!$A$1:$E$93,2,FALSE)=SNAP!V$1,VLOOKUP($P11,'Congressional Districts'!$A$1:$E$93,3,FALSE)*SNAP!$Q11,IF(VLOOKUP($P11,'Congressional Districts'!$A$1:$E$93,4,FALSE)=SNAP!V$1,VLOOKUP($P11,'Congressional Districts'!$A$1:$E$93,5,FALSE)*SNAP!$Q11,0)) -> 0 | W11: =IF(VLOOKUP($P11,'Congressional Districts'!$A$1:$E$93,2,FALSE)=SNAP!W$1,VLOOKUP($P11,'Congressional Districts'!$A$1:$E$93,3,FALSE)*SNAP!$Q11,IF(VLOOKUP($P11,'Congressional Districts'!$A$1:$E$93,4,FALSE)=SNAP!W$1,VLOOKUP($P11,'Congressional Districts'!$A$1:$E$93,5,FALSE)*SNAP!$Q11,0)) -> 0 | X11: =IF(VLOOKUP($P11,'Congressional Districts'!$A$1:$E$93,2,FALSE)=SNAP!X$1,VLOOKUP($P11,'Congressional Districts'!$A$1:$E$93,3,FALSE)*SNAP!$Q11,IF(VLOOKUP($P11,'Congressional Districts'!$A$1:$E$93,4,FALSE)=SNAP!X$1,VLOOKUP($P11,'Congressional Districts'!$A$1:$E$93,5,FALSE)*SNAP!$Q11,0)) -> 0 | Y11: =IF(VLOOKUP($P11,'Congressional Districts'!$A$1:$E$93,2,FALSE)=SNAP!Y$1,VLOOKUP($P11,'Congressional Districts'!$A$1:$E$93,3,FALSE)*SNAP!$Q11,IF(VLOOKUP($P11,'Congressional Districts'!$A$1:$E$93,4,FALSE)=SNAP!Y$1,VLOOKUP($P11,'Congressional Districts'!$A$1:$E$93,5,FALSE)*SNAP!$Q11,0)) -> 0 | Z11: =IF(VLOOKUP($P11,'Congressional Districts'!$A$1:$E$93,2,FALSE)=SNAP!Z$1,VLOOKUP($P11,'Congressional Districts'!$A$1:$E$93,3,FALSE)*SNAP!$Q11,IF(VLOOKUP($P11,'Congressional Districts'!$A$1:$E$93,4,FALSE)=SNAP!Z$1,VLOOKUP($P11,'Congressional Districts'!$A$1:$E$93,5,FALSE)*SNAP!$Q11,0)) -> 0 | AA11: =IF(VLOOKUP($P11,'Congressional Districts'!$A$1:$E$93,2,FALSE)=SNAP!AA$1,VLOOKUP($P11,'Congressional Districts'!$A$1:$E$93,3,FALSE)*SNAP!$Q11,IF(VLOOKUP($P11,'Congressional Districts'!$A$1:$E$93,4,FALSE)=SNAP!AA$1,VLOOKUP($P11,'Congressional Districts'!$A$1:$E$93,5,FALSE)*SNAP!$Q11,0)) -> 19853300
A12: Clay | B12: 473.2 | C12: 472.6 | D12: 480.9 | E12: 478.3 | F12: 483.3 | G12: 494.5 | H12: 496.4 | I12: 497.9 | J12: 512.7 | K12: 514.3 | L12: 511 | M12: 516.7 | N12: 5931.8 | P12: Clay | Q12: 5931800 | S12: =IF(VLOOKUP($P12,'Congressional Districts'!$A$1:$E$93,2,FALSE)=SNAP!S$1,VLOOKUP($P12,'Congressional Districts'!$A$1:$E$93,3,FALSE)*SNAP!$Q12,IF(VLOOKUP($P12,'Congressional Districts'!$A$1:$E$93,4,FALSE)=SNAP!S$1,VLOOKUP($P12,'Congressional Districts'!$A$1:$E$93,5,FALSE)*SNAP!$Q12,0)) -> 0 | T12: =IF(VLOOKUP($P12,'Congressional Districts'!$A$1:$E$93,2,FALSE)=SNAP!T$1,VLOOKUP($P12,'Congressional Districts'!$A$1:$E$93,3,FALSE)*SNAP!$Q12,IF(VLOOKUP($P12,'Congressional Districts'!$A$1:$E$93,4,FALSE)=SNAP!T$1,VLOOKUP($P12,'Congressional Districts'!$A$1:$E$93,5,FALSE)*SNAP!$Q12,0)) -> 0 | U12: =IF(VLOOKUP($P12,'Congressional Districts'!$A$1:$E$93,2,FALSE)=SNAP!U$1,VLOOKUP($P12,'Congressional Districts'!$A$1:$E$93,3,FALSE)*SNAP!$Q12,IF(VLOOKUP($P12,'Congressional Districts'!$A$1:$E$93,4,FALSE)=SNAP!U$1,VLOOKUP($P12,'Congressional Districts'!$A$1:$E$93,5,FALSE)*SNAP!$Q12,0)) -> 0 | V12: =IF(VLOOKUP($P12,'Congressional Districts'!$A$1:$E$93,2,FALSE)=SNAP!V$1,VLOOKUP($P12,'Congressional Districts'!$A$1:$E$93,3,FALSE)*SNAP!$Q12,IF(VLOOKUP($P12,'Congressional Districts'!$A$1:$E$93,4,FALSE)=SNAP!V$1,VLOOKUP($P12,'Congressional Districts'!$A$1:$E$93,5,FALSE)*SNAP!$Q12,0)) -> 0 | W12: =IF(VLOOKUP($P12,'Congressional Districts'!$A$1:$E$93,2,FALSE)=SNAP!W$1,VLOOKUP($P12,'Congressional Districts'!$A$1:$E$93,3,FALSE)*SNAP!$Q12,IF(VLOOKUP($P12,'Congressional Districts'!$A$1:$E$93,4,FALSE)=SNAP!W$1,VLOOKUP($P12,'Congressional Districts'!$A$1:$E$93,5,FALSE)*SNAP!$Q12,0)) -> 0 | X12: =IF(VLOOKUP($P12,'Congressional Districts'!$A$1:$E$93,2,FALSE)=SNAP!X$1,VLOOKUP($P12,'Congressional Districts'!$A$1:$E$93,3,FALSE)*SNAP!$Q12,IF(VLOOKUP($P12,'Congressional Districts'!$A$1:$E$93,4,FALSE)=SNAP!X$1,VLOOKUP($P12,'Congressional Districts'!$A$1:$E$93,5,FALSE)*SNAP!$Q12,0)) -> 0 | Y12: =IF(VLOOKUP($P12,'Congressional Districts'!$A$1:$E$93,2,FALSE)=SNAP!Y$1,VLOOKUP($P12,'Congressional Districts'!$A$1:$E$93,3,FALSE)*SNAP!$Q12,IF(VLOOKUP($P12,'Congressional Districts'!$A$1:$E$93,4,FALSE)=SNAP!Y$1,VLOOKUP($P12,'Congressional Districts'!$A$1:$E$93,5,FALSE)*SNAP!$Q12,0)) -> 0 | Z12: =IF(VLOOKUP($P12,'Congressional Districts'!$A$1:$E$93,2,FALSE)=SNAP!Z$1,VLOOKUP($P12,'Congressional Districts'!$A$1:$E$93,3,FALSE)*SNAP!$Q12,IF(VLOOKUP($P12,'Congressional Districts'!$A$1:$E$93,4,FALSE)=SNAP!Z$1,VLOOKUP($P12,'Congressional Districts'!$A$1:$E$93,5,FALSE)*SNAP!$Q12,0)) -> 5931800 | AA12: =IF(VLOOKUP($P12,'Congressional Districts'!$A$1:$E$93,2,FALSE)=SNAP!AA$1,VLOOKUP($P12,'Congressional Districts'!$A$1:$E$93,3,FALSE)*SNAP!$Q12,IF(VLOOKUP($P12,'Congressional Districts'!$A$1:$E$93,4,FALSE)=SNAP!AA$1,VLOOKUP($P12,'Congressional Districts'!$A$1:$E$93,5,FALSE)*SNAP!$Q12,0)) -> 0
A13: Clinton | B13: 622.4 | C13: 624.6 | D13: 611.4 | E13: 623.5 | F13: 619.4 | G13: 611.8 | H13: 622.7 | I13: 622.5 | J13: 614.3 | K13: 623.2 | L13: 615.1 | M13: 620.3 | N13: 7431.2 | P13: Clinton | Q13: 7431200 | S13: =IF(VLOOKUP($P13,'Congressional Districts'!$A$1:$E$93,2,FALSE)=SNAP!S$1,VLOOKUP($P13,'Congressional Districts'!$A$1:$E$93,3,FALSE)*SNAP!$Q13,IF(VLOOKUP($P13,'Congressional Districts'!$A$1:$E$93,4,FALSE)=SNAP!S$1,VLOOKUP($P13,'Congressional Districts'!$A$1:$E$93,5,FALSE)*SNAP!$Q13,0)) -> 0 | T13: =IF(VLOOKUP($P13,'Congressional Districts'!$A$1:$E$93,2,FALSE)=SNAP!T$1,VLOOKUP($P13,'Congressional Districts'!$A$1:$E$93,3,FALSE)*SNAP!$Q13,IF(VLOOKUP($P13,'Congressional Districts'!$A$1:$E$93,4,FALSE)=SNAP!T$1,VLOOKUP($P13,'Congressional Districts'!$A$1:$E$93,5,FALSE)*SNAP!$Q13,0)) -> 0 | U13: =IF(VLOOKUP($P13,'Congressional Districts'!$A$1:$E$93,2,FALSE)=SNAP!U$1,VLOOKUP($P13,'Congressional Districts'!$A$1:$E$93,3,FALSE)*SNAP!$Q13,IF(VLOOKUP($P13,'Congressional Districts'!$A$1:$E$93,4,FALSE)=SNAP!U$1,VLOOKUP($P13,'Congressional Districts'!$A$1:$E$93,5,FALSE)*SNAP!$Q13,0)) -> 0 | V13: =IF(VLOOKUP($P13,'Congressional Districts'!$A$1:$E$93,2,FALSE)=SNAP!V$1,VLOOKUP($P13,'Congressional Districts'!$A$1:$E$93,3,FALSE)*SNAP!$Q13,IF(VLOOKUP($P13,'Congressional Districts'!$A$1:$E$93,4,FALSE)=SNAP!V$1,VLOOKUP($P13,'Congressional Districts'!$A$1:$E$93,5,FALSE)*SNAP!$Q13,0)) -> 7431200 | W13: =IF(VLOOKUP($P13,'Congressional Districts'!$A$1:$E$93,2,FALSE)=SNAP!W$1,VLOOKUP($P13,'Congressional Districts'!$A$1:$E$93,3,FALSE)*SNAP!$Q13,IF(VLOOKUP($P13,'Congressional Districts'!$A$1:$E$93,4,FALSE)=SNAP!W$1,VLOOKUP($P13,'Congressional Districts'!$A$1:$E$93,5,FALSE)*SNAP!$Q13,0)) -> 0 | X13: =IF(VLOOKUP($P13,'Congressional Districts'!$A$1:$E$93,2,FALSE)=SNAP!X$1,VLOOKUP($P13,'Congressional Districts'!$A$1:$E$93,3,FALSE)*SNAP!$Q13,IF(VLOOKUP($P13,'Congressional Districts'!$A$1:$E$93,4,FALSE)=SNAP!X$1,VLOOKUP($P13,'Congressional Districts'!$A$1:$E$93,5,FALSE)*SNAP!$Q13,0)) -> 0 | Y13: =IF(VLOOKUP($P13,'Congressional Districts'!$A$1:$E$93,2,FALSE)=SNAP!Y$1,VLOOKUP($P13,'Congressional Districts'!$A$1:$E$93,3,FALSE)*SNAP!$Q13,IF(VLOOKUP($P13,'Congressional Districts'!$A$1:$E$93,4,FALSE)=SNAP!Y$1,VLOOKUP($P13,'Congressional Districts'!$A$1:$E$93,5,FALSE)*SNAP!$Q13,0)) -> 0 | Z13: =IF(VLOOKUP($P13,'Congressional Districts'!$A$1:$E$93,2,FALSE)=SNAP!Z$1,VLOOKUP($P13,'Congressional Districts'!$A$1:$E$93,3,FALSE)*SNAP!$Q13,IF(VLOOKUP($P13,'Congressional Districts'!$A$1:$E$93,4,FALSE)=SNAP!Z$1,VLOOKUP($P13,'Congressional Districts'!$A$1:$E$93,5,FALSE)*SNAP!$Q13,0)) -> 0 | AA13: =IF(VLOOKUP($P13,'Congressional Districts'!$A$1:$E$93,2,FALSE)=SNAP!AA$1,VLOOKUP($P13,'Congressional Districts'!$A$1:$E$93,3,FALSE)*SNAP!$Q13,IF(VLOOKUP($P13,'Congressional Districts'!$A$1:$E$93,4,FALSE)=SNAP!AA$1,VLOOKUP($P13,'Congressional Districts'!$A$1:$E$93,5,FALSE)*SNAP!$Q13,0)) -> 0
A14: Crawford | B14: 204.3 | C14: 199.8 | D14: 198.5 | E14: 196.5 | F14: 200.3 | G14: 201.6 | H14: 201 | I14: 202 | J14: 202.4 | K14: 205.5 | L14: 204.9 | M14: 207.5 | N14: 2424.3 | P14: Crawford | Q14: 2424300 | S14: =IF(VLOOKUP($P14,'Congressional Districts'!$A$1:$E$93,2,FALSE)=SNAP!S$1,VLOOKUP($P14,'Congressional Districts'!$A$1:$E$93,3,FALSE)*SNAP!$Q14,IF(VLOOKUP($P14,'Congressional Districts'!$A$1:$E$93,4,FALSE)=SNAP!S$1,VLOOKUP($P14,'Congressional Districts'!$A$1:$E$93,5,FALSE)*SNAP!$Q14,0)) -> 0 | T14: =IF(VLOOKUP($P14,'Congressional Districts'!$A$1:$E$93,2,FALSE)=SNAP!T$1,VLOOKUP($P14,'Congressional Districts'!$A$1:$E$93,3,FALSE)*SNAP!$Q14,IF(VLOOKUP($P14,'Congressional Districts'!$A$1:$E$93,4,FALSE)=SNAP!T$1,VLOOKUP($P14,'Congressional Districts'!$A$1:$E$93,5,FALSE)*SNAP!$Q14,0)) -> 0 | U14: =IF(VLOOKUP($P14,'Congressional Districts'!$A$1:$E$93,2,FALSE)=SNAP!U$1,VLOOKUP($P14,'Congressional Districts'!$A$1:$E$93,3,FALSE)*SNAP!$Q14,IF(VLOOKUP($P14,'Congressional Districts'!$A$1:$E$93,4,FALSE)=SNAP!U$1,VLOOKUP($P14,'Congressional Districts'!$A$1:$E$93,5,FALSE)*SNAP!$Q14,0)) -> 0 | V14: =IF(VLOOKUP($P14,'Congressional Districts'!$A$1:$E$93,2,FALSE)=SNAP!V$1,VLOOKUP($P14,'Congressional Districts'!$A$1:$E$93,3,FALSE)*SNAP!$Q14,IF(VLOOKUP($P14,'Congressional Districts'!$A$1:$E$93,4,FALSE)=SNAP!V$1,VLOOKUP($P14,'Congressional Districts'!$A$1:$E$93,5,FALSE)*SNAP!$Q14,0)) -> 0 | W14: =IF(VLOOKUP($P14,'Congressional Districts'!$A$1:$E$93,2,FALSE)=SNAP!W$1,VLOOKUP($P14,'Congressional Districts'!$A$1:$E$93,3,FALSE)*SNAP!$Q14,IF(VLOOKUP($P14,'Congressional Districts'!$A$1:$E$93,4,FALSE)=SNAP!W$1,VLOOKUP($P14,'Congressional Districts'!$A$1:$E$93,5,FALSE)*SNAP!$Q14,0)) -> 0 | X14: =IF(VLOOKUP($P14,'Congressional Districts'!$A$1:$E$93,2,FALSE)=SNAP!X$1,VLOOKUP($P14,'Congressional Districts'!$A$1:$E$93,3,FALSE)*SNAP!$Q14,IF(VLOOKUP($P14,'Congressional Districts'!$A$1:$E$93,4,FALSE)=SNAP!X$1,VLOOKUP($P14,'Congressional Districts'!$A$1:$E$93,5,FALSE)*SNAP!$Q14,0)) -> 0 | Y14: =IF(VLOOKUP($P14,'Congressional Districts'!$A$1:$E$93,2,FALSE)=SNAP!Y$1,VLOOKUP($P14,'Congressional Districts'!$A$1:$E$93,3,FALSE)*SNAP!$Q14,IF(VLOOKUP($P14,'Congressional Districts'!$A$1:$E$93,4,FALSE)=SNAP!Y$1,VLOOKUP($P14,'Congressional Districts'!$A$1:$E$93,5,FALSE)*SNAP!$Q14,0)) -> 0 | Z14: =IF(VLOOKUP($P14,'Congressional Districts'!$A$1:$E$93,2,FALSE)=SNAP!Z$1,VLOOKUP($P14,'Congressional Districts'!$A$1:$E$93,3,FALSE)*SNAP!$Q14,IF(VLOOKUP($P14,'Congressional Districts'!$A$1:$E$93,4,FALSE)=SNAP!Z$1,VLOOKUP($P14,'Congressional Districts'!$A$1:$E$93,5,FALSE)*SNAP!$Q14,0)) -> 569420.6751 | AA14: =IF(VLOOKUP($P14,'Congressional Districts'!$A$1:$E$93,2,FALSE)=SNAP!AA$1,VLOOKUP($P14,'Congressional Districts'!$A$1:$E$93,3,FALSE)*SNAP!$Q14,IF(VLOOKUP($P14,'Congressional Districts'!$A$1:$E$93,4,FALSE)=SNAP!AA$1,VLOOKUP($P14,'Congressional Districts'!$A$1:$E$93,5,FALSE)*SNAP!$Q14,0)) -> 1854879.325
A15: Daviess | B15: 428.3 | C15: 425.4 | D15: 418.9 | E15: 419.7 | F15: 427.2 | G15: 424.8 | H15: 436.1 | I15: 442.7 | J15: 444 | K15: 437.5 | L15: 441.4 | M15: 442.2 | N15: 5188.2 | P15: Daviess | Q15: 5188200 | S15: =IF(VLOOKUP($P15,'Congressional Districts'!$A$1:$E$93,2,FALSE)=SNAP!S$1,VLOOKUP($P15,'Congressional Districts'!$A$1:$E$93,3,FALSE)*SNAP!$Q15,IF(VLOOKUP($P15,'Congressional Districts'!$A$1:$E$93,4,FALSE)=SNAP!S$1,VLOOKUP($P15,'Congressional Districts'!$A$1:$E$93,5,FALSE)*SNAP!$Q15,0)) -> 0 | T15: =IF(VLOOKUP($P15,'Congressional Districts'!$A$1:$E$93,2,FALSE)=SNAP!T$1,VLOOKUP($P15,'Congressional Districts'!$A$1:$E$93,3,FALSE)*SNAP!$Q15,IF(VLOOKUP($P15,'Congressional Districts'!$A$1:$E$93,4,FALSE)=SNAP!T$1,VLOOKUP($P15,'Congressional Districts'!$A$1:$E$93,5,FALSE)*SNAP!$Q15,0)) -> 0 | U15: =IF(VLOOKUP($P15,'Congressional Districts'!$A$1:$E$93,2,FALSE)=SNAP!U$1,VLOOKUP($P15,'Congressional Districts'!$A$1:$E$93,3,FALSE)*SNAP!$Q15,IF(VLOOKUP($P15,'Congressional Districts'!$A$1:$E$93,4,FALSE)=SNAP!U$1,VLOOKUP($P15,'Congressional Districts'!$A$1:$E$93,5,FALSE)*SNAP!$Q15,0)) -> 0 | V15: =IF(VLOOKUP($P15,'Congressional Districts'!$A$1:$E$93,2,FALSE)=SNAP!V$1,VLOOKUP($P15,'Congressional Districts'!$A$1:$E$93,3,FALSE)*SNAP!$Q15,IF(VLOOKUP($P15,'Congressional Districts'!$A$1:$E$93,4,FALSE)=SNAP!V$1,VLOOKUP($P15,'Congressional Districts'!$A$1:$E$93,5,FALSE)*SNAP!$Q15,0)) -> 0 | W15: =IF(VLOOKUP($P15,'Congressional Districts'!$A$1:$E$93,2,FALSE)=SNAP!W$1,VLOOKUP($P15,'Congressional Districts'!$A$1:$E$93,3,FALSE)*SNAP!$Q15,IF(VLOOKUP($P15,'Congressional Districts'!$A$1:$E$93,4,FALSE)=SNAP!W$1,VLOOKUP($P15,'Congressional Districts'!$A$1:$E$93,5,FALSE)*SNAP!$Q15,0)) -> 0 | X15: =IF(VLOOKUP($P15,'Congressional Districts'!$A$1:$E$93,2,FALSE)=SNAP!X$1,VLOOKUP($P15,'Congressional Districts'!$A$1:$E$93,3,FALSE)*SNAP!$Q15,IF(VLOOKUP($P15,'Congressional Districts'!$A$1:$E$93,4,FALSE)=SNAP!X$1,VLOOKUP($P15,'Congressional Districts'!$A$1:$E$93,5,FALSE)*SNAP!$Q15,0)) -> 0 | Y15: =IF(VLOOKUP($P15,'Congressional Districts'!$A$1:$E$93,2,FALSE)=SNAP!Y$1,VLOOKUP($P15,'Congressional Districts'!$A$1:$E$93,3,FALSE)*SNAP!$Q15,IF(VLOOKUP($P15,'Congressional Districts'!$A$1:$E$93,4,FALSE)=SNAP!Y$1,VLOOKUP($P15,'Congressional Districts'!$A$1:$E$93,5,FALSE)*SNAP!$Q15,0)) -> 0 | Z15: =IF(VLOOKUP($P15,'Congressional Districts'!$A$1:$E$93,2,FALSE)=SNAP!Z$1,VLOOKUP($P15,'Congressional Districts'!$A$1:$E$93,3,FALSE)*SNAP!$Q15,IF(VLOOKUP($P15,'Congressional Districts'!$A$1:$E$93,4,FALSE)=SNAP!Z$1,VLOOKUP($P15,'Congressional Districts'!$A$1:$E$93,5,FALSE)*SNAP!$Q15,0)) -> 5188200 | AA15: =IF(VLOOKUP($P15,'Congressional Districts'!$A$1:$E$93,2,FALSE)=SNAP!AA$1,VLOOKUP($P15,'Congressional Districts'!$A$1:$E$93,3,FALSE)*SNAP!$Q15,IF(VLOOKUP($P15,'Congressional Districts'!$A$1:$E$93,4,FALSE)=SNAP!AA$1,VLOOKUP($P15,'Congressional Districts'!$A$1:$E$93,5,FALSE)*SNAP!$Q15,0)) -> 0
A16: Dearborn | B16: 653.8 | C16: 652.9 | D16: 659.6 | E16: 661.7 | F16: 664.3 | G16: 670.5 | H16: 685.2 | I16: 694.3 | J16: 693.7 | K16: 700.8 | L16: 690.8 | M16: 701.4 | N16: 8129 | P16: Dearborn | Q16: 8129000 | S16: =IF(VLOOKUP($P16,'Congressional Districts'!$A$1:$E$93,2,FALSE)=SNAP!S$1,VLOOKUP($P16,'Congressional Districts'!$A$1:$E$93,3,FALSE)*SNAP!$Q16,IF(VLOOKUP($P16,'Congressional Districts'!$A$1:$E$93,4,FALSE)=SNAP!S$1,VLOOKUP($P16,'Congressional Districts'!$A$1:$E$93,5,FALSE)*SNAP!$Q16,0)) -> 0 | T16: =IF(VLOOKUP($P16,'Congressional Districts'!$A$1:$E$93,2,FALSE)=SNAP!T$1,VLOOKUP($P16,'Congressional Districts'!$A$1:$E$93,3,FALSE)*SNAP!$Q16,IF(VLOOKUP($P16,'Congressional Districts'!$A$1:$E$93,4,FALSE)=SNAP!T$1,VLOOKUP($P16,'Congressional Districts'!$A$1:$E$93,5,FALSE)*SNAP!$Q16,0)) -> 0 | U16: =IF(VLOOKUP($P16,'Congressional Districts'!$A$1:$E$93,2,FALSE)=SNAP!U$1,VLOOKUP($P16,'Congressional Districts'!$A$1:$E$93,3,FALSE)*SNAP!$Q16,IF(VLOOKUP($P16,'Congressional Districts'!$A$1:$E$93,4,FALSE)=SNAP!U$1,VLOOKUP($P16,'Congressional Districts'!$A$1:$E$93,5,FALSE)*SNAP!$Q16,0)) -> 0 | V16: =IF(VLOOKUP($P16,'Congressional Districts'!$A$1:$E$93,2,FALSE)=SNAP!V$1,VLOOKUP($P16,'Congressional Districts'!$A$1:$E$93,3,FALSE)*SNAP!$Q16,IF(VLOOKUP($P16,'Congressional Districts'!$A$1:$E$93,4,FALSE)=SNAP!V$1,VLOOKUP($P16,'Congressional Districts'!$A$1:$E$93,5,FALSE)*SNAP!$Q16,0)) -> 0 | W16: =IF(VLOOKUP($P16,'Congressional Districts'!$A$1:$E$93,2,FALSE)=SNAP!W$1,VLOOKUP($P16,'Congressional Districts'!$A$1:$E$93,3,FALSE)*SNAP!$Q16,IF(VLOOKUP($P16,'Congressional Districts'!$A$1:$E$93,4,FALSE)=SNAP!W$1,VLOOKUP($P16,'Congressional Districts'!$A$1:$E$93,5,FALSE)*SNAP!$Q16,0)) -> 0 | X16: =IF(VLOOKUP($P16,'Congressional Districts'!$A$1:$E$93,2,FALSE)=SNAP!X$1,VLOOKUP($P16,'Congressional Districts'!$A$1:$E$93,3,FALSE)*SNAP!$Q16,IF(VLOOKUP($P16,'Congressional Districts'!$A$1:$E$93,4,FALSE)=SNAP!X$1,VLOOKUP($P16,'Congressional Districts'!$A$1:$E$93,5,FALSE)*SNAP!$Q16,0)) -> 8129000 | Y16: =IF(VLOOKUP($P16,'Congressional Districts'!$A$1:$E$93,2,FALSE)=SNAP!Y$1,VLOOKUP($P16,'Congressional Districts'!$A$1:$E$93,3,FALSE)*SNAP!$Q16,IF(VLOOKUP($P16,'Congressional Districts'!$A$1:$E$93,4,FALSE)=SNAP!Y$1,VLOOKUP($P16,'Congressional Districts'!$A$1:$E$93,5,FALSE)*SNAP!$Q16,0)) -> 0 | Z16: =IF(VLOOKUP($P16,'Congressional Districts'!$A$1:$E$93,2,FALSE)=SNAP!Z$1,VLOOKUP($P16,'Congressional Districts'!$A$1:$E$93,3,FALSE)*SNAP!$Q16,IF(VLOOKUP($P16,'Congressional Districts'!$A$1:$E$93,4,FALSE)=SNAP!Z$1,VLOOKUP($P16,'Congressional Districts'!$A$1:$E$93,5,FALSE)*SNAP!$Q16,0)) -> 0 | AA16: =IF(VLOOKUP($P16,'Congressional Districts'!$A$1:$E$93,2,FALSE)=SNAP!AA$1,VLOOKUP($P16,'Congressional Districts'!$A$1:$E$93,3,FALSE)*SNAP!$Q16,IF(VLOOKUP($P16,'Congressional Districts'!$A$1:$E$93,4,FALSE)=SNAP!AA$1,VLOOKUP($P16,'Congressional Districts'!$A$1:$E$93,5,FALSE)*SNAP!$Q16,0)) -> 0
A17: Decatur | B17: 435.9 | C17: 430.7 | D17: 426.9 | E17: 430.4 | F17: 429 | G17: 417.5 | H17: 427.5 | I17: 428.8 | J17: 431.4 | K17: 431.5 | L17: 421.5 | M17: 420.2 | N17: 5131.3 | P17: Decatur | Q17: 5131300 | S17: =IF(VLOOKUP($P17,'Congressional Districts'!$A$1:$E$93,2,FALSE)=SNAP!S$1,VLOOKUP($P17,'Congressional Districts'!$A$1:$E$93,3,FALSE)*SNAP!$Q17,IF(VLOOKUP($P17,'Congressional Districts'!$A$1:$E$93,4,FALSE)=SNAP!S$1,VLOOKUP($P17,'Congressional Districts'!$A$1:$E$93,5,FALSE)*SNAP!$Q17,0)) -> 0 | T17: =IF(VLOOKUP($P17,'Congressional Districts'!$A$1:$E$93,2,FALSE)=SNAP!T$1,VLOOKUP($P17,'Congressional Districts'!$A$1:$E$93,3,FALSE)*SNAP!$Q17,IF(VLOOKUP($P17,'Congressional Districts'!$A$1:$E$93,4,FALSE)=SNAP!T$1,VLOOKUP($P17,'Congressional Districts'!$A$1:$E$93,5,FALSE)*SNAP!$Q17,0)) -> 0 | U17: =IF(VLOOKUP($P17,'Congressional Districts'!$A$1:$E$93,2,FALSE)=SNAP!U$1,VLOOKUP($P17,'Congressional Districts'!$A$1:$E$93,3,FALSE)*SNAP!$Q17,IF(VLOOKUP($P17,'Congressional Districts'!$A$1:$E$93,4,FALSE)=SNAP!U$1,VLOOKUP($P17,'Congressional Districts'!$A$1:$E$93,5,FALSE)*SNAP!$Q17,0)) -> 0 | V17: =IF(VLOOKUP($P17,'Congressional Districts'!$A$1:$E$93,2,FALSE)=SNAP!V$1,VLOOKUP($P17,'Congressional Districts'!$A$1:$E$93,3,FALSE)*SNAP!$Q17,IF(VLOOKUP($P17,'Congressional Districts'!$A$1:$E$93,4,FALSE)=SNAP!V$1,VLOOKUP($P17,'Congressional Districts'!$A$1:$E$93,5,FALSE)*SNAP!$Q17,0)) -> 0 | W17: =IF(VLOOKUP($P17,'Congressional Districts'!$A$1:$E$93,2,FALSE)=SNAP!W$1,VLOOKUP($P17,'Congressional Districts'!$A$1:$E$93,3,FALSE)*SNAP!$Q17,IF(VLOOKUP($P17,'Congressional Districts'!$A$1:$E$93,4,FALSE)=SNAP!W$1,VLOOKUP($P17,'Congressional Districts'!$A$1:$E$93,5,FALSE)*SNAP!$Q17,0)) -> 0 | X17: =IF(VLOOKUP($P17,'Congressional Districts'!$A$1:$E$93,2,FALSE)=SNAP!X$1,VLOOKUP($P17,'Congressional Districts'!$A$1:$E$93,3,FALSE)*SNAP!$Q17,IF(VLOOKUP($P17,'Congressional Districts'!$A$1:$E$93,4,FALSE)=SNAP!X$1,VLOOKUP($P17,'Congressional Districts'!$A$1:$E$93,5,FALSE)*SNAP!$Q17,0)) -> 5131300 | Y17: =IF(VLOOKUP($P17,'Congressional Districts'!$A$1:$E$93,2,FALSE)=SNAP!Y$1,VLOOKUP($P17,'Congressional Districts'!$A$1:$E$93,3,FALSE)*SNAP!$Q17,IF(VLOOKUP($P17,'Congressional Districts'!$A$1:$E$93,4,FALSE)=SNAP!Y$1,VLOOKUP($P17,'Congressional Districts'!$A$1:$E$93,5,FALSE)*SNAP!$Q17,0)) -> 0 | Z17: =IF(VLOOKUP($P17,'Congressional Districts'!$A$1:$E$93,2,FALSE)=SNAP!Z$1,VLOOKUP($P17,'Congressional Districts'!$A$1:$E$93,3,FALSE)*SNAP!$Q17,IF(VLOOKUP($P17,'Congressional Districts'!$A$1:$E$93,4,FALSE)=SNAP!Z$1,VLOOKUP($P17,'Congressional Districts'!$A$1:$E$93,5,FALSE)*SNAP!$Q17,0)) -> 0 | AA17: =IF(VLOOKUP($P17,'Congressional Districts'!$A$1:$E$93,2,FALSE)=SNAP!AA$1,VLOOKUP($P17,'Congressional Districts'!$A$1:$E$93,3,FALSE)*SNAP!$Q17,IF(VLOOKUP($P17,'Congressional Districts'!$A$1:$E$93,4,FALSE)=SNAP!AA$1,VLOOKUP($P17,'Congressional Districts'!$A$1:$E$93,5,FALSE)*SNAP!$Q17,0)) -> 0
A18: De kalb | B18: 587.3 | C18: 585.1 | D18: 586.4 | E18: 566.4 | F18: 572.2 | G18: 567.4 | H18: 572.7 | I18: 568 | J18: 551.7 | K18: 557.3 | L18: 561 | M18: 558.2 | N18: 6833.7 | P18: De kalb | Q18: 6833700 | S18: =IF(VLOOKUP($P18,'Congressional Districts'!$A$1:$E$93,2,FALSE)=SNAP!S$1,VLOOKUP($P18,'Congressional Districts'!$A$1:$E$93,3,FALSE)*SNAP!$Q18,IF(VLOOKUP($P18,'Congressional Districts'!$A$1:$E$93,4,FALSE)=SNAP!S$1,VLOOKUP($P18,'Congressional Districts'!$A$1:$E$93,5,FALSE)*SNAP!$Q18,0)) -> 0 | T18: =IF(VLOOKUP($P18,'Congressional Districts'!$A$1:$E$93,2,FALSE)=SNAP!T$1,VLOOKUP($P18,'Congressional Districts'!$A$1:$E$93,3,FALSE)*SNAP!$Q18,IF(VLOOKUP($P18,'Congressional Districts'!$A$1:$E$93,4,FALSE)=SNAP!T$1,VLOOKUP($P18,'Congressional Districts'!$A$1:$E$93,5,FALSE)*SNAP!$Q18,0)) -> 0 | U18: =IF(VLOOKUP($P18,'Congressional Districts'!$A$1:$E$93,2,FALSE)=SNAP!U$1,VLOOKUP($P18,'Congressional Districts'!$A$1:$E$93,3,FALSE)*SNAP!$Q18,IF(VLOOKUP($P18,'Congressional Districts'!$A$1:$E$93,4,FALSE)=SNAP!U$1,VLOOKUP($P18,'Congressional Districts'!$A$1:$E$93,5,FALSE)*SNAP!$Q18,0)) -> 6833700 | V18: =IF(VLOOKUP($P18,'Congressional Districts'!$A$1:$E$93,2,FALSE)=SNAP!V$1,VLOOKUP($P18,'Congressional Districts'!$A$1:$E$93,3,FALSE)*SNAP!$Q18,IF(VLOOKUP($P18,'Congressional Districts'!$A$1:$E$93,4,FALSE)=SNAP!V$1,VLOOKUP($P18,'Congressional Districts'!$A$1:$E$93,5,FALSE)*SNAP!$Q18,0)) -> 0 | W18: =IF(VLOOKUP($P18,'Congressional Districts'!$A$1:$E$93,2,FALSE)=SNAP!W$1,VLOOKUP($P18,'Congressional Districts'!$A$1:$E$93,3,FALSE)*SNAP!$Q18,IF(VLOOKUP($P18,'Congressional Districts'!$A$1:$E$93,4,FALSE)=SNAP!W$1,VLOOKUP($P18,'Congressional Districts'!$A$1:$E$93,5,FALSE)*SNAP!$Q18,0)) -> 0 | X18: =IF(VLOOKUP($P18,'Congressional Districts'!$A$1:$E$93,2,FALSE)=SNAP!X$1,VLOOKUP($P18,'Congressional Districts'!$A$1:$E$93,3,FALSE)*SNAP!$Q18,IF(VLOOKUP($P18,'Congressional Districts'!$A$1:$E$93,4,FALSE)=SNAP!X$1,VLOOKUP($P18,'Congressional Districts'!$A$1:$E$93,5,FALSE)*SNAP!$Q18,0)) -> 0 | Y18: =IF(VLOOKUP($P18,'Congressional Districts'!$A$1:$E$93,2,FALSE)=SNAP!Y$1,VLOOKUP($P18,'Congressional Districts'!$A$1:$E$93,3,FALSE)*SNAP!$Q18,IF(VLOOKUP($P18,'Congressional Districts'!$A$1:$E$93,4,FALSE)=SNAP!Y$1,VLOOKUP($P18,'Congressional Districts'!$A$1:$E$93,5,FALSE)*SNAP!$Q18,0)) -> 0 | Z18: =IF(VLOOKUP($P18,'Congressional Districts'!$A$1:$E$93,2,FALSE)=SNAP!Z$1,VLOOKUP($P18,'Congressional Districts'!$A$1:$E$93,3,FALSE)*SNAP!$Q18,IF(VLOOKUP($P18,'Congressional Districts'!$A$1:$E$93,4,FALSE)=SNAP!Z$1,VLOOKUP($P18,'Congressional Districts'!$A$1:$E$93,5,FALSE)*SNAP!$Q18,0)) -> 0 | AA18: =IF(VLOOKUP($P18,'Congressional Districts'!$A$1:$E$93,2,FALSE)=SNAP!AA$1,VLOOKUP($P18,'Congressional Districts'!$A$1:$E$93,3,FALSE)*SNAP!$Q18,IF(VLOOKUP($P18,'Congressional Districts'!$A$1:$E$93,4,FALSE)=SNAP!AA$1,VLOOKUP($P18,'Congressional Districts'!$A$1:$E$93,5,FALSE)*SNAP!$Q18,0)) -> 0
A19: Delaware | B19: 2614.1 | C19: 2622 | D19: 2642.3 | E19: 2626.8 | F19: 2673 | G19: 2699 | H19: 2701.8 | I19: 2727.1 | J19: 2719.6 | K19: 2752.2 | L19: 2740.1 | M19: 2700.9 | N19: 32218.9 | P19: Delaware | Q19: 32218900 | S19: =IF(VLOOKUP($P19,'Congressional Districts'!$A$1:$E$93,2,FALSE)=SNAP!S$1,VLOOKUP($P19,'Congressional Districts'!$A$1:$E$93,3,FALSE)*SNAP!$Q19,IF(VLOOKUP($P19,'Congressional Districts'!$A$1:$E$93,4,FALSE)=SNAP!S$1,VLOOKUP($P19,'Congressional Districts'!$A$1:$E$93,5,FALSE)*SNAP!$Q19,0)) -> 0 | T19: =IF(VLOOKUP($P19,'Congressional Districts'!$A$1:$E$93,2,FALSE)=SNAP!T$1,VLOOKUP($P19,'Congressional Districts'!$A$1:$E$93,3,FALSE)*SNAP!$Q19,IF(VLOOKUP($P19,'Congressional Districts'!$A$1:$E$93,4,FALSE)=SNAP!T$1,VLOOKUP($P19,'Congressional Districts'!$A$1:$E$93,5,FALSE)*SNAP!$Q19,0)) -> 0 | U19: =IF(VLOOKUP($P19,'Congressional Districts'!$A$1:$E$93,2,FALSE)=SNAP!U$1,VLOOKUP($P19,'Congressional Districts'!$A$1:$E$93,3,FALSE)*SNAP!$Q19,IF(VLOOKUP($P19,'Congressional Districts'!$A$1:$E$93,4,FALSE)=SNAP!U$1,VLOOKUP($P19,'Congressional Districts'!$A$1:$E$93,5,FALSE)*SNAP!$Q19,0)) -> 0 | V19: =IF(VLOOKUP($P19,'Congressional Districts'!$A$1:$E$93,2,FALSE)=SNAP!V$1,VLOOKUP($P19,'Congressional Districts'!$A$1:$E$93,3,FALSE)*SNAP!$Q19,IF(VLOOKUP($P19,'Congressional Districts'!$A$1:$E$93,4,FALSE)=SNAP!V$1,VLOOKUP($P19,'Congressional Districts'!$A$1:$E$93,5,FALSE)*SNAP!$Q19,0)) -> 0 | W19: =IF(VLOOKUP($P19,'Congressional Districts'!$A$1:$E$93,2,FALSE)=SNAP!W$1,VLOOKUP($P19,'Congressional Districts'!$A$1:$E$93,3,FALSE)*SNAP!$Q19,IF(VLOOKUP($P19,'Congressional Districts'!$A$1:$E$93,4,FALSE)=SNAP!W$1,VLOOKUP($P19,'Congressional Districts'!$A$1:$E$93,5,FALSE)*SNAP!$Q19,0)) -> 0 | X19: =IF(VLOOKUP($P19,'Congressional Districts'!$A$1:$E$93,2,FALSE)=SNAP!X$1,VLOOKUP($P19,'Congressional Districts'!$A$1:$E$93,3,FALSE)*SNAP!$Q19,IF(VLOOKUP($P19,'Congressional Districts'!$A$1:$E$93,4,FALSE)=SNAP!X$1,VLOOKUP($P19,'Congressional Districts'!$A$1:$E$93,5,FALSE)*SNAP!$Q19,0)) -> 32218900 | Y19: =IF(VLOOKUP($P19,'Congressional Districts'!$A$1:$E$93,2,FALSE)=SNAP!Y$1,VLOOKUP($P19,'Congressional Districts'!$A$1:$E$93,3,FALSE)*SNAP!$Q19,IF(VLOOKUP($P19,'Congressional Districts'!$A$1:$E$93,4,FALSE)=SNAP!Y$1,VLOOKUP($P19,'Congressional Districts'!$A$1:$E$93,5,FALSE)*SNAP!$Q19,0)) -> 0 | Z19: =IF(VLOOKUP($P19,'Congressional Districts'!$A$1:$E$93,2,FALSE)=SNAP!Z$1,VLOOKUP($P19,'Congressional Districts'!$A$1:$E$93,3,FALSE)*SNAP!$Q19,IF(VLOOKUP($P19,'Congressional Districts'!$A$1:$E$93,4,FALSE)=SNAP!Z$1,VLOOKUP($P19,'Congressional Districts'!$A$1:$E$93,5,FALSE)*SNAP!$Q19,0)) -> 0 | AA19: =IF(VLOOKUP($P19,'Congressional Districts'!$A$1:$E$93,2,FALSE)=SNAP!AA$1,VLOOKUP($P19,'Congressional Districts'!$A$1:$E$93,3,FALSE)*SNAP!$Q19,IF(VLOOKUP($P19,'Congressional Districts'!$A$1:$E$93,4,FALSE)=SNAP!AA$1,VLOOKUP($P19,'Congressional Districts'!$A$1:$E$93,5,FALSE)*SNAP!$Q19,0)) -> 0
A20: Dubois | B20: 287.9 | C20: 291.9 | D20: 294 | E20: 289.4 | F20: 285.2 | G20: 283.2 | H20: 283 | I20: 280.3 | J20: 274.4 | K20: 281.3 | L20: 272.5 | M20: 265.3 | N20: 3388.4 | P20: Dubois | Q20: 3388400 | S20: =IF(VLOOKUP($P20,'Congressional Districts'!$A$1:$E$93,2,FALSE)=SNAP!S$1,VLOOKUP($P20,'Congressional Districts'!$A$1:$E$93,3,FALSE)*SNAP!$Q20,IF(VLOOKUP($P20,'Congressional Districts'!$A$1:$E$93,4,FALSE)=SNAP!S$1,VLOOKUP($P20,'Congressional Districts'!$A$1:$E$93,5,FALSE)*SNAP!$Q20,0)) -> 0 | T20: =IF(VLOOKUP($P20,'Congressional Districts'!$A$1:$E$93,2,FALSE)=SNAP!T$1,VLOOKUP($P20,'Congressional Districts'!$A$1:$E$93,3,FALSE)*SNAP!$Q20,IF(VLOOKUP($P20,'Congressional Districts'!$A$1:$E$93,4,FALSE)=SNAP!T$1,VLOOKUP($P20,'Congressional Districts'!$A$1:$E$93,5,FALSE)*SNAP!$Q20,0)) -> 0 | U20: =IF(VLOOKUP($P20,'Congressional Districts'!$A$1:$E$93,2,FALSE)=SNAP!U$1,VLOOKUP($P20,'Congressional Districts'!$A$1:$E$93,3,FALSE)*SNAP!$Q20,IF(VLOOKUP($P20,'Congressional Districts'!$A$1:$E$93,4,FALSE)=SNAP!U$1,VLOOKUP($P20,'Congressional Districts'!$A$1:$E$93,5,FALSE)*SNAP!$Q20,0)) -> 0 | V20: =IF(VLOOKUP($P20,'Congressional Districts'!$A$1:$E$93,2,FALSE)=SNAP!V$1,VLOOKUP($P20,'Congressional Districts'!$A$1:$E$93,3,FALSE)*SNAP!$Q20,IF(VLOOKUP($P20,'Congressional Districts'!$A$1:$E$93,4,FALSE)=SNAP!V$1,VLOOKUP($P20,'Congressional Districts'!$A$1:$E$93,5,FALSE)*SNAP!$Q20,0)) -> 0 | W20: =IF(VLOOKUP($P20,'Congressional Districts'!$A$1:$E$93,2,FALSE)=SNAP!W$1,VLOOKUP($P20,'Congressional Districts'!$A$1:$E$93,3,FALSE)*SNAP!$Q20,IF(VLOOKUP($P20,'Congressional Districts'!$A$1:$E$93,4,FALSE)=SNAP!W$1,VLOOKUP($P20,'Congressional Districts'!$A$1:$E$93,5,FALSE)*SNAP!$Q20,0)) -> 0 | X20: =IF(VLOOKUP($P20,'Congressional Districts'!$A$1:$E$93,2,FALSE)=SNAP!X$1,VLOOKUP($P20,'Congressional Districts'!$A$1:$E$93,3,FALSE)*SNAP!$Q20,IF(VLOOKUP($P20,'Congressional Districts'!$A$1:$E$93,4,FALSE)=SNAP!X$1,VLOOKUP($P20,'Congressional Districts'!$A$1:$E$93,5,FALSE)*SNAP!$Q20,0)) -> 0 | Y20: =IF(VLOOKUP($P20,'Congressional Districts'!$A$1:$E$93,2,FALSE)=SNAP!Y$1,VLOOKUP($P20,'Congressional Districts'!$A$1:$E$93,3,FALSE)*SNAP!$Q20,IF(VLOOKUP($P20,'Congressional Districts'!$A$1:$E$93,4,FALSE)=SNAP!Y$1,VLOOKUP($P20,'Congressional Districts'!$A$1:$E$93,5,FALSE)*SNAP!$Q20,0)) -> 0 | Z20: =IF(VLOOKUP($P20,'Congressional Districts'!$A$1:$E$93,2,FALSE)=SNAP!Z$1,VLOOKUP($P20,'Congressional Districts'!$A$1:$E$93,3,FALSE)*SNAP!$Q20,IF(VLOOKUP($P20,'Congressional Districts'!$A$1:$E$93,4,FALSE)=SNAP!Z$1,VLOOKUP($P20,'Congressional Districts'!$A$1:$E$93,5,FALSE)*SNAP!$Q20,0)) -> 3388400 | AA20: =IF(VLOOKUP($P20,'Congressional Districts'!$A$1:$E$93,2,FALSE)=SNAP!AA$1,VLOOKUP($P20,'Congressional Districts'!$A$1:$E$93,3,FALSE)*SNAP!$Q20,IF(VLOOKUP($P20,'Congressional Districts'!$A$1:$E$93,4,FALSE)=SNAP!AA$1,VLOOKUP($P20,'Congressional Districts'!$A$1:$E$93,5,FALSE)*SNAP!$Q20,0)) -> 0
A21: Elkhart | B21: 3880.7 | C21: 3795.8 | D21: 3725.9 | E21: 3633.6 | F21: 3583.7 | G21: 3542.5 | H21: 3561.1 | I21: 3590.2 | J21: 3586.7 | K21: 3599.2 | L21: 3559.8 | M21: 3567.8 | N21: 43627 | P21: Elkhart | Q21: 43627000 | S21: =IF(VLOOKUP($P21,'Congressional Districts'!$A$1:$E$93,2,FALSE)=SNAP!S$1,VLOOKUP($P21,'Congressional Districts'!$A$1:$E$93,3,FALSE)*SNAP!$Q21,IF(VLOOKUP($P21,'Congressional Districts'!$A$1:$E$93,4,FALSE)=SNAP!S$1,VLOOKUP($P21,'Congressional Districts'!$A$1:$E$93,5,FALSE)*SNAP!$Q21,0)) -> 0 | T21: =IF(VLOOKUP($P21,'Congressional Districts'!$A$1:$E$93,2,FALSE)=SNAP!T$1,VLOOKUP($P21,'Congressional Districts'!$A$1:$E$93,3,FALSE)*SNAP!$Q21,IF(VLOOKUP($P21,'Congressional Districts'!$A$1:$E$93,4,FALSE)=SNAP!T$1,VLOOKUP($P21,'Congressional Districts'!$A$1:$E$93,5,FALSE)*SNAP!$Q21,0)) -> 43627000 | U21: =IF(VLOOKUP($P21,'Congressional Districts'!$A$1:$E$93,2,FALSE)=SNAP!U$1,VLOOKUP($P21,'Congressional Districts'!$A$1:$E$93,3,FALSE)*SNAP!$Q21,IF(VLOOKUP($P21,'Congressional Districts'!$A$1:$E$93,4,FALSE)=SNAP!U$1,VLOOKUP($P21,'Congressional Districts'!$A$1:$E$93,5,FALSE)*SNAP!$Q21,0)) -> 0 | V21: =IF(VLOOKUP($P21,'Congressional Districts'!$A$1:$E$93,2,FALSE)=SNAP!V$1,VLOOKUP($P21,'Congressional Districts'!$A$1:$E$93,3,FALSE)*SNAP!$Q21,IF(VLOOKUP($P21,'Congressional Districts'!$A$1:$E$93,4,FALSE)=SNAP!V$1,VLOOKUP($P21,'Congressional Districts'!$A$1:$E$93,5,FALSE)*SNAP!$Q21,0)) -> 0 | W21: =IF(VLOOKUP($P21,'Congressional Districts'!$A$1:$E$93,2,FALSE)=SNAP!W$1,VLOOKUP($P21,'Congressional Districts'!$A$1:$E$93,3,FALSE)*SNAP!$Q21,IF(VLOOKUP($P21,'Congressional Districts'!$A$1:$E$93,4,FALSE)=SNAP!W$1,VLOOKUP($P21,'Congressional Districts'!$A$1:$E$93,5,FALSE)*SNAP!$Q21,0)) -> 0 | X21: =IF(VLOOKUP($P21,'Congressional Districts'!$A$1:$E$93,2,FALSE)=SNAP!X$1,VLOOKUP($P21,'Congressional Districts'!$A$1:$E$93,3,FALSE)*SNAP!$Q21,IF(VLOOKUP($P21,'Congressional Districts'!$A$1:$E$93,4,FALSE)=SNAP!X$1,VLOOKUP($P21,'Congressional Districts'!$A$1:$E$93,5,FALSE)*SNAP!$Q21,0)) -> 0 | Y21: =IF(VLOOKUP($P21,'Congressional Districts'!$A$1:$E$93,2,FALSE)=SNAP!Y$1,VLOOKUP($P21,'Congressional Districts'!$A$1:$E$93,3,FALSE)*SNAP!$Q21,IF(VLOOKUP($P21,'Congressional Districts'!$A$1:$E$93,4,FALSE)=SNAP!Y$1,VLOOKUP($P21,'Congressional Districts'!$A$1:$E$93,5,FALSE)*SNAP!$Q21,0)) -> 0 | Z21: =IF(VLOOKUP($P21,'Congressional Districts'!$A$1:$E$93,2,FALSE)=SNAP!Z$1,VLOOKUP($P21,'Congressional Districts'!$A$1:$E$93,3,FALSE)*SNAP!$Q21,IF(VLOOKUP($P21,'Congressional Districts'!$A$1:$E$93,4,FALSE)=SNAP!Z$1,VLOOKUP($P21,'Congressional Districts'!$A$1:$E$93,5,FALSE)*SNAP!$Q21,0)) -> 0 | AA21: =IF(VLOOKUP($P21,'Congressional Districts'!$A$1:$E$93,2,FALSE)=SNAP!AA$1,VLOOKUP($P21,'Congressional Districts'!$A$1:$E$93,3,FALSE)*SNAP!$Q21,IF(VLOOKUP($P21,'Congressional Districts'!$A$1:$E$93,4,FALSE)=SNAP!AA$1,VLOOKUP($P21,'Congressional Districts'!$A$1:$E$93,5,FALSE)*SNAP!$Q21,0)) -> 0
A22: Fayette | B22: 687.6 | C22: 679.5 | D22: 679.4 | E22: 666.8 | F22: 684.5 | G22: 685.5 | H22: 685.3 | I22: 684.9 | J22: 688.7 | K22: 686.8 | L22: 684.3 | M22: 683.6 | N22: 8196.9 | P22: Fayette | Q22: 8196900 | S22: =IF(VLOOKUP($P22,'Congressional Districts'!$A$1:$E$93,2,FALSE)=SNAP!S$1,VLOOKUP($P22,'Congressional Districts'!$A$1:$E$93,3,FALSE)*SNAP!$Q22,IF(VLOOKUP($P22,'Congressional Districts'!$A$1:$E$93,4,FALSE)=SNAP!S$1,VLOOKUP($P22,'Congressional Districts'!$A$1:$E$93,5,FALSE)*SNAP!$Q22,0)) -> 0 | T22: =IF(VLOOKUP($P22,'Congressional Districts'!$A$1:$E$93,2,FALSE)=SNAP!T$1,VLOOKUP($P22,'Congressional Districts'!$A$1:$E$93,3,FALSE)*SNAP!$Q22,IF(VLOOKUP($P22,'Congressional Districts'!$A$1:$E$93,4,FALSE)=SNAP!T$1,VLOOKUP($P22,'Congressional Districts'!$A$1:$E$93,5,FALSE)*SNAP!$Q22,0)) -> 0 | U22: =IF(VLOOKUP($P22,'Congressional Districts'!$A$1:$E$93,2,FALSE)=SNAP!U$1,VLOOKUP($P22,'Congressional Districts'!$A$1:$E$93,3,FALSE)*SNAP!$Q22,IF(VLOOKUP($P22,'Congressional Districts'!$A$1:$E$93,4,FALSE)=SNAP!U$1,VLOOKUP($P22,'Congressional Districts'!$A$1:$E$93,5,FALSE)*SNAP!$Q22,0)) -> 0 | V22: =IF(VLOOKUP($P22,'Congressional Districts'!$A$1:$E$93,2,FALSE)=SNAP!V$1,VLOOKUP($P22,'Congressional Districts'!$A$1:$E$93,3,FALSE)*SNAP!$Q22,IF(VLOOKUP($P22,'Congressional Districts'!$A$1:$E$93,4,FALSE)=SNAP!V$1,VLOOKUP($P22,'Congressional Districts'!$A$1:$E$93,5,FALSE)*SNAP!$Q22,0)) -> 0 | W22: =IF(VLOOKUP($P22,'Congressional Districts'!$A$1:$E$93,2,FALSE)=SNAP!W$1,VLOOKUP($P22,'Congressional Districts'!$A$1:$E$93,3,FALSE)*SNAP!$Q22,IF(VLOOKUP($P22,'Congressional Districts'!$A$1:$E$93,4,FALSE)=SNAP!W$1,VLOOKUP($P22,'Congressional Districts'!$A$1:$E$93,5,FALSE)*SNAP!$Q22,0)) -> 0 | X22: =IF(VLOOKUP($P22,'Congressional Districts'!$A$1:$E$93,2,FALSE)=SNAP!X$1,VLOOKUP($P22,'Congressional Districts'!$A$1:$E$93,3,FALSE)*SNAP!$Q22,IF(VLOOKUP($P22,'Congressional Districts'!$A$1:$E$93,4,FALSE)=SNAP!X$1,VLOOKUP($P22,'Congressional Districts'!$A$1:$E$93,5,FALSE)*SNAP!$Q22,0)) -> 8196900 | Y22: =IF(VLOOKUP($P22,'Congressional Districts'!$A$1:$E$93,2,FALSE)=SNAP!Y$1,VLOOKUP($P22,'Congressional Districts'!$A$1:$E$93,3,FALSE)*SNAP!$Q22,IF(VLOOKUP($P22,'Congressional Districts'!$A$1:$E$93,4,FALSE)=SNAP!Y$1,VLOOKUP($P22,'Congressional Districts'!$A$1:$E$93,5,FALSE)*SNAP!$Q22,0)) -> 0 | Z22: =IF(VLOOKUP($P22,'Congressional Districts'!$A$1:$E$93,2,FALSE)=SNAP!Z$1,VLOOKUP($P22,'Congressional Districts'!$A$1:$E$93,3,FALSE)*SNAP!$Q22,IF(VLOOKUP($P22,'Congressional Districts'!$A$1:$E$93,4,FALSE)=SNAP!Z$1,VLOOKUP($P22,'Congressional Districts'!$A$1:$E$93,5,FALSE)*SNAP!$Q22,0)) -> 0 | AA22: =IF(VLOOKUP($P22,'Congressional Districts'!$A$1:$E$93,2,FALSE)=SNAP!AA$1,VLOOKUP($P22,'Congressional Districts'!$A$1:$E$93,3,FALSE)*SNAP!$Q22,IF(VLOOKUP($P22,'Congressional Districts'!$A$1:$E$93,4,FALSE)=SNAP!AA$1,VLOOKUP($P22,'Congressional Districts'!$A$1:$E$93,5,FALSE)*SNAP!$Q22,0)) -> 0
A23: Floyd | B23: 1295.9 | C23: 1289.3 | D23: 1295 | E23: 1275.7 | F23: 1294.8 | G23: 1299.2 | H23: 1292.7 | I23: 1290.5 | J23: 1291.3 | K23: 1292.1 | L23: 1286 | M23: 1265.6 | N23: 15468.1 | P23: Floyd | Q23: 15468100 | S23: =IF(VLOOKUP($P23,'Congressional Districts'!$A$1:$E$93,2,FALSE)=SNAP!S$1,VLOOKUP($P23,'Congressional Districts'!$A$1:$E$93,3,FALSE)*SNAP!$Q23,IF(VLOOKUP($P23,'Congressional Districts'!$A$1:$E$93,4,FALSE)=SNAP!S$1,VLOOKUP($P23,'Congressional Districts'!$A$1:$E$93,5,FALSE)*SNAP!$Q23,0)) -> 0 | T23: =IF(VLOOKUP($P23,'Congressional Districts'!$A$1:$E$93,2,FALSE)=SNAP!T$1,VLOOKUP($P23,'Congressional Districts'!$A$1:$E$93,3,FALSE)*SNAP!$Q23,IF(VLOOKUP($P23,'Congressional Districts'!$A$1:$E$93,4,FALSE)=SNAP!T$1,VLOOKUP($P23,'Congressional Districts'!$A$1:$E$93,5,FALSE)*SNAP!$Q23,0)) -> 0 | U23: =IF(VLOOKUP($P23,'Congressional Districts'!$A$1:$E$93,2,FALSE)=SNAP!U$1,VLOOKUP($P23,'Congressional Districts'!$A$1:$E$93,3,FALSE)*SNAP!$Q23,IF(VLOOKUP($P23,'Congressional Districts'!$A$1:$E$93,4,FALSE)=SNAP!U$1,VLOOKUP($P23,'Congressional Districts'!$A$1:$E$93,5,FALSE)*SNAP!$Q23,0)) -> 0 | V23: =IF(VLOOKUP($P23,'Congressional Districts'!$A$1:$E$93,2,FALSE)=SNAP!V$1,VLOOKUP($P23,'Congressional Districts'!$A$1:$E$93,3,FALSE)*SNAP!$Q23,IF(VLOOKUP($P23,'Congressional Districts'!$A$1:$E$93,4,FALSE)=SNAP!V$1,VLOOKUP($P23,'Congressional Districts'!$A$1:$E$93,5,FALSE)*SNAP!$Q23,0)) -> 0 | W23: =IF(VLOOKUP($P23,'Congressional Districts'!$A$1:$E$93,2,FALSE)=SNAP!W$1,VLOOKUP($P23,'Congressional Districts'!$A$1:$E$93,3,FALSE)*SNAP!$Q23,IF(VLOOKUP($P23,'Congressional Districts'!$A$1:$E$93,4,FALSE)=SNAP!W$1,VLOOKUP($P23,'Congressional Districts'!$A$1:$E$93,5,FALSE)*SNAP!$Q23,0)) -> 0 | X23: =IF(VLOOKUP($P23,'Congressional Districts'!$A$1:$E$93,2,FALSE)=SNAP!X$1,VLOOKUP($P23,'Congressional Districts'!$A$1:$E$93,3,FALSE)*SNAP!$Q23,IF(VLOOKUP($P23,'Congressional Districts'!$A$1:$E$93,4,FALSE)=SNAP!X$1,VLOOKUP($P23,'Congressional Districts'!$A$1:$E$93,5,FALSE)*SNAP!$Q23,0)) -> 0 | Y23: =IF(VLOOKUP($P23,'Congressional Districts'!$A$1:$E$93,2,FALSE)=SNAP!Y$1,VLOOKUP($P23,'Congressional Districts'!$A$1:$E$93,3,FALSE)*SNAP!$Q23,IF(VLOOKUP($P23,'Congressional Districts'!$A$1:$E$93,4,FALSE)=SNAP!Y$1,VLOOKUP($P23,'Congressional Districts'!$A$1:$E$93,5,FALSE)*SNAP!$Q23,0)) -> 0 | Z23: =IF(VLOOKUP($P23,'Congressional Districts'!$A$1:$E$93,2,FALSE)=SNAP!Z$1,VLOOKUP($P23,'Congressional Districts'!$A$1:$E$93,3,FALSE)*SNAP!$Q23,IF(VLOOKUP($P23,'Congressional Districts'!$A$1:$E$93,4,FALSE)=SNAP!Z$1,VLOOKUP($P23,'Congressional Districts'!$A$1:$E$93,5,FALSE)*SNAP!$Q23,0)) -> 0 | AA23: =IF(VLOOKUP($P23,'Congressional Districts'!$A$1:$E$93,2,FALSE)=SNAP!AA$1,VLOOKUP($P23,'Congressional Districts'!$A$1:$E$93,3,FALSE)*SNAP!$Q23,IF(VLOOKUP($P23,'Congressional Districts'!$A$1:$E$93,4,FALSE)=SNAP!AA$1,VLOOKUP($P23,'Congressional Districts'!$A$1:$E$93,5,FALSE)*SNAP!$Q23,0)) -> 15468100
A24: Fountain | B24: 272.8 | C24: 275.3 | D24: 273.4 | E24: 269.7 | F24: 269.4 | G24: 268.1 | H24: 262.6 | I24: 262.1 | J24: 263 | K24: 266.8 | L24: 276.3 | M24: 277.2 | N24: 3236.7 | P24: Fountain | Q24: 3236700 | S24: =IF(VLOOKUP($P24,'Congressional Districts'!$A$1:$E$93,2,FALSE)=SNAP!S$1,VLOOKUP($P24,'Congressional Districts'!$A$1:$E$93,3,FALSE)*SNAP!$Q24,IF(VLOOKUP($P24,'Congressional Districts'!$A$1:$E$93,4,FALSE)=SNAP!S$1,VLOOKUP($P24,'Congressional Districts'!$A$1:$E$93,5,FALSE)*SNAP!$Q24,0)) -> 0 | T24: =IF(VLOOKUP($P24,'Congressional Districts'!$A$1:$E$93,2,FALSE)=SNAP!T$1,VLOOKUP($P24,'Congressional Districts'!$A$1:$E$93,3,FALSE)*SNAP!$Q24,IF(VLOOKUP($P24,'Congressional Districts'!$A$1:$E$93,4,FALSE)=SNAP!T$1,VLOOKUP($P24,'Congressional Districts'!$A$1:$E$93,5,FALSE)*SNAP!$Q24,0)) -> 0 | U24: =IF(VLOOKUP($P24,'Congressional Districts'!$A$1:$E$93,2,FALSE)=SNAP!U$1,VLOOKUP($P24,'Congressional Districts'!$A$1:$E$93,3,FALSE)*SNAP!$Q24,IF(VLOOKUP($P24,'Congressional Districts'!$A$1:$E$93,4,FALSE)=SNAP!U$1,VLOOKUP($P24,'Congressional Districts'!$A$1:$E$93,5,FALSE)*SNAP!$Q24,0)) -> 0 | V24: =IF(VLOOKUP($P24,'Congressional Districts'!$A$1:$E$93,2,FALSE)=SNAP!V$1,VLOOKUP($P24,'Congressional Districts'!$A$1:$E$93,3,FALSE)*SNAP!$Q24,IF(VLOOKUP($P24,'Congressional Districts'!$A$1:$E$93,4,FALSE)=SNAP!V$1,VLOOKUP($P24,'Congressional Districts'!$A$1:$E$93,5,FALSE)*SNAP!$Q24,0)) -> 3236700 | W24: =IF(VLOOKUP($P24,'Congressional Districts'!$A$1:$E$93,2,FALSE)=SNAP!W$1,VLOOKUP($P24,'Congressional Districts'!$A$1:$E$93,3,FALSE)*SNAP!$Q24,IF(VLOOKUP($P24,'Congressional Districts'!$A$1:$E$93,4,FALSE)=SNAP!W$1,VLOOKUP($P24,'Congressional Districts'!$A$1:$E$93,5,FALSE)*SNAP!$Q24,0)) -> 0 | X24: =IF(VLOOKUP($P24,'Congressional Districts'!$A$1:$E$93,2,FALSE)=SNAP!X$1,VLOOKUP($P24,'Congressional Districts'!$A$1:$E$93,3,FALSE)*SNAP!$Q24,IF(VLOOKUP($P24,'Congressional Districts'!$A$1:$E$93,4,FALSE)=SNAP!X$1,VLOOKUP($P24,'Congressional Districts'!$A$1:$E$93,5,FALSE)*SNAP!$Q24,0)) -> 0 | Y24: =IF(VLOOKUP($P24,'Congressional Districts'!$A$1:$E$93,2,FALSE)=SNAP!Y$1,VLOOKUP($P24,'Congressional Districts'!$A$1:$E$93,3,FALSE)*SNAP!$Q24,IF(VLOOKUP($P24,'Congressional Districts'!$A$1:$E$93,4,FALSE)=SNAP!Y$1,VLOOKUP($P24,'Congressional Districts'!$A$1:$E$93,5,FALSE)*SNAP!$Q24,0)) -> 0 | Z24: =IF(VLOOKUP($P24,'Congressional Districts'!$A$1:$E$93,2,FALSE)=SNAP!Z$1,VLOOKUP($P24,'Congressional Districts'!$A$1:$E$93,3,FALSE)*SNAP!$Q24,IF(VLOOKUP($P24,'Congressional Districts'!$A$1:$E$93,4,FALSE)=SNAP!Z$1,VLOOKUP($P24,'Congressional Districts'!$A$1:$E$93,5,FALSE)*SNAP!$Q24,0)) -> 0 | AA24: =IF(VLOOKUP($P24,'Congressional Districts'!$A$1:$E$93,2,FALSE)=SNAP!AA$1,VLOOKUP($P24,'Congressional Districts'!$A$1:$E$93,3,FALSE)*SNAP!$Q24,IF(VLOOKUP($P24,'Congressional Districts'!$A$1:$E$93,4,FALSE)=SNAP!AA$1,VLOOKUP($P24,'Congressional Districts'!$A$1:$E$93,5,FALSE)*SNAP!$Q24,0)) -> 0
A25: Franklin | B25: 327.9 | C25: 331 | D25: 333.6 | E25: 332.1 | F25: 320.1 | G25: 317.5 | H25: 317.5 | I25: 325 | J25: 323.3 | K25: 332 | L25: 315.2 | M25: 322 | N25: 3897.2 | P25: Franklin | Q25: 3897200 | S25: =IF(VLOOKUP($P25,'Congressional Districts'!$A$1:$E$93,2,FALSE)=SNAP!S$1,VLOOKUP($P25,'Congressional Districts'!$A$1:$E$93,3,FALSE)*SNAP!$Q25,IF(VLOOKUP($P25,'Congressional Districts'!$A$1:$E$93,4,FALSE)=SNAP!S$1,VLOOKUP($P25,'Congressional Districts'!$A$1:$E$93,5,FALSE)*SNAP!$Q25,0)) -> 0 | T25: =IF(VLOOKUP($P25,'Congressional Districts'!$A$1:$E$93,2,FALSE)=SNAP!T$1,VLOOKUP($P25,'Congressional Districts'!$A$1:$E$93,3,FALSE)*SNAP!$Q25,IF(VLOOKUP($P25,'Congressional Districts'!$A$1:$E$93,4,FALSE)=SNAP!T$1,VLOOKUP($P25,'Congressional Districts'!$A$1:$E$93,5,FALSE)*SNAP!$Q25,0)) -> 0 | U25: =IF(VLOOKUP($P25,'Congressional Districts'!$A$1:$E$93,2,FALSE)=SNAP!U$1,VLOOKUP($P25,'Congressional Districts'!$A$1:$E$93,3,FALSE)*SNAP!$Q25,IF(VLOOKUP($P25,'Congressional Districts'!$A$1:$E$93,4,FALSE)=SNAP!U$1,VLOOKUP($P25,'Congressional Districts'!$A$1:$E$93,5,FALSE)*SNAP!$Q25,0)) -> 0 | V25: =IF(VLOOKUP($P25,'Congressional Districts'!$A$1:$E$93,2,FALSE)=SNAP!V$1,VLOOKUP($P25,'Congressional Districts'!$A$1:$E$93,3,FALSE)*SNAP!$Q25,IF(VLOOKUP($P25,'Congressional Districts'!$A$1:$E$93,4,FALSE)=SNAP!V$1,VLOOKUP($P25,'Congressional Districts'!$A$1:$E$93,5,FALSE)*SNAP!$Q25,0)) -> 0 | W25: =IF(VLOOKUP($P25,'Congressional Districts'!$A$1:$E$93,2,FALSE)=SNAP!W$1,VLOOKUP($P25,'Congressional Districts'!$A$1:$E$93,3,FALSE)*SNAP!$Q25,IF(VLOOKUP($P25,'Congressional Districts'!$A$1:$E$93,4,FALSE)=SNAP!W$1,VLOOKUP($P25,'Congressional Districts'!$A$1:$E$93,5,FALSE)*SNAP!$Q25,0)) -> 0 | X25: =IF(VLOOKUP($P25,'Congressional Districts'!$A$1:$E$93,2,FALSE)=SNAP!X$1,VLOOKUP($P25,'Congressional Districts'!$A$1:$E$93,3,FALSE)*SNAP!$Q25,IF(VLOOKUP($P25,'Congressional Districts'!$A$1:$E$93,4,FALSE)=SNAP!X$1,VLOOKUP($P25,'Congressional Districts'!$A$1:$E$93,5,FALSE)*SNAP!$Q25,0)) -> 3897200 | Y25: =IF(VLOOKUP($P25,'Congressional Districts'!$A$1:$E$93,2,FALSE)=SNAP!Y$1,VLOOKUP($P25,'Congressional Districts'!$A$1:$E$93,3,FALSE)*SNAP!$Q25,IF(VLOOKUP($P25,'Congressional Districts'!$A$1:$E$93,4,FALSE)=SNAP!Y$1,VLOOKUP($P25,'Congressional Districts'!$A$1:$E$93,5,FALSE)*SNAP!$Q25,0)) -> 0 | Z25: =IF(VLOOKUP($P25,'Congressional Districts'!$A$1:$E$93,2,FALSE)=SNAP!Z$1,VLOOKUP($P25,'Congressional Districts'!$A$1:$E$93,3,FALSE)*SNAP!$Q25,IF(VLOOKUP($P25,'Congressional Districts'!$A$1:$E$93,4,FALSE)=SNAP!Z$1,VLOOKUP($P25,'Congressional Districts'!$A$1:$E$93,5,FALSE)*SNAP!$Q25,0)) -> 0 | AA25: =IF(VLOOKUP($P25,'Congressional Districts'!$A$1:$E$93,2,FALSE)=SNAP!AA$1,VLOOKUP($P25,'Congressional Districts'!$A$1:$E$93,3,FALSE)*SNAP!$Q25,IF(VLOOKUP($P25,'Congressional Districts'!$A$1:$E$93,4,FALSE)=SNAP!AA$1,VLOOKUP($P25,'Congressional Districts'!$A$1:$E$93,5,FALSE)*SNAP!$Q25,0)) -> 0
A26: Fulton | B26: 377 | C26: 375.1 | D26: 362.1 | E26: 365.3 | F26: 362.8 | G26: 354.8 | H26: 636.6 | I26: 362.9 | J26: 368.2 | K26: 362.1 | L26: 364.1 | M26: 361.5 | N26: 4652.5 | P26: Fulton | Q26: 4652500 | S26: =IF(VLOOKUP($P26,'Congressional Districts'!$A$1:$E$93,2,FALSE)=SNAP!S$1,VLOOKUP($P26,'Congressional Districts'!$A$1:$E$93,3,FALSE)*SNAP!$Q26,IF(VLOOKUP($P26,'Congressional Districts'!$A$1:$E$93,4,FALSE)=SNAP!S$1,VLOOKUP($P26,'Congressional Districts'!$A$1:$E$93,5,FALSE)*SNAP!$Q26,0)) -> 0 | T26: =IF(VLOOKUP($P26,'Congressional Districts'!$A$1:$E$93,2,FALSE)=SNAP!T$1,VLOOKUP($P26,'Congressional Districts'!$A$1:$E$93,3,FALSE)*SNAP!$Q26,IF(VLOOKUP($P26,'Congressional Districts'!$A$1:$E$93,4,FALSE)=SNAP!T$1,VLOOKUP($P26,'Congressional Districts'!$A$1:$E$93,5,FALSE)*SNAP!$Q26,0)) -> 4652500 | U26: =IF(VLOOKUP($P26,'Congressional Districts'!$A$1:$E$93,2,FALSE)=SNAP!U$1,VLOOKUP($P26,'Congressional Districts'!$A$1:$E$93,3,FALSE)*SNAP!$Q26,IF(VLOOKUP($P26,'Congressional Districts'!$A$1:$E$93,4,FALSE)=SNAP!U$1,VLOOKUP($P26,'Congressional Districts'!$A$1:$E$93,5,FALSE)*SNAP!$Q26,0)) -> 0 | V26: =IF(VLOOKUP($P26,'Congressional Districts'!$A$1:$E$93,2,FALSE)=SNAP!V$1,VLOOKUP($P26,'Congressional Districts'!$A$1:$E$93,3,FALSE)*SNAP!$Q26,IF(VLOOKUP($P26,'Congressional Districts'!$A$1:$E$93,4,FALSE)=SNAP!V$1,VLOOKUP($P26,'Congressional Districts'!$A$1:$E$93,5,FALSE)*SNAP!$Q26,0)) -> 0 | W26: =IF(VLOOKUP($P26,'Congressional Districts'!$A$1:$E$93,2,FALSE)=SNAP!W$1,VLOOKUP($P26,'Congressional Districts'!$A$1:$E$93,3,FALSE)*SNAP!$Q26,IF(VLOOKUP($P26,'Congressional Districts'!$A$1:$E$93,4,FALSE)=SNAP!W$1,VLOOKUP($P26,'Congressional Districts'!$A$1:$E$93,5,FALSE)*SNAP!$Q26,0)) -> 0 | X26: =IF(VLOOKUP($P26,'Congressional Districts'!$A$1:$E$93,2,FALSE)=SNAP!X$1,VLOOKUP($P26,'Congressional Districts'!$A$1:$E$93,3,FALSE)*SNAP!$Q26,IF(VLOOKUP($P26,'Congressional Districts'!$A$1:$E$93,4,FALSE)=SNAP!X$1,VLOOKUP($P26,'Congressional Districts'!$A$1:$E$93,5,FALSE)*SNAP!$Q26,0)) -> 0 | Y26: =IF(VLOOKUP($P26,'Congressional Districts'!$A$1:$E$93,2,FALSE)=SNAP!Y$1,VLOOKUP($P26,'Congressional Districts'!$A$1:$E$93,3,FALSE)*SNAP!$Q26,IF(VLOOKUP($P26,'Congressional Districts'!$A$1:$E$93,4,FALSE)=SNAP!Y$1,VLOOKUP($P26,'Congressional Districts'!$A$1:$E$93,5,FALSE)*SNAP!$Q26,0)) -> 0 | Z26: =IF(VLOOKUP($P26,'Congressional Districts'!$A$1:$E$93,2,FALSE)=SNAP!Z$1,VLOOKUP($P26,'Congressional Districts'!$A$1:$E$93,3,FALSE)*SNAP!$Q26,IF(VLOOKUP($P26,'Congressional Districts'!$A$1:$E$93,4,FALSE)=SNAP!Z$1,VLOOKUP($P26,'Congressional Districts'!$A$1:$E$93,5,FALSE)*SNAP!$Q26,0)) -> 0 | AA26: =IF(VLOOKUP($P26,'Congressional Districts'!$A$1:$E$93,2,FALSE)=SNAP!AA$1,VLOOKUP($P26,'Congressional Districts'!$A$1:$E$93,3,FALSE)*SNAP!$Q26,IF(VLOOKUP($P26,'Congressional Districts'!$A$1:$E$93,4,FALSE)=SNAP!AA$1,VLOOKUP($P26,'Congressional Districts'!$A$1:$E$93,5,FALSE)*SNAP!$Q26,0)) -> 0
A27: Gibson | B27: 379.8 | C27: 376 | D27: 373.7 | E27: 372.7 | F27: 376.4 | G27: 380.5 | H27: 377.1 | I27: 388.1 | J27: 294.9 | K27: 397.5 | L27: 390.8 | M27: 387.6 | N27: 4495.1 | P27: Gibson | Q27: 4495100 | S27: =IF(VLOOKUP($P27,'Congressional Districts'!$A$1:$E$93,2,FALSE)=SNAP!S$1,VLOOKUP($P27,'Congressional Districts'!$A$1:$E$93,3,FALSE)*SNAP!$Q27,IF(VLOOKUP($P27,'Congressional Districts'!$A$1:$E$93,4,FALSE)=SNAP!S$1,VLOOKUP($P27,'Congressional Districts'!$A$1:$E$93,5,FALSE)*SNAP!$Q27,0)) -> 0 | T27: =IF(VLOOKUP($P27,'Congressional Districts'!$A$1:$E$93,2,FALSE)=SNAP!T$1,VLOOKUP($P27,'Congressional Districts'!$A$1:$E$93,3,FALSE)*SNAP!$Q27,IF(VLOOKUP($P27,'Congressional Districts'!$A$1:$E$93,4,FALSE)=SNAP!T$1,VLOOKUP($P27,'Congressional Districts'!$A$1:$E$93,5,FALSE)*SNAP!$Q27,0)) -> 0 | U27: =IF(VLOOKUP($P27,'Congressional Districts'!$A$1:$E$93,2,FALSE)=SNAP!U$1,VLOOKUP($P27,'Congressional Districts'!$A$1:$E$93,3,FALSE)*SNAP!$Q27,IF(VLOOKUP($P27,'Congressional Districts'!$A$1:$E$93,4,FALSE)=SNAP!U$1,VLOOKUP($P27,'Congressional Districts'!$A$1:$E$93,5,FALSE)*SNAP!$Q27,0)) -> 0 | V27: =IF(VLOOKUP($P27,'Congressional Districts'!$A$1:$E$93,2,FALSE)=SNAP!V$1,VLOOKUP($P27,'Congressional Districts'!$A$1:$E$93,3,FALSE)*SNAP!$Q27,IF(VLOOKUP($P27,'Congressional Districts'!$A$1:$E$93,4,FALSE)=SNAP!V$1,VLOOKUP($P27,'Congressional Districts'!$A$1:$E$93,5,FALSE)*SNAP!$Q27,0)) -> 0 | W27: =IF(VLOOKUP($P27,'Congressional Districts'!$A$1:$E$93,2,FALSE)=SNAP!W$1,VLOOKUP($P27,'Congressional Districts'!$A$1:$E$93,3,FALSE)*SNAP!$Q27,IF(VLOOKUP($P27,'Congressional Districts'!$A$1:$E$93,4,FALSE)=SNAP!W$1,VLOOKUP($P27,'Congressional Districts'!$A$1:$E$93,5,FALSE)*SNAP!$Q27,0)) -> 0 | X27: =IF(VLOOKUP($P27,'Congressional Districts'!$A$1:$E$93,2,FALSE)=SNAP!X$1,VLOOKUP($P27,'Congressional Districts'!$A$1:$E$93,3,FALSE)*SNAP!$Q27,IF(VLOOKUP($P27,'Congressional Districts'!$A$1:$E$93,4,FALSE)=SNAP!X$1,VLOOKUP($P27,'Congressional Districts'!$A$1:$E$93,5,FALSE)*SNAP!$Q27,0)) -> 0 | Y27: =IF(VLOOKUP($P27,'Congressional Districts'!$A$1:$E$93,2,FALSE)=SNAP!Y$1,VLOOKUP($P27,'Congressional Districts'!$A$1:$E$93,3,FALSE)*SNAP!$Q27,IF(VLOOKUP($P27,'Congressional Districts'!$A$1:$E$93,4,FALSE)=SNAP!Y$1,VLOOKUP($P27,'Congressional Districts'!$A$1:$E$93,5,FALSE)*SNAP!$Q27,0)) -> 0 | Z27: =IF(VLOOKUP($P27,'Congressional Districts'!$A$1:$E$93,2,FALSE)=SNAP!Z$1,VLOOKUP($P27,'Congressional Districts'!$A$1:$E$93,3,FALSE)*SNAP!$Q27,IF(VLOOKUP($P27,'Congressional Districts'!$A$1:$E$93,4,FALSE)=SNAP!Z$1,VLOOKUP($P27,'Congressional Districts'!$A$1:$E$93,5,FALSE)*SNAP!$Q27,0)) -> 4495100 | AA27: =IF(VLOOKUP($P27,'Congressional Districts'!$A$1:$E$93,2,FALSE)=SNAP!AA$1,VLOOKUP($P27,'Congressional Districts'!$A$1:$E$93,3,FALSE)*SNAP!$Q27,IF(VLOOKUP($P27,'Congressional Districts'!$A$1:$E$93,4,FALSE)=SNAP!AA$1,VLOOKUP($P27,'Congressional Districts'!$A$1:$E$93,5,FALSE)*SNAP!$Q27,0)) -> 0
A28: Grant | B28: 1724.9 | C28: 1730.1 | D28: 1722.7 | E28: 1705.4 | F28: 1716.7 | G28: 1710.7 | H28: 1730.4 | I28: 1741.4 | J28: 1740.4 | K28: 1731.6 | L28: 1734.4 | M28: 1745.9 | N28: 20734.6 | P28: Grant | Q28: 20734600 | S28: =IF(VLOOKUP($P28,'Congressional Districts'!$A$1:$E$93,2,FALSE)=SNAP!S$1,VLOOKUP($P28,'Congressional Districts'!$A$1:$E$93,3,FALSE)*SNAP!$Q28,IF(VLOOKUP($P28,'Congressional Districts'!$A$1:$E$93,4,FALSE)=SNAP!S$1,VLOOKUP($P28,'Congressional Districts'!$A$1:$E$93,5,FALSE)*SNAP!$Q28,0)) -> 0 | T28: =IF(VLOOKUP($P28,'Congressional Districts'!$A$1:$E$93,2,FALSE)=SNAP!T$1,VLOOKUP($P28,'Congressional Districts'!$A$1:$E$93,3,FALSE)*SNAP!$Q28,IF(VLOOKUP($P28,'Congressional Districts'!$A$1:$E$93,4,FALSE)=SNAP!T$1,VLOOKUP($P28,'Congressional Districts'!$A$1:$E$93,5,FALSE)*SNAP!$Q28,0)) -> 0 | U28: =IF(VLOOKUP($P28,'Congressional Districts'!$A$1:$E$93,2,FALSE)=SNAP!U$1,VLOOKUP($P28,'Congressional Districts'!$A$1:$E$93,3,FALSE)*SNAP!$Q28,IF(VLOOKUP($P28,'Congressional Districts'!$A$1:$E$93,4,FALSE)=SNAP!U$1,VLOOKUP($P28,'Congressional Districts'!$A$1:$E$93,5,FALSE)*SNAP!$Q28,0)) -> 0 | V28: =IF(VLOOKUP($P28,'Congressional Districts'!$A$1:$E$93,2,FALSE)=SNAP!V$1,VLOOKUP($P28,'Congressional Districts'!$A$1:$E$93,3,FALSE)*SNAP!$Q28,IF(VLOOKUP($P28,'Congressional Districts'!$A$1:$E$93,4,FALSE)=SNAP!V$1,VLOOKUP($P28,'Congressional Districts'!$A$1:$E$93,5,FALSE)*SNAP!$Q28,0)) -> 0 | W28: =IF(VLOOKUP($P28,'Congressional Districts'!$A$1:$E$93,2,FALSE)=SNAP!W$1,VLOOKUP($P28,'Congressional Districts'!$A$1:$E$93,3,FALSE)*SNAP!$Q28,IF(VLOOKUP($P28,'Congressional Districts'!$A$1:$E$93,4,FALSE)=SNAP!W$1,VLOOKUP($P28,'Congressional Districts'!$A$1:$E$93,5,FALSE)*SNAP!$Q28,0)) -> 20734600 | X28: =IF(VLOOKUP($P28,'Congressional Districts'!$A$1:$E$93,2,FALSE)=SNAP!X$1,VLOOKUP($P28,'Congressional Districts'!$A$1:$E$93,3,FALSE)*SNAP!$Q28,IF(VLOOKUP($P28,'Congressional Districts'!$A$1:$E$93,4,FALSE)=SNAP!X$1,VLOOKUP($P28,'Congressional Districts'!$A$1:$E$93,5,FALSE)*SNAP!$Q28,0)) -> 0 | Y28: =IF(VLOOKUP($P28,'Congressional Districts'!$A$1:$E$93,2,FALSE)=SNAP!Y$1,VLOOKUP($P28,'Congressional Districts'!$A$1:$E$93,3,FALSE)*SNAP!$Q28,IF(VLOOKUP($P28,'Congressional Districts'!$A$1:$E$93,4,FALSE)=SNAP!Y$1,VLOOKUP($P28,'Congressional Districts'!$A$1:$E$93,5,FALSE)*SNAP!$Q28,0)) -> 0 | Z28: =IF(VLOOKUP($P28,'Congressional Districts'!$A$1:$E$93,2,FALSE)=SNAP!Z$1,VLOOKUP($P28,'Congressional Districts'!$A$1:$E$93,3,FALSE)*SNAP!$Q28,IF(VLOOKUP($P28,'Congressional Districts'!$A$1:$E$93,4,FALSE)=SNAP!Z$1,VLOOKUP($P28,'Congressional Districts'!$A$1:$E$93,5,FALSE)*SNAP!$Q28,0)) -> 0 | AA28: =IF(VLOOKUP($P28,'Congressional Districts'!$A$1:$E$93,2,FALSE)=SNAP!AA$1,VLOOKUP($P28,'Congressional Districts'!$A$1:$E$93,3,FALSE)*SNAP!$Q28,IF(VLOOKUP($P28,'Congressional Districts'!$A$1:$E$93,4,FALSE)=SNAP!AA$1,VLOOKUP($P28,'Congressional Districts'!$A$1:$E$93,5,FALSE)*SNAP!$Q28,0)) -> 0
A29: Greene | B29: 573.8 | C29: 566.9 | D29: 563.9 | E29: 561.1 | F29: 566.5 | G29: 564.7 | H29: 572.1 | I29: 578.6 | J29: 568.4 | K29: 574.7 | L29: 569.4 | M29: 564.9 | N29: 6825 | P29: Greene | Q29: 6825000 | S29: =IF(VLOOKUP($P29,'Congressional Districts'!$A$1:$E$93,2,FALSE)=SNAP!S$1,VLOOKUP($P29,'Congressional Districts'!$A$1:$E$93,3,FALSE)*SNAP!$Q29,IF(VLOOKUP($P29,'Congressional Districts'!$A$1:$E$93,4,FALSE)=SNAP!S$1,VLOOKUP($P29,'Congressional Districts'!$A$1:$E$93,5,FALSE)*SNAP!$Q29,0)) -> 0 | T29: =IF(VLOOKUP($P29,'Congressional Districts'!$A$1:$E$93,2,FALSE)=SNAP!T$1,VLOOKUP($P29,'Congressional Districts'!$A$1:$E$93,3,FALSE)*SNAP!$Q29,IF(VLOOKUP($P29,'Congressional Districts'!$A$1:$E$93,4,FALSE)=SNAP!T$1,VLOOKUP($P29,'Congressional Districts'!$A$1:$E$93,5,FALSE)*SNAP!$Q29,0)) -> 0 | U29: =IF(VLOOKUP($P29,'Congressional Districts'!$A$1:$E$93,2,FALSE)=SNAP!U$1,VLOOKUP($P29,'Congressional Districts'!$A$1:$E$93,3,FALSE)*SNAP!$Q29,IF(VLOOKUP($P29,'Congressional Districts'!$A$1:$E$93,4,FALSE)=SNAP!U$1,VLOOKUP($P29,'Congressional Districts'!$A$1:$E$93,5,FALSE)*SNAP!$Q29,0)) -> 0 | V29: =IF(VLOOKUP($P29,'Congressional Districts'!$A$1:$E$93,2,FALSE)=SNAP!V$1,VLOOKUP($P29,'Congressional Districts'!$A$1:$E$93,3,FALSE)*SNAP!$Q29,IF(VLOOKUP($P29,'Congressional Districts'!$A$1:$E$93,4,FALSE)=SNAP!V$1,VLOOKUP($P29,'Congressional Districts'!$A$1:$E$93,5,FALSE)*SNAP!$Q29,0)) -> 0 | W29: =IF(VLOOKUP($P29,'Congressional Districts'!$A$1:$E$93,2,FALSE)=SNAP!W$1,VLOOKUP($P29,'Congressional Districts'!$A$1:$E$93,3,FALSE)*SNAP!$Q29,IF(VLOOKUP($P29,'Congressional Districts'!$A$1:$E$93,4,FALSE)=SNAP!W$1,VLOOKUP($P29,'Congressional Districts'!$A$1:$E$93,5,FALSE)*SNAP!$Q29,0)) -> 0 | X29: =IF(VLOOKUP($P29,'Congressional Districts'!$A$1:$E$93,2,FALSE)=SNAP!X$1,VLOOKUP($P29,'Congressional Districts'!$A$1:$E$93,3,FALSE)*SNAP!$Q29,IF(VLOOKUP($P29,'Congressional Districts'!$A$1:$E$93,4,FALSE)=SNAP!X$1,VLOOKUP($P29,'Congressional Districts'!$A$1:$E$93,5,FALSE)*SNAP!$Q29,0)) -> 0 | Y29: =IF(VLOOKUP($P29,'Congressional Districts'!$A$1:$E$93,2,FALSE)=SNAP!Y$1,VLOOKUP($P29,'Congressional Districts'!$A$1:$E$93,3,FALSE)*SNAP!$Q29,IF(VLOOKUP($P29,'Congressional Districts'!$A$1:$E$93,4,FALSE)=SNAP!Y$1,VLOOKUP($P29,'Congressional Districts'!$A$1:$E$93,5,FALSE)*SNAP!$Q29,0)) -> 0 | Z29: =IF(VLOOKUP($P29,'Congressional Districts'!$A$1:$E$93,2,FALSE)=SNAP!Z$1,VLOOKUP($P29,'Congressional Districts'!$A$1:$E$93,3,FALSE)*SNAP!$Q29,IF(VLOOKUP($P29,'Congressional Districts'!$A$1:$E$93,4,FALSE)=SNAP!Z$1,VLOOKUP($P29,'Congressional Districts'!$A$1:$E$93,5,FALSE)*SNAP!$Q29,0)) -> 6825000 | AA29: =IF(VLOOKUP($P29,'Congressional Districts'!$A$1:$E$93,2,FALSE)=SNAP!AA$1,VLOOKUP($P29,'Congressional Districts'!$A$1:$E$93,3,FALSE)*SNAP!$Q29,IF(VLOOKUP($P29,'Congressional Districts'!$A$1:$E$93,4,FALSE)=SNAP!AA$1,VLOOKUP($P29,'Congressional Districts'!$A$1:$E$93,5,FALSE)*SNAP!$Q29,0)) -> 0
A30: Hamilton | B30: 1301.4 | C30: 1296.4 | D30: 1314.2 | E30: 1297.9 | F30: 1311.7 | G30: 1318.2 | H30: 1307.7 | I30: 1344.4 | J30: 1343.5 | K30: 1362.7 | L30: 1334.7 | M30: 1318.5 | N30: 15851.3 | P30: Hamilton | Q30: 15851300 | S30: =IF(VLOOKUP($P30,'Congressional Districts'!$A$1:$E$93,2,FALSE)=SNAP!S$1,VLOOKUP($P30,'Congressional Districts'!$A$1:$E$93,3,FALSE)*SNAP!$Q30,IF(VLOOKUP($P30,'Congressional Districts'!$A$1:$E$93,4,FALSE)=SNAP!S$1,VLOOKUP($P30,'Congressional Districts'!$A$1:$E$93,5,FALSE)*SNAP!$Q30,0)) -> 0 | T30: =IF(VLOOKUP($P30,'Congressional Districts'!$A$1:$E$93,2,FALSE)=SNAP!T$1,VLOOKUP($P30,'Congressional Districts'!$A$1:$E$93,3,FALSE)*SNAP!$Q30,IF(VLOOKUP($P30,'Congressional Districts'!$A$1:$E$93,4,FALSE)=SNAP!T$1,VLOOKUP($P30,'Congressional Districts'!$A$1:$E$93,5,FALSE)*SNAP!$Q30,0)) -> 0 | U30: =IF(VLOOKUP($P30,'Congressional Districts'!$A$1:$E$93,2,FALSE)=SNAP!U$1,VLOOKUP($P30,'Congressional Districts'!$A$1:$E$93,3,FALSE)*SNAP!$Q30,IF(VLOOKUP($P30,'Congressional Districts'!$A$1:$E$93,4,FALSE)=SNAP!U$1,VLOOKUP($P30,'Congressional Districts'!$A$1:$E$93,5,FALSE)*SNAP!$Q30,0)) -> 0 | V30: =IF(VLOOKUP($P30,'Congressional Districts'!$A$1:$E$93,2,FALSE)=SNAP!V$1,VLOOKUP($P30,'Congressional Districts'!$A$1:$E$93,3,FALSE)*SNAP!$Q30,IF(VLOOKUP($P30,'Congressional Districts'!$A$1:$E$93,4,FALSE)=SNAP!V$1,VLOOKUP($P30,'Congressional Districts'!$A$1:$E$93,5,FALSE)*SNAP!$Q30,0)) -> 0 | W30: =IF(VLOOKUP($P30,'Congressional Districts'!$A$1:$E$93,2,FALSE)=SNAP!W$1,VLOOKUP($P30,'Congressional Districts'!$A$1:$E$93,3,FALSE)*SNAP!$Q30,IF(VLOOKUP($P30,'Congressional Districts'!$A$1:$E$93,4,FALSE)=SNAP!W$1,VLOOKUP($P30,'Congressional Districts'!$A$1:$E$93,5,FALSE)*SNAP!$Q30,0)) -> 15851300 | X30: =IF(VLOOKUP($P30,'Congressional Districts'!$A$1:$E$93,2,FALSE)=SNAP!X$1,VLOOKUP($P30,'Congressional Districts'!$A$1:$E$93,3,FALSE)*SNAP!$Q30,IF(VLOOKUP($P30,'Congressional Districts'!$A$1:$E$93,4,FALSE)=SNAP!X$1,VLOOKUP($P30,'Congressional Districts'!$A$1:$E$93,5,FALSE)*SNAP!$Q30,0)) -> 0 | Y30: =IF(VLOOKUP($P30,'Congressional Districts'!$A$1:$E$93,2,FALSE)=SNAP!Y$1,VLOOKUP($P30,'Congressional Districts'!$A$1:$E$93,3,FALSE)*SNAP!$Q30,IF(VLOOKUP($P30,'Congressional Districts'!$A$1:$E$93,4,FALSE)=SNAP!Y$1,VLOOKUP($P30,'Congressional Districts'!$A$1:$E$93,5,FALSE)*SNAP!$Q30,0)) -> 0 | Z30: =IF(VLOOKUP($P30,'Congressional Districts'!$A$1:$E$93,2,FALSE)=SNAP!Z$1,VLOOKUP($P30,'Congressional Districts'!$A$1:$E$93,3,FALSE)*SNAP!$Q30,IF(VLOOKUP($P30,'Congressional Districts'!$A$1:$E$93,4,FALSE)=SNAP!Z$1,VLOOKUP($P30,'Congressional Districts'!$A$1:$E$93,5,FALSE)*SNAP!$Q30,0)) -> 0 | AA30: =IF(VLOOKUP($P30,'Congressional Districts'!$A$1:$E$93,2,FALSE)=SNAP!AA$1,VLOOKUP($P30,'Congressional Districts'!$A$1:$E$93,3,FALSE)*SNAP!$Q30,IF(VLOOKUP($P30,'Congressional Districts'!$A$1:$E$93,4,FALSE)=SNAP!AA$1,VLOOKUP($P30,'Congressional Districts'!$A$1:$E$93,5,FALSE)*SNAP!$Q30,0)) -> 0
A31: Hancock | B31: 729.9 | C31: 733.9 | D31: 727.8 | E31: 727.5 | F31: 718 | G31: 724.6 | H31: 729.1 | I31: 737.7 | J31: 735.9 | K31: 733.8 | L31: 730.7 | M31: 732.8 | N31: 8761.7 | P31: Hancock | Q31: 8761700 | S31: =IF(VLOOKUP($P31,'Congressional Districts'!$A$1:$E$93,2,FALSE)=SNAP!S$1,VLOOKUP($P31,'Congressional Districts'!$A$1:$E$93,3,FALSE)*SNAP!$Q31,IF(VLOOKUP($P31,'Congressional Districts'!$A$1:$E$93,4,FALSE)=SNAP!S$1,VLOOKUP($P31,'Congressional Districts'!$A$1:$E$93,5,FALSE)*SNAP!$Q31,0)) -> 0 | T31: =IF(VLOOKUP($P31,'Congressional Districts'!$A$1:$E$93,2,FALSE)=SNAP!T$1,VLOOKUP($P31,'Congressional Districts'!$A$1:$E$93,3,FALSE)*SNAP!$Q31,IF(VLOOKUP($P31,'Congressional Districts'!$A$1:$E$93,4,FALSE)=SNAP!T$1,VLOOKUP($P31,'Congressional Districts'!$A$1:$E$93,5,FALSE)*SNAP!$Q31,0)) -> 0 | U31: =IF(VLOOKUP($P31,'Congressional Districts'!$A$1:$E$93,2,FALSE)=SNAP!U$1,VLOOKUP($P31,'Congressional Districts'!$A$1:$E$93,3,FALSE)*SNAP!$Q31,IF(VLOOKUP($P31,'Congressional Districts'!$A$1:$E$93,4,FALSE)=SNAP!U$1,VLOOKUP($P31,'Congressional Districts'!$A$1:$E$93,5,FALSE)*SNAP!$Q31,0)) -> 0 | V31: =IF(VLOOKUP($P31,'Congressional Districts'!$A$1:$E$93,2,FALSE)=SNAP!V$1,VLOOKUP($P31,'Congressional Districts'!$A$1:$E$93,3,FALSE)*SNAP!$Q31,IF(VLOOKUP($P31,'Congressional Districts'!$A$1:$E$93,4,FALSE)=SNAP!V$1,VLOOKUP($P31,'Congressional Districts'!$A$1:$E$93,5,FALSE)*SNAP!$Q31,0)) -> 0 | W31: =IF(VLOOKUP($P31,'Congressional Districts'!$A$1:$E$93,2,FALSE)=SNAP!W$1,VLOOKUP($P31,'Congressional Districts'!$A$1:$E$93,3,FALSE)*SNAP!$Q31,IF(VLOOKUP($P31,'Congressional Districts'!$A$1:$E$93,4,FALSE)=SNAP!W$1,VLOOKUP($P31,'Congressional Districts'!$A$1:$E$93,5,FALSE)*SNAP!$Q31,0)) -> 0 | X31: =IF(VLOOKUP($P31,'Congressional Districts'!$A$1:$E$93,2,FALSE)=SNAP!X$1,VLOOKUP($P31,'Congressional Districts'!$A$1:$E$93,3,FALSE)*SNAP!$Q31,IF(VLOOKUP($P31,'Congressional Districts'!$A$1:$E$93,4,FALSE)=SNAP!X$1,VLOOKUP($P31,'Congressional Districts'!$A$1:$E$93,5,FALSE)*SNAP!$Q31,0)) -> 8761700 | Y31: =IF(VLOOKUP($P31,'Congressional Districts'!$A$1:$E$93,2,FALSE)=SNAP!Y$1,VLOOKUP($P31,'Congressional Districts'!$A$1:$E$93,3,FALSE)*SNAP!$Q31,IF(VLOOKUP($P31,'Congressional Districts'!$A$1:$E$93,4,FALSE)=SNAP!Y$1,VLOOKUP($P31,'Congressional Districts'!$A$1:$E$93,5,FALSE)*SNAP!$Q31,0)) -> 0 | Z31: =IF(VLOOKUP($P31,'Congressional Districts'!$A$1:$E$93,2,FALSE)=SNAP!Z$1,VLOOKUP($P31,'Congressional Districts'!$A$1:$E$93,3,FALSE)*SNAP!$Q31,IF(VLOOKUP($P31,'Congressional Districts'!$A$1:$E$93,4,FALSE)=SNAP!Z$1,VLOOKUP($P31,'Congressional Districts'!$A$1:$E$93,5,FALSE)*SNAP!$Q31,0)) -> 0 | AA31: =IF(VLOOKUP($P31,'Congressional Districts'!$A$1:$E$93,2,FALSE)=SNAP!AA$1,VLOOKUP($P31,'Congressional Districts'!$A$1:$E$93,3,FALSE)*SNAP!$Q31,IF(VLOOKUP($P31,'Congressional Districts'!$A$1:$E$93,4,FALSE)=SNAP!AA$1,VLOOKUP($P31,'Congressional Districts'!$A$1:$E$93,5,FALSE)*SNAP!$Q31,0)) -> 0
A32: Harrison | B32: 552.4 | C32: 545.3 | D32: 546.4 | E32: 537.7 | F32: 538.9 | G32: 540 | H32: 532.4 | I32: 533.8 | J32: 530.6 | K32: 538.5 | L32: 522.9 | M32: 520 | N32: 6438.9 | P32: Harrison | Q32: 6438900 | S32: =IF(VLOOKUP($P32,'Congressional Districts'!$A$1:$E$93,2,FALSE)=SNAP!S$1,VLOOKUP($P32,'Congressional Districts'!$A$1:$E$93,3,FALSE)*SNAP!$Q32,IF(VLOOKUP($P32,'Congressional Districts'!$A$1:$E$93,4,FALSE)=SNAP!S$1,VLOOKUP($P32,'Congressional Districts'!$A$1:$E$93,5,FALSE)*SNAP!$Q32,0)) -> 0 | T32: =IF(VLOOKUP($P32,'Congressional Districts'!$A$1:$E$93,2,FALSE)=SNAP!T$1,VLOOKUP($P32,'Congressional Districts'!$A$1:$E$93,3,FALSE)*SNAP!$Q32,IF(VLOOKUP($P32,'Congressional Districts'!$A$1:$E$93,4,FALSE)=SNAP!T$1,VLOOKUP($P32,'Congressional Districts'!$A$1:$E$93,5,FALSE)*SNAP!$Q32,0)) -> 0 | U32: =IF(VLOOKUP($P32,'Congressional Districts'!$A$1:$E$93,2,FALSE)=SNAP!U$1,VLOOKUP($P32,'Congressional Districts'!$A$1:$E$93,3,FALSE)*SNAP!$Q32,IF(VLOOKUP($P32,'Congressional Districts'!$A$1:$E$93,4,FALSE)=SNAP!U$1,VLOOKUP($P32,'Congressional Districts'!$A$1:$E$93,5,FALSE)*SNAP!$Q32,0)) -> 0 | V32: =IF(VLOOKUP($P32,'Congressional Districts'!$A$1:$E$93,2,FALSE)=SNAP!V$1,VLOOKUP($P32,'Congressional Districts'!$A$1:$E$93,3,FALSE)*SNAP!$Q32,IF(VLOOKUP($P32,'Congressional Districts'!$A$1:$E$93,4,FALSE)=SNAP!V$1,VLOOKUP($P32,'Congressional Districts'!$A$1:$E$93,5,FALSE)*SNAP!$Q32,0)) -> 0 | W32: =IF(VLOOKUP($P32,'Congressional Districts'!$A$1:$E$93,2,FALSE)=SNAP!W$1,VLOOKUP($P32,'Congressional Districts'!$A$1:$E$93,3,FALSE)*SNAP!$Q32,IF(VLOOKUP($P32,'Congressional Districts'!$A$1:$E$93,4,FALSE)=SNAP!W$1,VLOOKUP($P32,'Congressional Districts'!$A$1:$E$93,5,FALSE)*SNAP!$Q32,0)) -> 0 | X32: =IF(VLOOKUP($P32,'Congressional Districts'!$A$1:$E$93,2,FALSE)=SNAP!X$1,VLOOKUP($P32,'Congressional Districts'!$A$1:$E$93,3,FALSE)*SNAP!$Q32,IF(VLOOKUP($P32,'Congressional Districts'!$A$1:$E$93,4,FALSE)=SNAP!X$1,VLOOKUP($P32,'Congressional Districts'!$A$1:$E$93,5,FALSE)*SNAP!$Q32,0)) -> 0 | Y32: =IF(VLOOKUP($P32,'Congressional Districts'!$A$1:$E$93,2,FALSE)=SNAP!Y$1,VLOOKUP($P32,'Congressional Districts'!$A$1:$E$93,3,FALSE)*SNAP!$Q32,IF(VLOOKUP($P32,'Congressional Districts'!$A$1:$E$93,4,FALSE)=SNAP!Y$1,VLOOKUP($P32,'Congressional Districts'!$A$1:$E$93,5,FALSE)*SNAP!$Q32,0)) -> 0 | Z32: =IF(VLOOKUP($P32,'Congressional Districts'!$A$1:$E$93,2,FALSE)=SNAP!Z$1,VLOOKUP($P32,'Congressional Districts'!$A$1:$E$93,3,FALSE)*SNAP!$Q32,IF(VLOOKUP($P32,'Congressional Districts'!$A$1:$E$93,4,FALSE)=SNAP!Z$1,VLOOKUP($P32,'Congressional Districts'!$A$1:$E$93,5,FALSE)*SNAP!$Q32,0)) -> 0 | AA32: =IF(VLOOKUP($P32,'Congressional Districts'!$A$1:$E$93,2,FALSE)=SNAP!AA$1,VLOOKUP($P32,'Congressional Districts'!$A$1:$E$93,3,FALSE)*SNAP!$Q32,IF(VLOOKUP($P32,'Congressional Districts'!$A$1:$E$93,4,FALSE)=SNAP!AA$1,VLOOKUP($P32,'Congressional Districts'!$A$1:$E$93,5,FALSE)*SNAP!$Q32,0)) -> 6438900
A33: Hendricks | B33: 884.3 | C33: 889.5 | D33: 906.3 | E33: 894.8 | F33: 911.3 | G33: 902.7 | H33: 898 | I33: 903.9 | J33: 921.8 | K33: 933.3 | L33: 923.3 | M33: 911.2 | N33: 10880.4 | P33: Hendricks | Q33: 10880400 | S33: =IF(VLOOKUP($P33,'Congressional Districts'!$A$1:$E$93,2,FALSE)=SNAP!S$1,VLOOKUP($P33,'Congressional Districts'!$A$1:$E$93,3,FALSE)*SNAP!$Q33,IF(VLOOKUP($P33,'Congressional Districts'!$A$1:$E$93,4,FALSE)=SNAP!S$1,VLOOKUP($P33,'Congressional Districts'!$A$1:$E$93,5,FALSE)*SNAP!$Q33,0)) -> 0 | T33: =IF(VLOOKUP($P33,'Congressional Districts'!$A$1:$E$93,2,FALSE)=SNAP!T$1,VLOOKUP($P33,'Congressional Districts'!$A$1:$E$93,3,FALSE)*SNAP!$Q33,IF(VLOOKUP($P33,'Congressional Districts'!$A$1:$E$93,4,FALSE)=SNAP!T$1,VLOOKUP($P33,'Congressional Districts'!$A$1:$E$93,5,FALSE)*SNAP!$Q33,0)) -> 0 | U33: =IF(VLOOKUP($P33,'Congressional Districts'!$A$1:$E$93,2,FALSE)=SNAP!U$1,VLOOKUP($P33,'Congressional Districts'!$A$1:$E$93,3,FALSE)*SNAP!$Q33,IF(VLOOKUP($P33,'Congressional Districts'!$A$1:$E$93,4,FALSE)=SNAP!U$1,VLOOKUP($P33,'Congressional Districts'!$A$1:$E$93,5,FALSE)*SNAP!$Q33,0)) -> 0 | V33: =IF(VLOOKUP($P33,'Congressional Districts'!$A$1:$E$93,2,FALSE)=SNAP!V$1,VLOOKUP($P33,'Congressional Districts'!$A$1:$E$93,3,FALSE)*SNAP!$Q33,IF(VLOOKUP($P33,'Congressional Districts'!$A$1:$E$93,4,FALSE)=SNAP!V$1,VLOOKUP($P33,'Congressional Districts'!$A$1:$E$93,5,FALSE)*SNAP!$Q33,0)) -> 10880400 | W33: =IF(VLOOKUP($P33,'Congressional Districts'!$A$1:$E$93,2,FALSE)=SNAP!W$1,VLOOKUP($P33,'Congressional Districts'!$A$1:$E$93,3,FALSE)*SNAP!$Q33,IF(VLOOKUP($P33,'Congressional Districts'!$A$1:$E$93,4,FALSE)=SNAP!W$1,VLOOKUP($P33,'Congressional Districts'!$A$1:$E$93,5,FALSE)*SNAP!$Q33,0)) -> 0 | X33: =IF(VLOOKUP($P33,'Congressional Districts'!$A$1:$E$93,2,FALSE)=SNAP!X$1,VLOOKUP($P33,'Congressional Districts'!$A$1:$E$93,3,FALSE)*SNAP!$Q33,IF(VLOOKUP($P33,'Congressional Districts'!$A$1:$E$93,4,FALSE)=SNAP!X$1,VLOOKUP($P33,'Congressional Districts'!$A$1:$E$93,5,FALSE)*SNAP!$Q33,0)) -> 0 | Y33: =IF(VLOOKUP($P33,'Congressional Districts'!$A$1:$E$93,2,FALSE)=SNAP!Y$1,VLOOKUP($P33,'Congressional Districts'!$A$1:$E$93,3,FALSE)*SNAP!$Q33,IF(VLOOKUP($P33,'Congressional Districts'!$A$1:$E$93,4,FALSE)=SNAP!Y$1,VLOOKUP($P33,'Congressional Districts'!$A$1:$E$93,5,FALSE)*SNAP!$Q33,0)) -> 0 | Z33: =IF(VLOOKUP($P33,'Congressional Districts'!$A$1:$E$93,2,FALSE)=SNAP!Z$1,VLOOKUP($P33,'Congressional Districts'!$A$1:$E$93,3,FALSE)*SNAP!$Q33,IF(VLOOKUP($P33,'Congressional Districts'!$A$1:$E$93,4,FALSE)=SNAP!Z$1,VLOOKUP($P33,'Congressional Districts'!$A$1:$E$93,5,FALSE)*SNAP!$Q33,0)) -> 0 | AA33: =IF(VLOOKUP($P33,'Congressional Districts'!$A$1:$E$93,2,FALSE)=SNAP!AA$1,VLOOKUP($P33,'Congressional Districts'!$A$1:$E$93,3,FALSE)*SNAP!$Q33,IF(VLOOKUP($P33,'Congressional Districts'!$A$1:$E$93,4,FALSE)=SNAP!AA$1,VLOOKUP($P33,'Congressional Districts'!$A$1:$E$93,5,FALSE)*SNAP!$Q33,0)) -> 0
A34: Henry | B34: 1062.1 | C34: 1047.2 | D34: 1057.3 | E34: 1053.9 | F34: 1049.2 | G34: 1047.2 | H34: 1047.9 | I34: 1059.2 | J34: 1066.3 | K34: 1048.4 | L34: 1049.9 | M34: 1057.1 | N34: 12645.7 | P34: Henry | Q34: 12645700 | S34: =IF(VLOOKUP($P34,'Congressional Districts'!$A$1:$E$93,2,FALSE)=SNAP!S$1,VLOOKUP($P34,'Congressional Districts'!$A$1:$E$93,3,FALSE)*SNAP!$Q34,IF(VLOOKUP($P34,'Congressional Districts'!$A$1:$E$93,4,FALSE)=SNAP!S$1,VLOOKUP($P34,'Congressional Districts'!$A$1:$E$93,5,FALSE)*SNAP!$Q34,0)) -> 0 | T34: =IF(VLOOKUP($P34,'Congressional Districts'!$A$1:$E$93,2,FALSE)=SNAP!T$1,VLOOKUP($P34,'Congressional Districts'!$A$1:$E$93,3,FALSE)*SNAP!$Q34,IF(VLOOKUP($P34,'Congressional Districts'!$A$1:$E$93,4,FALSE)=SNAP!T$1,VLOOKUP($P34,'Congressional Districts'!$A$1:$E$93,5,FALSE)*SNAP!$Q34,0)) -> 0 | U34: =IF(VLOOKUP($P34,'Congressional Districts'!$A$1:$E$93,2,FALSE)=SNAP!U$1,VLOOKUP($P34,'Congressional Districts'!$A$1:$E$93,3,FALSE)*SNAP!$Q34,IF(VLOOKUP($P34,'Congressional Districts'!$A$1:$E$93,4,FALSE)=SNAP!U$1,VLOOKUP($P34,'Congressional Districts'!$A$1:$E$93,5,FALSE)*SNAP!$Q34,0)) -> 0 | V34: =IF(VLOOKUP($P34,'Congressional Districts'!$A$1:$E$93,2,FALSE)=SNAP!V$1,VLOOKUP($P34,'Congressional Districts'!$A$1:$E$93,3,FALSE)*SNAP!$Q34,IF(VLOOKUP($P34,'Congressional Districts'!$A$1:$E$93,4,FALSE)=SNAP!V$1,VLOOKUP($P34,'Congressional Districts'!$A$1:$E$93,5,FALSE)*SNAP!$Q34,0)) -> 0 | W34: =IF(VLOOKUP($P34,'Congressional Districts'!$A$1:$E$93,2,FALSE)=SNAP!W$1,VLOOKUP($P34,'Congressional Districts'!$A$1:$E$93,3,FALSE)*SNAP!$Q34,IF(VLOOKUP($P34,'Congressional Districts'!$A$1:$E$93,4,FALSE)=SNAP!W$1,VLOOKUP($P34,'Congressional Districts'!$A$1:$E$93,5,FALSE)*SNAP!$Q34,0)) -> 0 | X34: =IF(VLOOKUP($P34,'Congressional Districts'!$A$1:$E$93,2,FALSE)=SNAP!X$1,VLOOKUP($P34,'Congressional Districts'!$A$1:$E$93,3,FALSE)*SNAP!$Q34,IF(VLOOKUP($P34,'Congressional Districts'!$A$1:$E$93,4,FALSE)=SNAP!X$1,VLOOKUP($P34,'Congressional Districts'!$A$1:$E$93,5,FALSE)*SNAP!$Q34,0)) -> 12645700 | Y34: =IF(VLOOKUP($P34,'Congressional Districts'!$A$1:$E$93,2,FALSE)=SNAP!Y$1,VLOOKUP($P34,'Congressional Districts'!$A$1:$E$93,3,FALSE)*SNAP!$Q34,IF(VLOOKUP($P34,'Congressional Districts'!$A$1:$E$93,4,FALSE)=SNAP!Y$1,VLOOKUP($P34,'Congressional Districts'!$A$1:$E$93,5,FALSE)*SNAP!$Q34,0)) -> 0 | Z34: =IF(VLOOKUP($P34,'Congressional Districts'!$A$1:$E$93,2,FALSE)=SNAP!Z$1,VLOOKUP($P34,'Congressional Districts'!$A$1:$E$93,3,FALSE)*SNAP!$Q34,IF(VLOOKUP($P34,'Congressional Districts'!$A$1:$E$93,4,FALSE)=SNAP!Z$1,VLOOKUP($P34,'Congressional Districts'!$A$1:$E$93,5,FALSE)*SNAP!$Q34,0)) -> 0 | AA34: =IF(VLOOKUP($P34,'Congressional Districts'!$A$1:$E$93,2,FALSE)=SNAP!AA$1,VLOOKUP($P34,'Congressional Districts'!$A$1:$E$93,3,FALSE)*SNAP!$Q34,IF(VLOOKUP($P34,'Congressional Districts'!$A$1:$E$93,4,FALSE)=SNAP!AA$1,VLOOKUP($P34,'Congressional Districts'!$A$1:$E$93,5,FALSE)*SNAP!$Q34,0)) -> 0
A35: Howard | B35: 1937.5 | C35: 1910.5 | D35: 1902.5 | E35: 1887.9 | F35: 1911.4 | G35: 1913.9 | H35: 1929.9 | I35: 1953.8 | J35: 1965.7 | K35: 1963.6 | L35: 1950.8 | M35: 1927.6 | N35: 23155.1 | P35: Howard | Q35: 23155100 | S35: =IF(VLOOKUP($P35,'Congressional Districts'!$A$1:$E$93,2,FALSE)=SNAP!S$1,VLOOKUP($P35,'Congressional Districts'!$A$1:$E$93,3,FALSE)*SNAP!$Q35,IF(VLOOKUP($P35,'Congressional Districts'!$A$1:$E$93,4,FALSE)=SNAP!S$1,VLOOKUP($P35,'Congressional Districts'!$A$1:$E$93,5,FALSE)*SNAP!$Q35,0)) -> 0 | T35: =IF(VLOOKUP($P35,'Congressional Districts'!$A$1:$E$93,2,FALSE)=SNAP!T$1,VLOOKUP($P35,'Congressional Districts'!$A$1:$E$93,3,FALSE)*SNAP!$Q35,IF(VLOOKUP($P35,'Congressional Districts'!$A$1:$E$93,4,FALSE)=SNAP!T$1,VLOOKUP($P35,'Congressional Districts'!$A$1:$E$93,5,FALSE)*SNAP!$Q35,0)) -> 0 | U35: =IF(VLOOKUP($P35,'Congressional Districts'!$A$1:$E$93,2,FALSE)=SNAP!U$1,VLOOKUP($P35,'Congressional Districts'!$A$1:$E$93,3,FALSE)*SNAP!$Q35,IF(VLOOKUP($P35,'Congressional Districts'!$A$1:$E$93,4,FALSE)=SNAP!U$1,VLOOKUP($P35,'Congressional Districts'!$A$1:$E$93,5,FALSE)*SNAP!$Q35,0)) -> 0 | V35: =IF(VLOOKUP($P35,'Congressional Districts'!$A$1:$E$93,2,FALSE)=SNAP!V$1,VLOOKUP($P35,'Congressional Districts'!$A$1:$E$93,3,FALSE)*SNAP!$Q35,IF(VLOOKUP($P35,'Congressional Districts'!$A$1:$E$93,4,FALSE)=SNAP!V$1,VLOOKUP($P35,'Congressional Districts'!$A$1:$E$93,5,FALSE)*SNAP!$Q35,0)) -> 19709839.45 | W35: =IF(VLOOKUP($P35,'Congressional Districts'!$A$1:$E$93,2,FALSE)=SNAP!W$1,VLOOKUP($P35,'Congressional Districts'!$A$1:$E$93,3,FALSE)*SNAP!$Q35,IF(VLOOKUP($P35,'Congressional Districts'!$A$1:$E$93,4,FALSE)=SNAP!W$1,VLOOKUP($P35,'Congressional Districts'!$A$1:$E$93,5,FALSE)*SNAP!$Q35,0)) -> 3445260.546 | X35: =IF(VLOOKUP($P35,'Congressional Districts'!$A$1:$E$93,2,FALSE)=SNAP!X$1,VLOOKUP($P35,'Congressional Districts'!$A$1:$E$93,3,FALSE)*SNAP!$Q35,IF(VLOOKUP($P35,'Congressional Districts'!$A$1:$E$93,4,FALSE)=SNAP!X$1,VLOOKUP($P35,'Congressional Districts'!$A$1:$E$93,5,FALSE)*SNAP!$Q35,0)) -> 0 | Y35: =IF(VLOOKUP($P35,'Congressional Districts'!$A$1:$E$93,2,FALSE)=SNAP!Y$1,VLOOKUP($P35,'Congressional Districts'!$A$1:$E$93,3,FALSE)*SNAP!$Q35,IF(VLOOKUP($P35,'Congressional Districts'!$A$1:$E$93,4,FALSE)=SNAP!Y$1,VLOOKUP($P35,'Congressional Districts'!$A$1:$E$93,5,FALSE)*SNAP!$Q35,0)) -> 0 | Z35: =IF(VLOOKUP($P35,'Congressional Districts'!$A$1:$E$93,2,FALSE)=SNAP!Z$1,VLOOKUP($P35,'Congressional Districts'!$A$1:$E$93,3,FALSE)*SNAP!$Q35,IF(VLOOKUP($P35,'Congressional Districts'!$A$1:$E$93,4,FALSE)=SNAP!Z$1,VLOOKUP($P35,'Congressional Districts'!$A$1:$E$93,5,FALSE)*SNAP!$Q35,0)) -> 0 | AA35: =IF(VLOOKUP($P35,'Congressional Districts'!$A$1:$E$93,2,FALSE)=SNAP!AA$1,VLOOKUP($P35,'Congressional Districts'!$A$1:$E$93,3,FALSE)*SNAP!$Q35,IF(VLOOKUP($P35,'Congressional Districts'!$A$1:$E$93,4,FALSE)=SNAP!AA$1,VLOOKUP($P35,'Congressional Districts'!$A$1:$E$93,5,FALSE)*SNAP!$Q35,0)) -> 0
A36: Huntington | B36: 560.7 | C36: 554.7 | D36: 555.2 | E36: 543.2 | F36: 537.1 | G36: 537.2 | H36: 545.6 | I36: 547.4 | J36: 556.3 | K36: 565.4 | L36: 568.5 | M36: 576.1 | N36: 6647.4 | P36: Huntington | Q36: 6647400 | S36: =IF(VLOOKUP($P36,'Congressional Districts'!$A$1:$E$93,2,FALSE)=SNAP!S$1,VLOOKUP($P36,'Congressional Districts'!$A$1:$E$93,3,FALSE)*SNAP!$Q36,IF(VLOOKUP($P36,'Congressional Districts'!$A$1:$E$93,4,FALSE)=SNAP!S$1,VLOOKUP($P36,'Congressional Districts'!$A$1:$E$93,5,FALSE)*SNAP!$Q36,0)) -> 0 | T36: =IF(VLOOKUP($P36,'Congressional Districts'!$A$1:$E$93,2,FALSE)=SNAP!T$1,VLOOKUP($P36,'Congressional Districts'!$A$1:$E$93,3,FALSE)*SNAP!$Q36,IF(VLOOKUP($P36,'Congressional Districts'!$A$1:$E$93,4,FALSE)=SNAP!T$1,VLOOKUP($P36,'Congressional Districts'!$A$1:$E$93,5,FALSE)*SNAP!$Q36,0)) -> 0 | U36: =IF(VLOOKUP($P36,'Congressional Districts'!$A$1:$E$93,2,FALSE)=SNAP!U$1,VLOOKUP($P36,'Congressional Districts'!$A$1:$E$93,3,FALSE)*SNAP!$Q36,IF(VLOOKUP($P36,'Congressional Districts'!$A$1:$E$93,4,FALSE)=SNAP!U$1,VLOOKUP($P36,'Congressional Districts'!$A$1:$E$93,5,FALSE)*SNAP!$Q36,0)) -> 6647400 | V36: =IF(VLOOKUP($P36,'Congressional Districts'!$A$1:$E$93,2,FALSE)=SNAP!V$1,VLOOKUP($P36,'Congressional Districts'!$A$1:$E$93,3,FALSE)*SNAP!$Q36,IF(VLOOKUP($P36,'Congressional Districts'!$A$1:$E$93,4,FALSE)=SNAP!V$1,VLOOKUP($P36,'Congressional Districts'!$A$1:$E$93,5,FALSE)*SNAP!$Q36,0)) -> 0 | W36: =IF(VLOOKUP($P36,'Congressional Districts'!$A$1:$E$93,2,FALSE)=SNAP!W$1,VLOOKUP($P36,'Congressional Districts'!$A$1:$E$93,3,FALSE)*SNAP!$Q36,IF(VLOOKUP($P36,'Congressional Districts'!$A$1:$E$93,4,FALSE)=SNAP!W$1,VLOOKUP($P36,'Congressional Districts'!$A$1:$E$93,5,FALSE)*SNAP!$Q36,0)) -> 0 | X36: =IF(VLOOKUP($P36,'Congressional Districts'!$A$1:$E$93,2,FALSE)=SNAP!X$1,VLOOKUP($P36,'Congressional Districts'!$A$1:$E$93,3,FALSE)*SNAP!$Q36,IF(VLOOKUP($P36,'Congressional Districts'!$A$1:$E$93,4,FALSE)=SNAP!X$1,VLOOKUP($P36,'Congressional Districts'!$A$1:$E$93,5,FALSE)*SNAP!$Q36,0)) -> 0 | Y36: =IF(VLOOKUP($P36,'Congressional Districts'!$A$1:$E$93,2,FALSE)=SNAP!Y$1,VLOOKUP($P36,'Congressional Districts'!$A$1:$E$93,3,FALSE)*SNAP!$Q36,IF(VLOOKUP($P36,'Congressional Districts'!$A$1:$E$93,4,FALSE)=SNAP!Y$1,VLOOKUP($P36,'Congressional Districts'!$A$1:$E$93,5,FALSE)*SNAP!$Q36,0)) -> 0 | Z36: =IF(VLOOKUP($P36,'Congressional Districts'!$A$1:$E$93,2,FALSE)=SNAP!Z$1,VLOOKUP($P36,'Congressional Districts'!$A$1:$E$93,3,FALSE)*SNAP!$Q36,IF(VLOOKUP($P36,'Congressional Districts'!$A$1:$E$93,4,FALSE)=SNAP!Z$1,VLOOKUP($P36,'Congressional Districts'!$A$1:$E$93,5,FALSE)*SNAP!$Q36,0)) -> 0 | AA36: =IF(VLOOKUP($P36,'Congressional Districts'!$A$1:$E$93,2,FALSE)=SNAP!AA$1,VLOOKUP($P36,'Congressional Districts'!$A$1:$E$93,3,FALSE)*SNAP!$Q36,IF(VLOOKUP($P36,'Congressional Districts'!$A$1:$E$93,4,FALSE)=SNAP!AA$1,VLOOKUP($P36,'Congressional Districts'!$A$1:$E$93,5,FALSE)*SNAP!$Q36,0)) -> 0
A37: Jackson | B37: 727 | C37: 719.3 | D37: 720.6 | E37: 706.2 | F37: 700.1 | G37: 716.5 | H37: 726.5 | I37: 733.6 | J37: 736.7 | K37: 736.8 | L37: 742.8 | M37: 739.9 | N37: 8706 | P37: Jackson | Q37: 8706000 | S37: =IF(VLOOKUP($P37,'Congressional Districts'!$A$1:$E$93,2,FALSE)=SNAP!S$1,VLOOKUP($P37,'Congressional Districts'!$A$1:$E$93,3,FALSE)*SNAP!$Q37,IF(VLOOKUP($P37,'Congressional Districts'!$A$1:$E$93,4,FALSE)=SNAP!S$1,VLOOKUP($P37,'Congressional Districts'!$A$1:$E$93,5,FALSE)*SNAP!$Q37,0)) -> 0 | T37: =IF(VLOOKUP($P37,'Congressional Districts'!$A$1:$E$93,2,FALSE)=SNAP!T$1,VLOOKUP($P37,'Congressional Districts'!$A$1:$E$93,3,FALSE)*SNAP!$Q37,IF(VLOOKUP($P37,'Congressional Districts'!$A$1:$E$93,4,FALSE)=SNAP!T$1,VLOOKUP($P37,'Congressional Districts'!$A$1:$E$93,5,FALSE)*SNAP!$Q37,0)) -> 0 | U37: =IF(VLOOKUP($P37,'Congressional Districts'!$A$1:$E$93,2,FALSE)=SNAP!U$1,VLOOKUP($P37,'Congressional Districts'!$A$1:$E$93,3,FALSE)*SNAP!$Q37,IF(VLOOKUP($P37,'Congressional Districts'!$A$1:$E$93,4,FALSE)=SNAP!U$1,VLOOKUP($P37,'Congressional Districts'!$A$1:$E$93,5,FALSE)*SNAP!$Q37,0)) -> 0 | V37: =IF(VLOOKUP($P37,'Congressional Districts'!$A$1:$E$93,2,FALSE)=SNAP!V$1,VLOOKUP($P37,'Congressional Districts'!$A$1:$E$93,3,FALSE)*SNAP!$Q37,IF(VLOOKUP($P37,'Congressional Districts'!$A$1:$E$93,4,FALSE)=SNAP!V$1,VLOOKUP($P37,'Congressional Districts'!$A$1:$E$93,5,FALSE)*SNAP!$Q37,0)) -> 0 | W37: =IF(VLOOKUP($P37,'Congressional Districts'!$A$1:$E$93,2,FALSE)=SNAP!W$1,VLOOKUP($P37,'Congressional Districts'!$A$1:$E$93,3,FALSE)*SNAP!$Q37,IF(VLOOKUP($P37,'Congressional Districts'!$A$1:$E$93,4,FALSE)=SNAP!W$1,VLOOKUP($P37,'Congressional Districts'!$A$1:$E$93,5,FALSE)*SNAP!$Q37,0)) -> 0 | X37: =IF(VLOOKUP($P37,'Congressional Districts'!$A$1:$E$93,2,FALSE)=SNAP!X$1,VLOOKUP($P37,'Congressional Districts'!$A$1:$E$93,3,FALSE)*SNAP!$Q37,IF(VLOOKUP($P37,'Congressional Districts'!$A$1:$E$93,4,FALSE)=SNAP!X$1,VLOOKUP($P37,'Congressional Districts'!$A$1:$E$93,5,FALSE)*SNAP!$Q37,0)) -> 0 | Y37: =IF(VLOOKUP($P37,'Congressional Districts'!$A$1:$E$93,2,FALSE)=SNAP!Y$1,VLOOKUP($P37,'Congressional Districts'!$A$1:$E$93,3,FALSE)*SNAP!$Q37,IF(VLOOKUP($P37,'Congressional Districts'!$A$1:$E$93,4,FALSE)=SNAP!Y$1,VLOOKUP($P37,'Congressional Districts'!$A$1:$E$93,5,FALSE)*SNAP!$Q37,0)) -> 0 | Z37: =IF(VLOOKUP($P37,'Congressional Districts'!$A$1:$E$93,2,FALSE)=SNAP!Z$1,VLOOKUP($P37,'Congressional Districts'!$A$1:$E$93,3,FALSE)*SNAP!$Q37,IF(VLOOKUP($P37,'Congressional Districts'!$A$1:$E$93,4,FALSE)=SNAP!Z$1,VLOOKUP($P37,'Congressional Districts'!$A$1:$E$93,5,FALSE)*SNAP!$Q37,0)) -> 0 | AA37: =IF(VLOOKUP($P37,'Congressional Districts'!$A$1:$E$93,2,FALSE)=SNAP!AA$1,VLOOKUP($P37,'Congressional Districts'!$A$1:$E$93,3,FALSE)*SNAP!$Q37,IF(VLOOKUP($P37,'Congressional Districts'!$A$1:$E$93,4,FALSE)=SNAP!AA$1,VLOOKUP($P37,'Congressional Districts'!$A$1:$E$93,5,FALSE)*SNAP!$Q37,0)) -> 8706000
A38: Jasper | B38: 442.6 | C38: 447.3 | D38: 433.5 | E38: 419.4 | F38: 425.9 | G38: 425.3 | H38: 430.3 | I38: 434.8 | J38: 436.8 | K38: 429.5 | L38: 434 | M38: 440.1 | N38: 5199.5 | P38: Jasper | Q38: 5199500 | S38: =IF(VLOOKUP($P38,'Congressional Districts'!$A$1:$E$93,2,FALSE)=SNAP!S$1,VLOOKUP($P38,'Congressional Districts'!$A$1:$E$93,3,FALSE)*SNAP!$Q38,IF(VLOOKUP($P38,'Congressional Districts'!$A$1:$E$93,4,FALSE)=SNAP!S$1,VLOOKUP($P38,'Congressional Districts'!$A$1:$E$93,5,FALSE)*SNAP!$Q38,0)) -> 0 | T38: =IF(VLOOKUP($P38,'Congressional Districts'!$A$1:$E$93,2,FALSE)=SNAP!T$1,VLOOKUP($P38,'Congressional Districts'!$A$1:$E$93,3,FALSE)*SNAP!$Q38,IF(VLOOKUP($P38,'Congressional Districts'!$A$1:$E$93,4,FALSE)=SNAP!T$1,VLOOKUP($P38,'Congressional Districts'!$A$1:$E$93,5,FALSE)*SNAP!$Q38,0)) -> 0 | U38: =IF(VLOOKUP($P38,'Congressional Districts'!$A$1:$E$93,2,FALSE)=SNAP!U$1,VLOOKUP($P38,'Congressional Districts'!$A$1:$E$93,3,FALSE)*SNAP!$Q38,IF(VLOOKUP($P38,'Congressional Districts'!$A$1:$E$93,4,FALSE)=SNAP!U$1,VLOOKUP($P38,'Congressional Districts'!$A$1:$E$93,5,FALSE)*SNAP!$Q38,0)) -> 0 | V38: =IF(VLOOKUP($P38,'Congressional Districts'!$A$1:$E$93,2,FALSE)=SNAP!V$1,VLOOKUP($P38,'Congressional Districts'!$A$1:$E$93,3,FALSE)*SNAP!$Q38,IF(VLOOKUP($P38,'Congressional Districts'!$A$1:$E$93,4,FALSE)=SNAP!V$1,VLOOKUP($P38,'Congressional Districts'!$A$1:$E$93,5,FALSE)*SNAP!$Q38,0)) -> 5199500 | W38: =IF(VLOOKUP($P38,'Congressional Districts'!$A$1:$E$93,2,FALSE)=SNAP!W$1,VLOOKUP($P38,'Congressional Districts'!$A$1:$E$93,3,FALSE)*SNAP!$Q38,IF(VLOOKUP($P38,'Congressional Districts'!$A$1:$E$93,4,FALSE)=SNAP!W$1,VLOOKUP($P38,'Congressional Districts'!$A$1:$E$93,5,FALSE)*SNAP!$Q38,0)) -> 0 | X38: =IF(VLOOKUP($P38,'Congressional Districts'!$A$1:$E$93,2,FALSE)=SNAP!X$1,VLOOKUP($P38,'Congressional Districts'!$A$1:$E$93,3,FALSE)*SNAP!$Q38,IF(VLOOKUP($P38,'Congressional Districts'!$A$1:$E$93,4,FALSE)=SNAP!X$1,VLOOKUP($P38,'Congressional Districts'!$A$1:$E$93,5,FALSE)*SNAP!$Q38,0)) -> 0 | Y38: =IF(VLOOKUP($P38,'Congressional Districts'!$A$1:$E$93,2,FALSE)=SNAP!Y$1,VLOOKUP($P38,'Congressional Districts'!$A$1:$E$93,3,FALSE)*SNAP!$Q38,IF(VLOOKUP($P38,'Congressional Districts'!$A$1:$E$93,4,FALSE)=SNAP!Y$1,VLOOKUP($P38,'Congressional Districts'!$A$1:$E$93,5,FALSE)*SNAP!$Q38,0)) -> 0 | Z38: =IF(VLOOKUP($P38,'Congressional Districts'!$A$1:$E$93,2,FALSE)=SNAP!Z$1,VLOOKUP($P38,'Congressional Districts'!$A$1:$E$93,3,FALSE)*SNAP!$Q38,IF(VLOOKUP($P38,'Congressional Districts'!$A$1:$E$93,4,FALSE)=SNAP!Z$1,VLOOKUP($P38,'Congressional Districts'!$A$1:$E$93,5,FALSE)*SNAP!$Q38,0)) -> 0 | AA38: =IF(VLOOKUP($P38,'Congressional Districts'!$A$1:$E$93,2,FALSE)=SNAP!AA$1,VLOOKUP($P38,'Congressional Districts'!$A$1:$E$93,3,FALSE)*SNAP!$Q38,IF(VLOOKUP($P38,'Congressional Districts'!$A$1:$E$93,4,FALSE)=SNAP!AA$1,VLOOKUP($P38,'Congressional Districts'!$A$1:$E$93,5,FALSE)*SNAP!$Q38,0)) -> 0
A39: Jay | B39: 374.1 | C39: 373.1 | D39: 368.3 | E39: 359.9 | F39: 354.3 | G39: 353.9 | H39: 394.4 | I39: 356.4 | J39: 352.8 | K39: 360.4 | L39: 355.5 | M39: 361.1 | N39: 4364.2 | P39: Jay | Q39: 4364200 | S39: =IF(VLOOKUP($P39,'Congressional Districts'!$A$1:$E$93,2,FALSE)=SNAP!S$1,VLOOKUP($P39,'Congressional Districts'!$A$1:$E$93,3,FALSE)*SNAP!$Q39,IF(VLOOKUP($P39,'Congressional Districts'!$A$1:$E$93,4,FALSE)=SNAP!S$1,VLOOKUP($P39,'Congressional Districts'!$A$1:$E$93,5,FALSE)*SNAP!$Q39,0)) -> 0 | T39: =IF(VLOOKUP($P39,'Congressional Districts'!$A$1:$E$93,2,FALSE)=SNAP!T$1,VLOOKUP($P39,'Congressional Districts'!$A$1:$E$93,3,FALSE)*SNAP!$Q39,IF(VLOOKUP($P39,'Congressional Districts'!$A$1:$E$93,4,FALSE)=SNAP!T$1,VLOOKUP($P39,'Congressional Districts'!$A$1:$E$93,5,FALSE)*SNAP!$Q39,0)) -> 0 | U39: =IF(VLOOKUP($P39,'Congressional Districts'!$A$1:$E$93,2,FALSE)=SNAP!U$1,VLOOKUP($P39,'Congressional Districts'!$A$1:$E$93,3,FALSE)*SNAP!$Q39,IF(VLOOKUP($P39,'Congressional Districts'!$A$1:$E$93,4,FALSE)=SNAP!U$1,VLOOKUP($P39,'Congressional Districts'!$A$1:$E$93,5,FALSE)*SNAP!$Q39,0)) -> 4364200 | V39: =IF(VLOOKUP($P39,'Congressional Districts'!$A$1:$E$93,2,FALSE)=SNAP!V$1,VLOOKUP($P39,'Congressional Districts'!$A$1:$E$93,3,FALSE)*SNAP!$Q39,IF(VLOOKUP($P39,'Congressional Districts'!$A$1:$E$93,4,FALSE)=SNAP!V$1,VLOOKUP($P39,'Congressional Districts'!$A$1:$E$93,5,FALSE)*SNAP!$Q39,0)) -> 0 | W39: =IF(VLOOKUP($P39,'Congressional Districts'!$A$1:$E$93,2,FALSE)=SNAP!W$1,VLOOKUP($P39,'Congressional Districts'!$A$1:$E$93,3,FALSE)*SNAP!$Q39,IF(VLOOKUP($P39,'Congressional Districts'!$A$1:$E$93,4,FALSE)=SNAP!W$1,VLOOKUP($P39,'Congressional Districts'!$A$1:$E$93,5,FALSE)*SNAP!$Q39,0)) -> 0 | X39: =IF(VLOOKUP($P39,'Congressional Districts'!$A$1:$E$93,2,FALSE)=SNAP!X$1,VLOOKUP($P39,'Congressional Districts'!$A$1:$E$93,3,FALSE)*SNAP!$Q39,IF(VLOOKUP($P39,'Congressional Districts'!$A$1:$E$93,4,FALSE)=SNAP!X$1,VLOOKUP($P39,'Congressional Districts'!$A$1:$E$93,5,FALSE)*SNAP!$Q39,0)) -> 0 | Y39: =IF(VLOOKUP($P39,'Congressional Districts'!$A$1:$E$93,2,FALSE)=SNAP!Y$1,VLOOKUP($P39,'Congressional Districts'!$A$1:$E$93,3,FALSE)*SNAP!$Q39,IF(VLOOKUP($P39,'Congressional Districts'!$A$1:$E$93,4,FALSE)=SNAP!Y$1,VLOOKUP($P39,'Congressional Districts'!$A$1:$E$93,5,FALSE)*SNAP!$Q39,0)) -> 0 | Z39: =IF(VLOOKUP($P39,'Congressional Districts'!$A$1:$E$93,2,FALSE)=SNAP!Z$1,VLOOKUP($P39,'Congressional Districts'!$A$1:$E$93,3,FALSE)*SNAP!$Q39,IF(VLOOKUP($P39,'Congressional Districts'!$A$1:$E$93,4,FALSE)=SNAP!Z$1,VLOOKUP($P39,'Congressional Districts'!$A$1:$E$93,5,FALSE)*SNAP!$Q39,0)) -> 0 | AA39: =IF(VLOOKUP($P39,'Congressional Districts'!$A$1:$E$93,2,FALSE)=SNAP!AA$1,VLOOKUP($P39,'Congressional Districts'!$A$1:$E$93,3,FALSE)*SNAP!$Q39,IF(VLOOKUP($P39,'Congressional Districts'!$A$1:$E$93,4,FALSE)=SNAP!AA$1,VLOOKUP($P39,'Congressional Districts'!$A$1:$E$93,5,FALSE)*SNAP!$Q39,0)) -> 0
A40: Jefferson | B40: 587.4 | C40: 574.6 | D40: 584.5 | E40: 582 | F40: 580.5 | G40: 569.6 | H40: 571 | I40: 574.6 | J40: 577.9 | K40: 567.3 | L40: 570.2 | M40: 568.2 | N40: 6907.8 | P40: Jefferson | Q40: 6907800 | S40: =IF(VLOOKUP($P40,'Congressional Districts'!$A$1:$E$93,2,FALSE)=SNAP!S$1,VLOOKUP($P40,'Congressional Districts'!$A$1:$E$93,3,FALSE)*SNAP!$Q40,IF(VLOOKUP($P40,'Congressional Districts'!$A$1:$E$93,4,FALSE)=SNAP!S$1,VLOOKUP($P40,'Congressional Districts'!$A$1:$E$93,5,FALSE)*SNAP!$Q40,0)) -> 0 | T40: =IF(VLOOKUP($P40,'Congressional Districts'!$A$1:$E$93,2,FALSE)=SNAP!T$1,VLOOKUP($P40,'Congressional Districts'!$A$1:$E$93,3,FALSE)*SNAP!$Q40,IF(VLOOKUP($P40,'Congressional Districts'!$A$1:$E$93,4,FALSE)=SNAP!T$1,VLOOKUP($P40,'Congressional Districts'!$A$1:$E$93,5,FALSE)*SNAP!$Q40,0)) -> 0 | U40: =IF(VLOOKUP($P40,'Congressional Districts'!$A$1:$E$93,2,FALSE)=SNAP!U$1,VLOOKUP($P40,'Congressional Districts'!$A$1:$E$93,3,FALSE)*SNAP!$Q40,IF(VLOOKUP($P40,'Congressional Districts'!$A$1:$E$93,4,FALSE)=SNAP!U$1,VLOOKUP($P40,'Congressional Districts'!$A$1:$E$93,5,FALSE)*SNAP!$Q40,0)) -> 0 | V40: =IF(VLOOKUP($P40,'Congressional Districts'!$A$1:$E$93,2,FALSE)=SNAP!V$1,VLOOKUP($P40,'Congressional Districts'!$A$1:$E$93,3,FALSE)*SNAP!$Q40,IF(VLOOKUP($P40,'Congressional Districts'!$A$1:$E$93,4,FALSE)=SNAP!V$1,VLOOKUP($P40,'Congressional Districts'!$A$1:$E$93,5,FALSE)*SNAP!$Q40,0)) -> 0 | W40: =IF(VLOOKUP($P40,'Congressional Districts'!$A$1:$E$93,2,FALSE)=SNAP!W$1,VLOOKUP($P40,'Congressional Districts'!$A$1:$E$93,3,FALSE)*SNAP!$Q40,IF(VLOOKUP($P40,'Congressional Districts'!$A$1:$E$93,4,FALSE)=SNAP!W$1,VLOOKUP($P40,'Congressional Districts'!$A$1:$E$93,5,FALSE)*SNAP!$Q40,0)) -> 0 | X40: =IF(VLOOKUP($P40,'Congressional Districts'!$A$1:$E$93,2,FALSE)=SNAP!X$1,VLOOKUP($P40,'Congressional Districts'!$A$1:$E$93,3,FALSE)*SNAP!$Q40,IF(VLOOKUP($P40,'Congressional Districts'!$A$1:$E$93,4,FALSE)=SNAP!X$1,VLOOKUP($P40,'Congressional Districts'!$A$1:$E$93,5,FALSE)*SNAP!$Q40,0)) -> 6907800 | Y40: =IF(VLOOKUP($P40,'Congressional Districts'!$A$1:$E$93,2,FALSE)=SNAP!Y$1,VLOOKUP($P40,'Congressional Districts'!$A$1:$E$93,3,FALSE)*SNAP!$Q40,IF(VLOOKUP($P40,'Congressional Districts'!$A$1:$E$93,4,FALSE)=SNAP!Y$1,VLOOKUP($P40,'Congressional Districts'!$A$1:$E$93,5,FALSE)*SNAP!$Q40,0)) -> 0 | Z40: =IF(VLOOKUP($P40,'Congressional Districts'!$A$1:$E$93,2,FALSE)=SNAP!Z$1,VLOOKUP($P40,'Congressional Districts'!$A$1:$E$93,3,FALSE)*SNAP!$Q40,IF(VLOOKUP($P40,'Congressional Districts'!$A$1:$E$93,4,FALSE)=SNAP!Z$1,VLOOKUP($P40,'Congressional Districts'!$A$1:$E$93,5,FALSE)*SNAP!$Q40,0)) -> 0 | AA40: =IF(VLOOKUP($P40,'Congressional Districts'!$A$1:$E$93,2,FALSE)=SNAP!AA$1,VLOOKUP($P40,'Congressional Districts'!$A$1:$E$93,3,FALSE)*SNAP!$Q40,IF(VLOOKUP($P40,'Congressional Districts'!$A$1:$E$93,4,FALSE)=SNAP!AA$1,VLOOKUP($P40,'Congressional Districts'!$A$1:$E$93,5,FALSE)*SNAP!$Q40,0)) -> 0
A41: Jennings | B41: 561.8 | C41: 566.3 | D41: 545.4 | E41: 537.6 | F41: 534.3 | G41: 537.8 | H41: 535.4 | I41: 535.7 | J41: 536.3 | K41: 546.3 | L41: 547.4 | M41: 554.3 | N41: 6538.6 | P41: Jennings | Q41: 6538600 | S41: =IF(VLOOKUP($P41,'Congressional Districts'!$A$1:$E$93,2,FALSE)=SNAP!S$1,VLOOKUP($P41,'Congressional Districts'!$A$1:$E$93,3,FALSE)*SNAP!$Q41,IF(VLOOKUP($P41,'Congressional Districts'!$A$1:$E$93,4,FALSE)=SNAP!S$1,VLOOKUP($P41,'Congressional Districts'!$A$1:$E$93,5,FALSE)*SNAP!$Q41,0)) -> 0 | T41: =IF(VLOOKUP($P41,'Congressional Districts'!$A$1:$E$93,2,FALSE)=SNAP!T$1,VLOOKUP($P41,'Congressional Districts'!$A$1:$E$93,3,FALSE)*SNAP!$Q41,IF(VLOOKUP($P41,'Congressional Districts'!$A$1:$E$93,4,FALSE)=SNAP!T$1,VLOOKUP($P41,'Congressional Districts'!$A$1:$E$93,5,FALSE)*SNAP!$Q41,0)) -> 0 | U41: =IF(VLOOKUP($P41,'Congressional Districts'!$A$1:$E$93,2,FALSE)=SNAP!U$1,VLOOKUP($P41,'Congressional Districts'!$A$1:$E$93,3,FALSE)*SNAP!$Q41,IF(VLOOKUP($P41,'Congressional Districts'!$A$1:$E$93,4,FALSE)=SNAP!U$1,VLOOKUP($P41,'Congressional Districts'!$A$1:$E$93,5,FALSE)*SNAP!$Q41,0)) -> 0 | V41: =IF(VLOOKUP($P41,'Congressional Districts'!$A$1:$E$93,2,FALSE)=SNAP!V$1,VLOOKUP($P41,'Congressional Districts'!$A$1:$E$93,3,FALSE)*SNAP!$Q41,IF(VLOOKUP($P41,'Congressional Districts'!$A$1:$E$93,4,FALSE)=SNAP!V$1,VLOOKUP($P41,'Congressional Districts'!$A$1:$E$93,5,FALSE)*SNAP!$Q41,0)) -> 0 | W41: =IF(VLOOKUP($P41,'Congressional Districts'!$A$1:$E$93,2,FALSE)=SNAP!W$1,VLOOKUP($P41,'Congressional Districts'!$A$1:$E$93,3,FALSE)*SNAP!$Q41,IF(VLOOKUP($P41,'Congressional Districts'!$A$1:$E$93,4,FALSE)=SNAP!W$1,VLOOKUP($P41,'Congressional Districts'!$A$1:$E$93,5,FALSE)*SNAP!$Q41,0)) -> 0 | X41: =IF(VLOOKUP($P41,'Congressional Districts'!$A$1:$E$93,2,FALSE)=SNAP!X$1,VLOOKUP($P41,'Congressional Districts'!$A$1:$E$93,3,FALSE)*SNAP!$Q41,IF(VLOOKUP($P41,'Congressional Districts'!$A$1:$E$93,4,FALSE)=SNAP!X$1,VLOOKUP($P41,'Congressional Districts'!$A$1:$E$93,5,FALSE)*SNAP!$Q41,0)) -> 6538600 | Y41: =IF(VLOOKUP($P41,'Congressional Districts'!$A$1:$E$93,2,FALSE)=SNAP!Y$1,VLOOKUP($P41,'Congressional Districts'!$A$1:$E$93,3,FALSE)*SNAP!$Q41,IF(VLOOKUP($P41,'Congressional Districts'!$A$1:$E$93,4,FALSE)=SNAP!Y$1,VLOOKUP($P41,'Congressional Districts'!$A$1:$E$93,5,FALSE)*SNAP!$Q41,0)) -> 0 | Z41: =IF(VLOOKUP($P41,'Congressional Districts'!$A$1:$E$93,2,FALSE)=SNAP!Z$1,VLOOKUP($P41,'Congressional Districts'!$A$1:$E$93,3,FALSE)*SNAP!$Q41,IF(VLOOKUP($P41,'Congressional Districts'!$A$1:$E$93,4,FALSE)=SNAP!Z$1,VLOOKUP($P41,'Congressional Districts'!$A$1:$E$93,5,FALSE)*SNAP!$Q41,0)) -> 0 | AA41: =IF(VLOOKUP($P41,'Congressional Districts'!$A$1:$E$93,2,FALSE)=SNAP!AA$1,VLOOKUP($P41,'Congressional Districts'!$A$1:$E$93,3,FALSE)*SNAP!$Q41,IF(VLOOKUP($P41,'Congressional Districts'!$A$1:$E$93,4,FALSE)=SNAP!AA$1,VLOOKUP($P41,'Congressional Districts'!$A$1:$E$93,5,FALSE)*SNAP!$Q41,0)) -> 0
A42: Johnson | B42: 1556 | C42: 1577.1 | D42: 1571.5 | E42: 1582.2 | F42: 1578.9 | G42: 1569.9 | H42: 1553.2 | I42: 1576.8 | J42: 1558.7 | K42: 1564.5 | L42: 1560.1 | M42: 1548.2 | N42: 18797.1 | P42: Johnson | Q42: 18797100 | S42: =IF(VLOOKUP($P42,'Congressional Districts'!$A$1:$E$93,2,FALSE)=SNAP!S$1,VLOOKUP($P42,'Congressional Districts'!$A$1:$E$93,3,FALSE)*SNAP!$Q42,IF(VLOOKUP($P42,'Congressional Districts'!$A$1:$E$93,4,FALSE)=SNAP!S$1,VLOOKUP($P42,'Congressional Districts'!$A$1:$E$93,5,FALSE)*SNAP!$Q42,0)) -> 0 | T42: =IF(VLOOKUP($P42,'Congressional Districts'!$A$1:$E$93,2,FALSE)=SNAP!T$1,VLOOKUP($P42,'Congressional Districts'!$A$1:$E$93,3,FALSE)*SNAP!$Q42,IF(VLOOKUP($P42,'Congressional Districts'!$A$1:$E$93,4,FALSE)=SNAP!T$1,VLOOKUP($P42,'Congressional Districts'!$A$1:$E$93,5,FALSE)*SNAP!$Q42,0)) -> 0 | U42: =IF(VLOOKUP($P42,'Congressional Districts'!$A$1:$E$93,2,FALSE)=SNAP!U$1,VLOOKUP($P42,'Congressional Districts'!$A$1:$E$93,3,FALSE)*SNAP!$Q42,IF(VLOOKUP($P42,'Congressional Districts'!$A$1:$E$93,4,FALSE)=SNAP!U$1,VLOOKUP($P42,'Congressional Districts'!$A$1:$E$93,5,FALSE)*SNAP!$Q42,0)) -> 0 | V42: =IF(VLOOKUP($P42,'Congressional Districts'!$A$1:$E$93,2,FALSE)=SNAP!V$1,VLOOKUP($P42,'Congressional Districts'!$A$1:$E$93,3,FALSE)*SNAP!$Q42,IF(VLOOKUP($P42,'Congressional Districts'!$A$1:$E$93,4,FALSE)=SNAP!V$1,VLOOKUP($P42,'Congressional Districts'!$A$1:$E$93,5,FALSE)*SNAP!$Q42,0)) -> 0 | W42: =IF(VLOOKUP($P42,'Congressional Districts'!$A$1:$E$93,2,FALSE)=SNAP!W$1,VLOOKUP($P42,'Congressional Districts'!$A$1:$E$93,3,FALSE)*SNAP!$Q42,IF(VLOOKUP($P42,'Congressional Districts'!$A$1:$E$93,4,FALSE)=SNAP!W$1,VLOOKUP($P42,'Congressional Districts'!$A$1:$E$93,5,FALSE)*SNAP!$Q42,0)) -> 0 | X42: =IF(VLOOKUP($P42,'Congressional Districts'!$A$1:$E$93,2,FALSE)=SNAP!X$1,VLOOKUP($P42,'Congressional Districts'!$A$1:$E$93,3,FALSE)*SNAP!$Q42,IF(VLOOKUP($P42,'Congressional Districts'!$A$1:$E$93,4,FALSE)=SNAP!X$1,VLOOKUP($P42,'Congressional Districts'!$A$1:$E$93,5,FALSE)*SNAP!$Q42,0)) -> 0 | Y42: =IF(VLOOKUP($P42,'Congressional Districts'!$A$1:$E$93,2,FALSE)=SNAP!Y$1,VLOOKUP($P42,'Congressional Districts'!$A$1:$E$93,3,FALSE)*SNAP!$Q42,IF(VLOOKUP($P42,'Congressional Districts'!$A$1:$E$93,4,FALSE)=SNAP!Y$1,VLOOKUP($P42,'Congressional Districts'!$A$1:$E$93,5,FALSE)*SNAP!$Q42,0)) -> 0 | Z42: =IF(VLOOKUP($P42,'Congressional Districts'!$A$1:$E$93,2,FALSE)=SNAP!Z$1,VLOOKUP($P42,'Congressional Districts'!$A$1:$E$93,3,FALSE)*SNAP!$Q42,IF(VLOOKUP($P42,'Congressional Districts'!$A$1:$E$93,4,FALSE)=SNAP!Z$1,VLOOKUP($P42,'Congressional Districts'!$A$1:$E$93,5,FALSE)*SNAP!$Q42,0)) -> 0 | AA42: =IF(VLOOKUP($P42,'Congressional Districts'!$A$1:$E$93,2,FALSE)=SNAP!AA$1,VLOOKUP($P42,'Congressional Districts'!$A$1:$E$93,3,FALSE)*SNAP!$Q42,IF(VLOOKUP($P42,'Congressional Districts'!$A$1:$E$93,4,FALSE)=SNAP!AA$1,VLOOKUP($P42,'Congressional Districts'!$A$1:$E$93,5,FALSE)*SNAP!$Q42,0)) -> 18797100
A43: Knox | B43: 693.4 | C43: 688.2 | D43: 689.2 | E43: 682.8 | F43: 692.4 | G43: 711.8 | H43: 704.4 | I43: 712.5 | J43: 721.9 | K43: 733.8 | L43: 728.9 | M43: 729.9 | N43: 8489.2 | P43: Knox | Q43: 8489200 | S43: =IF(VLOOKUP($P43,'Congressional Districts'!$A$1:$E$93,2,FALSE)=SNAP!S$1,VLOOKUP($P43,'Congressional Districts'!$A$1:$E$93,3,FALSE)*SNAP!$Q43,IF(VLOOKUP($P43,'Congressional Districts'!$A$1:$E$93,4,FALSE)=SNAP!S$1,VLOOKUP($P43,'Congressional Districts'!$A$1:$E$93,5,FALSE)*SNAP!$Q43,0)) -> 0 | T43: =IF(VLOOKUP($P43,'Congressional Districts'!$A$1:$E$93,2,FALSE)=SNAP!T$1,VLOOKUP($P43,'Congressional Districts'!$A$1:$E$93,3,FALSE)*SNAP!$Q43,IF(VLOOKUP($P43,'Congressional Districts'!$A$1:$E$93,4,FALSE)=SNAP!T$1,VLOOKUP($P43,'Congressional Districts'!$A$1:$E$93,5,FALSE)*SNAP!$Q43,0)) -> 0 | U43: =IF(VLOOKUP($P43,'Congressional Districts'!$A$1:$E$93,2,FALSE)=SNAP!U$1,VLOOKUP($P43,'Congressional Districts'!$A$1:$E$93,3,FALSE)*SNAP!$Q43,IF(VLOOKUP($P43,'Congressional Districts'!$A$1:$E$93,4,FALSE)=SNAP!U$1,VLOOKUP($P43,'Congressional Districts'!$A$1:$E$93,5,FALSE)*SNAP!$Q43,0)) -> 0 | V43: =IF(VLOOKUP($P43,'Congressional Districts'!$A$1:$E$93,2,FALSE)=SNAP!V$1,VLOOKUP($P43,'Congressional Districts'!$A$1:$E$93,3,FALSE)*SNAP!$Q43,IF(VLOOKUP($P43,'Congressional Districts'!$A$1:$E$93,4,FALSE)=SNAP!V$1,VLOOKUP($P43,'Congressional Districts'!$A$1:$E$93,5,FALSE)*SNAP!$Q43,0)) -> 0 | W43: =IF(VLOOKUP($P43,'Congressional Districts'!$A$1:$E$93,2,FALSE)=SNAP!W$1,VLOOKUP($P43,'Congressional Districts'!$A$1:$E$93,3,FALSE)*SNAP!$Q43,IF(VLOOKUP($P43,'Congressional Districts'!$A$1:$E$93,4,FALSE)=SNAP!W$1,VLOOKUP($P43,'Congressional Districts'!$A$1:$E$93,5,FALSE)*SNAP!$Q43,0)) -> 0 | X43: =IF(VLOOKUP($P43,'Congressional Districts'!$A$1:$E$93,2,FALSE)=SNAP!X$1,VLOOKUP($P43,'Congressional Districts'!$A$1:$E$93,3,FALSE)*SNAP!$Q43,IF(VLOOKUP($P43,'Congressional Districts'!$A$1:$E$93,4,FALSE)=SNAP!X$1,VLOOKUP($P43,'Congressional Districts'!$A$1:$E$93,5,FALSE)*SNAP!$Q43,0)) -> 0 | Y43: =IF(VLOOKUP($P43,'Congressional Districts'!$A$1:$E$93,2,FALSE)=SNAP!Y$1,VLOOKUP($P43,'Congressional Districts'!$A$1:$E$93,3,FALSE)*SNAP!$Q43,IF(VLOOKUP($P43,'Congressional Districts'!$A$1:$E$93,4,FALSE)=SNAP!Y$1,VLOOKUP($P43,'Congressional Districts'!$A$1:$E$93,5,FALSE)*SNAP!$Q43,0)) -> 0 | Z43: =IF(VLOOKUP($P43,'Congressional Districts'!$A$1:$E$93,2,FALSE)=SNAP!Z$1,VLOOKUP($P43,'Congressional Districts'!$A$1:$E$93,3,FALSE)*SNAP!$Q43,IF(VLOOKUP($P43,'Congressional Districts'!$A$1:$E$93,4,FALSE)=SNAP!Z$1,VLOOKUP($P43,'Congressional Districts'!$A$1:$E$93,5,FALSE)*SNAP!$Q43,0)) -> 8489200 | AA43: =IF(VLOOKUP($P43,'Congressional Districts'!$A$1:$E$93,2,FALSE)=SNAP!AA$1,VLOOKUP($P43,'Congressional Districts'!$A$1:$E$93,3,FALSE)*SNAP!$Q43,IF(VLOOKUP($P43,'Congressional Districts'!$A$1:$E$93,4,FALSE)=SNAP!AA$1,VLOOKUP($P43,'Congressional Districts'!$A$1:$E$93,5,FALSE)*SNAP!$Q43,0)) -> 0
A44: Kosciusko | B44: 1013.6 | C44: 995 | D44: 999.9 | E44: 987.6 | F44: 997 | G44: 988.9 | H44: 1006.1 | I44: 1002.2 | J44: 1006.4 | K44: 999.6 | L44: 982.1 | M44: 988.7 | N44: 11967.1 | P44: Kosciusko | Q44: 11967100 | S44: =IF(VLOOKUP($P44,'Congressional Districts'!$A$1:$E$93,2,FALSE)=SNAP!S$1,VLOOKUP($P44,'Congressional Districts'!$A$1:$E$93,3,FALSE)*SNAP!$Q44,IF(VLOOKUP($P44,'Congressional Districts'!$A$1:$E$93,4,FALSE)=SNAP!S$1,VLOOKUP($P44,'Congressional Districts'!$A$1:$E$93,5,FALSE)*SNAP!$Q44,0)) -> 0 | T44: =IF(VLOOKUP($P44,'Congressional Districts'!$A$1:$E$93,2,FALSE)=SNAP!T$1,VLOOKUP($P44,'Congressional Districts'!$A$1:$E$93,3,FALSE)*SNAP!$Q44,IF(VLOOKUP($P44,'Congressional Districts'!$A$1:$E$93,4,FALSE)=SNAP!T$1,VLOOKUP($P44,'Congressional Districts'!$A$1:$E$93,5,FALSE)*SNAP!$Q44,0)) -> 6614814.525 | U44: =IF(VLOOKUP($P44,'Congressional Districts'!$A$1:$E$93,2,FALSE)=SNAP!U$1,VLOOKUP($P44,'Congressional Districts'!$A$1:$E$93,3,FALSE)*SNAP!$Q44,IF(VLOOKUP($P44,'Congressional Districts'!$A$1:$E$93,4,FALSE)=SNAP!U$1,VLOOKUP($P44,'Congressional Districts'!$A$1:$E$93,5,FALSE)*SNAP!$Q44,0)) -> 5352285.475 | V44: =IF(VLOOKUP($P44,'Congressional Districts'!$A$1:$E$93,2,FALSE)=SNAP!V$1,VLOOKUP($P44,'Congressional Districts'!$A$1:$E$93,3,FALSE)*SNAP!$Q44,IF(VLOOKUP($P44,'Congressional Districts'!$A$1:$E$93,4,FALSE)=SNAP!V$1,VLOOKUP($P44,'Congressional Districts'!$A$1:$E$93,5,FALSE)*SNAP!$Q44,0)) -> 0 | W44: =IF(VLOOKUP($P44,'Congressional Districts'!$A$1:$E$93,2,FALSE)=SNAP!W$1,VLOOKUP($P44,'Congressional Districts'!$A$1:$E$93,3,FALSE)*SNAP!$Q44,IF(VLOOKUP($P44,'Congressional Districts'!$A$1:$E$93,4,FALSE)=SNAP!W$1,VLOOKUP($P44,'Congressional Districts'!$A$1:$E$93,5,FALSE)*SNAP!$Q44,0)) -> 0 | X44: =IF(VLOOKUP($P44,'Congressional Districts'!$A$1:$E$93,2,FALSE)=SNAP!X$1,VLOOKUP($P44,'Congressional Districts'!$A$1:$E$93,3,FALSE)*SNAP!$Q44,IF(VLOOKUP($P44,'Congressional Districts'!$A$1:$E$93,4,FALSE)=SNAP!X$1,VLOOKUP($P44,'Congressional Districts'!$A$1:$E$93,5,FALSE)*SNAP!$Q44,0)) -> 0 | Y44: =IF(VLOOKUP($P44,'Congressional Districts'!$A$1:$E$93,2,FALSE)=SNAP!Y$1,VLOOKUP($P44,'Congressional Districts'!$A$1:$E$93,3,FALSE)*SNAP!$Q44,IF(VLOOKUP($P44,'Congressional Districts'!$A$1:$E$93,4,FALSE)=SNAP!Y$1,VLOOKUP($P44,'Congressional Districts'!$A$1:$E$93,5,FALSE)*SNAP!$Q44,0)) -> 0 | Z44: =IF(VLOOKUP($P44,'Congressional Districts'!$A$1:$E$93,2,FALSE)=SNAP!Z$1,VLOOKUP($P44,'Congressional Districts'!$A$1:$E$93,3,FALSE)*SNAP!$Q44,IF(VLOOKUP($P44,'Congressional Districts'!$A$1:$E$93,4,FALSE)=SNAP!Z$1,VLOOKUP($P44,'Congressional Districts'!$A$1:$E$93,5,FALSE)*SNAP!$Q44,0)) -> 0 | AA44: =IF(VLOOKUP($P44,'Congressional Districts'!$A$1:$E$93,2,FALSE)=SNAP!AA$1,VLOOKUP($P44,'Congressional Districts'!$A$1:$E$93,3,FALSE)*SNAP!$Q44,IF(VLOOKUP($P44,'Congressional Districts'!$A$1:$E$93,4,FALSE)=SNAP!AA$1,VLOOKUP($P44,'Congressional Districts'!$A$1:$E$93,5,FALSE)*SNAP!$Q44,0)) -> 0
A45: Lagrange | B45: 283.4 | C45: 273 | D45: 266.8 | E45: 256.1 | F45: 242.7 | G45: 230.9 | H45: 232.3 | I45: 242.2 | J45: 251.6 | K45: 245.9 | L45: 248 | M45: 244 | N45: 3016.9 | P45: Lagrange | Q45: 3016900 | S45: =IF(VLOOKUP($P45,'Congressional Districts'!$A$1:$E$93,2,FALSE)=SNAP!S$1,VLOOKUP($P45,'Congressional Districts'!$A$1:$E$93,3,FALSE)*SNAP!$Q45,IF(VLOOKUP($P45,'Congressional Districts'!$A$1:$E$93,4,FALSE)=SNAP!S$1,VLOOKUP($P45,'Congressional Districts'!$A$1:$E$93,5,FALSE)*SNAP!$Q45,0)) -> 0 | T45: =IF(VLOOKUP($P45,'Congressional Districts'!$A$1:$E$93,2,FALSE)=SNAP!T$1,VLOOKUP($P45,'Congressional Districts'!$A$1:$E$93,3,FALSE)*SNAP!$Q45,IF(VLOOKUP($P45,'Congressional Districts'!$A$1:$E$93,4,FALSE)=SNAP!T$1,VLOOKUP($P45,'Congressional Districts'!$A$1:$E$93,5,FALSE)*SNAP!$Q45,0)) -> 0 | U45: =IF(VLOOKUP($P45,'Congressional Districts'!$A$1:$E$93,2,FALSE)=SNAP!U$1,VLOOKUP($P45,'Congressional Districts'!$A$1:$E$93,3,FALSE)*SNAP!$Q45,IF(VLOOKUP($P45,'Congressional Districts'!$A$1:$E$93,4,FALSE)=SNAP!U$1,VLOOKUP($P45,'Congressional Districts'!$A$1:$E$93,5,FALSE)*SNAP!$Q45,0)) -> 3016900 | V45: =IF(VLOOKUP($P45,'Congressional Districts'!$A$1:$E$93,2,FALSE)=SNAP!V$1,VLOOKUP($P45,'Congressional Districts'!$A$1:$E$93,3,FALSE)*SNAP!$Q45,IF(VLOOKUP($P45,'Congressional Districts'!$A$1:$E$93,4,FALSE)=SNAP!V$1,VLOOKUP($P45,'Congressional Districts'!$A$1:$E$93,5,FALSE)*SNAP!$Q45,0)) -> 0 | W45: =IF(VLOOKUP($P45,'Congressional Districts'!$A$1:$E$93,2,FALSE)=SNAP!W$1,VLOOKUP($P45,'Congressional Districts'!$A$1:$E$93,3,FALSE)*SNAP!$Q45,IF(VLOOKUP($P45,'Congressional Districts'!$A$1:$E$93,4,FALSE)=SNAP!W$1,VLOOKUP($P45,'Congressional Districts'!$A$1:$E$93,5,FALSE)*SNAP!$Q45,0)) -> 0 | X45: =IF(VLOOKUP($P45,'Congressional Districts'!$A$1:$E$93,2,FALSE)=SNAP!X$1,VLOOKUP($P45,'Congressional Districts'!$A$1:$E$93,3,FALSE)*SNAP!$Q45,IF(VLOOKUP($P45,'Congressional Districts'!$A$1:$E$93,4,FALSE)=SNAP!X$1,VLOOKUP($P45,'Congressional Districts'!$A$1:$E$93,5,FALSE)*SNAP!$Q45,0)) -> 0 | Y45: =IF(VLOOKUP($P45,'Congressional Districts'!$A$1:$E$93,2,FALSE)=SNAP!Y$1,VLOOKUP($P45,'Congressional Districts'!$A$1:$E$93,3,FALSE)*SNAP!$Q45,IF(VLOOKUP($P45,'Congressional Districts'!$A$1:$E$93,4,FALSE)=SNAP!Y$1,VLOOKUP($P45,'Congressional Districts'!$A$1:$E$93,5,FALSE)*SNAP!$Q45,0)) -> 0 | Z45: =IF(VLOOKUP($P45,'Congressional Districts'!$A$1:$E$93,2,FALSE)=SNAP!Z$1,VLOOKUP($P45,'Congressional Districts'!$A$1:$E$93,3,FALSE)*SNAP!$Q45,IF(VLOOKUP($P45,'Congressional Districts'!$A$1:$E$93,4,FALSE)=SNAP!Z$1,VLOOKUP($P45,'Congressional Districts'!$A$1:$E$93,5,FALSE)*SNAP!$Q45,0)) -> 0 | AA45: =IF(VLOOKUP($P45,'Congressional Districts'!$A$1:$E$93,2,FALSE)=SNAP!AA$1,VLOOKUP($P45,'Congressional Districts'!$A$1:$E$93,3,FALSE)*SNAP!$Q45,IF(VLOOKUP($P45,'Congressional Districts'!$A$1:$E$93,4,FALSE)=SNAP!AA$1,VLOOKUP($P45,'Congressional Districts'!$A$1:$E$93,5,FALSE)*SNAP!$Q45,0)) -> 0
A46: Lake | B46: 12918 | C46: 12724 | D46: 12624.4 | E46: 12483.6 | F46: 13465.4 | G46: 12978.7 | H46: 14263.2 | I46: 15171.4 | J46: 13000.2 | K46: 13150.9 | L46: 12982.6 | M46: 13045 | N46: 158807.4 | P46: Lake | Q46: 158807400 | S46: =IF(VLOOKUP($P46,'Congressional Districts'!$A$1:$E$93,2,FALSE)=SNAP!S$1,VLOOKUP($P46,'Congressional Districts'!$A$1:$E$93,3,FALSE)*SNAP!$Q46,IF(VLOOKUP($P46,'Congressional Districts'!$A$1:$E$93,4,FALSE)=SNAP!S$1,VLOOKUP($P46,'Congressional Districts'!$A$1:$E$93,5,FALSE)*SNAP!$Q46,0)) -> 158807400 | T46: =IF(VLOOKUP($P46,'Congressional Districts'!$A$1:$E$93,2,FALSE)=SNAP!T$1,VLOOKUP($P46,'Congressional Districts'!$A$1:$E$93,3,FALSE)*SNAP!$Q46,IF(VLOOKUP($P46,'Congressional Districts'!$A$1:$E$93,4,FALSE)=SNAP!T$1,VLOOKUP($P46,'Congressional Districts'!$A$1:$E$93,5,FALSE)*SNAP!$Q46,0)) -> 0 | U46: =IF(VLOOKUP($P46,'Congressional Districts'!$A$1:$E$93,2,FALSE)=SNAP!U$1,VLOOKUP($P46,'Congressional Districts'!$A$1:$E$93,3,FALSE)*SNAP!$Q46,IF(VLOOKUP($P46,'Congressional Districts'!$A$1:$E$93,4,FALSE)=SNAP!U$1,VLOOKUP($P46,'Congressional Districts'!$A$1:$E$93,5,FALSE)*SNAP!$Q46,0)) -> 0 | V46: =IF(VLOOKUP($P46,'Congressional Districts'!$A$1:$E$93,2,FALSE)=SNAP!V$1,VLOOKUP($P46,'Congressional Districts'!$A$1:$E$93,3,FALSE)*SNAP!$Q46,IF(VLOOKUP($P46,'Congressional Districts'!$A$1:$E$93,4,FALSE)=SNAP!V$1,VLOOKUP($P46,'Congressional Districts'!$A$1:$E$93,5,FALSE)*SNAP!$Q46,0)) -> 0 | W46: =IF(VLOOKUP($P46,'Congressional Districts'!$A$1:$E$93,2,FALSE)=SNAP!W$1,VLOOKUP($P46,'Congressional Districts'!$A$1:$E$93,3,FALSE)*SNAP!$Q46,IF(VLOOKUP($P46,'Congressional Districts'!$A$1:$E$93,4,FALSE)=SNAP!W$1,VLOOKUP($P46,'Congressional Districts'!$A$1:$E$93,5,FALSE)*SNAP!$Q46,0)) -> 0 | X46: =IF(VLOOKUP($P46,'Congressional Districts'!$A$1:$E$93,2,FALSE)=SNAP!X$1,VLOOKUP($P46,'Congressional Districts'!$A$1:$E$93,3,FALSE)*SNAP!$Q46,IF(VLOOKUP($P46,'Congressional Districts'!$A$1:$E$93,4,FALSE)=SNAP!X$1,VLOOKUP($P46,'Congressional Districts'!$A$1:$E$93,5,FALSE)*SNAP!$Q46,0)) -> 0 | Y46: =IF(VLOOKUP($P46,'Congressional Districts'!$A$1:$E$93,2,FALSE)=SNAP!Y$1,VLOOKUP($P46,'Congressional Districts'!$A$1:$E$93,3,FALSE)*SNAP!$Q46,IF(VLOOKUP($P46,'Congressional Districts'!$A$1:$E$93,4,FALSE)=SNAP!Y$1,VLOOKUP($P46,'Congressional Districts'!$A$1:$E$93,5,FALSE)*SNAP!$Q46,0)) -> 0 | Z46: =IF(VLOOKUP($P46,'Congressional Districts'!$A$1:$E$93,2,FALSE)=SNAP!Z$1,VLOOKUP($P46,'Congressional Districts'!$A$1:$E$93,3,FALSE)*SNAP!$Q46,IF(VLOOKUP($P46,'Congressional Districts'!$A$1:$E$93,4,FALSE)=SNAP!Z$1,VLOOKUP($P46,'Congressional Districts'!$A$1:$E$93,5,FALSE)*SNAP!$Q46,0)) -> 0 | AA46: =IF(VLOOKUP($P46,'Congressional Districts'!$A$1:$E$93,2,FALSE)=SNAP!AA$1,VLOOKUP($P46,'Congressional Districts'!$A$1:$E$93,3,FALSE)*SNAP!$Q46,IF(VLOOKUP($P46,'Congressional Districts'!$A$1:$E$93,4,FALSE)=SNAP!AA$1,VLOOKUP($P46,'Congressional Districts'!$A$1:$E$93,5,FALSE)*SNAP!$Q46,0)) -> 0
A47: La porte | B47: 2515.8 | C47: 2483.6 | D47: 2466.9 | E47: 2451.7 | F47: 2444.8 | G47: 2443.9 | H47: 2487.9 | I47: 2504 | J47: 2510.2 | K47: 2539.7 | L47: 2522.8 | M47: 2534.5 | N47: 29905.8 | P47: La porte | Q47: 29905800 | S47: =IF(VLOOKUP($P47,'Congressional Districts'!$A$1:$E$93,2,FALSE)=SNAP!S$1,VLOOKUP($P47,'Congressional Districts'!$A$1:$E$93,3,FALSE)*SNAP!$Q47,IF(VLOOKUP($P47,'Congressional Districts'!$A$1:$E$93,4,FALSE)=SNAP!S$1,VLOOKUP($P47,'Congressional Districts'!$A$1:$E$93,5,FALSE)*SNAP!$Q47,0)) -> 7194828.044 | T47: =IF(VLOOKUP($P47,'Congressional Districts'!$A$1:$E$93,2,FALSE)=SNAP!T$1,VLOOKUP($P47,'Congressional Districts'!$A$1:$E$93,3,FALSE)*SNAP!$Q47,IF(VLOOKUP($P47,'Congressional Districts'!$A$1:$E$93,4,FALSE)=SNAP!T$1,VLOOKUP($P47,'Congressional Districts'!$A$1:$E$93,5,FALSE)*SNAP!$Q47,0)) -> 22710971.96 | U47: =IF(VLOOKUP($P47,'Congressional Districts'!$A$1:$E$93,2,FALSE)=SNAP!U$1,VLOOKUP($P47,'Congressional Districts'!$A$1:$E$93,3,FALSE)*SNAP!$Q47,IF(VLOOKUP($P47,'Congressional Districts'!$A$1:$E$93,4,FALSE)=SNAP!U$1,VLOOKUP($P47,'Congressional Districts'!$A$1:$E$93,5,FALSE)*SNAP!$Q47,0)) -> 0 | V47: =IF(VLOOKUP($P47,'Congressional Districts'!$A$1:$E$93,2,FALSE)=SNAP!V$1,VLOOKUP($P47,'Congressional Districts'!$A$1:$E$93,3,FALSE)*SNAP!$Q47,IF(VLOOKUP($P47,'Congressional Districts'!$A$1:$E$93,4,FALSE)=SNAP!V$1,VLOOKUP($P47,'Congressional Districts'!$A$1:$E$93,5,FALSE)*SNAP!$Q47,0)) -> 0 | W47: =IF(VLOOKUP($P47,'Congressional Districts'!$A$1:$E$93,2,FALSE)=SNAP!W$1,VLOOKUP($P47,'Congressional Districts'!$A$1:$E$93,3,FALSE)*SNAP!$Q47,IF(VLOOKUP($P47,'Congressional Districts'!$A$1:$E$93,4,FALSE)=SNAP!W$1,VLOOKUP($P47,'Congressional Districts'!$A$1:$E$93,5,FALSE)*SNAP!$Q47,0)) -> 0 | X47: =IF(VLOOKUP($P47,'Congressional Districts'!$A$1:$E$93,2,FALSE)=SNAP!X$1,VLOOKUP($P47,'Congressional Districts'!$A$1:$E$93,3,FALSE)*SNAP!$Q47,IF(VLOOKUP($P47,'Congressional Districts'!$A$1:$E$93,4,FALSE)=SNAP!X$1,VLOOKUP($P47,'Congressional Districts'!$A$1:$E$93,5,FALSE)*SNAP!$Q47,0)) -> 0 | Y47: =IF(VLOOKUP($P47,'Congressional Districts'!$A$1:$E$93,2,FALSE)=SNAP!Y$1,VLOOKUP($P47,'Congressional Districts'!$A$1:$E$93,3,FALSE)*SNAP!$Q47,IF(VLOOKUP($P47,'Congressional Districts'!$A$1:$E$93,4,FALSE)=SNAP!Y$1,VLOOKUP($P47,'Congressional Districts'!$A$1:$E$93,5,FALSE)*SNAP!$Q47,0)) -> 0 | Z47: =IF(VLOOKUP($P47,'Congressional Districts'!$A$1:$E$93,2,FALSE)=SNAP!Z$1,VLOOKUP($P47,'Congressional Districts'!$A$1:$E$93,3,FALSE)*SNAP!$Q47,IF(VLOOKUP($P47,'Congressional Districts'!$A$1:$E$93,4,FALSE)=SNAP!Z$1,VLOOKUP($P47,'Congressional Districts'!$A$1:$E$93,5,FALSE)*SNAP!$Q47,0)) -> 0 | AA47: =IF(VLOOKUP($P47,'Congressional Districts'!$A$1:$E$93,2,FALSE)=SNAP!AA$1,VLOOKUP($P47,'Congressional Districts'!$A$1:$E$93,3,FALSE)*SNAP!$Q47,IF(VLOOKUP($P47,'Congressional Districts'!$A$1:$E$93,4,FALSE)=SNAP!AA$1,VLOOKUP($P47,'Congressional Districts'!$A$1:$E$93,5,FALSE)*SNAP!$Q47,0)) -> 0
A48: Lawrence | B48: 792.4 | C48: 790.6 | D48: 781.6 | E48: 796.2 | F48: 787.5 | G48: 798.7 | H48: 791.5 | I48: 798.8 | J48: 786.6 | K48: 794.9 | L48: 796.8 | M48: 790 | N48: 9505.6 | P48: Lawrence | Q48: 9505600 | S48: =IF(VLOOKUP($P48,'Congressional Districts'!$A$1:$E$93,2,FALSE)=SNAP!S$1,VLOOKUP($P48,'Congressional Districts'!$A$1:$E$93,3,FALSE)*SNAP!$Q48,IF(VLOOKUP($P48,'Congressional Districts'!$A$1:$E$93,4,FALSE)=SNAP!S$1,VLOOKUP($P48,'Congressional Districts'!$A$1:$E$93,5,FALSE)*SNAP!$Q48,0)) -> 0 | T48: =IF(VLOOKUP($P48,'Congressional Districts'!$A$1:$E$93,2,FALSE)=SNAP!T$1,VLOOKUP($P48,'Congressional Districts'!$A$1:$E$93,3,FALSE)*SNAP!$Q48,IF(VLOOKUP($P48,'Congressional Districts'!$A$1:$E$93,4,FALSE)=SNAP!T$1,VLOOKUP($P48,'Congressional Districts'!$A$1:$E$93,5,FALSE)*SNAP!$Q48,0)) -> 0 | U48: =IF(VLOOKUP($P48,'Congressional Districts'!$A$1:$E$93,2,FALSE)=SNAP!U$1,VLOOKUP($P48,'Congressional Districts'!$A$1:$E$93,3,FALSE)*SNAP!$Q48,IF(VLOOKUP($P48,'Congressional Districts'!$A$1:$E$93,4,FALSE)=SNAP!U$1,VLOOKUP($P48,'Congressional Districts'!$A$1:$E$93,5,FALSE)*SNAP!$Q48,0)) -> 0 | V48: =IF(VLOOKUP($P48,'Congressional Districts'!$A$1:$E$93,2,FALSE)=SNAP!V$1,VLOOKUP($P48,'Congressional Districts'!$A$1:$E$93,3,FALSE)*SNAP!$Q48,IF(VLOOKUP($P48,'Congressional Districts'!$A$1:$E$93,4,FALSE)=SNAP!V$1,VLOOKUP($P48,'Congressional Districts'!$A$1:$E$93,5,FALSE)*SNAP!$Q48,0)) -> 0 | W48: =IF(VLOOKUP($P48,'Congressional Districts'!$A$1:$E$93,2,FALSE)=SNAP!W$1,VLOOKUP($P48,'Congressional Districts'!$A$1:$E$93,3,FALSE)*SNAP!$Q48,IF(VLOOKUP($P48,'Congressional Districts'!$A$1:$E$93,4,FALSE)=SNAP!W$1,VLOOKUP($P48,'Congressional Districts'!$A$1:$E$93,5,FALSE)*SNAP!$Q48,0)) -> 0 | X48: =IF(VLOOKUP($P48,'Congressional Districts'!$A$1:$E$93,2,FALSE)=SNAP!X$1,VLOOKUP($P48,'Congressional Districts'!$A$1:$E$93,3,FALSE)*SNAP!$Q48,IF(VLOOKUP($P48,'Congressional Districts'!$A$1:$E$93,4,FALSE)=SNAP!X$1,VLOOKUP($P48,'Congressional Districts'!$A$1:$E$93,5,FALSE)*SNAP!$Q48,0)) -> 0 | Y48: =IF(VLOOKUP($P48,'Congressional Districts'!$A$1:$E$93,2,FALSE)=SNAP!Y$1,VLOOKUP($P48,'Congressional Districts'!$A$1:$E$93,3,FALSE)*SNAP!$Q48,IF(VLOOKUP($P48,'Congressional Districts'!$A$1:$E$93,4,FALSE)=SNAP!Y$1,VLOOKUP($P48,'Congressional Districts'!$A$1:$E$93,5,FALSE)*SNAP!$Q48,0)) -> 0 | Z48: =IF(VLOOKUP($P48,'Congressional Districts'!$A$1:$E$93,2,FALSE)=SNAP!Z$1,VLOOKUP($P48,'Congressional Districts'!$A$1:$E$93,3,FALSE)*SNAP!$Q48,IF(VLOOKUP($P48,'Congressional Districts'!$A$1:$E$93,4,FALSE)=SNAP!Z$1,VLOOKUP($P48,'Congressional Districts'!$A$1:$E$93,5,FALSE)*SNAP!$Q48,0)) -> 0 | AA48: =IF(VLOOKUP($P48,'Congressional Districts'!$A$1:$E$93,2,FALSE)=SNAP!AA$1,VLOOKUP($P48,'Congressional Districts'!$A$1:$E$93,3,FALSE)*SNAP!$Q48,IF(VLOOKUP($P48,'Congressional Districts'!$A$1:$E$93,4,FALSE)=SNAP!AA$1,VLOOKUP($P48,'Congressional Districts'!$A$1:$E$93,5,FALSE)*SNAP!$Q48,0)) -> 9505600
A49: Madison | B49: 2965.3 | C49: 2977.3 | D49: 2925.7 | E49: 2915.8 | F49: 2892.2 | G49: 2906.3 | H49: 2978.7 | I49: 3000.1 | J49: 2989.1 | K49: 3001.7 | L49: 3020.2 | M49: 3022.7 | N49: 35595.1 | P49: Madison | Q49: 35595100 | S49: =IF(VLOOKUP($P49,'Congressional Districts'!$A$1:$E$93,2,FALSE)=SNAP!S$1,VLOOKUP($P49,'Congressional Districts'!$A$1:$E$93,3,FALSE)*SNAP!$Q49,IF(VLOOKUP($P49,'Congressional Districts'!$A$1:$E$93,4,FALSE)=SNAP!S$1,VLOOKUP($P49,'Congressional Districts'!$A$1:$E$93,5,FALSE)*SNAP!$Q49,0)) -> 0 | T49: =IF(VLOOKUP($P49,'Congressional Districts'!$A$1:$E$93,2,FALSE)=SNAP!T$1,VLOOKUP($P49,'Congressional Districts'!$A$1:$E$93,3,FALSE)*SNAP!$Q49,IF(VLOOKUP($P49,'Congressional Districts'!$A$1:$E$93,4,FALSE)=SNAP!T$1,VLOOKUP($P49,'Congressional Districts'!$A$1:$E$93,5,FALSE)*SNAP!$Q49,0)) -> 0 | U49: =IF(VLOOKUP($P49,'Congressional Districts'!$A$1:$E$93,2,FALSE)=SNAP!U$1,VLOOKUP($P49,'Congressional Districts'!$A$1:$E$93,3,FALSE)*SNAP!$Q49,IF(VLOOKUP($P49,'Congressional Districts'!$A$1:$E$93,4,FALSE)=SNAP!U$1,VLOOKUP($P49,'Congressional Districts'!$A$1:$E$93,5,FALSE)*SNAP!$Q49,0)) -> 0 | V49: =IF(VLOOKUP($P49,'Congressional Districts'!$A$1:$E$93,2,FALSE)=SNAP!V$1,VLOOKUP($P49,'Congressional Districts'!$A$1:$E$93,3,FALSE)*SNAP!$Q49,IF(VLOOKUP($P49,'Congressional Districts'!$A$1:$E$93,4,FALSE)=SNAP!V$1,VLOOKUP($P49,'Congressional Districts'!$A$1:$E$93,5,FALSE)*SNAP!$Q49,0)) -> 0 | W49: =IF(VLOOKUP($P49,'Congressional Districts'!$A$1:$E$93,2,FALSE)=SNAP!W$1,VLOOKUP($P49,'Congressional Districts'!$A$1:$E$93,3,FALSE)*SNAP!$Q49,IF(VLOOKUP($P49,'Congressional Districts'!$A$1:$E$93,4,FALSE)=SNAP!W$1,VLOOKUP($P49,'Congressional Districts'!$A$1:$E$93,5,FALSE)*SNAP!$Q49,0)) -> 35595100 | X49: =IF(VLOOKUP($P49,'Congressional Districts'!$A$1:$E$93,2,FALSE)=SNAP!X$1,VLOOKUP($P49,'Congressional Districts'!$A$1:$E$93,3,FALSE)*SNAP!$Q49,IF(VLOOKUP($P49,'Congressional Districts'!$A$1:$E$93,4,FALSE)=SNAP!X$1,VLOOKUP($P49,'Congressional Districts'!$A$1:$E$93,5,FALSE)*SNAP!$Q49,0)) -> 0 | Y49: =IF(VLOOKUP($P49,'Congressional Districts'!$A$1:$E$93,2,FALSE)=SNAP!Y$1,VLOOKUP($P49,'Congressional Districts'!$A$1:$E$93,3,FALSE)*SNAP!$Q49,IF(VLOOKUP($P49,'Congressional Districts'!$A$1:$E$93,4,FALSE)=SNAP!Y$1,VLOOKUP($P49,'Congressional Districts'!$A$1:$E$93,5,FALSE)*SNAP!$Q49,0)) -> 0 | Z49: =IF(VLOOKUP($P49,'Congressional Districts'!$A$1:$E$93,2,FALSE)=SNAP!Z$1,VLOOKUP($P49,'Congressional Districts'!$A$1:$E$93,3,FALSE)*SNAP!$Q49,IF(VLOOKUP($P49,'Congressional Districts'!$A$1:$E$93,4,FALSE)=SNAP!Z$1,VLOOKUP($P49,'Congressional Districts'!$A$1:$E$93,5,FALSE)*SNAP!$Q49,0)) -> 0 | AA49: =IF(VLOOKUP($P49,'Congressional Districts'!$A$1:$E$93,2,FALSE)=SNAP!AA$1,VLOOKUP($P49,'Congressional Districts'!$A$1:$E$93,3,FALSE)*SNAP!$Q49,IF(VLOOKUP($P49,'Congressional Districts'!$A$1:$E$93,4,FALSE)=SNAP!AA$1,VLOOKUP($P49,'Congressional Districts'!$A$1:$E$93,5,FALSE)*SNAP!$Q49,0)) -> 0
A50: Marion | B50: 25742.7 | C50: 25545 | D50: 25793.2 | E50: 26480.3 | F50: 26987.9 | G50: 27421.5 | H50: 28014 | I50: 28583.3 | J50: 28572.6 | K50: 28349.6 | L50: 27955.3 | M50: 27895 | N50: =SUM(B50:M50) -> 327340.4 | P50: Marion | Q50: 327340400 | S50: =IF(VLOOKUP($P50,'Congressional Districts'!$A$1:$E$93,2,FALSE)=SNAP!S$1,VLOOKUP($P50,'Congressional Districts'!$A$1:$E$93,3,FALSE)*SNAP!$Q50,IF(VLOOKUP($P50,'Congressional Districts'!$A$1:$E$93,4,FALSE)=SNAP!S$1,VLOOKUP($P50,'Congressional Districts'!$A$1:$E$93,5,FALSE)*SNAP!$Q50,0)) -> 0 | T50: =IF(VLOOKUP($P50,'Congressional Districts'!$A$1:$E$93,2,FALSE)=SNAP!T$1,VLOOKUP($P50,'Congressional Districts'!$A$1:$E$93,3,FALSE)*SNAP!$Q50,IF(VLOOKUP($P50,'Congressional Districts'!$A$1:$E$93,4,FALSE)=SNAP!T$1,VLOOKUP($P50,'Congressional Districts'!$A$1:$E$93,5,FALSE)*SNAP!$Q50,0)) -> 0 | U50: =IF(VLOOKUP($P50,'Congressional Districts'!$A$1:$E$93,2,FALSE)=SNAP!U$1,VLOOKUP($P50,'Congressional Districts'!$A$1:$E$93,3,FALSE)*SNAP!$Q50,IF(VLOOKUP($P50,'Congressional Districts'!$A$1:$E$93,4,FALSE)=SNAP!U$1,VLOOKUP($P50,'Congressional Districts'!$A$1:$E$93,5,FALSE)*SNAP!$Q50,0)) -> 0 | V50: =IF(VLOOKUP($P50,'Congressional Districts'!$A$1:$E$93,2,FALSE)=SNAP!V$1,VLOOKUP($P50,'Congressional Districts'!$A$1:$E$93,3,FALSE)*SNAP!$Q50,IF(VLOOKUP($P50,'Congressional Districts'!$A$1:$E$93,4,FALSE)=SNAP!V$1,VLOOKUP($P50,'Congressional Districts'!$A$1:$E$93,5,FALSE)*SNAP!$Q50,0)) -> 0 | W50: =IF(VLOOKUP($P50,'Congressional Districts'!$A$1:$E$93,2,FALSE)=SNAP!W$1,VLOOKUP($P50,'Congressional Districts'!$A$1:$E$93,3,FALSE)*SNAP!$Q50,IF(VLOOKUP($P50,'Congressional Districts'!$A$1:$E$93,4,FALSE)=SNAP!W$1,VLOOKUP($P50,'Congressional Districts'!$A$1:$E$93,5,FALSE)*SNAP!$Q50,0)) -> 81835100 | X50: =IF(VLOOKUP($P50,'Congressional Districts'!$A$1:$E$93,2,FALSE)=SNAP!X$1,VLOOKUP($P50,'Congressional Districts'!$A$1:$E$93,3,FALSE)*SNAP!$Q50,IF(VLOOKUP($P50,'Congressional Districts'!$A$1:$E$93,4,FALSE)=SNAP!X$1,VLOOKUP($P50,'Congressional Districts'!$A$1:$E$93,5,FALSE)*SNAP!$Q50,0)) -> 0 | Y50: =IF(VLOOKUP($P50,'Congressional Districts'!$A$1:$E$93,2,FALSE)=SNAP!Y$1,VLOOKUP($P50,'Congressional Districts'!$A$1:$E$93,3,FALSE)*SNAP!$Q50,IF(VLOOKUP($P50,'Congressional Districts'!$A$1:$E$93,4,FALSE)=SNAP!Y$1,VLOOKUP($P50,'Congressional Districts'!$A$1:$E$93,5,FALSE)*SNAP!$Q50,0)) -> 245505300 | Z50: =IF(VLOOKUP($P50,'Congressional Districts'!$A$1:$E$93,2,FALSE)=SNAP!Z$1,VLOOKUP($P50,'Congressional Districts'!$A$1:$E$93,3,FALSE)*SNAP!$Q50,IF(VLOOKUP($P50,'Congressional Districts'!$A$1:$E$93,4,FALSE)=SNAP!Z$1,VLOOKUP($P50,'Congressional Districts'!$A$1:$E$93,5,FALSE)*SNAP!$Q50,0)) -> 0 | AA50: =IF(VLOOKUP($P50,'Congressional Districts'!$A$1:$E$93,2,FALSE)=SNAP!AA$1,VLOOKUP($P50,'Congressional Districts'!$A$1:$E$93,3,FALSE)*SNAP!$Q50,IF(VLOOKUP($P50,'Congressional Districts'!$A$1:$E$93,4,FALSE)=SNAP!AA$1,VLOOKUP($P50,'Congressional Districts'!$A$1:$E$93,5,FALSE)*SNAP!$Q50,0)) -> 0
A51: Marshall | B51: 619 | C51: 620.9 | D51: 598.8 | E51: 583 | F51: 585.9 | G51: 564.2 | H51: 559.1 | I51: 571.5 | J51: 568.1 | K51: 568.9 | L51: 574.5 | M51: 585.1 | N51: 6999 | P51: Marshall | Q51: 6999000 | S51: =IF(VLOOKUP($P51,'Congressional Districts'!$A$1:$E$93,2,FALSE)=SNAP!S$1,VLOOKUP($P51,'Congressional Districts'!$A$1:$E$93,3,FALSE)*SNAP!$Q51,IF(VLOOKUP($P51,'Congressional Districts'!$A$1:$E$93,4,FALSE)=SNAP!S$1,VLOOKUP($P51,'Congressional Districts'!$A$1:$E$93,5,FALSE)*SNAP!$Q51,0)) -> 0 | T51: =IF(VLOOKUP($P51,'Congressional Districts'!$A$1:$E$93,2,FALSE)=SNAP!T$1,VLOOKUP($P51,'Congressional Districts'!$A$1:$E$93,3,FALSE)*SNAP!$Q51,IF(VLOOKUP($P51,'Congressional Districts'!$A$1:$E$93,4,FALSE)=SNAP!T$1,VLOOKUP($P51,'Congressional Districts'!$A$1:$E$93,5,FALSE)*SNAP!$Q51,0)) -> 6999000 | U51: =IF(VLOOKUP($P51,'Congressional Districts'!$A$1:$E$93,2,FALSE)=SNAP!U$1,VLOOKUP($P51,'Congressional Districts'!$A$1:$E$93,3,FALSE)*SNAP!$Q51,IF(VLOOKUP($P51,'Congressional Districts'!$A$1:$E$93,4,FALSE)=SNAP!U$1,VLOOKUP($P51,'Congressional Districts'!$A$1:$E$93,5,FALSE)*SNAP!$Q51,0)) -> 0 | V51: =IF(VLOOKUP($P51,'Congressional Districts'!$A$1:$E$93,2,FALSE)=SNAP!V$1,VLOOKUP($P51,'Congressional Districts'!$A$1:$E$93,3,FALSE)*SNAP!$Q51,IF(VLOOKUP($P51,'Congressional Districts'!$A$1:$E$93,4,FALSE)=SNAP!V$1,VLOOKUP($P51,'Congressional Districts'!$A$1:$E$93,5,FALSE)*SNAP!$Q51,0)) -> 0 | W51: =IF(VLOOKUP($P51,'Congressional Districts'!$A$1:$E$93,2,FALSE)=SNAP!W$1,VLOOKUP($P51,'Congressional Districts'!$A$1:$E$93,3,FALSE)*SNAP!$Q51,IF(VLOOKUP($P51,'Congressional Districts'!$A$1:$E$93,4,FALSE)=SNAP!W$1,VLOOKUP($P51,'Congressional Districts'!$A$1:$E$93,5,FALSE)*SNAP!$Q51,0)) -> 0 | X51: =IF(VLOOKUP($P51,'Congressional Districts'!$A$1:$E$93,2,FALSE)=SNAP!X$1,VLOOKUP($P51,'Congressional Districts'!$A$1:$E$93,3,FALSE)*SNAP!$Q51,IF(VLOOKUP($P51,'Congressional Districts'!$A$1:$E$93,4,FALSE)=SNAP!X$1,VLOOKUP($P51,'Congressional Districts'!$A$1:$E$93,5,FALSE)*SNAP!$Q51,0)) -> 0 | Y51: =IF(VLOOKUP($P51,'Congressional Districts'!$A$1:$E$93,2,FALSE)=SNAP!Y$1,VLOOKUP($P51,'Congressional Districts'!$A$1:$E$93,3,FALSE)*SNAP!$Q51,IF(VLOOKUP($P51,'Congressional Districts'!$A$1:$E$93,4,FALSE)=SNAP!Y$1,VLOOKUP($P51,'Congressional Districts'!$A$1:$E$93,5,FALSE)*SNAP!$Q51,0)) -> 0 | Z51: =IF(VLOOKUP($P51,'Congressional Districts'!$A$1:$E$93,2,FALSE)=SNAP!Z$1,VLOOKUP($P51,'Congressional Districts'!$A$1:$E$93,3,FALSE)*SNAP!$Q51,IF(VLOOKUP($P51,'Congressional Districts'!$A$1:$E$93,4,FALSE)=SNAP!Z$1,VLOOKUP($P51,'Congressional Districts'!$A$1:$E$93,5,FALSE)*SNAP!$Q51,0)) -> 0 | AA51: =IF(VLOOKUP($P51,'Congressional Districts'!$A$1:$E$93,2,FALSE)=SNAP!AA$1,VLOOKUP($P51,'Congressional Districts'!$A$1:$E$93,3,FALSE)*SNAP!$Q51,IF(VLOOKUP($P51,'Congressional Districts'!$A$1:$E$93,4,FALSE)=SNAP!AA$1,VLOOKUP($P51,'Congressional Districts'!$A$1:$E$93,5,FALSE)*SNAP!$Q51,0)) -> 0
A52: Martin | B52: 143.6 | C52: 143.4 | D52: 148.7 | E52: 150.8 | F52: 149.6 | G52: 157.1 | H52: 152.7 | I52: 153.7 | J52: 154.9 | K52: 155 | L52: 150.7 | M52: 153.5 | N52: 1813.7 | P52: Martin | Q52: 1813700 | S52: =IF(VLOOKUP($P52,'Congressional Districts'!$A$1:$E$93,2,FALSE)=SNAP!S$1,VLOOKUP($P52,'Congressional Districts'!$A$1:$E$93,3,FALSE)*SNAP!$Q52,IF(VLOOKUP($P52,'Congressional Districts'!$A$1:$E$93,4,FALSE)=SNAP!S$1,VLOOKUP($P52,'Congressional Districts'!$A$1:$E$93,5,FALSE)*SNAP!$Q52,0)) -> 0 | T52: =IF(VLOOKUP($P52,'Congressional Districts'!$A$1:$E$93,2,FALSE)=SNAP!T$1,VLOOKUP($P52,'Congressional Districts'!$A$1:$E$93,3,FALSE)*SNAP!$Q52,IF(VLOOKUP($P52,'Congressional Districts'!$A$1:$E$93,4,FALSE)=SNAP!T$1,VLOOKUP($P52,'Congressional Districts'!$A$1:$E$93,5,FALSE)*SNAP!$Q52,0)) -> 0 | U52: =IF(VLOOKUP($P52,'Congressional Districts'!$A$1:$E$93,2,FALSE)=SNAP!U$1,VLOOKUP($P52,'Congressional Districts'!$A$1:$E$93,3,FALSE)*SNAP!$Q52,IF(VLOOKUP($P52,'Congressional Districts'!$A$1:$E$93,4,FALSE)=SNAP!U$1,VLOOKUP($P52,'Congressional Districts'!$A$1:$E$93,5,FALSE)*SNAP!$Q52,0)) -> 0 | V52: =IF(VLOOKUP($P52,'Congressional Districts'!$A$1:$E$93,2,FALSE)=SNAP!V$1,VLOOKUP($P52,'Congressional Districts'!$A$1:$E$93,3,FALSE)*SNAP!$Q52,IF(VLOOKUP($P52,'Congressional Districts'!$A$1:$E$93,4,FALSE)=SNAP!V$1,VLOOKUP($P52,'Congressional Districts'!$A$1:$E$93,5,FALSE)*SNAP!$Q52,0)) -> 0 | W52: =IF(VLOOKUP($P52,'Congressional Districts'!$A$1:$E$93,2,FALSE)=SNAP!W$1,VLOOKUP($P52,'Congressional Districts'!$A$1:$E$93,3,FALSE)*SNAP!$Q52,IF(VLOOKUP($P52,'Congressional Districts'!$A$1:$E$93,4,FALSE)=SNAP!W$1,VLOOKUP($P52,'Congressional Districts'!$A$1:$E$93,5,FALSE)*SNAP!$Q52,0)) -> 0 | X52: =IF(VLOOKUP($P52,'Congressional Districts'!$A$1:$E$93,2,FALSE)=SNAP!X$1,VLOOKUP($P52,'Congressional Districts'!$A$1:$E$93,3,FALSE)*SNAP!$Q52,IF(VLOOKUP($P52,'Congressional Districts'!$A$1:$E$93,4,FALSE)=SNAP!X$1,VLOOKUP($P52,'Congressional Districts'!$A$1:$E$93,5,FALSE)*SNAP!$Q52,0)) -> 0 | Y52: =IF(VLOOKUP($P52,'Congressional Districts'!$A$1:$E$93,2,FALSE)=SNAP!Y$1,VLOOKUP($P52,'Congressional Districts'!$A$1:$E$93,3,FALSE)*SNAP!$Q52,IF(VLOOKUP($P52,'Congressional Districts'!$A$1:$E$93,4,FALSE)=SNAP!Y$1,VLOOKUP($P52,'Congressional Districts'!$A$1:$E$93,5,FALSE)*SNAP!$Q52,0)) -> 0 | Z52: =IF(VLOOKUP($P52,'Congressional Districts'!$A$1:$E$93,2,FALSE)=SNAP!Z$1,VLOOKUP($P52,'Congressional Districts'!$A$1:$E$93,3,FALSE)*SNAP!$Q52,IF(VLOOKUP($P52,'Congressional Districts'!$A$1:$E$93,4,FALSE)=SNAP!Z$1,VLOOKUP($P52,'Congressional Districts'!$A$1:$E$93,5,FALSE)*SNAP!$Q52,0)) -> 1813700 | AA52: =IF(VLOOKUP($P52,'Congressional Districts'!$A$1:$E$93,2,FALSE)=SNAP!AA$1,VLOOKUP($P52,'Congressional Districts'!$A$1:$E$93,3,FALSE)*SNAP!$Q52,IF(VLOOKUP($P52,'Congressional Districts'!$A$1:$E$93,4,FALSE)=SNAP!AA$1,VLOOKUP($P52,'Congressional Districts'!$A$1:$E$93,5,FALSE)*SNAP!$Q52,0)) -> 0
A53: Miami | B53: 736.8 | C53: 742 | D53: 738.9 | E53: 727.2 | F53: 715.8 | G53: 713.9 | H53: 727 | I53: 736.5 | J53: 737.9 | K53: 724.3 | L53: 717.2 | M53: 727.9 | N53: 8745.4 | P53: Miami | Q53: 8745400 | S53: =IF(VLOOKUP($P53,'Congressional Districts'!$A$1:$E$93,2,FALSE)=SNAP!S$1,VLOOKUP($P53,'Congressional Districts'!$A$1:$E$93,3,FALSE)*SNAP!$Q53,IF(VLOOKUP($P53,'Congressional Districts'!$A$1:$E$93,4,FALSE)=SNAP!S$1,VLOOKUP($P53,'Congressional Districts'!$A$1:$E$93,5,FALSE)*SNAP!$Q53,0)) -> 0 | T53: =IF(VLOOKUP($P53,'Congressional Districts'!$A$1:$E$93,2,FALSE)=SNAP!T$1,VLOOKUP($P53,'Congressional Districts'!$A$1:$E$93,3,FALSE)*SNAP!$Q53,IF(VLOOKUP($P53,'Congressional Districts'!$A$1:$E$93,4,FALSE)=SNAP!T$1,VLOOKUP($P53,'Congressional Districts'!$A$1:$E$93,5,FALSE)*SNAP!$Q53,0)) -> 8745400 | U53: =IF(VLOOKUP($P53,'Congressional Districts'!$A$1:$E$93,2,FALSE)=SNAP!U$1,VLOOKUP($P53,'Congressional Districts'!$A$1:$E$93,3,FALSE)*SNAP!$Q53,IF(VLOOKUP($P53,'Congressional Districts'!$A$1:$E$93,4,FALSE)=SNAP!U$1,VLOOKUP($P53,'Congressional Districts'!$A$1:$E$93,5,FALSE)*SNAP!$Q53,0)) -> 0 | V53: =IF(VLOOKUP($P53,'Congressional Districts'!$A$1:$E$93,2,FALSE)=SNAP!V$1,VLOOKUP($P53,'Congressional Districts'!$A$1:$E$93,3,FALSE)*SNAP!$Q53,IF(VLOOKUP($P53,'Congressional Districts'!$A$1:$E$93,4,FALSE)=SNAP!V$1,VLOOKUP($P53,'Congressional Districts'!$A$1:$E$93,5,FALSE)*SNAP!$Q53,0)) -> 0 | W53: =IF(VLOOKUP($P53,'Congressional Districts'!$A$1:$E$93,2,FALSE)=SNAP!W$1,VLOOKUP($P53,'Congressional Districts'!$A$1:$E$93,3,FALSE)*SNAP!$Q53,IF(VLOOKUP($P53,'Congressional Districts'!$A$1:$E$93,4,FALSE)=SNAP!W$1,VLOOKUP($P53,'Congressional Districts'!$A$1:$E$93,5,FALSE)*SNAP!$Q53,0)) -> 0 | X53: =IF(VLOOKUP($P53,'Congressional Districts'!$A$1:$E$93,2,FALSE)=SNAP!X$1,VLOOKUP($P53,'Congressional Districts'!$A$1:$E$93,3,FALSE)*SNAP!$Q53,IF(VLOOKUP($P53,'Congressional Districts'!$A$1:$E$93,4,FALSE)=SNAP!X$1,VLOOKUP($P53,'Congressional Districts'!$A$1:$E$93,5,FALSE)*SNAP!$Q53,0)) -> 0 | Y53: =IF(VLOOKUP($P53,'Congressional Districts'!$A$1:$E$93,2,FALSE)=SNAP!Y$1,VLOOKUP($P53,'Congressional Districts'!$A$1:$E$93,3,FALSE)*SNAP!$Q53,IF(VLOOKUP($P53,'Congressional Districts'!$A$1:$E$93,4,FALSE)=SNAP!Y$1,VLOOKUP($P53,'Congressional Districts'!$A$1:$E$93,5,FALSE)*SNAP!$Q53,0)) -> 0 | Z53: =IF(VLOOKUP($P53,'Congressional Districts'!$A$1:$E$93,2,FALSE)=SNAP!Z$1,VLOOKUP($P53,'Congressional Districts'!$A$1:$E$93,3,FALSE)*SNAP!$Q53,IF(VLOOKUP($P53,'Congressional Districts'!$A$1:$E$93,4,FALSE)=SNAP!Z$1,VLOOKUP($P53,'Congressional Districts'!$A$1:$E$93,5,FALSE)*SNAP!$Q53,0)) -> 0 | AA53: =IF(VLOOKUP($P53,'Congressional Districts'!$A$1:$E$93,2,FALSE)=SNAP!AA$1,VLOOKUP($P53,'Congressional Districts'!$A$1:$E$93,3,FALSE)*SNAP!$Q53,IF(VLOOKUP($P53,'Congressional Districts'!$A$1:$E$93,4,FALSE)=SNAP!AA$1,VLOOKUP($P53,'Congressional Districts'!$A$1:$E$93,5,FALSE)*SNAP!$Q53,0)) -> 0
A54: Monroe | B54: 1479.6 | C54: 1490.4 | D54: 1491.7 | E54: 1467.9 | F54: 1470.7 | G54: 1486.7 | H54: 1488.3 | I54: 1503.1 | J54: 1489.3 | K54: 1500 | L54: 1483.6 | M54: 1489.7 | N54: 17841 | P54: Monroe | Q54: 17841000 | S54: =IF(VLOOKUP($P54,'Congressional Districts'!$A$1:$E$93,2,FALSE)=SNAP!S$1,VLOOKUP($P54,'Congressional Districts'!$A$1:$E$93,3,FALSE)*SNAP!$Q54,IF(VLOOKUP($P54,'Congressional Districts'!$A$1:$E$93,4,FALSE)=SNAP!S$1,VLOOKUP($P54,'Congressional Districts'!$A$1:$E$93,5,FALSE)*SNAP!$Q54,0)) -> 0 | T54: =IF(VLOOKUP($P54,'Congressional Districts'!$A$1:$E$93,2,FALSE)=SNAP!T$1,VLOOKUP($P54,'Congressional Districts'!$A$1:$E$93,3,FALSE)*SNAP!$Q54,IF(VLOOKUP($P54,'Congressional Districts'!$A$1:$E$93,4,FALSE)=SNAP!T$1,VLOOKUP($P54,'Congressional Districts'!$A$1:$E$93,5,FALSE)*SNAP!$Q54,0)) -> 0 | U54: =IF(VLOOKUP($P54,'Congressional Districts'!$A$1:$E$93,2,FALSE)=SNAP!U$1,VLOOKUP($P54,'Congressional Districts'!$A$1:$E$93,3,FALSE)*SNAP!$Q54,IF(VLOOKUP($P54,'Congressional Districts'!$A$1:$E$93,4,FALSE)=SNAP!U$1,VLOOKUP($P54,'Congressional Districts'!$A$1:$E$93,5,FALSE)*SNAP!$Q54,0)) -> 0 | V54: =IF(VLOOKUP($P54,'Congressional Districts'!$A$1:$E$93,2,FALSE)=SNAP!V$1,VLOOKUP($P54,'Congressional Districts'!$A$1:$E$93,3,FALSE)*SNAP!$Q54,IF(VLOOKUP($P54,'Congressional Districts'!$A$1:$E$93,4,FALSE)=SNAP!V$1,VLOOKUP($P54,'Congressional Districts'!$A$1:$E$93,5,FALSE)*SNAP!$Q54,0)) -> 0 | W54: =IF(VLOOKUP($P54,'Congressional Districts'!$A$1:$E$93,2,FALSE)=SNAP!W$1,VLOOKUP($P54,'Congressional Districts'!$A$1:$E$93,3,FALSE)*SNAP!$Q54,IF(VLOOKUP($P54,'Congressional Districts'!$A$1:$E$93,4,FALSE)=SNAP!W$1,VLOOKUP($P54,'Congressional Districts'!$A$1:$E$93,5,FALSE)*SNAP!$Q54,0)) -> 0 | X54: =IF(VLOOKUP($P54,'Congressional Districts'!$A$1:$E$93,2,FALSE)=SNAP!X$1,VLOOKUP($P54,'Congressional Districts'!$A$1:$E$93,3,FALSE)*SNAP!$Q54,IF(VLOOKUP($P54,'Congressional Districts'!$A$1:$E$93,4,FALSE)=SNAP!X$1,VLOOKUP($P54,'Congressional Districts'!$A$1:$E$93,5,FALSE)*SNAP!$Q54,0)) -> 0 | Y54: =IF(VLOOKUP($P54,'Congressional Districts'!$A$1:$E$93,2,FALSE)=SNAP!Y$1,VLOOKUP($P54,'Congressional Districts'!$A$1:$E$93,3,FALSE)*SNAP!$Q54,IF(VLOOKUP($P54,'Congressional Districts'!$A$1:$E$93,4,FALSE)=SNAP!Y$1,VLOOKUP($P54,'Congressional Districts'!$A$1:$E$93,5,FALSE)*SNAP!$Q54,0)) -> 0 | Z54: =IF(VLOOKUP($P54,'Congressional Districts'!$A$1:$E$93,2,FALSE)=SNAP!Z$1,VLOOKUP($P54,'Congressional Districts'!$A$1:$E$93,3,FALSE)*SNAP!$Q54,IF(VLOOKUP($P54,'Congressional Districts'!$A$1:$E$93,4,FALSE)=SNAP!Z$1,VLOOKUP($P54,'Congressional Districts'!$A$1:$E$93,5,FALSE)*SNAP!$Q54,0)) -> 0 | AA54: =IF(VLOOKUP($P54,'Congressional Districts'!$A$1:$E$93,2,FALSE)=SNAP!AA$1,VLOOKUP($P54,'Congressional Districts'!$A$1:$E$93,3,FALSE)*SNAP!$Q54,IF(VLOOKUP($P54,'Congressional Districts'!$A$1:$E$93,4,FALSE)=SNAP!AA$1,VLOOKUP($P54,'Congressional Districts'!$A$1:$E$93,5,FALSE)*SNAP!$Q54,0)) -> 17841000
A55: Montgomery | B55: 621.6 | C55: 607.3 | D55: 612.7 | E55: 610.9 | F55: 619.6 | G55: 613 | H55: 615.9 | I55: 617.5 | J55: 604.4 | K55: 608 | L55: 612.1 | M55: 622 | N55: 7365 | P55: Montgomery | Q55: 7365000 | S55: =IF(VLOOKUP($P55,'Congressional Districts'!$A$1:$E$93,2,FALSE)=SNAP!S$1,VLOOKUP($P55,'Congressional Districts'!$A$1:$E$93,3,FALSE)*SNAP!$Q55,IF(VLOOKUP($P55,'Congressional Districts'!$A$1:$E$93,4,FALSE)=SNAP!S$1,VLOOKUP($P55,'Congressional Districts'!$A$1:$E$93,5,FALSE)*SNAP!$Q55,0)) -> 0 | T55: =IF(VLOOKUP($P55,'Congressional Districts'!$A$1:$E$93,2,FALSE)=SNAP!T$1,VLOOKUP($P55,'Congressional Districts'!$A$1:$E$93,3,FALSE)*SNAP!$Q55,IF(VLOOKUP($P55,'Congressional Districts'!$A$1:$E$93,4,FALSE)=SNAP!T$1,VLOOKUP($P55,'Congressional Districts'!$A$1:$E$93,5,FALSE)*SNAP!$Q55,0)) -> 0 | U55: =IF(VLOOKUP($P55,'Congressional Districts'!$A$1:$E$93,2,FALSE)=SNAP!U$1,VLOOKUP($P55,'Congressional Districts'!$A$1:$E$93,3,FALSE)*SNAP!$Q55,IF(VLOOKUP($P55,'Congressional Districts'!$A$1:$E$93,4,FALSE)=SNAP!U$1,VLOOKUP($P55,'Congressional Districts'!$A$1:$E$93,5,FALSE)*SNAP!$Q55,0)) -> 0 | V55: =IF(VLOOKUP($P55,'Congressional Districts'!$A$1:$E$93,2,FALSE)=SNAP!V$1,VLOOKUP($P55,'Congressional Districts'!$A$1:$E$93,3,FALSE)*SNAP!$Q55,IF(VLOOKUP($P55,'Congressional Districts'!$A$1:$E$93,4,FALSE)=SNAP!V$1,VLOOKUP($P55,'Congressional Districts'!$A$1:$E$93,5,FALSE)*SNAP!$Q55,0)) -> 7365000 | W55: =IF(VLOOKUP($P55,'Congressional Districts'!$A$1:$E$93,2,FALSE)=SNAP!W$1,VLOOKUP($P55,'Congressional Districts'!$A$1:$E$93,3,FALSE)*SNAP!$Q55,IF(VLOOKUP($P55,'Congressional Districts'!$A$1:$E$93,4,FALSE)=SNAP!W$1,VLOOKUP($P55,'Congressional Districts'!$A$1:$E$93,5,FALSE)*SNAP!$Q55,0)) -> 0 | X55: =IF(VLOOKUP($P55,'Congressional Districts'!$A$1:$E$93,2,FALSE)=SNAP!X$1,VLOOKUP($P55,'Congressional Districts'!$A$1:$E$93,3,FALSE)*SNAP!$Q55,IF(VLOOKUP($P55,'Congressional Districts'!$A$1:$E$93,4,FALSE)=SNAP!X$1,VLOOKUP($P55,'Congressional Districts'!$A$1:$E$93,5,FALSE)*SNAP!$Q55,0)) -> 0 | Y55: =IF(VLOOKUP($P55,'Congressional Districts'!$A$1:$E$93,2,FALSE)=SNAP!Y$1,VLOOKUP($P55,'Congressional Districts'!$A$1:$E$93,3,FALSE)*SNAP!$Q55,IF(VLOOKUP($P55,'Congressional Districts'!$A$1:$E$93,4,FALSE)=SNAP!Y$1,VLOOKUP($P55,'Congressional Districts'!$A$1:$E$93,5,FALSE)*SNAP!$Q55,0)) -> 0 | Z55: =IF(VLOOKUP($P55,'Congressional Districts'!$A$1:$E$93,2,FALSE)=SNAP!Z$1,VLOOKUP($P55,'Congressional Districts'!$A$1:$E$93,3,FALSE)*SNAP!$Q55,IF(VLOOKUP($P55,'Congressional Districts'!$A$1:$E$93,4,FALSE)=SNAP!Z$1,VLOOKUP($P55,'Congressional Districts'!$A$1:$E$93,5,FALSE)*SNAP!$Q55,0)) -> 0 | AA55: =IF(VLOOKUP($P55,'Congressional Districts'!$A$1:$E$93,2,FALSE)=SNAP!AA$1,VLOOKUP($P55,'Congressional Districts'!$A$1:$E$93,3,FALSE)*SNAP!$Q55,IF(VLOOKUP($P55,'Congressional Districts'!$A$1:$E$93,4,FALSE)=SNAP!AA$1,VLOOKUP($P55,'Congressional Districts'!$A$1:$E$93,5,FALSE)*SNAP!$Q55,0)) -> 0
A56: Morgan | B56: 1241.9 | C56: 1228.5 | D56: 1240.9 | E56: 1240.1 | F56: 1240.1 | G56: 1208.1 | H56: 1191.8 | I56: 1209.9 | J56: 1207 | K56: 1218.8 | L56: 1200.1 | M56: 1189.2 | N56: 14616.4 | P56: Morgan | Q56: 14616400 | S56: =IF(VLOOKUP($P56,'Congressional Districts'!$A$1:$E$93,2,FALSE)=SNAP!S$1,VLOOKUP($P56,'Congressional Districts'!$A$1:$E$93,3,FALSE)*SNAP!$Q56,IF(VLOOKUP($P56,'Congressional Districts'!$A$1:$E$93,4,FALSE)=SNAP!S$1,VLOOKUP($P56,'Congressional Districts'!$A$1:$E$93,5,FALSE)*SNAP!$Q56,0)) -> 0 | T56: =IF(VLOOKUP($P56,'Congressional Districts'!$A$1:$E$93,2,FALSE)=SNAP!T$1,VLOOKUP($P56,'Congressional Districts'!$A$1:$E$93,3,FALSE)*SNAP!$Q56,IF(VLOOKUP($P56,'Congressional Districts'!$A$1:$E$93,4,FALSE)=SNAP!T$1,VLOOKUP($P56,'Congressional Districts'!$A$1:$E$93,5,FALSE)*SNAP!$Q56,0)) -> 0 | U56: =IF(VLOOKUP($P56,'Congressional Districts'!$A$1:$E$93,2,FALSE)=SNAP!U$1,VLOOKUP($P56,'Congressional Districts'!$A$1:$E$93,3,FALSE)*SNAP!$Q56,IF(VLOOKUP($P56,'Congressional Districts'!$A$1:$E$93,4,FALSE)=SNAP!U$1,VLOOKUP($P56,'Congressional Districts'!$A$1:$E$93,5,FALSE)*SNAP!$Q56,0)) -> 0 | V56: =IF(VLOOKUP($P56,'Congressional Districts'!$A$1:$E$93,2,FALSE)=SNAP!V$1,VLOOKUP($P56,'Congressional Districts'!$A$1:$E$93,3,FALSE)*SNAP!$Q56,IF(VLOOKUP($P56,'Congressional Districts'!$A$1:$E$93,4,FALSE)=SNAP!V$1,VLOOKUP($P56,'Congressional Districts'!$A$1:$E$93,5,FALSE)*SNAP!$Q56,0)) -> 3631107.768 | W56: =IF(VLOOKUP($P56,'Congressional Districts'!$A$1:$E$93,2,FALSE)=SNAP!W$1,VLOOKUP($P56,'Congressional Districts'!$A$1:$E$93,3,FALSE)*SNAP!$Q56,IF(VLOOKUP($P56,'Congressional Districts'!$A$1:$E$93,4,FALSE)=SNAP!W$1,VLOOKUP($P56,'Congressional Districts'!$A$1:$E$93,5,FALSE)*SNAP!$Q56,0)) -> 0 | X56: =IF(VLOOKUP($P56,'Congressional Districts'!$A$1:$E$93,2,FALSE)=SNAP!X$1,VLOOKUP($P56,'Congressional Districts'!$A$1:$E$93,3,FALSE)*SNAP!$Q56,IF(VLOOKUP($P56,'Congressional Districts'!$A$1:$E$93,4,FALSE)=SNAP!X$1,VLOOKUP($P56,'Congressional Districts'!$A$1:$E$93,5,FALSE)*SNAP!$Q56,0)) -> 0 | Y56: =IF(VLOOKUP($P56,'Congressional Districts'!$A$1:$E$93,2,FALSE)=SNAP!Y$1,VLOOKUP($P56,'Congressional Districts'!$A$1:$E$93,3,FALSE)*SNAP!$Q56,IF(VLOOKUP($P56,'Congressional Districts'!$A$1:$E$93,4,FALSE)=SNAP!Y$1,VLOOKUP($P56,'Congressional Districts'!$A$1:$E$93,5,FALSE)*SNAP!$Q56,0)) -> 0 | Z56: =IF(VLOOKUP($P56,'Congressional Districts'!$A$1:$E$93,2,FALSE)=SNAP!Z$1,VLOOKUP($P56,'Congressional Districts'!$A$1:$E$93,3,FALSE)*SNAP!$Q56,IF(VLOOKUP($P56,'Congressional Districts'!$A$1:$E$93,4,FALSE)=SNAP!Z$1,VLOOKUP($P56,'Congressional Districts'!$A$1:$E$93,5,FALSE)*SNAP!$Q56,0)) -> 0 | AA56: =IF(VLOOKUP($P56,'Congressional Districts'!$A$1:$E$93,2,FALSE)=SNAP!AA$1,VLOOKUP($P56,'Congressional Districts'!$A$1:$E$93,3,FALSE)*SNAP!$Q56,IF(VLOOKUP($P56,'Congressional Districts'!$A$1:$E$93,4,FALSE)=SNAP!AA$1,VLOOKUP($P56,'Congressional Districts'!$A$1:$E$93,5,FALSE)*SNAP!$Q56,0)) -> 10985292.23
A57: Newton | B57: 230.5 | C57: 231.1 | D57: 227.3 | E57: 226.8 | F57: 221.4 | G57: 219.6 | H57: 219 | I57: 234.6 | J57: 233.1 | K57: 242 | L57: 230.6 | M57: 231.6 | N57: 2747.6 | P57: Newton | Q57: 2747600 | S57: =IF(VLOOKUP($P57,'Congressional Districts'!$A$1:$E$93,2,FALSE)=SNAP!S$1,VLOOKUP($P57,'Congressional Districts'!$A$1:$E$93,3,FALSE)*SNAP!$Q57,IF(VLOOKUP($P57,'Congressional Districts'!$A$1:$E$93,4,FALSE)=SNAP!S$1,VLOOKUP($P57,'Congressional Districts'!$A$1:$E$93,5,FALSE)*SNAP!$Q57,0)) -> 0 | T57: =IF(VLOOKUP($P57,'Congressional Districts'!$A$1:$E$93,2,FALSE)=SNAP!T$1,VLOOKUP($P57,'Congressional Districts'!$A$1:$E$93,3,FALSE)*SNAP!$Q57,IF(VLOOKUP($P57,'Congressional Districts'!$A$1:$E$93,4,FALSE)=SNAP!T$1,VLOOKUP($P57,'Congressional Districts'!$A$1:$E$93,5,FALSE)*SNAP!$Q57,0)) -> 0 | U57: =IF(VLOOKUP($P57,'Congressional Districts'!$A$1:$E$93,2,FALSE)=SNAP!U$1,VLOOKUP($P57,'Congressional Districts'!$A$1:$E$93,3,FALSE)*SNAP!$Q57,IF(VLOOKUP($P57,'Congressional Districts'!$A$1:$E$93,4,FALSE)=SNAP!U$1,VLOOKUP($P57,'Congressional Districts'!$A$1:$E$93,5,FALSE)*SNAP!$Q57,0)) -> 0 | V57: =IF(VLOOKUP($P57,'Congressional Districts'!$A$1:$E$93,2,FALSE)=SNAP!V$1,VLOOKUP($P57,'Congressional Districts'!$A$1:$E$93,3,FALSE)*SNAP!$Q57,IF(VLOOKUP($P57,'Congressional Districts'!$A$1:$E$93,4,FALSE)=SNAP!V$1,VLOOKUP($P57,'Congressional Districts'!$A$1:$E$93,5,FALSE)*SNAP!$Q57,0)) -> 2747600 | W57: =IF(VLOOKUP($P57,'Congressional Districts'!$A$1:$E$93,2,FALSE)=SNAP!W$1,VLOOKUP($P57,'Congressional Districts'!$A$1:$E$93,3,FALSE)*SNAP!$Q57,IF(VLOOKUP($P57,'Congressional Districts'!$A$1:$E$93,4,FALSE)=SNAP!W$1,VLOOKUP($P57,'Congressional Districts'!$A$1:$E$93,5,FALSE)*SNAP!$Q57,0)) -> 0 | X57: =IF(VLOOKUP($P57,'Congressional Districts'!$A$1:$E$93,2,FALSE)=SNAP!X$1,VLOOKUP($P57,'Congressional Districts'!$A$1:$E$93,3,FALSE)*SNAP!$Q57,IF(VLOOKUP($P57,'Congressional Districts'!$A$1:$E$93,4,FALSE)=SNAP!X$1,VLOOKUP($P57,'Congressional Districts'!$A$1:$E$93,5,FALSE)*SNAP!$Q57,0)) -> 0 | Y57: =IF(VLOOKUP($P57,'Congressional Districts'!$A$1:$E$93,2,FALSE)=SNAP!Y$1,VLOOKUP($P57,'Congressional Districts'!$A$1:$E$93,3,FALSE)*SNAP!$Q57,IF(VLOOKUP($P57,'Congressional Districts'!$A$1:$E$93,4,FALSE)=SNAP!Y$1,VLOOKUP($P57,'Congressional Districts'!$A$1:$E$93,5,FALSE)*SNAP!$Q57,0)) -> 0 | Z57: =IF(VLOOKUP($P57,'Congressional Districts'!$A$1:$E$93,2,FALSE)=SNAP!Z$1,VLOOKUP($P57,'Congressional Districts'!$A$1:$E$93,3,FALSE)*SNAP!$Q57,IF(VLOOKUP($P57,'Congressional Districts'!$A$1:$E$93,4,FALSE)=SNAP!Z$1,VLOOKUP($P57,'Congressional Districts'!$A$1:$E$93,5,FALSE)*SNAP!$Q57,0)) -> 0 | AA57: =IF(VLOOKUP($P57,'Congressional Districts'!$A$1:$E$93,2,FALSE)=SNAP!AA$1,VLOOKUP($P57,'Congressional Districts'!$A$1:$E$93,3,FALSE)*SNAP!$Q57,IF(VLOOKUP($P57,'Congressional Districts'!$A$1:$E$93,4,FALSE)=SNAP!AA$1,VLOOKUP($P57,'Congressional Districts'!$A$1:$E$93,5,FALSE)*SNAP!$Q57,0)) -> 0
A58: Noble | B58: 653.8 | C58: 655.4 | D58: 650.3 | E58: 638.1 | F58: 633.5 | G58: 634.8 | H58: 642.2 | I58: 635.9 | J58: 635 | K58: 636.6 | L58: 622.3 | M58: 625.6 | N58: 7663.5 | P58: Noble | Q58: 7663500 | S58: =IF(VLOOKUP($P58,'Congressional Districts'!$A$1:$E$93,2,FALSE)=SNAP!S$1,VLOOKUP($P58,'Congressional Districts'!$A$1:$E$93,3,FALSE)*SNAP!$Q58,IF(VLOOKUP($P58,'Congressional Districts'!$A$1:$E$93,4,FALSE)=SNAP!S$1,VLOOKUP($P58,'Congressional Districts'!$A$1:$E$93,5,FALSE)*SNAP!$Q58,0)) -> 0 | T58: =IF(VLOOKUP($P58,'Congressional Districts'!$A$1:$E$93,2,FALSE)=SNAP!T$1,VLOOKUP($P58,'Congressional Districts'!$A$1:$E$93,3,FALSE)*SNAP!$Q58,IF(VLOOKUP($P58,'Congressional Districts'!$A$1:$E$93,4,FALSE)=SNAP!T$1,VLOOKUP($P58,'Congressional Districts'!$A$1:$E$93,5,FALSE)*SNAP!$Q58,0)) -> 0 | U58: =IF(VLOOKUP($P58,'Congressional Districts'!$A$1:$E$93,2,FALSE)=SNAP!U$1,VLOOKUP($P58,'Congressional Districts'!$A$1:$E$93,3,FALSE)*SNAP!$Q58,IF(VLOOKUP($P58,'Congressional Districts'!$A$1:$E$93,4,FALSE)=SNAP!U$1,VLOOKUP($P58,'Congressional Districts'!$A$1:$E$93,5,FALSE)*SNAP!$Q58,0)) -> 7663500 | V58: =IF(VLOOKUP($P58,'Congressional Districts'!$A$1:$E$93,2,FALSE)=SNAP!V$1,VLOOKUP($P58,'Congressional Districts'!$A$1:$E$93,3,FALSE)*SNAP!$Q58,IF(VLOOKUP($P58,'Congressional Districts'!$A$1:$E$93,4,FALSE)=SNAP!V$1,VLOOKUP($P58,'Congressional Districts'!$A$1:$E$93,5,FALSE)*SNAP!$Q58,0)) -> 0 | W58: =IF(VLOOKUP($P58,'Congressional Districts'!$A$1:$E$93,2,FALSE)=SNAP!W$1,VLOOKUP($P58,'Congressional Districts'!$A$1:$E$93,3,FALSE)*SNAP!$Q58,IF(VLOOKUP($P58,'Congressional Districts'!$A$1:$E$93,4,FALSE)=SNAP!W$1,VLOOKUP($P58,'Congressional Districts'!$A$1:$E$93,5,FALSE)*SNAP!$Q58,0)) -> 0 | X58: =IF(VLOOKUP($P58,'Congressional Districts'!$A$1:$E$93,2,FALSE)=SNAP!X$1,VLOOKUP($P58,'Congressional Districts'!$A$1:$E$93,3,FALSE)*SNAP!$Q58,IF(VLOOKUP($P58,'Congressional Districts'!$A$1:$E$93,4,FALSE)=SNAP!X$1,VLOOKUP($P58,'Congressional Districts'!$A$1:$E$93,5,FALSE)*SNAP!$Q58,0)) -> 0 | Y58: =IF(VLOOKUP($P58,'Congressional Districts'!$A$1:$E$93,2,FALSE)=SNAP!Y$1,VLOOKUP($P58,'Congressional Districts'!$A$1:$E$93,3,FALSE)*SNAP!$Q58,IF(VLOOKUP($P58,'Congressional Districts'!$A$1:$E$93,4,FALSE)=SNAP!Y$1,VLOOKUP($P58,'Congressional Districts'!$A$1:$E$93,5,FALSE)*SNAP!$Q58,0)) -> 0 | Z58: =IF(VLOOKUP($P58,'Congressional Districts'!$A$1:$E$93,2,FALSE)=SNAP!Z$1,VLOOKUP($P58,'Congressional Districts'!$A$1:$E$93,3,FALSE)*SNAP!$Q58,IF(VLOOKUP($P58,'Congressional Districts'!$A$1:$E$93,4,FALSE)=SNAP!Z$1,VLOOKUP($P58,'Congressional Districts'!$A$1:$E$93,5,FALSE)*SNAP!$Q58,0)) -> 0 | AA58: =IF(VLOOKUP($P58,'Congressional Districts'!$A$1:$E$93,2,FALSE)=SNAP!AA$1,VLOOKUP($P58,'Congressional Districts'!$A$1:$E$93,3,FALSE)*SNAP!$Q58,IF(VLOOKUP($P58,'Congressional Districts'!$A$1:$E$93,4,FALSE)=SNAP!AA$1,VLOOKUP($P58,'Congressional Districts'!$A$1:$E$93,5,FALSE)*SNAP!$Q58,0)) -> 0
A59: Ohio | B59: 56.1 | C59: 59.8 | D59: 61.7 | E59: 62.4 | F59: 63.3 | G59: 63.4 | H59: 63.5 | I59: 64.6 | J59: 63.5 | K59: 61.7 | L59: 61.3 | M59: 61.7 | N59: 743 | P59: Ohio | Q59: 743000 | S59: =IF(VLOOKUP($P59,'Congressional Districts'!$A$1:$E$93,2,FALSE)=SNAP!S$1,VLOOKUP($P59,'Congressional Districts'!$A$1:$E$93,3,FALSE)*SNAP!$Q59,IF(VLOOKUP($P59,'Congressional Districts'!$A$1:$E$93,4,FALSE)=SNAP!S$1,VLOOKUP($P59,'Congressional Districts'!$A$1:$E$93,5,FALSE)*SNAP!$Q59,0)) -> 0 | T59: =IF(VLOOKUP($P59,'Congressional Districts'!$A$1:$E$93,2,FALSE)=SNAP!T$1,VLOOKUP($P59,'Congressional Districts'!$A$1:$E$93,3,FALSE)*SNAP!$Q59,IF(VLOOKUP($P59,'Congressional Districts'!$A$1:$E$93,4,FALSE)=SNAP!T$1,VLOOKUP($P59,'Congressional Districts'!$A$1:$E$93,5,FALSE)*SNAP!$Q59,0)) -> 0 | U59: =IF(VLOOKUP($P59,'Congressional Districts'!$A$1:$E$93,2,FALSE)=SNAP!U$1,VLOOKUP($P59,'Congressional Districts'!$A$1:$E$93,3,FALSE)*SNAP!$Q59,IF(VLOOKUP($P59,'Congressional Districts'!$A$1:$E$93,4,FALSE)=SNAP!U$1,VLOOKUP($P59,'Congressional Districts'!$A$1:$E$93,5,FALSE)*SNAP!$Q59,0)) -> 0 | V59: =IF(VLOOKUP($P59,'Congressional Districts'!$A$1:$E$93,2,FALSE)=SNAP!V$1,VLOOKUP($P59,'Congressional Districts'!$A$1:$E$93,3,FALSE)*SNAP!$Q59,IF(VLOOKUP($P59,'Congressional Districts'!$A$1:$E$93,4,FALSE)=SNAP!V$1,VLOOKUP($P59,'Congressional Districts'!$A$1:$E$93,5,FALSE)*SNAP!$Q59,0)) -> 0 | W59: =IF(VLOOKUP($P59,'Congressional Districts'!$A$1:$E$93,2,FALSE)=SNAP!W$1,VLOOKUP($P59,'Congressional Districts'!$A$1:$E$93,3,FALSE)*SNAP!$Q59,IF(VLOOKUP($P59,'Congressional Districts'!$A$1:$E$93,4,FALSE)=SNAP!W$1,VLOOKUP($P59,'Congressional Districts'!$A$1:$E$93,5,FALSE)*SNAP!$Q59,0)) -> 0 | X59: =IF(VLOOKUP($P59,'Congressional Districts'!$A$1:$E$93,2,FALSE)=SNAP!X$1,VLOOKUP($P59,'Congressional Districts'!$A$1:$E$93,3,FALSE)*SNAP!$Q59,IF(VLOOKUP($P59,'Congressional Districts'!$A$1:$E$93,4,FALSE)=SNAP!X$1,VLOOKUP($P59,'Congressional Districts'!$A$1:$E$93,5,FALSE)*SNAP!$Q59,0)) -> 743000 | Y59: =IF(VLOOKUP($P59,'Congressional Districts'!$A$1:$E$93,2,FALSE)=SNAP!Y$1,VLOOKUP($P59,'Congressional Districts'!$A$1:$E$93,3,FALSE)*SNAP!$Q59,IF(VLOOKUP($P59,'Congressional Districts'!$A$1:$E$93,4,FALSE)=SNAP!Y$1,VLOOKUP($P59,'Congressional Districts'!$A$1:$E$93,5,FALSE)*SNAP!$Q59,0)) -> 0 | Z59: =IF(VLOOKUP($P59,'Congressional Districts'!$A$1:$E$93,2,FALSE)=SNAP!Z$1,VLOOKUP($P59,'Congressional Districts'!$A$1:$E$93,3,FALSE)*SNAP!$Q59,IF(VLOOKUP($P59,'Congressional Districts'!$A$1:$E$93,4,FALSE)=SNAP!Z$1,VLOOKUP($P59,'Congressional Districts'!$A$1:$E$93,5,FALSE)*SNAP!$Q59,0)) -> 0 | AA59: =IF(VLOOKUP($P59,'Congressional Districts'!$A$1:$E$93,2,FALSE)=SNAP!AA$1,VLOOKUP($P59,'Congressional Districts'!$A$1:$E$93,3,FALSE)*SNAP!$Q59,IF(VLOOKUP($P59,'Congressional Districts'!$A$1:$E$93,4,FALSE)=SNAP!AA$1,VLOOKUP($P59,'Congressional Districts'!$A$1:$E$93,5,FALSE)*SNAP!$Q59,0)) -> 0
A60: Orange | B60: 378.1 | C60: 382.2 | D60: 381.5 | E60: 381.2 | F60: 386.4 | G60: 385.3 | H60: 387.9 | I60: 399.1 | J60: 396.2 | K60: 397.9 | L60: 388.9 | M60: 389.8 | N60: 4654.5 | P60: Orange | Q60: 4654500 | S60: =IF(VLOOKUP($P60,'Congressional Districts'!$A$1:$E$93,2,FALSE)=SNAP!S$1,VLOOKUP($P60,'Congressional Districts'!$A$1:$E$93,3,FALSE)*SNAP!$Q60,IF(VLOOKUP($P60,'Congressional Districts'!$A$1:$E$93,4,FALSE)=SNAP!S$1,VLOOKUP($P60,'Congressional Districts'!$A$1:$E$93,5,FALSE)*SNAP!$Q60,0)) -> 0 | T60: =IF(VLOOKUP($P60,'Congressional Districts'!$A$1:$E$93,2,FALSE)=SNAP!T$1,VLOOKUP($P60,'Congressional Districts'!$A$1:$E$93,3,FALSE)*SNAP!$Q60,IF(VLOOKUP($P60,'Congressional Districts'!$A$1:$E$93,4,FALSE)=SNAP!T$1,VLOOKUP($P60,'Congressional Districts'!$A$1:$E$93,5,FALSE)*SNAP!$Q60,0)) -> 0 | U60: =IF(VLOOKUP($P60,'Congressional Districts'!$A$1:$E$93,2,FALSE)=SNAP!U$1,VLOOKUP($P60,'Congressional Districts'!$A$1:$E$93,3,FALSE)*SNAP!$Q60,IF(VLOOKUP($P60,'Congressional Districts'!$A$1:$E$93,4,FALSE)=SNAP!U$1,VLOOKUP($P60,'Congressional Districts'!$A$1:$E$93,5,FALSE)*SNAP!$Q60,0)) -> 0 | V60: =IF(VLOOKUP($P60,'Congressional Districts'!$A$1:$E$93,2,FALSE)=SNAP!V$1,VLOOKUP($P60,'Congressional Districts'!$A$1:$E$93,3,FALSE)*SNAP!$Q60,IF(VLOOKUP($P60,'Congressional Districts'!$A$1:$E$93,4,FALSE)=SNAP!V$1,VLOOKUP($P60,'Congressional Districts'!$A$1:$E$93,5,FALSE)*SNAP!$Q60,0)) -> 0 | W60: =IF(VLOOKUP($P60,'Congressional Districts'!$A$1:$E$93,2,FALSE)=SNAP!W$1,VLOOKUP($P60,'Congressional Districts'!$A$1:$E$93,3,FALSE)*SNAP!$Q60,IF(VLOOKUP($P60,'Congressional Districts'!$A$1:$E$93,4,FALSE)=SNAP!W$1,VLOOKUP($P60,'Congressional Districts'!$A$1:$E$93,5,FALSE)*SNAP!$Q60,0)) -> 0 | X60: =IF(VLOOKUP($P60,'Congressional Districts'!$A$1:$E$93,2,FALSE)=SNAP!X$1,VLOOKUP($P60,'Congressional Districts'!$A$1:$E$93,3,FALSE)*SNAP!$Q60,IF(VLOOKUP($P60,'Congressional Districts'!$A$1:$E$93,4,FALSE)=SNAP!X$1,VLOOKUP($P60,'Congressional Districts'!$A$1:$E$93,5,FALSE)*SNAP!$Q60,0)) -> 0 | Y60: =IF(VLOOKUP($P60,'Congressional Districts'!$A$1:$E$93,2,FALSE)=SNAP!Y$1,VLOOKUP($P60,'Congressional Districts'!$A$1:$E$93,3,FALSE)*SNAP!$Q60,IF(VLOOKUP($P60,'Congressional Districts'!$A$1:$E$93,4,FALSE)=SNAP!Y$1,VLOOKUP($P60,'Congressional Districts'!$A$1:$E$93,5,FALSE)*SNAP!$Q60,0)) -> 0 | Z60: =IF(VLOOKUP($P60,'Congressional Districts'!$A$1:$E$93,2,FALSE)=SNAP!Z$1,VLOOKUP($P60,'Congressional Districts'!$A$1:$E$93,3,FALSE)*SNAP!$Q60,IF(VLOOKUP($P60,'Congressional Districts'!$A$1:$E$93,4,FALSE)=SNAP!Z$1,VLOOKUP($P60,'Congressional Districts'!$A$1:$E$93,5,FALSE)*SNAP!$Q60,0)) -> 0 | AA60: =IF(VLOOKUP($P60,'Congressional Districts'!$A$1:$E$93,2,FALSE)=SNAP!AA$1,VLOOKUP($P60,'Congressional Districts'!$A$1:$E$93,3,FALSE)*SNAP!$Q60,IF(VLOOKUP($P60,'Congressional Districts'!$A$1:$E$93,4,FALSE)=SNAP!AA$1,VLOOKUP($P60,'Congressional Districts'!$A$1:$E$93,5,FALSE)*SNAP!$Q60,0)) -> 4654500
A61: Owen | B61: 431.3 | C61: 424.1 | D61: 425.5 | E61: 422.8 | F61: 408.5 | G61: 408.7 | H61: 414.8 | I61: 416.6 | J61: 404.4 | K61: 400 | L61: 396.6 | M61: 402.8 | N61: 4956.1 | P61: Owen | Q61: 4956100 | S61: =IF(VLOOKUP($P61,'Congressional Districts'!$A$1:$E$93,2,FALSE)=SNAP!S$1,VLOOKUP($P61,'Congressional Districts'!$A$1:$E$93,3,FALSE)*SNAP!$Q61,IF(VLOOKUP($P61,'Congressional Districts'!$A$1:$E$93,4,FALSE)=SNAP!S$1,VLOOKUP($P61,'Congressional Districts'!$A$1:$E$93,5,FALSE)*SNAP!$Q61,0)) -> 0 | T61: =IF(VLOOKUP($P61,'Congressional Districts'!$A$1:$E$93,2,FALSE)=SNAP!T$1,VLOOKUP($P61,'Congressional Districts'!$A$1:$E$93,3,FALSE)*SNAP!$Q61,IF(VLOOKUP($P61,'Congressional Districts'!$A$1:$E$93,4,FALSE)=SNAP!T$1,VLOOKUP($P61,'Congressional Districts'!$A$1:$E$93,5,FALSE)*SNAP!$Q61,0)) -> 0 | U61: =IF(VLOOKUP($P61,'Congressional Districts'!$A$1:$E$93,2,FALSE)=SNAP!U$1,VLOOKUP($P61,'Congressional Districts'!$A$1:$E$93,3,FALSE)*SNAP!$Q61,IF(VLOOKUP($P61,'Congressional Districts'!$A$1:$E$93,4,FALSE)=SNAP!U$1,VLOOKUP($P61,'Congressional Districts'!$A$1:$E$93,5,FALSE)*SNAP!$Q61,0)) -> 0 | V61: =IF(VLOOKUP($P61,'Congressional Districts'!$A$1:$E$93,2,FALSE)=SNAP!V$1,VLOOKUP($P61,'Congressional Districts'!$A$1:$E$93,3,FALSE)*SNAP!$Q61,IF(VLOOKUP($P61,'Congressional Districts'!$A$1:$E$93,4,FALSE)=SNAP!V$1,VLOOKUP($P61,'Congressional Districts'!$A$1:$E$93,5,FALSE)*SNAP!$Q61,0)) -> 0 | W61: =IF(VLOOKUP($P61,'Congressional Districts'!$A$1:$E$93,2,FALSE)=SNAP!W$1,VLOOKUP($P61,'Congressional Districts'!$A$1:$E$93,3,FALSE)*SNAP!$Q61,IF(VLOOKUP($P61,'Congressional Districts'!$A$1:$E$93,4,FALSE)=SNAP!W$1,VLOOKUP($P61,'Congressional Districts'!$A$1:$E$93,5,FALSE)*SNAP!$Q61,0)) -> 0 | X61: =IF(VLOOKUP($P61,'Congressional Districts'!$A$1:$E$93,2,FALSE)=SNAP!X$1,VLOOKUP($P61,'Congressional Districts'!$A$1:$E$93,3,FALSE)*SNAP!$Q61,IF(VLOOKUP($P61,'Congressional Districts'!$A$1:$E$93,4,FALSE)=SNAP!X$1,VLOOKUP($P61,'Congressional Districts'!$A$1:$E$93,5,FALSE)*SNAP!$Q61,0)) -> 0 | Y61: =IF(VLOOKUP($P61,'Congressional Districts'!$A$1:$E$93,2,FALSE)=SNAP!Y$1,VLOOKUP($P61,'Congressional Districts'!$A$1:$E$93,3,FALSE)*SNAP!$Q61,IF(VLOOKUP($P61,'Congressional Districts'!$A$1:$E$93,4,FALSE)=SNAP!Y$1,VLOOKUP($P61,'Congressional Districts'!$A$1:$E$93,5,FALSE)*SNAP!$Q61,0)) -> 0 | Z61: =IF(VLOOKUP($P61,'Congressional Districts'!$A$1:$E$93,2,FALSE)=SNAP!Z$1,VLOOKUP($P61,'Congressional Districts'!$A$1:$E$93,3,FALSE)*SNAP!$Q61,IF(VLOOKUP($P61,'Congressional Districts'!$A$1:$E$93,4,FALSE)=SNAP!Z$1,VLOOKUP($P61,'Congressional Districts'!$A$1:$E$93,5,FALSE)*SNAP!$Q61,0)) -> 4956100 | AA61: =IF(VLOOKUP($P61,'Congressional Districts'!$A$1:$E$93,2,FALSE)=SNAP!AA$1,VLOOKUP($P61,'Congressional Districts'!$A$1:$E$93,3,FALSE)*SNAP!$Q61,IF(VLOOKUP($P61,'Congressional Districts'!$A$1:$E$93,4,FALSE)=SNAP!AA$1,VLOOKUP($P61,'Congressional Districts'!$A$1:$E$93,5,FALSE)*SNAP!$Q61,0)) -> 0
A62: Parke | B62: 268.5 | C62: 259.9 | D62: 264.9 | E62: 266.3 | F62: 266.7 | G62: 263.4 | H62: 266.4 | I62: 271.8 | J62: 277.4 | K62: 279.4 | L62: 282.2 | M62: 279.8 | N62: 3246.7 | P62: Parke | Q62: 3246700 | S62: =IF(VLOOKUP($P62,'Congressional Districts'!$A$1:$E$93,2,FALSE)=SNAP!S$1,VLOOKUP($P62,'Congressional Districts'!$A$1:$E$93,3,FALSE)*SNAP!$Q62,IF(VLOOKUP($P62,'Congressional Districts'!$A$1:$E$93,4,FALSE)=SNAP!S$1,VLOOKUP($P62,'Congressional Districts'!$A$1:$E$93,5,FALSE)*SNAP!$Q62,0)) -> 0 | T62: =IF(VLOOKUP($P62,'Congressional Districts'!$A$1:$E$93,2,FALSE)=SNAP!T$1,VLOOKUP($P62,'Congressional Districts'!$A$1:$E$93,3,FALSE)*SNAP!$Q62,IF(VLOOKUP($P62,'Congressional Districts'!$A$1:$E$93,4,FALSE)=SNAP!T$1,VLOOKUP($P62,'Congressional Districts'!$A$1:$E$93,5,FALSE)*SNAP!$Q62,0)) -> 0 | U62: =IF(VLOOKUP($P62,'Congressional Districts'!$A$1:$E$93,2,FALSE)=SNAP!U$1,VLOOKUP($P62,'Congressional Districts'!$A$1:$E$93,3,FALSE)*SNAP!$Q62,IF(VLOOKUP($P62,'Congressional Districts'!$A$1:$E$93,4,FALSE)=SNAP!U$1,VLOOKUP($P62,'Congressional Districts'!$A$1:$E$93,5,FALSE)*SNAP!$Q62,0)) -> 0 | V62: =IF(VLOOKUP($P62,'Congressional Districts'!$A$1:$E$93,2,FALSE)=SNAP!V$1,VLOOKUP($P62,'Congressional Districts'!$A$1:$E$93,3,FALSE)*SNAP!$Q62,IF(VLOOKUP($P62,'Congressional Districts'!$A$1:$E$93,4,FALSE)=SNAP!V$1,VLOOKUP($P62,'Congressional Districts'!$A$1:$E$93,5,FALSE)*SNAP!$Q62,0)) -> 0 | W62: =IF(VLOOKUP($P62,'Congressional Districts'!$A$1:$E$93,2,FALSE)=SNAP!W$1,VLOOKUP($P62,'Congressional Districts'!$A$1:$E$93,3,FALSE)*SNAP!$Q62,IF(VLOOKUP($P62,'Congressional Districts'!$A$1:$E$93,4,FALSE)=SNAP!W$1,VLOOKUP($P62,'Congressional Districts'!$A$1:$E$93,5,FALSE)*SNAP!$Q62,0)) -> 0 | X62: =IF(VLOOKUP($P62,'Congressional Districts'!$A$1:$E$93,2,FALSE)=SNAP!X$1,VLOOKUP($P62,'Congressional Districts'!$A$1:$E$93,3,FALSE)*SNAP!$Q62,IF(VLOOKUP($P62,'Congressional Districts'!$A$1:$E$93,4,FALSE)=SNAP!X$1,VLOOKUP($P62,'Congressional Districts'!$A$1:$E$93,5,FALSE)*SNAP!$Q62,0)) -> 0 | Y62: =IF(VLOOKUP($P62,'Congressional Districts'!$A$1:$E$93,2,FALSE)=SNAP!Y$1,VLOOKUP($P62,'Congressional Districts'!$A$1:$E$93,3,FALSE)*SNAP!$Q62,IF(VLOOKUP($P62,'Congressional Districts'!$A$1:$E$93,4,FALSE)=SNAP!Y$1,VLOOKUP($P62,'Congressional Districts'!$A$1:$E$93,5,FALSE)*SNAP!$Q62,0)) -> 0 | Z62: =IF(VLOOKUP($P62,'Congressional Districts'!$A$1:$E$93,2,FALSE)=SNAP!Z$1,VLOOKUP($P62,'Congressional Districts'!$A$1:$E$93,3,FALSE)*SNAP!$Q62,IF(VLOOKUP($P62,'Congressional Districts'!$A$1:$E$93,4,FALSE)=SNAP!Z$1,VLOOKUP($P62,'Congressional Districts'!$A$1:$E$93,5,FALSE)*SNAP!$Q62,0)) -> 3246700 | AA62: =IF(VLOOKUP($P62,'Congressional Districts'!$A$1:$E$93,2,FALSE)=SNAP!AA$1,VLOOKUP($P62,'Congressional Districts'!$A$1:$E$93,3,FALSE)*SNAP!$Q62,IF(VLOOKUP($P62,'Congressional Districts'!$A$1:$E$93,4,FALSE)=SNAP!AA$1,VLOOKUP($P62,'Congressional Districts'!$A$1:$E$93,5,FALSE)*SNAP!$Q62,0)) -> 0
A63: Perry | B63: 249.5 | C63: 240.5 | D63: 240.1 | E63: 242.5 | F63: 242.5 | G63: 240.4 | H63: 235.9 | I63: 239.5 | J63: 245.3 | K63: 255.7 | L63: 244.4 | M63: 244 | N63: 2920.3 | P63: Perry | Q63: 2920300 | S63: =IF(VLOOKUP($P63,'Congressional Districts'!$A$1:$E$93,2,FALSE)=SNAP!S$1,VLOOKUP($P63,'Congressional Districts'!$A$1:$E$93,3,FALSE)*SNAP!$Q63,IF(VLOOKUP($P63,'Congressional Districts'!$A$1:$E$93,4,FALSE)=SNAP!S$1,VLOOKUP($P63,'Congressional Districts'!$A$1:$E$93,5,FALSE)*SNAP!$Q63,0)) -> 0 | T63: =IF(VLOOKUP($P63,'Congressional Districts'!$A$1:$E$93,2,FALSE)=SNAP!T$1,VLOOKUP($P63,'Congressional Districts'!$A$1:$E$93,3,FALSE)*SNAP!$Q63,IF(VLOOKUP($P63,'Congressional Districts'!$A$1:$E$93,4,FALSE)=SNAP!T$1,VLOOKUP($P63,'Congressional Districts'!$A$1:$E$93,5,FALSE)*SNAP!$Q63,0)) -> 0 | U63: =IF(VLOOKUP($P63,'Congressional Districts'!$A$1:$E$93,2,FALSE)=SNAP!U$1,VLOOKUP($P63,'Congressional Districts'!$A$1:$E$93,3,FALSE)*SNAP!$Q63,IF(VLOOKUP($P63,'Congressional Districts'!$A$1:$E$93,4,FALSE)=SNAP!U$1,VLOOKUP($P63,'Congressional Districts'!$A$1:$E$93,5,FALSE)*SNAP!$Q63,0)) -> 0 | V63: =IF(VLOOKUP($P63,'Congressional Districts'!$A$1:$E$93,2,FALSE)=SNAP!V$1,VLOOKUP($P63,'Congressional Districts'!$A$1:$E$93,3,FALSE)*SNAP!$Q63,IF(VLOOKUP($P63,'Congressional Districts'!$A$1:$E$93,4,FALSE)=SNAP!V$1,VLOOKUP($P63,'Congressional Districts'!$A$1:$E$93,5,FALSE)*SNAP!$Q63,0)) -> 0 | W63: =IF(VLOOKUP($P63,'Congressional Districts'!$A$1:$E$93,2,FALSE)=SNAP!W$1,VLOOKUP($P63,'Congressional Districts'!$A$1:$E$93,3,FALSE)*SNAP!$Q63,IF(VLOOKUP($P63,'Congressional Districts'!$A$1:$E$93,4,FALSE)=SNAP!W$1,VLOOKUP($P63,'Congressional Districts'!$A$1:$E$93,5,FALSE)*SNAP!$Q63,0)) -> 0 | X63: =IF(VLOOKUP($P63,'Congressional Districts'!$A$1:$E$93,2,FALSE)=SNAP!X$1,VLOOKUP($P63,'Congressional Districts'!$A$1:$E$93,3,FALSE)*SNAP!$Q63,IF(VLOOKUP($P63,'Congressional Districts'!$A$1:$E$93,4,FALSE)=SNAP!X$1,VLOOKUP($P63,'Congressional Districts'!$A$1:$E$93,5,FALSE)*SNAP!$Q63,0)) -> 0 | Y63: =IF(VLOOKUP($P63,'Congressional Districts'!$A$1:$E$93,2,FALSE)=SNAP!Y$1,VLOOKUP($P63,'Congressional Districts'!$A$1:$E$93,3,FALSE)*SNAP!$Q63,IF(VLOOKUP($P63,'Congressional Districts'!$A$1:$E$93,4,FALSE)=SNAP!Y$1,VLOOKUP($P63,'Congressional Districts'!$A$1:$E$93,5,FALSE)*SNAP!$Q63,0)) -> 0 | Z63: =IF(VLOOKUP($P63,'Congressional Districts'!$A$1:$E$93,2,FALSE)=SNAP!Z$1,VLOOKUP($P63,'Congressional Districts'!$A$1:$E$93,3,FALSE)*SNAP!$Q63,IF(VLOOKUP($P63,'Congressional Districts'!$A$1:$E$93,4,FALSE)=SNAP!Z$1,VLOOKUP($P63,'Congressional Districts'!$A$1:$E$93,5,FALSE)*SNAP!$Q63,0)) -> 2920300 | AA63: =IF(VLOOKUP($P63,'Congressional Districts'!$A$1:$E$93,2,FALSE)=SNAP!AA$1,VLOOKUP($P63,'Congressional Districts'!$A$1:$E$93,3,FALSE)*SNAP!$Q63,IF(VLOOKUP($P63,'Congressional Districts'!$A$1:$E$93,4,FALSE)=SNAP!AA$1,VLOOKUP($P63,'Congressional Districts'!$A$1:$E$93,5,FALSE)*SNAP!$Q63,0)) -> 0
A64: Pike | B64: 164.7 | C64: 155 | D64: 157.9 | E64: 159.6 | F64: 157.6 | G64: 159.5 | H64: 160 | I64: 165.2 | J64: 165 | K64: 168.5 | L64: 168.9 | M64: 171.8 | N64: 1953.7 | P64: Pike | Q64: 1953700 | S64: =IF(VLOOKUP($P64,'Congressional Districts'!$A$1:$E$93,2,FALSE)=SNAP!S$1,VLOOKUP($P64,'Congressional Districts'!$A$1:$E$93,3,FALSE)*SNAP!$Q64,IF(VLOOKUP($P64,'Congressional Districts'!$A$1:$E$93,4,FALSE)=SNAP!S$1,VLOOKUP($P64,'Congressional Districts'!$A$1:$E$93,5,FALSE)*SNAP!$Q64,0)) -> 0 | T64: =IF(VLOOKUP($P64,'Congressional Districts'!$A$1:$E$93,2,FALSE)=SNAP!T$1,VLOOKUP($P64,'Congressional Districts'!$A$1:$E$93,3,FALSE)*SNAP!$Q64,IF(VLOOKUP($P64,'Congressional Districts'!$A$1:$E$93,4,FALSE)=SNAP!T$1,VLOOKUP($P64,'Congressional Districts'!$A$1:$E$93,5,FALSE)*SNAP!$Q64,0)) -> 0 | U64: =IF(VLOOKUP($P64,'Congressional Districts'!$A$1:$E$93,2,FALSE)=SNAP!U$1,VLOOKUP($P64,'Congressional Districts'!$A$1:$E$93,3,FALSE)*SNAP!$Q64,IF(VLOOKUP($P64,'Congressional Districts'!$A$1:$E$93,4,FALSE)=SNAP!U$1,VLOOKUP($P64,'Congressional Districts'!$A$1:$E$93,5,FALSE)*SNAP!$Q64,0)) -> 0 | V64: =IF(VLOOKUP($P64,'Congressional Districts'!$A$1:$E$93,2,FALSE)=SNAP!V$1,VLOOKUP($P64,'Congressional Districts'!$A$1:$E$93,3,FALSE)*SNAP!$Q64,IF(VLOOKUP($P64,'Congressional Districts'!$A$1:$E$93,4,FALSE)=SNAP!V$1,VLOOKUP($P64,'Congressional Districts'!$A$1:$E$93,5,FALSE)*SNAP!$Q64,0)) -> 0 | W64: =IF(VLOOKUP($P64,'Congressional Districts'!$A$1:$E$93,2,FALSE)=SNAP!W$1,VLOOKUP($P64,'Congressional Districts'!$A$1:$E$93,3,FALSE)*SNAP!$Q64,IF(VLOOKUP($P64,'Congressional Districts'!$A$1:$E$93,4,FALSE)=SNAP!W$1,VLOOKUP($P64,'Congressional Districts'!$A$1:$E$93,5,FALSE)*SNAP!$Q64,0)) -> 0 | X64: =IF(VLOOKUP($P64,'Congressional Districts'!$A$1:$E$93,2,FALSE)=SNAP!X$1,VLOOKUP($P64,'Congressional Districts'!$A$1:$E$93,3,FALSE)*SNAP!$Q64,IF(VLOOKUP($P64,'Congressional Districts'!$A$1:$E$93,4,FALSE)=SNAP!X$1,VLOOKUP($P64,'Congressional Districts'!$A$1:$E$93,5,FALSE)*SNAP!$Q64,0)) -> 0 | Y64: =IF(VLOOKUP($P64,'Congressional Districts'!$A$1:$E$93,2,FALSE)=SNAP!Y$1,VLOOKUP($P64,'Congressional Districts'!$A$1:$E$93,3,FALSE)*SNAP!$Q64,IF(VLOOKUP($P64,'Congressional Districts'!$A$1:$E$93,4,FALSE)=SNAP!Y$1,VLOOKUP($P64,'Congressional Districts'!$A$1:$E$93,5,FALSE)*SNAP!$Q64,0)) -> 0 | Z64: =IF(VLOOKUP($P64,'Congressional Districts'!$A$1:$E$93,2,FALSE)=SNAP!Z$1,VLOOKUP($P64,'Congressional Districts'!$A$1:$E$93,3,FALSE)*SNAP!$Q64,IF(VLOOKUP($P64,'Congressional Districts'!$A$1:$E$93,4,FALSE)=SNAP!Z$1,VLOOKUP($P64,'Congressional Districts'!$A$1:$E$93,5,FALSE)*SNAP!$Q64,0)) -> 1953700 | AA64: =IF(VLOOKUP($P64,'Congressional Districts'!$A$1:$E$93,2,FALSE)=SNAP!AA$1,VLOOKUP($P64,'Congressional Districts'!$A$1:$E$93,3,FALSE)*SNAP!$Q64,IF(VLOOKUP($P64,'Congressional Districts'!$A$1:$E$93,4,FALSE)=SNAP!AA$1,VLOOKUP($P64,'Congressional Districts'!$A$1:$E$93,5,FALSE)*SNAP!$Q64,0)) -> 0
A65: Porter | B65: 2002.5 | C65: 1951.8 | D65: 1943.7 | E65: 1914.2 | F65: 1905.4 | G65: 1883.2 | H65: 1886.5 | I65: 1940.4 | J65: 1914 | K65: 1928.2 | L65: 1892.9 | M65: 1936 | N65: 23098.8 | P65: Porter | Q65: 23098800 | S65: =IF(VLOOKUP($P65,'Congressional Districts'!$A$1:$E$93,2,FALSE)=SNAP!S$1,VLOOKUP($P65,'Congressional Districts'!$A$1:$E$93,3,FALSE)*SNAP!$Q65,IF(VLOOKUP($P65,'Congressional Districts'!$A$1:$E$93,4,FALSE)=SNAP!S$1,VLOOKUP($P65,'Congressional Districts'!$A$1:$E$93,5,FALSE)*SNAP!$Q65,0)) -> 23098800 | T65: =IF(VLOOKUP($P65,'Congressional Districts'!$A$1:$E$93,2,FALSE)=SNAP!T$1,VLOOKUP($P65,'Congressional Districts'!$A$1:$E$93,3,FALSE)*SNAP!$Q65,IF(VLOOKUP($P65,'Congressional Districts'!$A$1:$E$93,4,FALSE)=SNAP!T$1,VLOOKUP($P65,'Congressional Districts'!$A$1:$E$93,5,FALSE)*SNAP!$Q65,0)) -> 0 | U65: =IF(VLOOKUP($P65,'Congressional Districts'!$A$1:$E$93,2,FALSE)=SNAP!U$1,VLOOKUP($P65,'Congressional Districts'!$A$1:$E$93,3,FALSE)*SNAP!$Q65,IF(VLOOKUP($P65,'Congressional Districts'!$A$1:$E$93,4,FALSE)=SNAP!U$1,VLOOKUP($P65,'Congressional Districts'!$A$1:$E$93,5,FALSE)*SNAP!$Q65,0)) -> 0 | V65: =IF(VLOOKUP($P65,'Congressional Districts'!$A$1:$E$93,2,FALSE)=SNAP!V$1,VLOOKUP($P65,'Congressional Districts'!$A$1:$E$93,3,FALSE)*SNAP!$Q65,IF(VLOOKUP($P65,'Congressional Districts'!$A$1:$E$93,4,FALSE)=SNAP!V$1,VLOOKUP($P65,'Congressional Districts'!$A$1:$E$93,5,FALSE)*SNAP!$Q65,0)) -> 0 | W65: =IF(VLOOKUP($P65,'Congressional Districts'!$A$1:$E$93,2,FALSE)=SNAP!W$1,VLOOKUP($P65,'Congressional Districts'!$A$1:$E$93,3,FALSE)*SNAP!$Q65,IF(VLOOKUP($P65,'Congressional Districts'!$A$1:$E$93,4,FALSE)=SNAP!W$1,VLOOKUP($P65,'Congressional Districts'!$A$1:$E$93,5,FALSE)*SNAP!$Q65,0)) -> 0 | X65: =IF(VLOOKUP($P65,'Congressional Districts'!$A$1:$E$93,2,FALSE)=SNAP!X$1,VLOOKUP($P65,'Congressional Districts'!$A$1:$E$93,3,FALSE)*SNAP!$Q65,IF(VLOOKUP($P65,'Congressional Districts'!$A$1:$E$93,4,FALSE)=SNAP!X$1,VLOOKUP($P65,'Congressional Districts'!$A$1:$E$93,5,FALSE)*SNAP!$Q65,0)) -> 0 | Y65: =IF(VLOOKUP($P65,'Congressional Districts'!$A$1:$E$93,2,FALSE)=SNAP!Y$1,VLOOKUP($P65,'Congressional Districts'!$A$1:$E$93,3,FALSE)*SNAP!$Q65,IF(VLOOKUP($P65,'Congressional Districts'!$A$1:$E$93,4,FALSE)=SNAP!Y$1,VLOOKUP($P65,'Congressional Districts'!$A$1:$E$93,5,FALSE)*SNAP!$Q65,0)) -> 0 | Z65: =IF(VLOOKUP($P65,'Congressional Districts'!$A$1:$E$93,2,FALSE)=SNAP!Z$1,VLOOKUP($P65,'Congressional Districts'!$A$1:$E$93,3,FALSE)*SNAP!$Q65,IF(VLOOKUP($P65,'Congressional Districts'!$A$1:$E$93,4,FALSE)=SNAP!Z$1,VLOOKUP($P65,'Congressional Districts'!$A$1:$E$93,5,FALSE)*SNAP!$Q65,0)) -> 0 | AA65: =IF(VLOOKUP($P65,'Congressional Districts'!$A$1:$E$93,2,FALSE)=SNAP!AA$1,VLOOKUP($P65,'Congressional Districts'!$A$1:$E$93,3,FALSE)*SNAP!$Q65,IF(VLOOKUP($P65,'Congressional Districts'!$A$1:$E$93,4,FALSE)=SNAP!AA$1,VLOOKUP($P65,'Congressional Districts'!$A$1:$E$93,5,FALSE)*SNAP!$Q65,0)) -> 0
A66: Posey | B66: 299.8 | C66: 297.5 | D66: 299.7 | E66: 302.9 | F66: 297.9 | G66: 303.9 | H66: 311.8 | I66: 311.2 | J66: 316.6 | K66: 313.3 | L66: 298.2 | M66: 298 | N66: =SUM(B66:M66) -> 3650.8 | P66: Posey | Q66: 3650800 | S66: =IF(VLOOKUP($P66,'Congressional Districts'!$A$1:$E$93,2,FALSE)=SNAP!S$1,VLOOKUP($P66,'Congressional Districts'!$A$1:$E$93,3,FALSE)*SNAP!$Q66,IF(VLOOKUP($P66,'Congressional Districts'!$A$1:$E$93,4,FALSE)=SNAP!S$1,VLOOKUP($P66,'Congressional Districts'!$A$1:$E$93,5,FALSE)*SNAP!$Q66,0)) -> 0 | T66: =IF(VLOOKUP($P66,'Congressional Districts'!$A$1:$E$93,2,FALSE)=SNAP!T$1,VLOOKUP($P66,'Congressional Districts'!$A$1:$E$93,3,FALSE)*SNAP!$Q66,IF(VLOOKUP($P66,'Congressional Districts'!$A$1:$E$93,4,FALSE)=SNAP!T$1,VLOOKUP($P66,'Congressional Districts'!$A$1:$E$93,5,FALSE)*SNAP!$Q66,0)) -> 0 | U66: =IF(VLOOKUP($P66,'Congressional Districts'!$A$1:$E$93,2,FALSE)=SNAP!U$1,VLOOKUP($P66,'Congressional Districts'!$A$1:$E$93,3,FALSE)*SNAP!$Q66,IF(VLOOKUP($P66,'Congressional Districts'!$A$1:$E$93,4,FALSE)=SNAP!U$1,VLOOKUP($P66,'Congressional Districts'!$A$1:$E$93,5,FALSE)*SNAP!$Q66,0)) -> 0 | V66: =IF(VLOOKUP($P66,'Congressional Districts'!$A$1:$E$93,2,FALSE)=SNAP!V$1,VLOOKUP($P66,'Congressional Districts'!$A$1:$E$93,3,FALSE)*SNAP!$Q66,IF(VLOOKUP($P66,'Congressional Districts'!$A$1:$E$93,4,FALSE)=SNAP!V$1,VLOOKUP($P66,'Congressional Districts'!$A$1:$E$93,5,FALSE)*SNAP!$Q66,0)) -> 0 | W66: =IF(VLOOKUP($P66,'Congressional Districts'!$A$1:$E$93,2,FALSE)=SNAP!W$1,VLOOKUP($P66,'Congressional Districts'!$A$1:$E$93,3,FALSE)*SNAP!$Q66,IF(VLOOKUP($P66,'Congressional Districts'!$A$1:$E$93,4,FALSE)=SNAP!W$1,VLOOKUP($P66,'Congressional Districts'!$A$1:$E$93,5,FALSE)*SNAP!$Q66,0)) -> 0 | X66: =IF(VLOOKUP($P66,'Congressional Districts'!$A$1:$E$93,2,FALSE)=SNAP!X$1,VLOOKUP($P66,'Congressional Districts'!$A$1:$E$93,3,FALSE)*SNAP!$Q66,IF(VLOOKUP($P66,'Congressional Districts'!$A$1:$E$93,4,FALSE)=SNAP!X$1,VLOOKUP($P66,'Congressional Districts'!$A$1:$E$93,5,FALSE)*SNAP!$Q66,0)) -> 0 | Y66: =IF(VLOOKUP($P66,'Congressional Districts'!$A$1:$E$93,2,FALSE)=SNAP!Y$1,VLOOKUP($P66,'Congressional Districts'!$A$1:$E$93,3,FALSE)*SNAP!$Q66,IF(VLOOKUP($P66,'Congressional Districts'!$A$1:$E$93,4,FALSE)=SNAP!Y$1,VLOOKUP($P66,'Congressional Districts'!$A$1:$E$93,5,FALSE)*SNAP!$Q66,0)) -> 0 | Z66: =IF(VLOOKUP($P66,'Congressional Districts'!$A$1:$E$93,2,FALSE)=SNAP!Z$1,VLOOKUP($P66,'Congressional Districts'!$A$1:$E$93,3,FALSE)*SNAP!$Q66,IF(VLOOKUP($P66,'Congressional Districts'!$A$1:$E$93,4,FALSE)=SNAP!Z$1,VLOOKUP($P66,'Congressional Districts'!$A$1:$E$93,5,FALSE)*SNAP!$Q66,0)) -> 3650800 | AA66: =IF(VLOOKUP($P66,'Congressional Districts'!$A$1:$E$93,2,FALSE)=SNAP!AA$1,VLOOKUP($P66,'Congressional Districts'!$A$1:$E$93,3,FALSE)*SNAP!$Q66,IF(VLOOKUP($P66,'Congressional Districts'!$A$1:$E$93,4,FALSE)=SNAP!AA$1,VLOOKUP($P66,'Congressional Districts'!$A$1:$E$93,5,FALSE)*SNAP!$Q66,0)) -> 0
A67: Pulaski | B67: 219.3 | C67: 218.5 | D67: 209.7 | E67: 210.3 | F67: 208.6 | G67: 200.8 | H67: 199.2 | I67: 207.3 | J67: 205.2 | K67: 205.2 | L67: 200.7 | M67: 202.9 | N67: 2487.7 | P67: =A67 -> Pulaski | Q67: =N67*1000 -> 2487700 | S67: =IF(VLOOKUP($P67,'Congressional Districts'!$A$1:$E$93,2,FALSE)=SNAP!S$1,VLOOKUP($P67,'Congressional Districts'!$A$1:$E$93,3,FALSE)*SNAP!$Q67,IF(VLOOKUP($P67,'Congressional Districts'!$A$1:$E$93,4,FALSE)=SNAP!S$1,VLOOKUP($P67,'Congressional Districts'!$A$1:$E$93,5,FALSE)*SNAP!$Q67,0)) -> 0 | T67: =IF(VLOOKUP($P67,'Congressional Districts'!$A$1:$E$93,2,FALSE)=SNAP!T$1,VLOOKUP($P67,'Congressional Districts'!$A$1:$E$93,3,FALSE)*SNAP!$Q67,IF(VLOOKUP($P67,'Congressional Districts'!$A$1:$E$93,4,FALSE)=SNAP!T$1,VLOOKUP($P67,'Congressional Districts'!$A$1:$E$93,5,FALSE)*SNAP!$Q67,0)) -> 2487700 | U67: =IF(VLOOKUP($P67,'Congressional Districts'!$A$1:$E$93,2,FALSE)=SNAP!U$1,VLOOKUP($P67,'Congressional Districts'!$A$1:$E$93,3,FALSE)*SNAP!$Q67,IF(VLOOKUP($P67,'Congressional Districts'!$A$1:$E$93,4,FALSE)=SNAP!U$1,VLOOKUP($P67,'Congressional Districts'!$A$1:$E$93,5,FALSE)*SNAP!$Q67,0)) -> 0 | V67: =IF(VLOOKUP($P67,'Congressional Districts'!$A$1:$E$93,2,FALSE)=SNAP!V$1,VLOOKUP($P67,'Congressional Districts'!$A$1:$E$93,3,FALSE)*SNAP!$Q67,IF(VLOOKUP($P67,'Congressional Districts'!$A$1:$E$93,4,FALSE)=SNAP!V$1,VLOOKUP($P67,'Congressional Districts'!$A$1:$E$93,5,FALSE)*SNAP!$Q67,0)) -> 0 | W67: =IF(VLOOKUP($P67,'Congressional Districts'!$A$1:$E$93,2,FALSE)=SNAP!W$1,VLOOKUP($P67,'Congressional Districts'!$A$1:$E$93,3,FALSE)*SNAP!$Q67,IF(VLOOKUP($P67,'Congressional Districts'!$A$1:$E$93,4,FALSE)=SNAP!W$1,VLOOKUP($P67,'Congressional Districts'!$A$1:$E$93,5,FALSE)*SNAP!$Q67,0)) -> 0 | X67: =IF(VLOOKUP($P67,'Congressional Districts'!$A$1:$E$93,2,FALSE)=SNAP!X$1,VLOOKUP($P67,'Congressional Districts'!$A$1:$E$93,3,FALSE)*SNAP!$Q67,IF(VLOOKUP($P67,'Congressional Districts'!$A$1:$E$93,4,FALSE)=SNAP!X$1,VLOOKUP($P67,'Congressional Districts'!$A$1:$E$93,5,FALSE)*SNAP!$Q67,0)) -> 0 | Y67: =IF(VLOOKUP($P67,'Congressional Districts'!$A$1:$E$93,2,FALSE)=SNAP!Y$1,VLOOKUP($P67,'Congressional Districts'!$A$1:$E$93,3,FALSE)*SNAP!$Q67,IF(VLOOKUP($P67,'Congressional Districts'!$A$1:$E$93,4,FALSE)=SNAP!Y$1,VLOOKUP($P67,'Congressional Districts'!$A$1:$E$93,5,FALSE)*SNAP!$Q67,0)) -> 0 | Z67: =IF(VLOOKUP($P67,'Congressional Districts'!$A$1:$E$93,2,FALSE)=SNAP!Z$1,VLOOKUP($P67,'Congressional Districts'!$A$1:$E$93,3,FALSE)*SNAP!$Q67,IF(VLOOKUP($P67,'Congressional Districts'!$A$1:$E$93,4,FALSE)=SNAP!Z$1,VLOOKUP($P67,'Congressional Districts'!$A$1:$E$93,5,FALSE)*SNAP!$Q67,0)) -> 0 | AA67: =IF(VLOOKUP($P67,'Congressional Districts'!$A$1:$E$93,2,FALSE)=SNAP!AA$1,VLOOKUP($P67,'Congressional Districts'!$A$1:$E$93,3,FALSE)*SNAP!$Q67,IF(VLOOKUP($P67,'Congressional Districts'!$A$1:$E$93,4,FALSE)=SNAP!AA$1,VLOOKUP($P67,'Congressional Districts'!$A$1:$E$93,5,FALSE)*SNAP!$Q67,0)) -> 0
A68: Putnam | B68: 533.2 | C68: 527.6 | D68: 526.7 | E68: 527.4 | F68: 522.1 | G68: 518.6 | H68: 526 | I68: 530.6 | J68: 527.9 | K68: 531.9 | L68: 528.9 | M68: 528.8 | N68: 6329.7 | P68: Putnam | Q68: 6329700 | S68: =IF(VLOOKUP($P68,'Congressional Districts'!$A$1:$E$93,2,FALSE)=SNAP!S$1,VLOOKUP($P68,'Congressional Districts'!$A$1:$E$93,3,FALSE)*SNAP!$Q68,IF(VLOOKUP($P68,'Congressional Districts'!$A$1:$E$93,4,FALSE)=SNAP!S$1,VLOOKUP($P68,'Congressional Districts'!$A$1:$E$93,5,FALSE)*SNAP!$Q68,0)) -> 0 | T68: =IF(VLOOKUP($P68,'Congressional Districts'!$A$1:$E$93,2,FALSE)=SNAP!T$1,VLOOKUP($P68,'Congressional Districts'!$A$1:$E$93,3,FALSE)*SNAP!$Q68,IF(VLOOKUP($P68,'Congressional Districts'!$A$1:$E$93,4,FALSE)=SNAP!T$1,VLOOKUP($P68,'Congressional Districts'!$A$1:$E$93,5,FALSE)*SNAP!$Q68,0)) -> 0 | U68: =IF(VLOOKUP($P68,'Congressional Districts'!$A$1:$E$93,2,FALSE)=SNAP!U$1,VLOOKUP($P68,'Congressional Districts'!$A$1:$E$93,3,FALSE)*SNAP!$Q68,IF(VLOOKUP($P68,'Congressional Districts'!$A$1:$E$93,4,FALSE)=SNAP!U$1,VLOOKUP($P68,'Congressional Districts'!$A$1:$E$93,5,FALSE)*SNAP!$Q68,0)) -> 0 | V68: =IF(VLOOKUP($P68,'Congressional Districts'!$A$1:$E$93,2,FALSE)=SNAP!V$1,VLOOKUP($P68,'Congressional Districts'!$A$1:$E$93,3,FALSE)*SNAP!$Q68,IF(VLOOKUP($P68,'Congressional Districts'!$A$1:$E$93,4,FALSE)=SNAP!V$1,VLOOKUP($P68,'Congressional Districts'!$A$1:$E$93,5,FALSE)*SNAP!$Q68,0)) -> 6329700 | W68: =IF(VLOOKUP($P68,'Congressional Districts'!$A$1:$E$93,2,FALSE)=SNAP!W$1,VLOOKUP($P68,'Congressional Districts'!$A$1:$E$93,3,FALSE)*SNAP!$Q68,IF(VLOOKUP($P68,'Congressional Districts'!$A$1:$E$93,4,FALSE)=SNAP!W$1,VLOOKUP($P68,'Congressional Districts'!$A$1:$E$93,5,FALSE)*SNAP!$Q68,0)) -> 0 | X68: =IF(VLOOKUP($P68,'Congressional Districts'!$A$1:$E$93,2,FALSE)=SNAP!X$1,VLOOKUP($P68,'Congressional Districts'!$A$1:$E$93,3,FALSE)*SNAP!$Q68,IF(VLOOKUP($P68,'Congressional Districts'!$A$1:$E$93,4,FALSE)=SNAP!X$1,VLOOKUP($P68,'Congressional Districts'!$A$1:$E$93,5,FALSE)*SNAP!$Q68,0)) -> 0 | Y68: =IF(VLOOKUP($P68,'Congressional Districts'!$A$1:$E$93,2,FALSE)=SNAP!Y$1,VLOOKUP($P68,'Congressional Districts'!$A$1:$E$93,3,FALSE)*SNAP!$Q68,IF(VLOOKUP($P68,'Congressional Districts'!$A$1:$E$93,4,FALSE)=SNAP!Y$1,VLOOKUP($P68,'Congressional Districts'!$A$1:$E$93,5,FALSE)*SNAP!$Q68,0)) -> 0 | Z68: =IF(VLOOKUP($P68,'Congressional Districts'!$A$1:$E$93,2,FALSE)=SNAP!Z$1,VLOOKUP($P68,'Congressional Districts'!$A$1:$E$93,3,FALSE)*SNAP!$Q68,IF(VLOOKUP($P68,'Congressional Districts'!$A$1:$E$93,4,FALSE)=SNAP!Z$1,VLOOKUP($P68,'Congressional Districts'!$A$1:$E$93,5,FALSE)*SNAP!$Q68,0)) -> 0 | AA68: =IF(VLOOKUP($P68,'Congressional Districts'!$A$1:$E$93,2,FALSE)=SNAP!AA$1,VLOOKUP($P68,'Congressional Districts'!$A$1:$E$93,3,FALSE)*SNAP!$Q68,IF(VLOOKUP($P68,'Congressional Districts'!$A$1:$E$93,4,FALSE)=SNAP!AA$1,VLOOKUP($P68,'Congressional Districts'!$A$1:$E$93,5,FALSE)*SNAP!$Q68,0)) -> 0
A69: Randolph | B69: 484.1 | C69: 480.3 | D69: 473.4 | E69: 474 | F69: 470.4 | G69: 481.1 | H69: 489.4 | I69: 479.9 | J69: 487.5 | K69: 487.6 | L69: 475.1 | M69: 481.5 | N69: 5764.3 | P69: Randolph | Q69: 5764300 | S69: =IF(VLOOKUP($P69,'Congressional Districts'!$A$1:$E$93,2,FALSE)=SNAP!S$1,VLOOKUP($P69,'Congressional Districts'!$A$1:$E$93,3,FALSE)*SNAP!$Q69,IF(VLOOKUP($P69,'Congressional Districts'!$A$1:$E$93,4,FALSE)=SNAP!S$1,VLOOKUP($P69,'Congressional Districts'!$A$1:$E$93,5,FALSE)*SNAP!$Q69,0)) -> 0 | T69: =IF(VLOOKUP($P69,'Congressional Districts'!$A$1:$E$93,2,FALSE)=SNAP!T$1,VLOOKUP($P69,'Congressional Districts'!$A$1:$E$93,3,FALSE)*SNAP!$Q69,IF(VLOOKUP($P69,'Congressional Districts'!$A$1:$E$93,4,FALSE)=SNAP!T$1,VLOOKUP($P69,'Congressional Districts'!$A$1:$E$93,5,FALSE)*SNAP!$Q69,0)) -> 0 | U69: =IF(VLOOKUP($P69,'Congressional Districts'!$A$1:$E$93,2,FALSE)=SNAP!U$1,VLOOKUP($P69,'Congressional Districts'!$A$1:$E$93,3,FALSE)*SNAP!$Q69,IF(VLOOKUP($P69,'Congressional Districts'!$A$1:$E$93,4,FALSE)=SNAP!U$1,VLOOKUP($P69,'Congressional Districts'!$A$1:$E$93,5,FALSE)*SNAP!$Q69,0)) -> 0 | V69: =IF(VLOOKUP($P69,'Congressional Districts'!$A$1:$E$93,2,FALSE)=SNAP!V$1,VLOOKUP($P69,'Congressional Districts'!$A$1:$E$93,3,FALSE)*SNAP!$Q69,IF(VLOOKUP($P69,'Congressional Districts'!$A$1:$E$93,4,FALSE)=SNAP!V$1,VLOOKUP($P69,'Congressional Districts'!$A$1:$E$93,5,FALSE)*SNAP!$Q69,0)) -> 0 | W69: =IF(VLOOKUP($P69,'Congressional Districts'!$A$1:$E$93,2,FALSE)=SNAP!W$1,VLOOKUP($P69,'Congressional Districts'!$A$1:$E$93,3,FALSE)*SNAP!$Q69,IF(VLOOKUP($P69,'Congressional Districts'!$A$1:$E$93,4,FALSE)=SNAP!W$1,VLOOKUP($P69,'Congressional Districts'!$A$1:$E$93,5,FALSE)*SNAP!$Q69,0)) -> 0 | X69: =IF(VLOOKUP($P69,'Congressional Districts'!$A$1:$E$93,2,FALSE)=SNAP!X$1,VLOOKUP($P69,'Congressional Districts'!$A$1:$E$93,3,FALSE)*SNAP!$Q69,IF(VLOOKUP($P69,'Congressional Districts'!$A$1:$E$93,4,FALSE)=SNAP!X$1,VLOOKUP($P69,'Congressional Districts'!$A$1:$E$93,5,FALSE)*SNAP!$Q69,0)) -> 5764300 | Y69: =IF(VLOOKUP($P69,'Congressional Districts'!$A$1:$E$93,2,FALSE)=SNAP!Y$1,VLOOKUP($P69,'Congressional Districts'!$A$1:$E$93,3,FALSE)*SNAP!$Q69,IF(VLOOKUP($P69,'Congressional Districts'!$A$1:$E$93,4,FALSE)=SNAP!Y$1,VLOOKUP($P69,'Congressional Districts'!$A$1:$E$93,5,FALSE)*SNAP!$Q69,0)) -> 0 | Z69: =IF(VLOOKUP($P69,'Congressional Districts'!$A$1:$E$93,2,FALSE)=SNAP!Z$1,VLOOKUP($P69,'Congressional Districts'!$A$1:$E$93,3,FALSE)*SNAP!$Q69,IF(VLOOKUP($P69,'Congressional Districts'!$A$1:$E$93,4,FALSE)=SNAP!Z$1,VLOOKUP($P69,'Congressional Districts'!$A$1:$E$93,5,FALSE)*SNAP!$Q69,0)) -> 0 | AA69: =IF(VLOOKUP($P69,'Congressional Districts'!$A$1:$E$93,2,FALSE)=SNAP!AA$1,VLOOKUP($P69,'Congressional Districts'!$A$1:$E$93,3,FALSE)*SNAP!$Q69,IF(VLOOKUP($P69,'Congressional Districts'!$A$1:$E$93,4,FALSE)=SNAP!AA$1,VLOOKUP($P69,'Congressional Districts'!$A$1:$E$93,5,FALSE)*SNAP!$Q69,0)) -> 0
A70: Ripley | B70: 390.8 | C70: 403.9 | D70: 401 | E70: 406.3 | F70: 394.6 | G70: 399.7 | H70: 392.9 | I70: 392.9 | J70: 394.7 | K70: 397.9 | L70: 391.6 | M70: 394.3 | N70: 4760.6 | P70: Ripley | Q70: 4760600 | S70: =IF(VLOOKUP($P70,'Congressional Districts'!$A$1:$E$93,2,FALSE)=SNAP!S$1,VLOOKUP($P70,'Congressional Districts'!$A$1:$E$93,3,FALSE)*SNAP!$Q70,IF(VLOOKUP($P70,'Congressional Districts'!$A$1:$E$93,4,FALSE)=SNAP!S$1,VLOOKUP($P70,'Congressional Districts'!$A$1:$E$93,5,FALSE)*SNAP!$Q70,0)) -> 0 | T70: =IF(VLOOKUP($P70,'Congressional Districts'!$A$1:$E$93,2,FALSE)=SNAP!T$1,VLOOKUP($P70,'Congressional Districts'!$A$1:$E$93,3,FALSE)*SNAP!$Q70,IF(VLOOKUP($P70,'Congressional Districts'!$A$1:$E$93,4,FALSE)=SNAP!T$1,VLOOKUP($P70,'Congressional Districts'!$A$1:$E$93,5,FALSE)*SNAP!$Q70,0)) -> 0 | U70: =IF(VLOOKUP($P70,'Congressional Districts'!$A$1:$E$93,2,FALSE)=SNAP!U$1,VLOOKUP($P70,'Congressional Districts'!$A$1:$E$93,3,FALSE)*SNAP!$Q70,IF(VLOOKUP($P70,'Congressional Districts'!$A$1:$E$93,4,FALSE)=SNAP!U$1,VLOOKUP($P70,'Congressional Districts'!$A$1:$E$93,5,FALSE)*SNAP!$Q70,0)) -> 0 | V70: =IF(VLOOKUP($P70,'Congressional Districts'!$A$1:$E$93,2,FALSE)=SNAP!V$1,VLOOKUP($P70,'Congressional Districts'!$A$1:$E$93,3,FALSE)*SNAP!$Q70,IF(VLOOKUP($P70,'Congressional Districts'!$A$1:$E$93,4,FALSE)=SNAP!V$1,VLOOKUP($P70,'Congressional Districts'!$A$1:$E$93,5,FALSE)*SNAP!$Q70,0)) -> 0 | W70: =IF(VLOOKUP($P70,'Congressional Districts'!$A$1:$E$93,2,FALSE)=SNAP!W$1,VLOOKUP($P70,'Congressional Districts'!$A$1:$E$93,3,FALSE)*SNAP!$Q70,IF(VLOOKUP($P70,'Congressional Districts'!$A$1:$E$93,4,FALSE)=SNAP!W$1,VLOOKUP($P70,'Congressional Districts'!$A$1:$E$93,5,FALSE)*SNAP!$Q70,0)) -> 0 | X70: =IF(VLOOKUP($P70,'Congressional Districts'!$A$1:$E$93,2,FALSE)=SNAP!X$1,VLOOKUP($P70,'Congressional Districts'!$A$1:$E$93,3,FALSE)*SNAP!$Q70,IF(VLOOKUP($P70,'Congressional Districts'!$A$1:$E$93,4,FALSE)=SNAP!X$1,VLOOKUP($P70,'Congressional Districts'!$A$1:$E$93,5,FALSE)*SNAP!$Q70,0)) -> 4760600 | Y70: =IF(VLOOKUP($P70,'Congressional Districts'!$A$1:$E$93,2,FALSE)=SNAP!Y$1,VLOOKUP($P70,'Congressional Districts'!$A$1:$E$93,3,FALSE)*SNAP!$Q70,IF(VLOOKUP($P70,'Congressional Districts'!$A$1:$E$93,4,FALSE)=SNAP!Y$1,VLOOKUP($P70,'Congressional Districts'!$A$1:$E$93,5,FALSE)*SNAP!$Q70,0)) -> 0 | Z70: =IF(VLOOKUP($P70,'Congressional Districts'!$A$1:$E$93,2,FALSE)=SNAP!Z$1,VLOOKUP($P70,'Congressional Districts'!$A$1:$E$93,3,FALSE)*SNAP!$Q70,IF(VLOOKUP($P70,'Congressional Districts'!$A$1:$E$93,4,FALSE)=SNAP!Z$1,VLOOKUP($P70,'Congressional Districts'!$A$1:$E$93,5,FALSE)*SNAP!$Q70,0)) -> 0 | AA70: =IF(VLOOKUP($P70,'Congressional Districts'!$A$1:$E$93,2,FALSE)=SNAP!AA$1,VLOOKUP($P70,'Congressional Districts'!$A$1:$E$93,3,FALSE)*SNAP!$Q70,IF(VLOOKUP($P70,'Congressional Districts'!$A$1:$E$93,4,FALSE)=SNAP!AA$1,VLOOKUP($P70,'Congressional Districts'!$A$1:$E$93,5,FALSE)*SNAP!$Q70,0)) -> 0
A71: Rush | B71: 275.7 | C71: 273.5 | D71: 268.6 | E71: 267.5 | F71: 268.6 | G71: 264.2 | H71: 260.6 | I71: 264 | J71: 265.4 | K71: 265.9 | L71: 260.7 | M71: 257.1 | N71: 3191.8 | P71: Rush | Q71: 3191800 | S71: =IF(VLOOKUP($P71,'Congressional Districts'!$A$1:$E$93,2,FALSE)=SNAP!S$1,VLOOKUP($P71,'Congressional Districts'!$A$1:$E$93,3,FALSE)*SNAP!$Q71,IF(VLOOKUP($P71,'Congressional Districts'!$A$1:$E$93,4,FALSE)=SNAP!S$1,VLOOKUP($P71,'Congressional Districts'!$A$1:$E$93,5,FALSE)*SNAP!$Q71,0)) -> 0 | T71: =IF(VLOOKUP($P71,'Congressional Districts'!$A$1:$E$93,2,FALSE)=SNAP!T$1,VLOOKUP($P71,'Congressional Districts'!$A$1:$E$93,3,FALSE)*SNAP!$Q71,IF(VLOOKUP($P71,'Congressional Districts'!$A$1:$E$93,4,FALSE)=SNAP!T$1,VLOOKUP($P71,'Congressional Districts'!$A$1:$E$93,5,FALSE)*SNAP!$Q71,0)) -> 0 | U71: =IF(VLOOKUP($P71,'Congressional Districts'!$A$1:$E$93,2,FALSE)=SNAP!U$1,VLOOKUP($P71,'Congressional Districts'!$A$1:$E$93,3,FALSE)*SNAP!$Q71,IF(VLOOKUP($P71,'Congressional Districts'!$A$1:$E$93,4,FALSE)=SNAP!U$1,VLOOKUP($P71,'Congressional Districts'!$A$1:$E$93,5,FALSE)*SNAP!$Q71,0)) -> 0 | V71: =IF(VLOOKUP($P71,'Congressional Districts'!$A$1:$E$93,2,FALSE)=SNAP!V$1,VLOOKUP($P71,'Congressional Districts'!$A$1:$E$93,3,FALSE)*SNAP!$Q71,IF(VLOOKUP($P71,'Congressional Districts'!$A$1:$E$93,4,FALSE)=SNAP!V$1,VLOOKUP($P71,'Congressional Districts'!$A$1:$E$93,5,FALSE)*SNAP!$Q71,0)) -> 0 | W71: =IF(VLOOKUP($P71,'Congressional Districts'!$A$1:$E$93,2,FALSE)=SNAP!W$1,VLOOKUP($P71,'Congressional Districts'!$A$1:$E$93,3,FALSE)*SNAP!$Q71,IF(VLOOKUP($P71,'Congressional Districts'!$A$1:$E$93,4,FALSE)=SNAP!W$1,VLOOKUP($P71,'Congressional Districts'!$A$1:$E$93,5,FALSE)*SNAP!$Q71,0)) -> 0 | X71: =IF(VLOOKUP($P71,'Congressional Districts'!$A$1:$E$93,2,FALSE)=SNAP!X$1,VLOOKUP($P71,'Congressional Districts'!$A$1:$E$93,3,FALSE)*SNAP!$Q71,IF(VLOOKUP($P71,'Congressional Districts'!$A$1:$E$93,4,FALSE)=SNAP!X$1,VLOOKUP($P71,'Congressional Districts'!$A$1:$E$93,5,FALSE)*SNAP!$Q71,0)) -> 3191800 | Y71: =IF(VLOOKUP($P71,'Congressional Districts'!$A$1:$E$93,2,FALSE)=SNAP!Y$1,VLOOKUP($P71,'Congressional Districts'!$A$1:$E$93,3,FALSE)*SNAP!$Q71,IF(VLOOKUP($P71,'Congressional Districts'!$A$1:$E$93,4,FALSE)=SNAP!Y$1,VLOOKUP($P71,'Congressional Districts'!$A$1:$E$93,5,FALSE)*SNAP!$Q71,0)) -> 0 | Z71: =IF(VLOOKUP($P71,'Congressional Districts'!$A$1:$E$93,2,FALSE)=SNAP!Z$1,VLOOKUP($P71,'Congressional Districts'!$A$1:$E$93,3,FALSE)*SNAP!$Q71,IF(VLOOKUP($P71,'Congressional Districts'!$A$1:$E$93,4,FALSE)=SNAP!Z$1,VLOOKUP($P71,'Congressional Districts'!$A$1:$E$93,5,FALSE)*SNAP!$Q71,0)) -> 0 | AA71: =IF(VLOOKUP($P71,'Congressional Districts'!$A$1:$E$93,2,FALSE)=SNAP!AA$1,VLOOKUP($P71,'Congressional Districts'!$A$1:$E$93,3,FALSE)*SNAP!$Q71,IF(VLOOKUP($P71,'Congressional Districts'!$A$1:$E$93,4,FALSE)=SNAP!AA$1,VLOOKUP($P71,'Congressional Districts'!$A$1:$E$93,5,FALSE)*SNAP!$Q71,0)) -> 0
A72: Saint Joseph | B72: 5845.6 | C72: 5821 | D72: 5757.4 | E72: 5695.2 | F72: 5763.5 | G72: 5767.4 | H72: 5854.6 | I72: 5950.3 | J72: 5966.3 | K72: 5976.1 | L72: 5910.3 | M72: 5992.4 | N72: 70300.1 | P72: Saint Joseph | Q72: 70300100 | S72: =IF(VLOOKUP($P72,'Congressional Districts'!$A$1:$E$93,2,FALSE)=SNAP!S$1,VLOOKUP($P72,'Congressional Districts'!$A$1:$E$93,3,FALSE)*SNAP!$Q72,IF(VLOOKUP($P72,'Congressional Districts'!$A$1:$E$93,4,FALSE)=SNAP!S$1,VLOOKUP($P72,'Congressional Districts'!$A$1:$E$93,5,FALSE)*SNAP!$Q72,0)) -> 0 | T72: =IF(VLOOKUP($P72,'Congressional Districts'!$A$1:$E$93,2,FALSE)=SNAP!T$1,VLOOKUP($P72,'Congressional Districts'!$A$1:$E$93,3,FALSE)*SNAP!$Q72,IF(VLOOKUP($P72,'Congressional Districts'!$A$1:$E$93,4,FALSE)=SNAP!T$1,VLOOKUP($P72,'Congressional Districts'!$A$1:$E$93,5,FALSE)*SNAP!$Q72,0)) -> 70300100 | U72: =IF(VLOOKUP($P72,'Congressional Districts'!$A$1:$E$93,2,FALSE)=SNAP!U$1,VLOOKUP($P72,'Congressional Districts'!$A$1:$E$93,3,FALSE)*SNAP!$Q72,IF(VLOOKUP($P72,'Congressional Districts'!$A$1:$E$93,4,FALSE)=SNAP!U$1,VLOOKUP($P72,'Congressional Districts'!$A$1:$E$93,5,FALSE)*SNAP!$Q72,0)) -> 0 | V72: =IF(VLOOKUP($P72,'Congressional Districts'!$A$1:$E$93,2,FALSE)=SNAP!V$1,VLOOKUP($P72,'Congressional Districts'!$A$1:$E$93,3,FALSE)*SNAP!$Q72,IF(VLOOKUP($P72,'Congressional Districts'!$A$1:$E$93,4,FALSE)=SNAP!V$1,VLOOKUP($P72,'Congressional Districts'!$A$1:$E$93,5,FALSE)*SNAP!$Q72,0)) -> 0 | W72: =IF(VLOOKUP($P72,'Congressional Districts'!$A$1:$E$93,2,FALSE)=SNAP!W$1,VLOOKUP($P72,'Congressional Districts'!$A$1:$E$93,3,FALSE)*SNAP!$Q72,IF(VLOOKUP($P72,'Congressional Districts'!$A$1:$E$93,4,FALSE)=SNAP!W$1,VLOOKUP($P72,'Congressional Districts'!$A$1:$E$93,5,FALSE)*SNAP!$Q72,0)) -> 0 | X72: =IF(VLOOKUP($P72,'Congressional Districts'!$A$1:$E$93,2,FALSE)=SNAP!X$1,VLOOKUP($P72,'Congressional Districts'!$A$1:$E$93,3,FALSE)*SNAP!$Q72,IF(VLOOKUP($P72,'Congressional Districts'!$A$1:$E$93,4,FALSE)=SNAP!X$1,VLOOKUP($P72,'Congressional Districts'!$A$1:$E$93,5,FALSE)*SNAP!$Q72,0)) -> 0 | Y72: =IF(VLOOKUP($P72,'Congressional Districts'!$A$1:$E$93,2,FALSE)=SNAP!Y$1,VLOOKUP($P72,'Congressional Districts'!$A$1:$E$93,3,FALSE)*SNAP!$Q72,IF(VLOOKUP($P72,'Congressional Districts'!$A$1:$E$93,4,FALSE)=SNAP!Y$1,VLOOKUP($P72,'Congressional Districts'!$A$1:$E$93,5,FALSE)*SNAP!$Q72,0)) -> 0 | Z72: =IF(VLOOKUP($P72,'Congressional Districts'!$A$1:$E$93,2,FALSE)=SNAP!Z$1,VLOOKUP($P72,'Congressional Districts'!$A$1:$E$93,3,FALSE)*SNAP!$Q72,IF(VLOOKUP($P72,'Congressional Districts'!$A$1:$E$93,4,FALSE)=SNAP!Z$1,VLOOKUP($P72,'Congressional Districts'!$A$1:$E$93,5,FALSE)*SNAP!$Q72,0)) -> 0 | AA72: =IF(VLOOKUP($P72,'Congressional Districts'!$A$1:$E$93,2,FALSE)=SNAP!AA$1,VLOOKUP($P72,'Congressional Districts'!$A$1:$E$93,3,FALSE)*SNAP!$Q72,IF(VLOOKUP($P72,'Congressional Districts'!$A$1:$E$93,4,FALSE)=SNAP!AA$1,VLOOKUP($P72,'Congressional Districts'!$A$1:$E$93,5,FALSE)*SNAP!$Q72,0)) -> 0
A73: Scott | B73: 623.1 | C73: 618 | D73: 608.6 | E73: 587.5 | F73: 594.4 | G73: 585.9 | H73: 589.5 | I73: 585.3 | J73: 583.7 | K73: 582.8 | L73: 573.5 | M73: 576.4 | N73: 7108.7 | P73: Scott | Q73: 7108700 | S73: =IF(VLOOKUP($P73,'Congressional Districts'!$A$1:$E$93,2,FALSE)=SNAP!S$1,VLOOKUP($P73,'Congressional Districts'!$A$1:$E$93,3,FALSE)*SNAP!$Q73,IF(VLOOKUP($P73,'Congressional Districts'!$A$1:$E$93,4,FALSE)=SNAP!S$1,VLOOKUP($P73,'Congressional Districts'!$A$1:$E$93,5,FALSE)*SNAP!$Q73,0)) -> 0 | T73: =IF(VLOOKUP($P73,'Congressional Districts'!$A$1:$E$93,2,FALSE)=SNAP!T$1,VLOOKUP($P73,'Congressional Districts'!$A$1:$E$93,3,FALSE)*SNAP!$Q73,IF(VLOOKUP($P73,'Congressional Districts'!$A$1:$E$93,4,FALSE)=SNAP!T$1,VLOOKUP($P73,'Congressional Districts'!$A$1:$E$93,5,FALSE)*SNAP!$Q73,0)) -> 0 | U73: =IF(VLOOKUP($P73,'Congressional Districts'!$A$1:$E$93,2,FALSE)=SNAP!U$1,VLOOKUP($P73,'Congressional Districts'!$A$1:$E$93,3,FALSE)*SNAP!$Q73,IF(VLOOKUP($P73,'Congressional Districts'!$A$1:$E$93,4,FALSE)=SNAP!U$1,VLOOKUP($P73,'Congressional Districts'!$A$1:$E$93,5,FALSE)*SNAP!$Q73,0)) -> 0 | V73: =IF(VLOOKUP($P73,'Congressional Districts'!$A$1:$E$93,2,FALSE)=SNAP!V$1,VLOOKUP($P73,'Congressional Districts'!$A$1:$E$93,3,FALSE)*SNAP!$Q73,IF(VLOOKUP($P73,'Congressional Districts'!$A$1:$E$93,4,FALSE)=SNAP!V$1,VLOOKUP($P73,'Congressional Districts'!$A$1:$E$93,5,FALSE)*SNAP!$Q73,0)) -> 0 | W73: =IF(VLOOKUP($P73,'Congressional Districts'!$A$1:$E$93,2,FALSE)=SNAP!W$1,VLOOKUP($P73,'Congressional Districts'!$A$1:$E$93,3,FALSE)*SNAP!$Q73,IF(VLOOKUP($P73,'Congressional Districts'!$A$1:$E$93,4,FALSE)=SNAP!W$1,VLOOKUP($P73,'Congressional Districts'!$A$1:$E$93,5,FALSE)*SNAP!$Q73,0)) -> 0 | X73: =IF(VLOOKUP($P73,'Congressional Districts'!$A$1:$E$93,2,FALSE)=SNAP!X$1,VLOOKUP($P73,'Congressional Districts'!$A$1:$E$93,3,FALSE)*SNAP!$Q73,IF(VLOOKUP($P73,'Congressional Districts'!$A$1:$E$93,4,FALSE)=SNAP!X$1,VLOOKUP($P73,'Congressional Districts'!$A$1:$E$93,5,FALSE)*SNAP!$Q73,0)) -> 5065281.163 | Y73: =IF(VLOOKUP($P73,'Congressional Districts'!$A$1:$E$93,2,FALSE)=SNAP!Y$1,VLOOKUP($P73,'Congressional Districts'!$A$1:$E$93,3,FALSE)*SNAP!$Q73,IF(VLOOKUP($P73,'Congressional Districts'!$A$1:$E$93,4,FALSE)=SNAP!Y$1,VLOOKUP($P73,'Congressional Districts'!$A$1:$E$93,5,FALSE)*SNAP!$Q73,0)) -> 0 | Z73: =IF(VLOOKUP($P73,'Congressional Districts'!$A$1:$E$93,2,FALSE)=SNAP!Z$1,VLOOKUP($P73,'Congressional Districts'!$A$1:$E$93,3,FALSE)*SNAP!$Q73,IF(VLOOKUP($P73,'Congressional Districts'!$A$1:$E$93,4,FALSE)=SNAP!Z$1,VLOOKUP($P73,'Congressional Districts'!$A$1:$E$93,5,FALSE)*SNAP!$Q73,0)) -> 0 | AA73: =IF(VLOOKUP($P73,'Congressional Districts'!$A$1:$E$93,2,FALSE)=SNAP!AA$1,VLOOKUP($P73,'Congressional Districts'!$A$1:$E$93,3,FALSE)*SNAP!$Q73,IF(VLOOKUP($P73,'Congressional Districts'!$A$1:$E$93,4,FALSE)=SNAP!AA$1,VLOOKUP($P73,'Congressional Districts'!$A$1:$E$93,5,FALSE)*SNAP!$Q73,0)) -> 2043418.837
A74: Shelby | B74: 725.2 | C74: 723.9 | D74: 721.9 | E74: 719 | F74: 712.6 | G74: 703.3 | H74: 699.5 | I74: 707.9 | J74: 710.6 | K74: 722.6 | L74: 715.2 | M74: 713 | N74: 8574.7 | P74: Shelby | Q74: 8574700 | S74: =IF(VLOOKUP($P74,'Congressional Districts'!$A$1:$E$93,2,FALSE)=SNAP!S$1,VLOOKUP($P74,'Congressional Districts'!$A$1:$E$93,3,FALSE)*SNAP!$Q74,IF(VLOOKUP($P74,'Congressional Districts'!$A$1:$E$93,4,FALSE)=SNAP!S$1,VLOOKUP($P74,'Congressional Districts'!$A$1:$E$93,5,FALSE)*SNAP!$Q74,0)) -> 0 | T74: =IF(VLOOKUP($P74,'Congressional Districts'!$A$1:$E$93,2,FALSE)=SNAP!T$1,VLOOKUP($P74,'Congressional Districts'!$A$1:$E$93,3,FALSE)*SNAP!$Q74,IF(VLOOKUP($P74,'Congressional Districts'!$A$1:$E$93,4,FALSE)=SNAP!T$1,VLOOKUP($P74,'Congressional Districts'!$A$1:$E$93,5,FALSE)*SNAP!$Q74,0)) -> 0 | U74: =IF(VLOOKUP($P74,'Congressional Districts'!$A$1:$E$93,2,FALSE)=SNAP!U$1,VLOOKUP($P74,'Congressional Districts'!$A$1:$E$93,3,FALSE)*SNAP!$Q74,IF(VLOOKUP($P74,'Congressional Districts'!$A$1:$E$93,4,FALSE)=SNAP!U$1,VLOOKUP($P74,'Congressional Districts'!$A$1:$E$93,5,FALSE)*SNAP!$Q74,0)) -> 0 | V74: =IF(VLOOKUP($P74,'Congressional Districts'!$A$1:$E$93,2,FALSE)=SNAP!V$1,VLOOKUP($P74,'Congressional Districts'!$A$1:$E$93,3,FALSE)*SNAP!$Q74,IF(VLOOKUP($P74,'Congressional Districts'!$A$1:$E$93,4,FALSE)=SNAP!V$1,VLOOKUP($P74,'Congressional Districts'!$A$1:$E$93,5,FALSE)*SNAP!$Q74,0)) -> 0 | W74: =IF(VLOOKUP($P74,'Congressional Districts'!$A$1:$E$93,2,FALSE)=SNAP!W$1,VLOOKUP($P74,'Congressional Districts'!$A$1:$E$93,3,FALSE)*SNAP!$Q74,IF(VLOOKUP($P74,'Congressional Districts'!$A$1:$E$93,4,FALSE)=SNAP!W$1,VLOOKUP($P74,'Congressional Districts'!$A$1:$E$93,5,FALSE)*SNAP!$Q74,0)) -> 0 | X74: =IF(VLOOKUP($P74,'Congressional Districts'!$A$1:$E$93,2,FALSE)=SNAP!X$1,VLOOKUP($P74,'Congressional Districts'!$A$1:$E$93,3,FALSE)*SNAP!$Q74,IF(VLOOKUP($P74,'Congressional Districts'!$A$1:$E$93,4,FALSE)=SNAP!X$1,VLOOKUP($P74,'Congressional Districts'!$A$1:$E$93,5,FALSE)*SNAP!$Q74,0)) -> 8574700 | Y74: =IF(VLOOKUP($P74,'Congressional Districts'!$A$1:$E$93,2,FALSE)=SNAP!Y$1,VLOOKUP($P74,'Congressional Districts'!$A$1:$E$93,3,FALSE)*SNAP!$Q74,IF(VLOOKUP($P74,'Congressional Districts'!$A$1:$E$93,4,FALSE)=SNAP!Y$1,VLOOKUP($P74,'Congressional Districts'!$A$1:$E$93,5,FALSE)*SNAP!$Q74,0)) -> 0 | Z74: =IF(VLOOKUP($P74,'Congressional Districts'!$A$1:$E$93,2,FALSE)=SNAP!Z$1,VLOOKUP($P74,'Congressional Districts'!$A$1:$E$93,3,FALSE)*SNAP!$Q74,IF(VLOOKUP($P74,'Congressional Districts'!$A$1:$E$93,4,FALSE)=SNAP!Z$1,VLOOKUP($P74,'Congressional Districts'!$A$1:$E$93,5,FALSE)*SNAP!$Q74,0)) -> 0 | AA74: =IF(VLOOKUP($P74,'Congressional Districts'!$A$1:$E$93,2,FALSE)=SNAP!AA$1,VLOOKUP($P74,'Congressional Districts'!$A$1:$E$93,3,FALSE)*SNAP!$Q74,IF(VLOOKUP($P74,'Congressional Districts'!$A$1:$E$93,4,FALSE)=SNAP!AA$1,VLOOKUP($P74,'Congressional Districts'!$A$1:$E$93,5,FALSE)*SNAP!$Q74,0)) -> 0
A75: Spencer | B75: 217.9 | C75: 217.9 | D75: 231.6 | E75: 214.6 | F75: 213.4 | G75: 210.8 | H75: 211.7 | I75: 212.3 | J75: 214.7 | K75: 213.7 | L75: 222.1 | M75: 219.7 | N75: 2600.4 | P75: Spencer | Q75: 2600400 | S75: =IF(VLOOKUP($P75,'Congressional Districts'!$A$1:$E$93,2,FALSE)=SNAP!S$1,VLOOKUP($P75,'Congressional Districts'!$A$1:$E$93,3,FALSE)*SNAP!$Q75,IF(VLOOKUP($P75,'Congressional Districts'!$A$1:$E$93,4,FALSE)=SNAP!S$1,VLOOKUP($P75,'Congressional Districts'!$A$1:$E$93,5,FALSE)*SNAP!$Q75,0)) -> 0 | T75: =IF(VLOOKUP($P75,'Congressional Districts'!$A$1:$E$93,2,FALSE)=SNAP!T$1,VLOOKUP($P75,'Congressional Districts'!$A$1:$E$93,3,FALSE)*SNAP!$Q75,IF(VLOOKUP($P75,'Congressional Districts'!$A$1:$E$93,4,FALSE)=SNAP!T$1,VLOOKUP($P75,'Congressional Districts'!$A$1:$E$93,5,FALSE)*SNAP!$Q75,0)) -> 0 | U75: =IF(VLOOKUP($P75,'Congressional Districts'!$A$1:$E$93,2,FALSE)=SNAP!U$1,VLOOKUP($P75,'Congressional Districts'!$A$1:$E$93,3,FALSE)*SNAP!$Q75,IF(VLOOKUP($P75,'Congressional Districts'!$A$1:$E$93,4,FALSE)=SNAP!U$1,VLOOKUP($P75,'Congressional Districts'!$A$1:$E$93,5,FALSE)*SNAP!$Q75,0)) -> 0 | V75: =IF(VLOOKUP($P75,'Congressional Districts'!$A$1:$E$93,2,FALSE)=SNAP!V$1,VLOOKUP($P75,'Congressional Districts'!$A$1:$E$93,3,FALSE)*SNAP!$Q75,IF(VLOOKUP($P75,'Congressional Districts'!$A$1:$E$93,4,FALSE)=SNAP!V$1,VLOOKUP($P75,'Congressional Districts'!$A$1:$E$93,5,FALSE)*SNAP!$Q75,0)) -> 0 | W75: =IF(VLOOKUP($P75,'Congressional Districts'!$A$1:$E$93,2,FALSE)=SNAP!W$1,VLOOKUP($P75,'Congressional Districts'!$A$1:$E$93,3,FALSE)*SNAP!$Q75,IF(VLOOKUP($P75,'Congressional Districts'!$A$1:$E$93,4,FALSE)=SNAP!W$1,VLOOKUP($P75,'Congressional Districts'!$A$1:$E$93,5,FALSE)*SNAP!$Q75,0)) -> 0 | X75: =IF(VLOOKUP($P75,'Congressional Districts'!$A$1:$E$93,2,FALSE)=SNAP!X$1,VLOOKUP($P75,'Congressional Districts'!$A$1:$E$93,3,FALSE)*SNAP!$Q75,IF(VLOOKUP($P75,'Congressional Districts'!$A$1:$E$93,4,FALSE)=SNAP!X$1,VLOOKUP($P75,'Congressional Districts'!$A$1:$E$93,5,FALSE)*SNAP!$Q75,0)) -> 0 | Y75: =IF(VLOOKUP($P75,'Congressional Districts'!$A$1:$E$93,2,FALSE)=SNAP!Y$1,VLOOKUP($P75,'Congressional Districts'!$A$1:$E$93,3,FALSE)*SNAP!$Q75,IF(VLOOKUP($P75,'Congressional Districts'!$A$1:$E$93,4,FALSE)=SNAP!Y$1,VLOOKUP($P75,'Congressional Districts'!$A$1:$E$93,5,FALSE)*SNAP!$Q75,0)) -> 0 | Z75: =IF(VLOOKUP($P75,'Congressional Districts'!$A$1:$E$93,2,FALSE)=SNAP!Z$1,VLOOKUP($P75,'Congressional Districts'!$A$1:$E$93,3,FALSE)*SNAP!$Q75,IF(VLOOKUP($P75,'Congressional Districts'!$A$1:$E$93,4,FALSE)=SNAP!Z$1,VLOOKUP($P75,'Congressional Districts'!$A$1:$E$93,5,FALSE)*SNAP!$Q75,0)) -> 2600400 | AA75: =IF(VLOOKUP($P75,'Congressional Districts'!$A$1:$E$93,2,FALSE)=SNAP!AA$1,VLOOKUP($P75,'Congressional Districts'!$A$1:$E$93,3,FALSE)*SNAP!$Q75,IF(VLOOKUP($P75,'Congressional Districts'!$A$1:$E$93,4,FALSE)=SNAP!AA$1,VLOOKUP($P75,'Congressional Districts'!$A$1:$E$93,5,FALSE)*SNAP!$Q75,0)) -> 0
A76: Starke | B76: 553.9 | C76: 562.7 | D76: 536.1 | E76: 522.8 | F76: 524.5 | G76: 530.1 | H76: 520.3 | I76: 543.5 | J76: 543.3 | K76: 546.9 | L76: 554.3 | M76: 550.2 | N76: 6488.6 | P76: Starke | Q76: 6488600 | S76: =IF(VLOOKUP($P76,'Congressional Districts'!$A$1:$E$93,2,FALSE)=SNAP!S$1,VLOOKUP($P76,'Congressional Districts'!$A$1:$E$93,3,FALSE)*SNAP!$Q76,IF(VLOOKUP($P76,'Congressional Districts'!$A$1:$E$93,4,FALSE)=SNAP!S$1,VLOOKUP($P76,'Congressional Districts'!$A$1:$E$93,5,FALSE)*SNAP!$Q76,0)) -> 0 | T76: =IF(VLOOKUP($P76,'Congressional Districts'!$A$1:$E$93,2,FALSE)=SNAP!T$1,VLOOKUP($P76,'Congressional Districts'!$A$1:$E$93,3,FALSE)*SNAP!$Q76,IF(VLOOKUP($P76,'Congressional Districts'!$A$1:$E$93,4,FALSE)=SNAP!T$1,VLOOKUP($P76,'Congressional Districts'!$A$1:$E$93,5,FALSE)*SNAP!$Q76,0)) -> 6488600 | U76: =IF(VLOOKUP($P76,'Congressional Districts'!$A$1:$E$93,2,FALSE)=SNAP!U$1,VLOOKUP($P76,'Congressional Districts'!$A$1:$E$93,3,FALSE)*SNAP!$Q76,IF(VLOOKUP($P76,'Congressional Districts'!$A$1:$E$93,4,FALSE)=SNAP!U$1,VLOOKUP($P76,'Congressional Districts'!$A$1:$E$93,5,FALSE)*SNAP!$Q76,0)) -> 0 | V76: =IF(VLOOKUP($P76,'Congressional Districts'!$A$1:$E$93,2,FALSE)=SNAP!V$1,VLOOKUP($P76,'Congressional Districts'!$A$1:$E$93,3,FALSE)*SNAP!$Q76,IF(VLOOKUP($P76,'Congressional Districts'!$A$1:$E$93,4,FALSE)=SNAP!V$1,VLOOKUP($P76,'Congressional Districts'!$A$1:$E$93,5,FALSE)*SNAP!$Q76,0)) -> 0 | W76: =IF(VLOOKUP($P76,'Congressional Districts'!$A$1:$E$93,2,FALSE)=SNAP!W$1,VLOOKUP($P76,'Congressional Districts'!$A$1:$E$93,3,FALSE)*SNAP!$Q76,IF(VLOOKUP($P76,'Congressional Districts'!$A$1:$E$93,4,FALSE)=SNAP!W$1,VLOOKUP($P76,'Congressional Districts'!$A$1:$E$93,5,FALSE)*SNAP!$Q76,0)) -> 0 | X76: =IF(VLOOKUP($P76,'Congressional Districts'!$A$1:$E$93,2,FALSE)=SNAP!X$1,VLOOKUP($P76,'Congressional Districts'!$A$1:$E$93,3,FALSE)*SNAP!$Q76,IF(VLOOKUP($P76,'Congressional Districts'!$A$1:$E$93,4,FALSE)=SNAP!X$1,VLOOKUP($P76,'Congressional Districts'!$A$1:$E$93,5,FALSE)*SNAP!$Q76,0)) -> 0 | Y76: =IF(VLOOKUP($P76,'Congressional Districts'!$A$1:$E$93,2,FALSE)=SNAP!Y$1,VLOOKUP($P76,'Congressional Districts'!$A$1:$E$93,3,FALSE)*SNAP!$Q76,IF(VLOOKUP($P76,'Congressional Districts'!$A$1:$E$93,4,FALSE)=SNAP!Y$1,VLOOKUP($P76,'Congressional Districts'!$A$1:$E$93,5,FALSE)*SNAP!$Q76,0)) -> 0 | Z76: =IF(VLOOKUP($P76,'Congressional Districts'!$A$1:$E$93,2,FALSE)=SNAP!Z$1,VLOOKUP($P76,'Congressional Districts'!$A$1:$E$93,3,FALSE)*SNAP!$Q76,IF(VLOOKUP($P76,'Congressional Districts'!$A$1:$E$93,4,FALSE)=SNAP!Z$1,VLOOKUP($P76,'Congressional Districts'!$A$1:$E$93,5,FALSE)*SNAP!$Q76,0)) -> 0 | AA76: =IF(VLOOKUP($P76,'Congressional Districts'!$A$1:$E$93,2,FALSE)=SNAP!AA$1,VLOOKUP($P76,'Congressional Districts'!$A$1:$E$93,3,FALSE)*SNAP!$Q76,IF(VLOOKUP($P76,'Congressional Districts'!$A$1:$E$93,4,FALSE)=SNAP!AA$1,VLOOKUP($P76,'Congressional Districts'!$A$1:$E$93,5,FALSE)*SNAP!$Q76,0)) -> 0
A77: Steuben | B77: 494.1 | C77: 493.7 | D77: 492.8 | E77: 484.1 | F77: 476.6 | G77: 464.9 | H77: 460.7 | I77: 460.6 | J77: 454.5 | K77: 456 | L77: 445.5 | M77: 449.1 | N77: 5632.6 | P77: Steuben | Q77: 5632600 | S77: =IF(VLOOKUP($P77,'Congressional Districts'!$A$1:$E$93,2,FALSE)=SNAP!S$1,VLOOKUP($P77,'Congressional Districts'!$A$1:$E$93,3,FALSE)*SNAP!$Q77,IF(VLOOKUP($P77,'Congressional Districts'!$A$1:$E$93,4,FALSE)=SNAP!S$1,VLOOKUP($P77,'Congressional Districts'!$A$1:$E$93,5,FALSE)*SNAP!$Q77,0)) -> 0 | T77: =IF(VLOOKUP($P77,'Congressional Districts'!$A$1:$E$93,2,FALSE)=SNAP!T$1,VLOOKUP($P77,'Congressional Districts'!$A$1:$E$93,3,FALSE)*SNAP!$Q77,IF(VLOOKUP($P77,'Congressional Districts'!$A$1:$E$93,4,FALSE)=SNAP!T$1,VLOOKUP($P77,'Congressional Districts'!$A$1:$E$93,5,FALSE)*SNAP!$Q77,0)) -> 0 | U77: =IF(VLOOKUP($P77,'Congressional Districts'!$A$1:$E$93,2,FALSE)=SNAP!U$1,VLOOKUP($P77,'Congressional Districts'!$A$1:$E$93,3,FALSE)*SNAP!$Q77,IF(VLOOKUP($P77,'Congressional Districts'!$A$1:$E$93,4,FALSE)=SNAP!U$1,VLOOKUP($P77,'Congressional Districts'!$A$1:$E$93,5,FALSE)*SNAP!$Q77,0)) -> 5632600 | V77: =IF(VLOOKUP($P77,'Congressional Districts'!$A$1:$E$93,2,FALSE)=SNAP!V$1,VLOOKUP($P77,'Congressional Districts'!$A$1:$E$93,3,FALSE)*SNAP!$Q77,IF(VLOOKUP($P77,'Congressional Districts'!$A$1:$E$93,4,FALSE)=SNAP!V$1,VLOOKUP($P77,'Congressional Districts'!$A$1:$E$93,5,FALSE)*SNAP!$Q77,0)) -> 0 | W77: =IF(VLOOKUP($P77,'Congressional Districts'!$A$1:$E$93,2,FALSE)=SNAP!W$1,VLOOKUP($P77,'Congressional Districts'!$A$1:$E$93,3,FALSE)*SNAP!$Q77,IF(VLOOKUP($P77,'Congressional Districts'!$A$1:$E$93,4,FALSE)=SNAP!W$1,VLOOKUP($P77,'Congressional Districts'!$A$1:$E$93,5,FALSE)*SNAP!$Q77,0)) -> 0 | X77: =IF(VLOOKUP($P77,'Congressional Districts'!$A$1:$E$93,2,FALSE)=SNAP!X$1,VLOOKUP($P77,'Congressional Districts'!$A$1:$E$93,3,FALSE)*SNAP!$Q77,IF(VLOOKUP($P77,'Congressional Districts'!$A$1:$E$93,4,FALSE)=SNAP!X$1,VLOOKUP($P77,'Congressional Districts'!$A$1:$E$93,5,FALSE)*SNAP!$Q77,0)) -> 0 | Y77: =IF(VLOOKUP($P77,'Congressional Districts'!$A$1:$E$93,2,FALSE)=SNAP!Y$1,VLOOKUP($P77,'Congressional Districts'!$A$1:$E$93,3,FALSE)*SNAP!$Q77,IF(VLOOKUP($P77,'Congressional Districts'!$A$1:$E$93,4,FALSE)=SNAP!Y$1,VLOOKUP($P77,'Congressional Districts'!$A$1:$E$93,5,FALSE)*SNAP!$Q77,0)) -> 0 | Z77: =IF(VLOOKUP($P77,'Congressional Districts'!$A$1:$E$93,2,FALSE)=SNAP!Z$1,VLOOKUP($P77,'Congressional Districts'!$A$1:$E$93,3,FALSE)*SNAP!$Q77,IF(VLOOKUP($P77,'Congressional Districts'!$A$1:$E$93,4,FALSE)=SNAP!Z$1,VLOOKUP($P77,'Congressional Districts'!$A$1:$E$93,5,FALSE)*SNAP!$Q77,0)) -> 0 | AA77: =IF(VLOOKUP($P77,'Congressional Districts'!$A$1:$E$93,2,FALSE)=SNAP!AA$1,VLOOKUP($P77,'Congressional Districts'!$A$1:$E$93,3,FALSE)*SNAP!$Q77,IF(VLOOKUP($P77,'Congressional Districts'!$A$1:$E$93,4,FALSE)=SNAP!AA$1,VLOOKUP($P77,'Congressional Districts'!$A$1:$E$93,5,FALSE)*SNAP!$Q77,0)) -> 0
A78: Sullivan | B78: 349.7 | C78: 346.8 | D78: 352.3 | E78: 347.7 | F78: 357.2 | G78: 364.8 | H78: 373.4 | I78: 375.7 | J78: 379.7 | K78: 386.9 | L78: 375.3 | M78: 382.6 | N78: 4392.1 | P78: Sullivan | Q78: 4392100 | S78: =IF(VLOOKUP($P78,'Congressional Districts'!$A$1:$E$93,2,FALSE)=SNAP!S$1,VLOOKUP($P78,'Congressional Districts'!$A$1:$E$93,3,FALSE)*SNAP!$Q78,IF(VLOOKUP($P78,'Congressional Districts'!$A$1:$E$93,4,FALSE)=SNAP!S$1,VLOOKUP($P78,'Congressional Districts'!$A$1:$E$93,5,FALSE)*SNAP!$Q78,0)) -> 0 | T78: =IF(VLOOKUP($P78,'Congressional Districts'!$A$1:$E$93,2,FALSE)=SNAP!T$1,VLOOKUP($P78,'Congressional Districts'!$A$1:$E$93,3,FALSE)*SNAP!$Q78,IF(VLOOKUP($P78,'Congressional Districts'!$A$1:$E$93,4,FALSE)=SNAP!T$1,VLOOKUP($P78,'Congressional Districts'!$A$1:$E$93,5,FALSE)*SNAP!$Q78,0)) -> 0 | U78: =IF(VLOOKUP($P78,'Congressional Districts'!$A$1:$E$93,2,FALSE)=SNAP!U$1,VLOOKUP($P78,'Congressional Districts'!$A$1:$E$93,3,FALSE)*SNAP!$Q78,IF(VLOOKUP($P78,'Congressional Districts'!$A$1:$E$93,4,FALSE)=SNAP!U$1,VLOOKUP($P78,'Congressional Districts'!$A$1:$E$93,5,FALSE)*SNAP!$Q78,0)) -> 0 | V78: =IF(VLOOKUP($P78,'Congressional Districts'!$A$1:$E$93,2,FALSE)=SNAP!V$1,VLOOKUP($P78,'Congressional Districts'!$A$1:$E$93,3,FALSE)*SNAP!$Q78,IF(VLOOKUP($P78,'Congressional Districts'!$A$1:$E$93,4,FALSE)=SNAP!V$1,VLOOKUP($P78,'Congressional Districts'!$A$1:$E$93,5,FALSE)*SNAP!$Q78,0)) -> 0 | W78: =IF(VLOOKUP($P78,'Congressional Districts'!$A$1:$E$93,2,FALSE)=SNAP!W$1,VLOOKUP($P78,'Congressional Districts'!$A$1:$E$93,3,FALSE)*SNAP!$Q78,IF(VLOOKUP($P78,'Congressional Districts'!$A$1:$E$93,4,FALSE)=SNAP!W$1,VLOOKUP($P78,'Congressional Districts'!$A$1:$E$93,5,FALSE)*SNAP!$Q78,0)) -> 0 | X78: =IF(VLOOKUP($P78,'Congressional Districts'!$A$1:$E$93,2,FALSE)=SNAP!X$1,VLOOKUP($P78,'Congressional Districts'!$A$1:$E$93,3,FALSE)*SNAP!$Q78,IF(VLOOKUP($P78,'Congressional Districts'!$A$1:$E$93,4,FALSE)=SNAP!X$1,VLOOKUP($P78,'Congressional Districts'!$A$1:$E$93,5,FALSE)*SNAP!$Q78,0)) -> 0 | Y78: =IF(VLOOKUP($P78,'Congressional Districts'!$A$1:$E$93,2,FALSE)=SNAP!Y$1,VLOOKUP($P78,'Congressional Districts'!$A$1:$E$93,3,FALSE)*SNAP!$Q78,IF(VLOOKUP($P78,'Congressional Districts'!$A$1:$E$93,4,FALSE)=SNAP!Y$1,VLOOKUP($P78,'Congressional Districts'!$A$1:$E$93,5,FALSE)*SNAP!$Q78,0)) -> 0 | Z78: =IF(VLOOKUP($P78,'Congressional Districts'!$A$1:$E$93,2,FALSE)=SNAP!Z$1,VLOOKUP($P78,'Congressional Districts'!$A$1:$E$93,3,FALSE)*SNAP!$Q78,IF(VLOOKUP($P78,'Congressional Districts'!$A$1:$E$93,4,FALSE)=SNAP!Z$1,VLOOKUP($P78,'Congressional Districts'!$A$1:$E$93,5,FALSE)*SNAP!$Q78,0)) -> 4392100 | AA78: =IF(VLOOKUP($P78,'Congressional Districts'!$A$1:$E$93,2,FALSE)=SNAP!AA$1,VLOOKUP($P78,'Congressional Districts'!$A$1:$E$93,3,FALSE)*SNAP!$Q78,IF(VLOOKUP($P78,'Congressional Districts'!$A$1:$E$93,4,FALSE)=SNAP!AA$1,VLOOKUP($P78,'Congressional Districts'!$A$1:$E$93,5,FALSE)*SNAP!$Q78,0)) -> 0
A79: Switzerland | B79: 192.2 | C79: 190.4 | D79: 197.7 | E79: 193.6 | F79: 196.8 | G79: 193.2 | H79: 191.7 | I79: 205.2 | J79: 197.3 | K79: 205.7 | L79: 197.7 | M79: 199.1 | N79: 2360.6 | P79: Switzerland | Q79: 2360600 | S79: =IF(VLOOKUP($P79,'Congressional Districts'!$A$1:$E$93,2,FALSE)=SNAP!S$1,VLOOKUP($P79,'Congressional Districts'!$A$1:$E$93,3,FALSE)*SNAP!$Q79,IF(VLOOKUP($P79,'Congressional Districts'!$A$1:$E$93,4,FALSE)=SNAP!S$1,VLOOKUP($P79,'Congressional Districts'!$A$1:$E$93,5,FALSE)*SNAP!$Q79,0)) -> 0 | T79: =IF(VLOOKUP($P79,'Congressional Districts'!$A$1:$E$93,2,FALSE)=SNAP!T$1,VLOOKUP($P79,'Congressional Districts'!$A$1:$E$93,3,FALSE)*SNAP!$Q79,IF(VLOOKUP($P79,'Congressional Districts'!$A$1:$E$93,4,FALSE)=SNAP!T$1,VLOOKUP($P79,'Congressional Districts'!$A$1:$E$93,5,FALSE)*SNAP!$Q79,0)) -> 0 | U79: =IF(VLOOKUP($P79,'Congressional Districts'!$A$1:$E$93,2,FALSE)=SNAP!U$1,VLOOKUP($P79,'Congressional Districts'!$A$1:$E$93,3,FALSE)*SNAP!$Q79,IF(VLOOKUP($P79,'Congressional Districts'!$A$1:$E$93,4,FALSE)=SNAP!U$1,VLOOKUP($P79,'Congressional Districts'!$A$1:$E$93,5,FALSE)*SNAP!$Q79,0)) -> 0 | V79: =IF(VLOOKUP($P79,'Congressional Districts'!$A$1:$E$93,2,FALSE)=SNAP!V$1,VLOOKUP($P79,'Congressional Districts'!$A$1:$E$93,3,FALSE)*SNAP!$Q79,IF(VLOOKUP($P79,'Congressional Districts'!$A$1:$E$93,4,FALSE)=SNAP!V$1,VLOOKUP($P79,'Congressional Districts'!$A$1:$E$93,5,FALSE)*SNAP!$Q79,0)) -> 0 | W79: =IF(VLOOKUP($P79,'Congressional Districts'!$A$1:$E$93,2,FALSE)=SNAP!W$1,VLOOKUP($P79,'Congressional Districts'!$A$1:$E$93,3,FALSE)*SNAP!$Q79,IF(VLOOKUP($P79,'Congressional Districts'!$A$1:$E$93,4,FALSE)=SNAP!W$1,VLOOKUP($P79,'Congressional Districts'!$A$1:$E$93,5,FALSE)*SNAP!$Q79,0)) -> 0 | X79: =IF(VLOOKUP($P79,'Congressional Districts'!$A$1:$E$93,2,FALSE)=SNAP!X$1,VLOOKUP($P79,'Congressional Districts'!$A$1:$E$93,3,FALSE)*SNAP!$Q79,IF(VLOOKUP($P79,'Congressional Districts'!$A$1:$E$93,4,FALSE)=SNAP!X$1,VLOOKUP($P79,'Congressional Districts'!$A$1:$E$93,5,FALSE)*SNAP!$Q79,0)) -> 2360600 | Y79: =IF(VLOOKUP($P79,'Congressional Districts'!$A$1:$E$93,2,FALSE)=SNAP!Y$1,VLOOKUP($P79,'Congressional Districts'!$A$1:$E$93,3,FALSE)*SNAP!$Q79,IF(VLOOKUP($P79,'Congressional Districts'!$A$1:$E$93,4,FALSE)=SNAP!Y$1,VLOOKUP($P79,'Congressional Districts'!$A$1:$E$93,5,FALSE)*SNAP!$Q79,0)) -> 0 | Z79: =IF(VLOOKUP($P79,'Congressional Districts'!$A$1:$E$93,2,FALSE)=SNAP!Z$1,VLOOKUP($P79,'Congressional Districts'!$A$1:$E$93,3,FALSE)*SNAP!$Q79,IF(VLOOKUP($P79,'Congressional Districts'!$A$1:$E$93,4,FALSE)=SNAP!Z$1,VLOOKUP($P79,'Congressional Districts'!$A$1:$E$93,5,FALSE)*SNAP!$Q79,0)) -> 0 | AA79: =IF(VLOOKUP($P79,'Congressional Districts'!$A$1:$E$93,2,FALSE)=SNAP!AA$1,VLOOKUP($P79,'Congressional Districts'!$A$1:$E$93,3,FALSE)*SNAP!$Q79,IF(VLOOKUP($P79,'Congressional Districts'!$A$1:$E$93,4,FALSE)=SNAP!AA$1,VLOOKUP($P79,'Congressional Districts'!$A$1:$E$93,5,FALSE)*SNAP!$Q79,0)) -> 0
A80: Tippecanoe | B80: 2353.3 | C80: 2331 | D80: 2336.8 | E80: 2341.9 | F80: 2370.5 | G80: 2373.5 | H80: 2386.4 | I80: 2391.3 | J80: 2411.6 | K80: 2435.7 | L80: 2428.7 | M80: 2443 | N80: 28603.7 | P80: Tippecanoe | Q80: 28603700 | S80: =IF(VLOOKUP($P80,'Congressional Districts'!$A$1:$E$93,2,FALSE)=SNAP!S$1,VLOOKUP($P80,'Congressional Districts'!$A$1:$E$93,3,FALSE)*SNAP!$Q80,IF(VLOOKUP($P80,'Congressional Districts'!$A$1:$E$93,4,FALSE)=SNAP!S$1,VLOOKUP($P80,'Congressional Districts'!$A$1:$E$93,5,FALSE)*SNAP!$Q80,0)) -> 0 | T80: =IF(VLOOKUP($P80,'Congressional Districts'!$A$1:$E$93,2,FALSE)=SNAP!T$1,VLOOKUP($P80,'Congressional Districts'!$A$1:$E$93,3,FALSE)*SNAP!$Q80,IF(VLOOKUP($P80,'Congressional Districts'!$A$1:$E$93,4,FALSE)=SNAP!T$1,VLOOKUP($P80,'Congressional Districts'!$A$1:$E$93,5,FALSE)*SNAP!$Q80,0)) -> 0 | U80: =IF(VLOOKUP($P80,'Congressional Districts'!$A$1:$E$93,2,FALSE)=SNAP!U$1,VLOOKUP($P80,'Congressional Districts'!$A$1:$E$93,3,FALSE)*SNAP!$Q80,IF(VLOOKUP($P80,'Congressional Districts'!$A$1:$E$93,4,FALSE)=SNAP!U$1,VLOOKUP($P80,'Congressional Districts'!$A$1:$E$93,5,FALSE)*SNAP!$Q80,0)) -> 0 | V80: =IF(VLOOKUP($P80,'Congressional Districts'!$A$1:$E$93,2,FALSE)=SNAP!V$1,VLOOKUP($P80,'Congressional Districts'!$A$1:$E$93,3,FALSE)*SNAP!$Q80,IF(VLOOKUP($P80,'Congressional Districts'!$A$1:$E$93,4,FALSE)=SNAP!V$1,VLOOKUP($P80,'Congressional Districts'!$A$1:$E$93,5,FALSE)*SNAP!$Q80,0)) -> 28603700 | W80: =IF(VLOOKUP($P80,'Congressional Districts'!$A$1:$E$93,2,FALSE)=SNAP!W$1,VLOOKUP($P80,'Congressional Districts'!$A$1:$E$93,3,FALSE)*SNAP!$Q80,IF(VLOOKUP($P80,'Congressional Districts'!$A$1:$E$93,4,FALSE)=SNAP!W$1,VLOOKUP($P80,'Congressional Districts'!$A$1:$E$93,5,FALSE)*SNAP!$Q80,0)) -> 0 | X80: =IF(VLOOKUP($P80,'Congressional Districts'!$A$1:$E$93,2,FALSE)=SNAP!X$1,VLOOKUP($P80,'Congressional Districts'!$A$1:$E$93,3,FALSE)*SNAP!$Q80,IF(VLOOKUP($P80,'Congressional Districts'!$A$1:$E$93,4,FALSE)=SNAP!X$1,VLOOKUP($P80,'Congressional Districts'!$A$1:$E$93,5,FALSE)*SNAP!$Q80,0)) -> 0 | Y80: =IF(VLOOKUP($P80,'Congressional Districts'!$A$1:$E$93,2,FALSE)=SNAP!Y$1,VLOOKUP($P80,'Congressional Districts'!$A$1:$E$93,3,FALSE)*SNAP!$Q80,IF(VLOOKUP($P80,'Congressional Districts'!$A$1:$E$93,4,FALSE)=SNAP!Y$1,VLOOKUP($P80,'Congressional Districts'!$A$1:$E$93,5,FALSE)*SNAP!$Q80,0)) -> 0 | Z80: =IF(VLOOKUP($P80,'Congressional Districts'!$A$1:$E$93,2,FALSE)=SNAP!Z$1,VLOOKUP($P80,'Congressional Districts'!$A$1:$E$93,3,FALSE)*SNAP!$Q80,IF(VLOOKUP($P80,'Congressional Districts'!$A$1:$E$93,4,FALSE)=SNAP!Z$1,VLOOKUP($P80,'Congressional Districts'!$A$1:$E$93,5,FALSE)*SNAP!$Q80,0)) -> 0 | AA80: =IF(VLOOKUP($P80,'Congressional Districts'!$A$1:$E$93,2,FALSE)=SNAP!AA$1,VLOOKUP($P80,'Congressional Districts'!$A$1:$E$93,3,FALSE)*SNAP!$Q80,IF(VLOOKUP($P80,'Congressional Districts'!$A$1:$E$93,4,FALSE)=SNAP!AA$1,VLOOKUP($P80,'Congressional Districts'!$A$1:$E$93,5,FALSE)*SNAP!$Q80,0)) -> 0
A81: Tipton | B81: 196.9 | C81: 195.4 | D81: 196.6 | E81: 194.6 | F81: 193.1 | G81: 195.2 | H81: 199 | I81: 207.9 | J81: 200.3 | K81: 197.1 | L81: 193.9 | M81: 191.9 | N81: 2361.9 | P81: Tipton | Q81: 2361900 | S81: =IF(VLOOKUP($P81,'Congressional Districts'!$A$1:$E$93,2,FALSE)=SNAP!S$1,VLOOKUP($P81,'Congressional Districts'!$A$1:$E$93,3,FALSE)*SNAP!$Q81,IF(VLOOKUP($P81,'Congressional Districts'!$A$1:$E$93,4,FALSE)=SNAP!S$1,VLOOKUP($P81,'Congressional Districts'!$A$1:$E$93,5,FALSE)*SNAP!$Q81,0)) -> 0 | T81: =IF(VLOOKUP($P81,'Congressional Districts'!$A$1:$E$93,2,FALSE)=SNAP!T$1,VLOOKUP($P81,'Congressional Districts'!$A$1:$E$93,3,FALSE)*SNAP!$Q81,IF(VLOOKUP($P81,'Congressional Districts'!$A$1:$E$93,4,FALSE)=SNAP!T$1,VLOOKUP($P81,'Congressional Districts'!$A$1:$E$93,5,FALSE)*SNAP!$Q81,0)) -> 0 | U81: =IF(VLOOKUP($P81,'Congressional Districts'!$A$1:$E$93,2,FALSE)=SNAP!U$1,VLOOKUP($P81,'Congressional Districts'!$A$1:$E$93,3,FALSE)*SNAP!$Q81,IF(VLOOKUP($P81,'Congressional Districts'!$A$1:$E$93,4,FALSE)=SNAP!U$1,VLOOKUP($P81,'Congressional Districts'!$A$1:$E$93,5,FALSE)*SNAP!$Q81,0)) -> 0 | V81: =IF(VLOOKUP($P81,'Congressional Districts'!$A$1:$E$93,2,FALSE)=SNAP!V$1,VLOOKUP($P81,'Congressional Districts'!$A$1:$E$93,3,FALSE)*SNAP!$Q81,IF(VLOOKUP($P81,'Congressional Districts'!$A$1:$E$93,4,FALSE)=SNAP!V$1,VLOOKUP($P81,'Congressional Districts'!$A$1:$E$93,5,FALSE)*SNAP!$Q81,0)) -> 0 | W81: =IF(VLOOKUP($P81,'Congressional Districts'!$A$1:$E$93,2,FALSE)=SNAP!W$1,VLOOKUP($P81,'Congressional Districts'!$A$1:$E$93,3,FALSE)*SNAP!$Q81,IF(VLOOKUP($P81,'Congressional Districts'!$A$1:$E$93,4,FALSE)=SNAP!W$1,VLOOKUP($P81,'Congressional Districts'!$A$1:$E$93,5,FALSE)*SNAP!$Q81,0)) -> 2361900 | X81: =IF(VLOOKUP($P81,'Congressional Districts'!$A$1:$E$93,2,FALSE)=SNAP!X$1,VLOOKUP($P81,'Congressional Districts'!$A$1:$E$93,3,FALSE)*SNAP!$Q81,IF(VLOOKUP($P81,'Congressional Districts'!$A$1:$E$93,4,FALSE)=SNAP!X$1,VLOOKUP($P81,'Congressional Districts'!$A$1:$E$93,5,FALSE)*SNAP!$Q81,0)) -> 0 | Y81: =IF(VLOOKUP($P81,'Congressional Districts'!$A$1:$E$93,2,FALSE)=SNAP!Y$1,VLOOKUP($P81,'Congressional Districts'!$A$1:$E$93,3,FALSE)*SNAP!$Q81,IF(VLOOKUP($P81,'Congressional Districts'!$A$1:$E$93,4,FALSE)=SNAP!Y$1,VLOOKUP($P81,'Congressional Districts'!$A$1:$E$93,5,FALSE)*SNAP!$Q81,0)) -> 0 | Z81: =IF(VLOOKUP($P81,'Congressional Districts'!$A$1:$E$93,2,FALSE)=SNAP!Z$1,VLOOKUP($P81,'Congressional Districts'!$A$1:$E$93,3,FALSE)*SNAP!$Q81,IF(VLOOKUP($P81,'Congressional Districts'!$A$1:$E$93,4,FALSE)=SNAP!Z$1,VLOOKUP($P81,'Congressional Districts'!$A$1:$E$93,5,FALSE)*SNAP!$Q81,0)) -> 0 | AA81: =IF(VLOOKUP($P81,'Congressional Districts'!$A$1:$E$93,2,FALSE)=SNAP!AA$1,VLOOKUP($P81,'Congressional Districts'!$A$1:$E$93,3,FALSE)*SNAP!$Q81,IF(VLOOKUP($P81,'Congressional Districts'!$A$1:$E$93,4,FALSE)=SNAP!AA$1,VLOOKUP($P81,'Congressional Districts'!$A$1:$E$93,5,FALSE)*SNAP!$Q81,0)) -> 0
A82: Union | B82: 133.9 | C82: 135.5 | D82: 133.7 | E82: 132.1 | F82: 127.9 | G82: 127.6 | H82: 131.7 | I82: 137.1 | J82: 135.9 | K82: 137 | L82: 138.4 | M82: 139.6 | N82: 1610.4 | P82: Union | Q82: 1610400 | S82: =IF(VLOOKUP($P82,'Congressional Districts'!$A$1:$E$93,2,FALSE)=SNAP!S$1,VLOOKUP($P82,'Congressional Districts'!$A$1:$E$93,3,FALSE)*SNAP!$Q82,IF(VLOOKUP($P82,'Congressional Districts'!$A$1:$E$93,4,FALSE)=SNAP!S$1,VLOOKUP($P82,'Congressional Districts'!$A$1:$E$93,5,FALSE)*SNAP!$Q82,0)) -> 0 | T82: =IF(VLOOKUP($P82,'Congressional Districts'!$A$1:$E$93,2,FALSE)=SNAP!T$1,VLOOKUP($P82,'Congressional Districts'!$A$1:$E$93,3,FALSE)*SNAP!$Q82,IF(VLOOKUP($P82,'Congressional Districts'!$A$1:$E$93,4,FALSE)=SNAP!T$1,VLOOKUP($P82,'Congressional Districts'!$A$1:$E$93,5,FALSE)*SNAP!$Q82,0)) -> 0 | U82: =IF(VLOOKUP($P82,'Congressional Districts'!$A$1:$E$93,2,FALSE)=SNAP!U$1,VLOOKUP($P82,'Congressional Districts'!$A$1:$E$93,3,FALSE)*SNAP!$Q82,IF(VLOOKUP($P82,'Congressional Districts'!$A$1:$E$93,4,FALSE)=SNAP!U$1,VLOOKUP($P82,'Congressional Districts'!$A$1:$E$93,5,FALSE)*SNAP!$Q82,0)) -> 0 | V82: =IF(VLOOKUP($P82,'Congressional Districts'!$A$1:$E$93,2,FALSE)=SNAP!V$1,VLOOKUP($P82,'Congressional Districts'!$A$1:$E$93,3,FALSE)*SNAP!$Q82,IF(VLOOKUP($P82,'Congressional Districts'!$A$1:$E$93,4,FALSE)=SNAP!V$1,VLOOKUP($P82,'Congressional Districts'!$A$1:$E$93,5,FALSE)*SNAP!$Q82,0)) -> 0 | W82: =IF(VLOOKUP($P82,'Congressional Districts'!$A$1:$E$93,2,FALSE)=SNAP!W$1,VLOOKUP($P82,'Congressional Districts'!$A$1:$E$93,3,FALSE)*SNAP!$Q82,IF(VLOOKUP($P82,'Congressional Districts'!$A$1:$E$93,4,FALSE)=SNAP!W$1,VLOOKUP($P82,'Congressional Districts'!$A$1:$E$93,5,FALSE)*SNAP!$Q82,0)) -> 0 | X82: =IF(VLOOKUP($P82,'Congressional Districts'!$A$1:$E$93,2,FALSE)=SNAP!X$1,VLOOKUP($P82,'Congressional Districts'!$A$1:$E$93,3,FALSE)*SNAP!$Q82,IF(VLOOKUP($P82,'Congressional Districts'!$A$1:$E$93,4,FALSE)=SNAP!X$1,VLOOKUP($P82,'Congressional Districts'!$A$1:$E$93,5,FALSE)*SNAP!$Q82,0)) -> 1610400 | Y82: =IF(VLOOKUP($P82,'Congressional Districts'!$A$1:$E$93,2,FALSE)=SNAP!Y$1,VLOOKUP($P82,'Congressional Districts'!$A$1:$E$93,3,FALSE)*SNAP!$Q82,IF(VLOOKUP($P82,'Congressional Districts'!$A$1:$E$93,4,FALSE)=SNAP!Y$1,VLOOKUP($P82,'Congressional Districts'!$A$1:$E$93,5,FALSE)*SNAP!$Q82,0)) -> 0 | Z82: =IF(VLOOKUP($P82,'Congressional Districts'!$A$1:$E$93,2,FALSE)=SNAP!Z$1,VLOOKUP($P82,'Congressional Districts'!$A$1:$E$93,3,FALSE)*SNAP!$Q82,IF(VLOOKUP($P82,'Congressional Districts'!$A$1:$E$93,4,FALSE)=SNAP!Z$1,VLOOKUP($P82,'Congressional Districts'!$A$1:$E$93,5,FALSE)*SNAP!$Q82,0)) -> 0 | AA82: =IF(VLOOKUP($P82,'Congressional Districts'!$A$1:$E$93,2,FALSE)=SNAP!AA$1,VLOOKUP($P82,'Congressional Districts'!$A$1:$E$93,3,FALSE)*SNAP!$Q82,IF(VLOOKUP($P82,'Congressional Districts'!$A$1:$E$93,4,FALSE)=SNAP!AA$1,VLOOKUP($P82,'Congressional Districts'!$A$1:$E$93,5,FALSE)*SNAP!$Q82,0)) -> 0
A83: Vanderburgh | B83: 3489.2 | C83: 3459.3 | D83: 3434.3 | E83: 3414 | F83: 3438.7 | G83: 3464.8 | H83: 3502.5 | I83: 3545 | J83: 3535.6 | K83: 3539.4 | L83: 3484.9 | M83: 3500.3 | N83: 41808 | P83: Vanderburgh | Q83: 41808000 | S83: =IF(VLOOKUP($P83,'Congressional Districts'!$A$1:$E$93,2,FALSE)=SNAP!S$1,VLOOKUP($P83,'Congressional Districts'!$A$1:$E$93,3,FALSE)*SNAP!$Q83,IF(VLOOKUP($P83,'Congressional Districts'!$A$1:$E$93,4,FALSE)=SNAP!S$1,VLOOKUP($P83,'Congressional Districts'!$A$1:$E$93,5,FALSE)*SNAP!$Q83,0)) -> 0 | T83: =IF(VLOOKUP($P83,'Congressional Districts'!$A$1:$E$93,2,FALSE)=SNAP!T$1,VLOOKUP($P83,'Congressional Districts'!$A$1:$E$93,3,FALSE)*SNAP!$Q83,IF(VLOOKUP($P83,'Congressional Districts'!$A$1:$E$93,4,FALSE)=SNAP!T$1,VLOOKUP($P83,'Congressional Districts'!$A$1:$E$93,5,FALSE)*SNAP!$Q83,0)) -> 0 | U83: =IF(VLOOKUP($P83,'Congressional Districts'!$A$1:$E$93,2,FALSE)=SNAP!U$1,VLOOKUP($P83,'Congressional Districts'!$A$1:$E$93,3,FALSE)*SNAP!$Q83,IF(VLOOKUP($P83,'Congressional Districts'!$A$1:$E$93,4,FALSE)=SNAP!U$1,VLOOKUP($P83,'Congressional Districts'!$A$1:$E$93,5,FALSE)*SNAP!$Q83,0)) -> 0 | V83: =IF(VLOOKUP($P83,'Congressional Districts'!$A$1:$E$93,2,FALSE)=SNAP!V$1,VLOOKUP($P83,'Congressional Districts'!$A$1:$E$93,3,FALSE)*SNAP!$Q83,IF(VLOOKUP($P83,'Congressional Districts'!$A$1:$E$93,4,FALSE)=SNAP!V$1,VLOOKUP($P83,'Congressional Districts'!$A$1:$E$93,5,FALSE)*SNAP!$Q83,0)) -> 0 | W83: =IF(VLOOKUP($P83,'Congressional Districts'!$A$1:$E$93,2,FALSE)=SNAP!W$1,VLOOKUP($P83,'Congressional Districts'!$A$1:$E$93,3,FALSE)*SNAP!$Q83,IF(VLOOKUP($P83,'Congressional Districts'!$A$1:$E$93,4,FALSE)=SNAP!W$1,VLOOKUP($P83,'Congressional Districts'!$A$1:$E$93,5,FALSE)*SNAP!$Q83,0)) -> 0 | X83: =IF(VLOOKUP($P83,'Congressional Districts'!$A$1:$E$93,2,FALSE)=SNAP!X$1,VLOOKUP($P83,'Congressional Districts'!$A$1:$E$93,3,FALSE)*SNAP!$Q83,IF(VLOOKUP($P83,'Congressional Districts'!$A$1:$E$93,4,FALSE)=SNAP!X$1,VLOOKUP($P83,'Congressional Districts'!$A$1:$E$93,5,FALSE)*SNAP!$Q83,0)) -> 0 | Y83: =IF(VLOOKUP($P83,'Congressional Districts'!$A$1:$E$93,2,FALSE)=SNAP!Y$1,VLOOKUP($P83,'Congressional Districts'!$A$1:$E$93,3,FALSE)*SNAP!$Q83,IF(VLOOKUP($P83,'Congressional Districts'!$A$1:$E$93,4,FALSE)=SNAP!Y$1,VLOOKUP($P83,'Congressional Districts'!$A$1:$E$93,5,FALSE)*SNAP!$Q83,0)) -> 0 | Z83: =IF(VLOOKUP($P83,'Congressional Districts'!$A$1:$E$93,2,FALSE)=SNAP!Z$1,VLOOKUP($P83,'Congressional Districts'!$A$1:$E$93,3,FALSE)*SNAP!$Q83,IF(VLOOKUP($P83,'Congressional Districts'!$A$1:$E$93,4,FALSE)=SNAP!Z$1,VLOOKUP($P83,'Congressional Districts'!$A$1:$E$93,5,FALSE)*SNAP!$Q83,0)) -> 41808000 | AA83: =IF(VLOOKUP($P83,'Congressional Districts'!$A$1:$E$93,2,FALSE)=SNAP!AA$1,VLOOKUP($P83,'Congressional Districts'!$A$1:$E$93,3,FALSE)*SNAP!$Q83,IF(VLOOKUP($P83,'Congressional Districts'!$A$1:$E$93,4,FALSE)=SNAP!AA$1,VLOOKUP($P83,'Congressional Districts'!$A$1:$E$93,5,FALSE)*SNAP!$Q83,0)) -> 0
A84: Vermillion | B84: 294.9 | C84: 292.1 | D84: 293.3 | E84: 286.8 | F84: 290.6 | G84: 289.3 | H84: 296.5 | I84: 291.2 | J84: 289 | K84: 289.9 | L84: 286.7 | M84: 291.7 | N84: 3492 | P84: Vermillion | Q84: 3492000 | S84: =IF(VLOOKUP($P84,'Congressional Districts'!$A$1:$E$93,2,FALSE)=SNAP!S$1,VLOOKUP($P84,'Congressional Districts'!$A$1:$E$93,3,FALSE)*SNAP!$Q84,IF(VLOOKUP($P84,'Congressional Districts'!$A$1:$E$93,4,FALSE)=SNAP!S$1,VLOOKUP($P84,'Congressional Districts'!$A$1:$E$93,5,FALSE)*SNAP!$Q84,0)) -> 0 | T84: =IF(VLOOKUP($P84,'Congressional Districts'!$A$1:$E$93,2,FALSE)=SNAP!T$1,VLOOKUP($P84,'Congressional Districts'!$A$1:$E$93,3,FALSE)*SNAP!$Q84,IF(VLOOKUP($P84,'Congressional Districts'!$A$1:$E$93,4,FALSE)=SNAP!T$1,VLOOKUP($P84,'Congressional Districts'!$A$1:$E$93,5,FALSE)*SNAP!$Q84,0)) -> 0 | U84: =IF(VLOOKUP($P84,'Congressional Districts'!$A$1:$E$93,2,FALSE)=SNAP!U$1,VLOOKUP($P84,'Congressional Districts'!$A$1:$E$93,3,FALSE)*SNAP!$Q84,IF(VLOOKUP($P84,'Congressional Districts'!$A$1:$E$93,4,FALSE)=SNAP!U$1,VLOOKUP($P84,'Congressional Districts'!$A$1:$E$93,5,FALSE)*SNAP!$Q84,0)) -> 0 | V84: =IF(VLOOKUP($P84,'Congressional Districts'!$A$1:$E$93,2,FALSE)=SNAP!V$1,VLOOKUP($P84,'Congressional Districts'!$A$1:$E$93,3,FALSE)*SNAP!$Q84,IF(VLOOKUP($P84,'Congressional Districts'!$A$1:$E$93,4,FALSE)=SNAP!V$1,VLOOKUP($P84,'Congressional Districts'!$A$1:$E$93,5,FALSE)*SNAP!$Q84,0)) -> 0 | W84: =IF(VLOOKUP($P84,'Congressional Districts'!$A$1:$E$93,2,FALSE)=SNAP!W$1,VLOOKUP($P84,'Congressional Districts'!$A$1:$E$93,3,FALSE)*SNAP!$Q84,IF(VLOOKUP($P84,'Congressional Districts'!$A$1:$E$93,4,FALSE)=SNAP!W$1,VLOOKUP($P84,'Congressional Districts'!$A$1:$E$93,5,FALSE)*SNAP!$Q84,0)) -> 0 | X84: =IF(VLOOKUP($P84,'Congressional Districts'!$A$1:$E$93,2,FALSE)=SNAP!X$1,VLOOKUP($P84,'Congressional Districts'!$A$1:$E$93,3,FALSE)*SNAP!$Q84,IF(VLOOKUP($P84,'Congressional Districts'!$A$1:$E$93,4,FALSE)=SNAP!X$1,VLOOKUP($P84,'Congressional Districts'!$A$1:$E$93,5,FALSE)*SNAP!$Q84,0)) -> 0 | Y84: =IF(VLOOKUP($P84,'Congressional Districts'!$A$1:$E$93,2,FALSE)=SNAP!Y$1,VLOOKUP($P84,'Congressional Districts'!$A$1:$E$93,3,FALSE)*SNAP!$Q84,IF(VLOOKUP($P84,'Congressional Districts'!$A$1:$E$93,4,FALSE)=SNAP!Y$1,VLOOKUP($P84,'Congressional Districts'!$A$1:$E$93,5,FALSE)*SNAP!$Q84,0)) -> 0 | Z84: =IF(VLOOKUP($P84,'Congressional Districts'!$A$1:$E$93,2,FALSE)=SNAP!Z$1,VLOOKUP($P84,'Congressional Districts'!$A$1:$E$93,3,FALSE)*SNAP!$Q84,IF(VLOOKUP($P84,'Congressional Districts'!$A$1:$E$93,4,FALSE)=SNAP!Z$1,VLOOKUP($P84,'Congressional Districts'!$A$1:$E$93,5,FALSE)*SNAP!$Q84,0)) -> 3492000 | AA84: =IF(VLOOKUP($P84,'Congressional Districts'!$A$1:$E$93,2,FALSE)=SNAP!AA$1,VLOOKUP($P84,'Congressional Districts'!$A$1:$E$93,3,FALSE)*SNAP!$Q84,IF(VLOOKUP($P84,'Congressional Districts'!$A$1:$E$93,4,FALSE)=SNAP!AA$1,VLOOKUP($P84,'Congressional Districts'!$A$1:$E$93,5,FALSE)*SNAP!$Q84,0)) -> 0
A85: Vigo | B85: 2317.6 | C85: 2310 | D85: 2340 | E85: 2323.3 | F85: 2330.3 | G85: 2316.4 | H85: 2315.6 | I85: 2345.5 | J85: 2349 | K85: 2358.1 | L85: 2338.4 | M85: 2347.1 | N85: 27991.3 | P85: Vigo | Q85: 27991300 | S85: =IF(VLOOKUP($P85,'Congressional Districts'!$A$1:$E$93,2,FALSE)=SNAP!S$1,VLOOKUP($P85,'Congressional Districts'!$A$1:$E$93,3,FALSE)*SNAP!$Q85,IF(VLOOKUP($P85,'Congressional Districts'!$A$1:$E$93,4,FALSE)=SNAP!S$1,VLOOKUP($P85,'Congressional Districts'!$A$1:$E$93,5,FALSE)*SNAP!$Q85,0)) -> 0 | T85: =IF(VLOOKUP($P85,'Congressional Districts'!$A$1:$E$93,2,FALSE)=SNAP!T$1,VLOOKUP($P85,'Congressional Districts'!$A$1:$E$93,3,FALSE)*SNAP!$Q85,IF(VLOOKUP($P85,'Congressional Districts'!$A$1:$E$93,4,FALSE)=SNAP!T$1,VLOOKUP($P85,'Congressional Districts'!$A$1:$E$93,5,FALSE)*SNAP!$Q85,0)) -> 0 | U85: =IF(VLOOKUP($P85,'Congressional Districts'!$A$1:$E$93,2,FALSE)=SNAP!U$1,VLOOKUP($P85,'Congressional Districts'!$A$1:$E$93,3,FALSE)*SNAP!$Q85,IF(VLOOKUP($P85,'Congressional Districts'!$A$1:$E$93,4,FALSE)=SNAP!U$1,VLOOKUP($P85,'Congressional Districts'!$A$1:$E$93,5,FALSE)*SNAP!$Q85,0)) -> 0 | V85: =IF(VLOOKUP($P85,'Congressional Districts'!$A$1:$E$93,2,FALSE)=SNAP!V$1,VLOOKUP($P85,'Congressional Districts'!$A$1:$E$93,3,FALSE)*SNAP!$Q85,IF(VLOOKUP($P85,'Congressional Districts'!$A$1:$E$93,4,FALSE)=SNAP!V$1,VLOOKUP($P85,'Congressional Districts'!$A$1:$E$93,5,FALSE)*SNAP!$Q85,0)) -> 0 | W85: =IF(VLOOKUP($P85,'Congressional Districts'!$A$1:$E$93,2,FALSE)=SNAP!W$1,VLOOKUP($P85,'Congressional Districts'!$A$1:$E$93,3,FALSE)*SNAP!$Q85,IF(VLOOKUP($P85,'Congressional Districts'!$A$1:$E$93,4,FALSE)=SNAP!W$1,VLOOKUP($P85,'Congressional Districts'!$A$1:$E$93,5,FALSE)*SNAP!$Q85,0)) -> 0 | X85: =IF(VLOOKUP($P85,'Congressional Districts'!$A$1:$E$93,2,FALSE)=SNAP!X$1,VLOOKUP($P85,'Congressional Districts'!$A$1:$E$93,3,FALSE)*SNAP!$Q85,IF(VLOOKUP($P85,'Congressional Districts'!$A$1:$E$93,4,FALSE)=SNAP!X$1,VLOOKUP($P85,'Congressional Districts'!$A$1:$E$93,5,FALSE)*SNAP!$Q85,0)) -> 0 | Y85: =IF(VLOOKUP($P85,'Congressional Districts'!$A$1:$E$93,2,FALSE)=SNAP!Y$1,VLOOKUP($P85,'Congressional Districts'!$A$1:$E$93,3,FALSE)*SNAP!$Q85,IF(VLOOKUP($P85,'Congressional Districts'!$A$1:$E$93,4,FALSE)=SNAP!Y$1,VLOOKUP($P85,'Congressional Districts'!$A$1:$E$93,5,FALSE)*SNAP!$Q85,0)) -> 0 | Z85: =IF(VLOOKUP($P85,'Congressional Districts'!$A$1:$E$93,2,FALSE)=SNAP!Z$1,VLOOKUP($P85,'Congressional Districts'!$A$1:$E$93,3,FALSE)*SNAP!$Q85,IF(VLOOKUP($P85,'Congressional Districts'!$A$1:$E$93,4,FALSE)=SNAP!Z$1,VLOOKUP($P85,'Congressional Districts'!$A$1:$E$93,5,FALSE)*SNAP!$Q85,0)) -> 27991300 | AA85: =IF(VLOOKUP($P85,'Congressional Districts'!$A$1:$E$93,2,FALSE)=SNAP!AA$1,VLOOKUP($P85,'Congressional Districts'!$A$1:$E$93,3,FALSE)*SNAP!$Q85,IF(VLOOKUP($P85,'Congressional Districts'!$A$1:$E$93,4,FALSE)=SNAP!AA$1,VLOOKUP($P85,'Congressional Districts'!$A$1:$E$93,5,FALSE)*SNAP!$Q85,0)) -> 0
A86: Wabash | B86: 486.5 | C86: 490.8 | D86: 504.7 | E86: 502.3 | F86: 493.4 | G86: 492.7 | H86: 489.3 | I86: 502.1 | J86: 504.2 | K86: 510.5 | L86: 499.6 | M86: 493.2 | N86: 5969.3 | P86: Wabash | Q86: 5969300 | S86: =IF(VLOOKUP($P86,'Congressional Districts'!$A$1:$E$93,2,FALSE)=SNAP!S$1,VLOOKUP($P86,'Congressional Districts'!$A$1:$E$93,3,FALSE)*SNAP!$Q86,IF(VLOOKUP($P86,'Congressional Districts'!$A$1:$E$93,4,FALSE)=SNAP!S$1,VLOOKUP($P86,'Congressional Districts'!$A$1:$E$93,5,FALSE)*SNAP!$Q86,0)) -> 0 | T86: =IF(VLOOKUP($P86,'Congressional Districts'!$A$1:$E$93,2,FALSE)=SNAP!T$1,VLOOKUP($P86,'Congressional Districts'!$A$1:$E$93,3,FALSE)*SNAP!$Q86,IF(VLOOKUP($P86,'Congressional Districts'!$A$1:$E$93,4,FALSE)=SNAP!T$1,VLOOKUP($P86,'Congressional Districts'!$A$1:$E$93,5,FALSE)*SNAP!$Q86,0)) -> 5969300 | U86: =IF(VLOOKUP($P86,'Congressional Districts'!$A$1:$E$93,2,FALSE)=SNAP!U$1,VLOOKUP($P86,'Congressional Districts'!$A$1:$E$93,3,FALSE)*SNAP!$Q86,IF(VLOOKUP($P86,'Congressional Districts'!$A$1:$E$93,4,FALSE)=SNAP!U$1,VLOOKUP($P86,'Congressional Districts'!$A$1:$E$93,5,FALSE)*SNAP!$Q86,0)) -> 0 | V86: =IF(VLOOKUP($P86,'Congressional Districts'!$A$1:$E$93,2,FALSE)=SNAP!V$1,VLOOKUP($P86,'Congressional Districts'!$A$1:$E$93,3,FALSE)*SNAP!$Q86,IF(VLOOKUP($P86,'Congressional Districts'!$A$1:$E$93,4,FALSE)=SNAP!V$1,VLOOKUP($P86,'Congressional Districts'!$A$1:$E$93,5,FALSE)*SNAP!$Q86,0)) -> 0 | W86: =IF(VLOOKUP($P86,'Congressional Districts'!$A$1:$E$93,2,FALSE)=SNAP!W$1,VLOOKUP($P86,'Congressional Districts'!$A$1:$E$93,3,FALSE)*SNAP!$Q86,IF(VLOOKUP($P86,'Congressional Districts'!$A$1:$E$93,4,FALSE)=SNAP!W$1,VLOOKUP($P86,'Congressional Districts'!$A$1:$E$93,5,FALSE)*SNAP!$Q86,0)) -> 0 | X86: =IF(VLOOKUP($P86,'Congressional Districts'!$A$1:$E$93,2,FALSE)=SNAP!X$1,VLOOKUP($P86,'Congressional Districts'!$A$1:$E$93,3,FALSE)*SNAP!$Q86,IF(VLOOKUP($P86,'Congressional Districts'!$A$1:$E$93,4,FALSE)=SNAP!X$1,VLOOKUP($P86,'Congressional Districts'!$A$1:$E$93,5,FALSE)*SNAP!$Q86,0)) -> 0 | Y86: =IF(VLOOKUP($P86,'Congressional Districts'!$A$1:$E$93,2,FALSE)=SNAP!Y$1,VLOOKUP($P86,'Congressional Districts'!$A$1:$E$93,3,FALSE)*SNAP!$Q86,IF(VLOOKUP($P86,'Congressional Districts'!$A$1:$E$93,4,FALSE)=SNAP!Y$1,VLOOKUP($P86,'Congressional Districts'!$A$1:$E$93,5,FALSE)*SNAP!$Q86,0)) -> 0 | Z86: =IF(VLOOKUP($P86,'Congressional Districts'!$A$1:$E$93,2,FALSE)=SNAP!Z$1,VLOOKUP($P86,'Congressional Districts'!$A$1:$E$93,3,FALSE)*SNAP!$Q86,IF(VLOOKUP($P86,'Congressional Districts'!$A$1:$E$93,4,FALSE)=SNAP!Z$1,VLOOKUP($P86,'Congressional Districts'!$A$1:$E$93,5,FALSE)*SNAP!$Q86,0)) -> 0 | AA86: =IF(VLOOKUP($P86,'Congressional Districts'!$A$1:$E$93,2,FALSE)=SNAP!AA$1,VLOOKUP($P86,'Congressional Districts'!$A$1:$E$93,3,FALSE)*SNAP!$Q86,IF(VLOOKUP($P86,'Congressional Districts'!$A$1:$E$93,4,FALSE)=SNAP!AA$1,VLOOKUP($P86,'Congressional Districts'!$A$1:$E$93,5,FALSE)*SNAP!$Q86,0)) -> 0
A87: Warren | B87: 89.1 | C87: 91.4 | D87: 87.7 | E87: 90.6 | F87: 86.8 | G87: 90.4 | H87: 91.5 | I87: 97.9 | J87: 92.4 | K87: 91.9 | L87: 93.2 | M87: 93.2 | N87: 1096.1 | P87: Warren | Q87: 1096100 | S87: =IF(VLOOKUP($P87,'Congressional Districts'!$A$1:$E$93,2,FALSE)=SNAP!S$1,VLOOKUP($P87,'Congressional Districts'!$A$1:$E$93,3,FALSE)*SNAP!$Q87,IF(VLOOKUP($P87,'Congressional Districts'!$A$1:$E$93,4,FALSE)=SNAP!S$1,VLOOKUP($P87,'Congressional Districts'!$A$1:$E$93,5,FALSE)*SNAP!$Q87,0)) -> 0 | T87: =IF(VLOOKUP($P87,'Congressional Districts'!$A$1:$E$93,2,FALSE)=SNAP!T$1,VLOOKUP($P87,'Congressional Districts'!$A$1:$E$93,3,FALSE)*SNAP!$Q87,IF(VLOOKUP($P87,'Congressional Districts'!$A$1:$E$93,4,FALSE)=SNAP!T$1,VLOOKUP($P87,'Congressional Districts'!$A$1:$E$93,5,FALSE)*SNAP!$Q87,0)) -> 0 | U87: =IF(VLOOKUP($P87,'Congressional Districts'!$A$1:$E$93,2,FALSE)=SNAP!U$1,VLOOKUP($P87,'Congressional Districts'!$A$1:$E$93,3,FALSE)*SNAP!$Q87,IF(VLOOKUP($P87,'Congressional Districts'!$A$1:$E$93,4,FALSE)=SNAP!U$1,VLOOKUP($P87,'Congressional Districts'!$A$1:$E$93,5,FALSE)*SNAP!$Q87,0)) -> 0 | V87: =IF(VLOOKUP($P87,'Congressional Districts'!$A$1:$E$93,2,FALSE)=SNAP!V$1,VLOOKUP($P87,'Congressional Districts'!$A$1:$E$93,3,FALSE)*SNAP!$Q87,IF(VLOOKUP($P87,'Congressional Districts'!$A$1:$E$93,4,FALSE)=SNAP!V$1,VLOOKUP($P87,'Congressional Districts'!$A$1:$E$93,5,FALSE)*SNAP!$Q87,0)) -> 1096100 | W87: =IF(VLOOKUP($P87,'Congressional Districts'!$A$1:$E$93,2,FALSE)=SNAP!W$1,VLOOKUP($P87,'Congressional Districts'!$A$1:$E$93,3,FALSE)*SNAP!$Q87,IF(VLOOKUP($P87,'Congressional Districts'!$A$1:$E$93,4,FALSE)=SNAP!W$1,VLOOKUP($P87,'Congressional Districts'!$A$1:$E$93,5,FALSE)*SNAP!$Q87,0)) -> 0 | X87: =IF(VLOOKUP($P87,'Congressional Districts'!$A$1:$E$93,2,FALSE)=SNAP!X$1,VLOOKUP($P87,'Congressional Districts'!$A$1:$E$93,3,FALSE)*SNAP!$Q87,IF(VLOOKUP($P87,'Congressional Districts'!$A$1:$E$93,4,FALSE)=SNAP!X$1,VLOOKUP($P87,'Congressional Districts'!$A$1:$E$93,5,FALSE)*SNAP!$Q87,0)) -> 0 | Y87: =IF(VLOOKUP($P87,'Congressional Districts'!$A$1:$E$93,2,FALSE)=SNAP!Y$1,VLOOKUP($P87,'Congressional Districts'!$A$1:$E$93,3,FALSE)*SNAP!$Q87,IF(VLOOKUP($P87,'Congressional Districts'!$A$1:$E$93,4,FALSE)=SNAP!Y$1,VLOOKUP($P87,'Congressional Districts'!$A$1:$E$93,5,FALSE)*SNAP!$Q87,0)) -> 0 | Z87: =IF(VLOOKUP($P87,'Congressional Districts'!$A$1:$E$93,2,FALSE)=SNAP!Z$1,VLOOKUP($P87,'Congressional Districts'!$A$1:$E$93,3,FALSE)*SNAP!$Q87,IF(VLOOKUP($P87,'Congressional Districts'!$A$1:$E$93,4,FALSE)=SNAP!Z$1,VLOOKUP($P87,'Congressional Districts'!$A$1:$E$93,5,FALSE)*SNAP!$Q87,0)) -> 0 | AA87: =IF(VLOOKUP($P87,'Congressional Districts'!$A$1:$E$93,2,FALSE)=SNAP!AA$1,VLOOKUP($P87,'Congressional Districts'!$A$1:$E$93,3,FALSE)*SNAP!$Q87,IF(VLOOKUP($P87,'Congressional Districts'!$A$1:$E$93,4,FALSE)=SNAP!AA$1,VLOOKUP($P87,'Congressional Districts'!$A$1:$E$93,5,FALSE)*SNAP!$Q87,0)) -> 0
A88: Warrick | B88: 493.9 | C88: 489.8 | D88: 486.7 | E88: 471.5 | F88: 471.2 | G88: 472.4 | H88: 477.6 | I88: 484.5 | J88: 491.8 | K88: 494 | L88: 488.9 | M88: 490 | N88: 5812.3 | P88: Warrick | Q88: 5812300 | S88: =IF(VLOOKUP($P88,'Congressional Districts'!$A$1:$E$93,2,FALSE)=SNAP!S$1,VLOOKUP($P88,'Congressional Districts'!$A$1:$E$93,3,FALSE)*SNAP!$Q88,IF(VLOOKUP($P88,'Congressional Districts'!$A$1:$E$93,4,FALSE)=SNAP!S$1,VLOOKUP($P88,'Congressional Districts'!$A$1:$E$93,5,FALSE)*SNAP!$Q88,0)) -> 0 | T88: =IF(VLOOKUP($P88,'Congressional Districts'!$A$1:$E$93,2,FALSE)=SNAP!T$1,VLOOKUP($P88,'Congressional Districts'!$A$1:$E$93,3,FALSE)*SNAP!$Q88,IF(VLOOKUP($P88,'Congressional Districts'!$A$1:$E$93,4,FALSE)=SNAP!T$1,VLOOKUP($P88,'Congressional Districts'!$A$1:$E$93,5,FALSE)*SNAP!$Q88,0)) -> 0 | U88: =IF(VLOOKUP($P88,'Congressional Districts'!$A$1:$E$93,2,FALSE)=SNAP!U$1,VLOOKUP($P88,'Congressional Districts'!$A$1:$E$93,3,FALSE)*SNAP!$Q88,IF(VLOOKUP($P88,'Congressional Districts'!$A$1:$E$93,4,FALSE)=SNAP!U$1,VLOOKUP($P88,'Congressional Districts'!$A$1:$E$93,5,FALSE)*SNAP!$Q88,0)) -> 0 | V88: =IF(VLOOKUP($P88,'Congressional Districts'!$A$1:$E$93,2,FALSE)=SNAP!V$1,VLOOKUP($P88,'Congressional Districts'!$A$1:$E$93,3,FALSE)*SNAP!$Q88,IF(VLOOKUP($P88,'Congressional Districts'!$A$1:$E$93,4,FALSE)=SNAP!V$1,VLOOKUP($P88,'Congressional Districts'!$A$1:$E$93,5,FALSE)*SNAP!$Q88,0)) -> 0 | W88: =IF(VLOOKUP($P88,'Congressional Districts'!$A$1:$E$93,2,FALSE)=SNAP!W$1,VLOOKUP($P88,'Congressional Districts'!$A$1:$E$93,3,FALSE)*SNAP!$Q88,IF(VLOOKUP($P88,'Congressional Districts'!$A$1:$E$93,4,FALSE)=SNAP!W$1,VLOOKUP($P88,'Congressional Districts'!$A$1:$E$93,5,FALSE)*SNAP!$Q88,0)) -> 0 | X88: =IF(VLOOKUP($P88,'Congressional Districts'!$A$1:$E$93,2,FALSE)=SNAP!X$1,VLOOKUP($P88,'Congressional Districts'!$A$1:$E$93,3,FALSE)*SNAP!$Q88,IF(VLOOKUP($P88,'Congressional Districts'!$A$1:$E$93,4,FALSE)=SNAP!X$1,VLOOKUP($P88,'Congressional Districts'!$A$1:$E$93,5,FALSE)*SNAP!$Q88,0)) -> 0 | Y88: =IF(VLOOKUP($P88,'Congressional Districts'!$A$1:$E$93,2,FALSE)=SNAP!Y$1,VLOOKUP($P88,'Congressional Districts'!$A$1:$E$93,3,FALSE)*SNAP!$Q88,IF(VLOOKUP($P88,'Congressional Districts'!$A$1:$E$93,4,FALSE)=SNAP!Y$1,VLOOKUP($P88,'Congressional Districts'!$A$1:$E$93,5,FALSE)*SNAP!$Q88,0)) -> 0 | Z88: =IF(VLOOKUP($P88,'Congressional Districts'!$A$1:$E$93,2,FALSE)=SNAP!Z$1,VLOOKUP($P88,'Congressional Districts'!$A$1:$E$93,3,FALSE)*SNAP!$Q88,IF(VLOOKUP($P88,'Congressional Districts'!$A$1:$E$93,4,FALSE)=SNAP!Z$1,VLOOKUP($P88,'Congressional Districts'!$A$1:$E$93,5,FALSE)*SNAP!$Q88,0)) -> 5812300 | AA88: =IF(VLOOKUP($P88,'Congressional Districts'!$A$1:$E$93,2,FALSE)=SNAP!AA$1,VLOOKUP($P88,'Congressional Districts'!$A$1:$E$93,3,FALSE)*SNAP!$Q88,IF(VLOOKUP($P88,'Congressional Districts'!$A$1:$E$93,4,FALSE)=SNAP!AA$1,VLOOKUP($P88,'Congressional Districts'!$A$1:$E$93,5,FALSE)*SNAP!$Q88,0)) -> 0
A89: Washington | B89: 537.8 | C89: 542.9 | D89: 576.8 | E89: 536.5 | F89: 533.8 | G89: 542 | H89: 534.2 | I89: 531.1 | J89: 528.9 | K89: 530.1 | L89: 522 | M89: 515.5 | N89: 6431.6 | P89: Washington | Q89: 6431600 | S89: =IF(VLOOKUP($P89,'Congressional Districts'!$A$1:$E$93,2,FALSE)=SNAP!S$1,VLOOKUP($P89,'Congressional Districts'!$A$1:$E$93,3,FALSE)*SNAP!$Q89,IF(VLOOKUP($P89,'Congressional Districts'!$A$1:$E$93,4,FALSE)=SNAP!S$1,VLOOKUP($P89,'Congressional Districts'!$A$1:$E$93,5,FALSE)*SNAP!$Q89,0)) -> 0 | T89: =IF(VLOOKUP($P89,'Congressional Districts'!$A$1:$E$93,2,FALSE)=SNAP!T$1,VLOOKUP($P89,'Congressional Districts'!$A$1:$E$93,3,FALSE)*SNAP!$Q89,IF(VLOOKUP($P89,'Congressional Districts'!$A$1:$E$93,4,FALSE)=SNAP!T$1,VLOOKUP($P89,'Congressional Districts'!$A$1:$E$93,5,FALSE)*SNAP!$Q89,0)) -> 0 | U89: =IF(VLOOKUP($P89,'Congressional Districts'!$A$1:$E$93,2,FALSE)=SNAP!U$1,VLOOKUP($P89,'Congressional Districts'!$A$1:$E$93,3,FALSE)*SNAP!$Q89,IF(VLOOKUP($P89,'Congressional Districts'!$A$1:$E$93,4,FALSE)=SNAP!U$1,VLOOKUP($P89,'Congressional Districts'!$A$1:$E$93,5,FALSE)*SNAP!$Q89,0)) -> 0 | V89: =IF(VLOOKUP($P89,'Congressional Districts'!$A$1:$E$93,2,FALSE)=SNAP!V$1,VLOOKUP($P89,'Congressional Districts'!$A$1:$E$93,3,FALSE)*SNAP!$Q89,IF(VLOOKUP($P89,'Congressional Districts'!$A$1:$E$93,4,FALSE)=SNAP!V$1,VLOOKUP($P89,'Congressional Districts'!$A$1:$E$93,5,FALSE)*SNAP!$Q89,0)) -> 0 | W89: =IF(VLOOKUP($P89,'Congressional Districts'!$A$1:$E$93,2,FALSE)=SNAP!W$1,VLOOKUP($P89,'Congressional Districts'!$A$1:$E$93,3,FALSE)*SNAP!$Q89,IF(VLOOKUP($P89,'Congressional Districts'!$A$1:$E$93,4,FALSE)=SNAP!W$1,VLOOKUP($P89,'Congressional Districts'!$A$1:$E$93,5,FALSE)*SNAP!$Q89,0)) -> 0 | X89: =IF(VLOOKUP($P89,'Congressional Districts'!$A$1:$E$93,2,FALSE)=SNAP!X$1,VLOOKUP($P89,'Congressional Districts'!$A$1:$E$93,3,FALSE)*SNAP!$Q89,IF(VLOOKUP($P89,'Congressional Districts'!$A$1:$E$93,4,FALSE)=SNAP!X$1,VLOOKUP($P89,'Congressional Districts'!$A$1:$E$93,5,FALSE)*SNAP!$Q89,0)) -> 0 | Y89: =IF(VLOOKUP($P89,'Congressional Districts'!$A$1:$E$93,2,FALSE)=SNAP!Y$1,VLOOKUP($P89,'Congressional Districts'!$A$1:$E$93,3,FALSE)*SNAP!$Q89,IF(VLOOKUP($P89,'Congressional Districts'!$A$1:$E$93,4,FALSE)=SNAP!Y$1,VLOOKUP($P89,'Congressional Districts'!$A$1:$E$93,5,FALSE)*SNAP!$Q89,0)) -> 0 | Z89: =IF(VLOOKUP($P89,'Congressional Districts'!$A$1:$E$93,2,FALSE)=SNAP!Z$1,VLOOKUP($P89,'Congressional Districts'!$A$1:$E$93,3,FALSE)*SNAP!$Q89,IF(VLOOKUP($P89,'Congressional Districts'!$A$1:$E$93,4,FALSE)=SNAP!Z$1,VLOOKUP($P89,'Congressional Districts'!$A$1:$E$93,5,FALSE)*SNAP!$Q89,0)) -> 0 | AA89: =IF(VLOOKUP($P89,'Congressional Districts'!$A$1:$E$93,2,FALSE)=SNAP!AA$1,VLOOKUP($P89,'Congressional Districts'!$A$1:$E$93,3,FALSE)*SNAP!$Q89,IF(VLOOKUP($P89,'Congressional Districts'!$A$1:$E$93,4,FALSE)=SNAP!AA$1,VLOOKUP($P89,'Congressional Districts'!$A$1:$E$93,5,FALSE)*SNAP!$Q89,0)) -> 6431600
A90: Wayne | B90: 1520.3 | C90: 1525.4 | D90: 1527.8 | E90: 1517.8 | F90: 1518.2 | G90: 1508.6 | H90: 1517.4 | I90: 1527 | J90: 1529.4 | K90: 1534.9 | L90: 1520.5 | M90: 1526.2 | N90: 18273.5 | P90: Wayne | Q90: 18273500 | S90: =IF(VLOOKUP($P90,'Congressional Districts'!$A$1:$E$93,2,FALSE)=SNAP!S$1,VLOOKUP($P90,'Congressional Districts'!$A$1:$E$93,3,FALSE)*SNAP!$Q90,IF(VLOOKUP($P90,'Congressional Districts'!$A$1:$E$93,4,FALSE)=SNAP!S$1,VLOOKUP($P90,'Congressional Districts'!$A$1:$E$93,5,FALSE)*SNAP!$Q90,0)) -> 0 | T90: =IF(VLOOKUP($P90,'Congressional Districts'!$A$1:$E$93,2,FALSE)=SNAP!T$1,VLOOKUP($P90,'Congressional Districts'!$A$1:$E$93,3,FALSE)*SNAP!$Q90,IF(VLOOKUP($P90,'Congressional Districts'!$A$1:$E$93,4,FALSE)=SNAP!T$1,VLOOKUP($P90,'Congressional Districts'!$A$1:$E$93,5,FALSE)*SNAP!$Q90,0)) -> 0 | U90: =IF(VLOOKUP($P90,'Congressional Districts'!$A$1:$E$93,2,FALSE)=SNAP!U$1,VLOOKUP($P90,'Congressional Districts'!$A$1:$E$93,3,FALSE)*SNAP!$Q90,IF(VLOOKUP($P90,'Congressional Districts'!$A$1:$E$93,4,FALSE)=SNAP!U$1,VLOOKUP($P90,'Congressional Districts'!$A$1:$E$93,5,FALSE)*SNAP!$Q90,0)) -> 0 | V90: =IF(VLOOKUP($P90,'Congressional Districts'!$A$1:$E$93,2,FALSE)=SNAP!V$1,VLOOKUP($P90,'Congressional Districts'!$A$1:$E$93,3,FALSE)*SNAP!$Q90,IF(VLOOKUP($P90,'Congressional Districts'!$A$1:$E$93,4,FALSE)=SNAP!V$1,VLOOKUP($P90,'Congressional Districts'!$A$1:$E$93,5,FALSE)*SNAP!$Q90,0)) -> 0 | W90: =IF(VLOOKUP($P90,'Congressional Districts'!$A$1:$E$93,2,FALSE)=SNAP!W$1,VLOOKUP($P90,'Congressional Districts'!$A$1:$E$93,3,FALSE)*SNAP!$Q90,IF(VLOOKUP($P90,'Congressional Districts'!$A$1:$E$93,4,FALSE)=SNAP!W$1,VLOOKUP($P90,'Congressional Districts'!$A$1:$E$93,5,FALSE)*SNAP!$Q90,0)) -> 0 | X90: =IF(VLOOKUP($P90,'Congressional Districts'!$A$1:$E$93,2,FALSE)=SNAP!X$1,VLOOKUP($P90,'Congressional Districts'!$A$1:$E$93,3,FALSE)*SNAP!$Q90,IF(VLOOKUP($P90,'Congressional Districts'!$A$1:$E$93,4,FALSE)=SNAP!X$1,VLOOKUP($P90,'Congressional Districts'!$A$1:$E$93,5,FALSE)*SNAP!$Q90,0)) -> 18273500 | Y90: =IF(VLOOKUP($P90,'Congressional Districts'!$A$1:$E$93,2,FALSE)=SNAP!Y$1,VLOOKUP($P90,'Congressional Districts'!$A$1:$E$93,3,FALSE)*SNAP!$Q90,IF(VLOOKUP($P90,'Congressional Districts'!$A$1:$E$93,4,FALSE)=SNAP!Y$1,VLOOKUP($P90,'Congressional Districts'!$A$1:$E$93,5,FALSE)*SNAP!$Q90,0)) -> 0 | Z90: =IF(VLOOKUP($P90,'Congressional Districts'!$A$1:$E$93,2,FALSE)=SNAP!Z$1,VLOOKUP($P90,'Congressional Districts'!$A$1:$E$93,3,FALSE)*SNAP!$Q90,IF(VLOOKUP($P90,'Congressional Districts'!$A$1:$E$93,4,FALSE)=SNAP!Z$1,VLOOKUP($P90,'Congressional Districts'!$A$1:$E$93,5,FALSE)*SNAP!$Q90,0)) -> 0 | AA90: =IF(VLOOKUP($P90,'Congressional Districts'!$A$1:$E$93,2,FALSE)=SNAP!AA$1,VLOOKUP($P90,'Congressional Districts'!$A$1:$E$93,3,FALSE)*SNAP!$Q90,IF(VLOOKUP($P90,'Congressional Districts'!$A$1:$E$93,4,FALSE)=SNAP!AA$1,VLOOKUP($P90,'Congressional Districts'!$A$1:$E$93,5,FALSE)*SNAP!$Q90,0)) -> 0
A91: Wells | B91: 283 | C91: 278.3 | D91: 270.5 | E91: 275.5 | F91: 274.5 | G91: 280.1 | H91: 276 | I91: 277.6 | J91: 274 | K91: 278.5 | L91: 277.8 | M91: 274.9 | N91: 3320.7 | P91: Wells | Q91: 3320700 | S91: =IF(VLOOKUP($P91,'Congressional Districts'!$A$1:$E$93,2,FALSE)=SNAP!S$1,VLOOKUP($P91,'Congressional Districts'!$A$1:$E$93,3,FALSE)*SNAP!$Q91,IF(VLOOKUP($P91,'Congressional Districts'!$A$1:$E$93,4,FALSE)=SNAP!S$1,VLOOKUP($P91,'Congressional Districts'!$A$1:$E$93,5,FALSE)*SNAP!$Q91,0)) -> 0 | T91: =IF(VLOOKUP($P91,'Congressional Districts'!$A$1:$E$93,2,FALSE)=SNAP!T$1,VLOOKUP($P91,'Congressional Districts'!$A$1:$E$93,3,FALSE)*SNAP!$Q91,IF(VLOOKUP($P91,'Congressional Districts'!$A$1:$E$93,4,FALSE)=SNAP!T$1,VLOOKUP($P91,'Congressional Districts'!$A$1:$E$93,5,FALSE)*SNAP!$Q91,0)) -> 0 | U91: =IF(VLOOKUP($P91,'Congressional Districts'!$A$1:$E$93,2,FALSE)=SNAP!U$1,VLOOKUP($P91,'Congressional Districts'!$A$1:$E$93,3,FALSE)*SNAP!$Q91,IF(VLOOKUP($P91,'Congressional Districts'!$A$1:$E$93,4,FALSE)=SNAP!U$1,VLOOKUP($P91,'Congressional Districts'!$A$1:$E$93,5,FALSE)*SNAP!$Q91,0)) -> 3320700 | V91: =IF(VLOOKUP($P91,'Congressional Districts'!$A$1:$E$93,2,FALSE)=SNAP!V$1,VLOOKUP($P91,'Congressional Districts'!$A$1:$E$93,3,FALSE)*SNAP!$Q91,IF(VLOOKUP($P91,'Congressional Districts'!$A$1:$E$93,4,FALSE)=SNAP!V$1,VLOOKUP($P91,'Congressional Districts'!$A$1:$E$93,5,FALSE)*SNAP!$Q91,0)) -> 0 | W91: =IF(VLOOKUP($P91,'Congressional Districts'!$A$1:$E$93,2,FALSE)=SNAP!W$1,VLOOKUP($P91,'Congressional Districts'!$A$1:$E$93,3,FALSE)*SNAP!$Q91,IF(VLOOKUP($P91,'Congressional Districts'!$A$1:$E$93,4,FALSE)=SNAP!W$1,VLOOKUP($P91,'Congressional Districts'!$A$1:$E$93,5,FALSE)*SNAP!$Q91,0)) -> 0 | X91: =IF(VLOOKUP($P91,'Congressional Districts'!$A$1:$E$93,2,FALSE)=SNAP!X$1,VLOOKUP($P91,'Congressional Districts'!$A$1:$E$93,3,FALSE)*SNAP!$Q91,IF(VLOOKUP($P91,'Congressional Districts'!$A$1:$E$93,4,FALSE)=SNAP!X$1,VLOOKUP($P91,'Congressional Districts'!$A$1:$E$93,5,FALSE)*SNAP!$Q91,0)) -> 0 | Y91: =IF(VLOOKUP($P91,'Congressional Districts'!$A$1:$E$93,2,FALSE)=SNAP!Y$1,VLOOKUP($P91,'Congressional Districts'!$A$1:$E$93,3,FALSE)*SNAP!$Q91,IF(VLOOKUP($P91,'Congressional Districts'!$A$1:$E$93,4,FALSE)=SNAP!Y$1,VLOOKUP($P91,'Congressional Districts'!$A$1:$E$93,5,FALSE)*SNAP!$Q91,0)) -> 0 | Z91: =IF(VLOOKUP($P91,'Congressional Districts'!$A$1:$E$93,2,FALSE)=SNAP!Z$1,VLOOKUP($P91,'Congressional Districts'!$A$1:$E$93,3,FALSE)*SNAP!$Q91,IF(VLOOKUP($P91,'Congressional Districts'!$A$1:$E$93,4,FALSE)=SNAP!Z$1,VLOOKUP($P91,'Congressional Districts'!$A$1:$E$93,5,FALSE)*SNAP!$Q91,0)) -> 0 | AA91: =IF(VLOOKUP($P91,'Congressional Districts'!$A$1:$E$93,2,FALSE)=SNAP!AA$1,VLOOKUP($P91,'Congressional Districts'!$A$1:$E$93,3,FALSE)*SNAP!$Q91,IF(VLOOKUP($P91,'Congressional Districts'!$A$1:$E$93,4,FALSE)=SNAP!AA$1,VLOOKUP($P91,'Congressional Districts'!$A$1:$E$93,5,FALSE)*SNAP!$Q91,0)) -> 0
A92: White | B92: 328.8 | C92: 328.8 | D92: 322.2 | E92: 323.4 | F92: 320.9 | G92: 318.8 | H92: 314.2 | I92: 321.2 | J92: 323.7 | K92: 326.9 | L92: 315.2 | M92: 312.8 | N92: 3856.9 | P92: White | Q92: 3856900 | S92: =IF(VLOOKUP($P92,'Congressional Districts'!$A$1:$E$93,2,FALSE)=SNAP!S$1,VLOOKUP($P92,'Congressional Districts'!$A$1:$E$93,3,FALSE)*SNAP!$Q92,IF(VLOOKUP($P92,'Congressional Districts'!$A$1:$E$93,4,FALSE)=SNAP!S$1,VLOOKUP($P92,'Congressional Districts'!$A$1:$E$93,5,FALSE)*SNAP!$Q92,0)) -> 0 | T92: =IF(VLOOKUP($P92,'Congressional Districts'!$A$1:$E$93,2,FALSE)=SNAP!T$1,VLOOKUP($P92,'Congressional Districts'!$A$1:$E$93,3,FALSE)*SNAP!$Q92,IF(VLOOKUP($P92,'Congressional Districts'!$A$1:$E$93,4,FALSE)=SNAP!T$1,VLOOKUP($P92,'Congressional Districts'!$A$1:$E$93,5,FALSE)*SNAP!$Q92,0)) -> 0 | U92: =IF(VLOOKUP($P92,'Congressional Districts'!$A$1:$E$93,2,FALSE)=SNAP!U$1,VLOOKUP($P92,'Congressional Districts'!$A$1:$E$93,3,FALSE)*SNAP!$Q92,IF(VLOOKUP($P92,'Congressional Districts'!$A$1:$E$93,4,FALSE)=SNAP!U$1,VLOOKUP($P92,'Congressional Districts'!$A$1:$E$93,5,FALSE)*SNAP!$Q92,0)) -> 0 | V92: =IF(VLOOKUP($P92,'Congressional Districts'!$A$1:$E$93,2,FALSE)=SNAP!V$1,VLOOKUP($P92,'Congressional Districts'!$A$1:$E$93,3,FALSE)*SNAP!$Q92,IF(VLOOKUP($P92,'Congressional Districts'!$A$1:$E$93,4,FALSE)=SNAP!V$1,VLOOKUP($P92,'Congressional Districts'!$A$1:$E$93,5,FALSE)*SNAP!$Q92,0)) -> 3856900 | W92: =IF(VLOOKUP($P92,'Congressional Districts'!$A$1:$E$93,2,FALSE)=SNAP!W$1,VLOOKUP($P92,'Congressional Districts'!$A$1:$E$93,3,FALSE)*SNAP!$Q92,IF(VLOOKUP($P92,'Congressional Districts'!$A$1:$E$93,4,FALSE)=SNAP!W$1,VLOOKUP($P92,'Congressional Districts'!$A$1:$E$93,5,FALSE)*SNAP!$Q92,0)) -> 0 | X92: =IF(VLOOKUP($P92,'Congressional Districts'!$A$1:$E$93,2,FALSE)=SNAP!X$1,VLOOKUP($P92,'Congressional Districts'!$A$1:$E$93,3,FALSE)*SNAP!$Q92,IF(VLOOKUP($P92,'Congressional Districts'!$A$1:$E$93,4,FALSE)=SNAP!X$1,VLOOKUP($P92,'Congressional Districts'!$A$1:$E$93,5,FALSE)*SNAP!$Q92,0)) -> 0 | Y92: =IF(VLOOKUP($P92,'Congressional Districts'!$A$1:$E$93,2,FALSE)=SNAP!Y$1,VLOOKUP($P92,'Congressional Districts'!$A$1:$E$93,3,FALSE)*SNAP!$Q92,IF(VLOOKUP($P92,'Congressional Districts'!$A$1:$E$93,4,FALSE)=SNAP!Y$1,VLOOKUP($P92,'Congressional Districts'!$A$1:$E$93,5,FALSE)*SNAP!$Q92,0)) -> 0 | Z92: =IF(VLOOKUP($P92,'Congressional Districts'!$A$1:$E$93,2,FALSE)=SNAP!Z$1,VLOOKUP($P92,'Congressional Districts'!$A$1:$E$93,3,FALSE)*SNAP!$Q92,IF(VLOOKUP($P92,'Congressional Districts'!$A$1:$E$93,4,FALSE)=SNAP!Z$1,VLOOKUP($P92,'Congressional Districts'!$A$1:$E$93,5,FALSE)*SNAP!$Q92,0)) -> 0 | AA92: =IF(VLOOKUP($P92,'Congressional Districts'!$A$1:$E$93,2,FALSE)=SNAP!AA$1,VLOOKUP($P92,'Congressional Districts'!$A$1:$E$93,3,FALSE)*SNAP!$Q92,IF(VLOOKUP($P92,'Congressional Districts'!$A$1:$E$93,4,FALSE)=SNAP!AA$1,VLOOKUP($P92,'Congressional Districts'!$A$1:$E$93,5,FALSE)*SNAP!$Q92,0)) -> 0
A93: Whitley | B93: 352.7 | C93: 351 | D93: 346.8 | E93: 336.8 | F93: 344.2 | G93: 340.9 | H93: 332.2 | I93: 336.4 | J93: 325.2 | K93: 328.1 | L93: 321.4 | M93: 323.8 | N93: =SUM(B93:M93) -> 4039.5 | P93: Whitley | Q93: 4039500 | S93: =IF(VLOOKUP($P93,'Congressional Districts'!$A$1:$E$93,2,FALSE)=SNAP!S$1,VLOOKUP($P93,'Congressional Districts'!$A$1:$E$93,3,FALSE)*SNAP!$Q93,IF(VLOOKUP($P93,'Congressional Districts'!$A$1:$E$93,4,FALSE)=SNAP!S$1,VLOOKUP($P93,'Congressional Districts'!$A$1:$E$93,5,FALSE)*SNAP!$Q93,0)) -> 0 | T93: =IF(VLOOKUP($P93,'Congressional Districts'!$A$1:$E$93,2,FALSE)=SNAP!T$1,VLOOKUP($P93,'Congressional Districts'!$A$1:$E$93,3,FALSE)*SNAP!$Q93,IF(VLOOKUP($P93,'Congressional Districts'!$A$1:$E$93,4,FALSE)=SNAP!T$1,VLOOKUP($P93,'Congressional Districts'!$A$1:$E$93,5,FALSE)*SNAP!$Q93,0)) -> 0 | U93: =IF(VLOOKUP($P93,'Congressional Districts'!$A$1:$E$93,2,FALSE)=SNAP!U$1,VLOOKUP($P93,'Congressional Districts'!$A$1:$E$93,3,FALSE)*SNAP!$Q93,IF(VLOOKUP($P93,'Congressional Districts'!$A$1:$E$93,4,FALSE)=SNAP!U$1,VLOOKUP($P93,'Congressional Districts'!$A$1:$E$93,5,FALSE)*SNAP!$Q93,0)) -> 4039500 | V93: =IF(VLOOKUP($P93,'Congressional Districts'!$A$1:$E$93,2,FALSE)=SNAP!V$1,VLOOKUP($P93,'Congressional Districts'!$A$1:$E$93,3,FALSE)*SNAP!$Q93,IF(VLOOKUP($P93,'Congressional Districts'!$A$1:$E$93,4,FALSE)=SNAP!V$1,VLOOKUP($P93,'Congressional Districts'!$A$1:$E$93,5,FALSE)*SNAP!$Q93,0)) -> 0 | W93: =IF(VLOOKUP($P93,'Congressional Districts'!$A$1:$E$93,2,FALSE)=SNAP!W$1,VLOOKUP($P93,'Congressional Districts'!$A$1:$E$93,3,FALSE)*SNAP!$Q93,IF(VLOOKUP($P93,'Congressional Districts'!$A$1:$E$93,4,FALSE)=SNAP!W$1,VLOOKUP($P93,'Congressional Districts'!$A$1:$E$93,5,FALSE)*SNAP!$Q93,0)) -> 0 | X93: =IF(VLOOKUP($P93,'Congressional Districts'!$A$1:$E$93,2,FALSE)=SNAP!X$1,VLOOKUP($P93,'Congressional Districts'!$A$1:$E$93,3,FALSE)*SNAP!$Q93,IF(VLOOKUP($P93,'Congressional Districts'!$A$1:$E$93,4,FALSE)=SNAP!X$1,VLOOKUP($P93,'Congressional Districts'!$A$1:$E$93,5,FALSE)*SNAP!$Q93,0)) -> 0 | Y93: =IF(VLOOKUP($P93,'Congressional Districts'!$A$1:$E$93,2,FALSE)=SNAP!Y$1,VLOOKUP($P93,'Congressional Districts'!$A$1:$E$93,3,FALSE)*SNAP!$Q93,IF(VLOOKUP($P93,'Congressional Districts'!$A$1:$E$93,4,FALSE)=SNAP!Y$1,VLOOKUP($P93,'Congressional Districts'!$A$1:$E$93,5,FALSE)*SNAP!$Q93,0)) -> 0 | Z93: =IF(VLOOKUP($P93,'Congressional Districts'!$A$1:$E$93,2,FALSE)=SNAP!Z$1,VLOOKUP($P93,'Congressional Districts'!$A$1:$E$93,3,FALSE)*SNAP!$Q93,IF(VLOOKUP($P93,'Congressional Districts'!$A$1:$E$93,4,FALSE)=SNAP!Z$1,VLOOKUP($P93,'Congressional Districts'!$A$1:$E$93,5,FALSE)*SNAP!$Q93,0)) -> 0 | AA93: =IF(VLOOKUP($P93,'Congressional Districts'!$A$1:$E$93,2,FALSE)=SNAP!AA$1,VLOOKUP($P93,'Congressional Districts'!$A$1:$E$93,3,FALSE)*SNAP!$Q93,IF(VLOOKUP($P93,'Congressional Districts'!$A$1:$E$93,4,FALSE)=SNAP!AA$1,VLOOKUP($P93,'Congressional Districts'!$A$1:$E$93,5,FALSE)*SNAP!$Q93,0)) -> 0
N94: =SUM(N2:N93) -> 1455697 | Q94: =SUM(Q2:Q93) -> 1455697000 | S94: =SUM(S1:S93) -> 189101029 | T94: =SUM(T1:T93) -> 178595388.5 | U94: 141560067.1 | V94: 115806932.9 | W94: 165248905.3 | X94: 155334287.2 | Y94: 245505307 | Z94: 139524528.7 | AA94: 125020599.4
T96: Dollars | U96: Pounds | V96: Meals
S97: 1 | T97: =S94 -> 189101029 | U97: =T97/'Pie Chart'!$L$28 -> 113916282.6 | V97: =U97/'Pie Chart'!$L$29 -> 94930235.46
S98: 2 | T98: =T94 -> 178595388.5 | U98: =T98/'Pie Chart'!$L$28 -> 107587583.4 | V98: =U98/'Pie Chart'!$L$29 -> 89656319.52
S99: 3 | T99: =U94 -> 141560067.1 | U99: =T99/'Pie Chart'!$L$28 -> 85277148.86 | V99: =U99/'Pie Chart'!$L$29 -> 71064290.71
S100: 4 | T100: =V94 -> 115806932.9 | U100: =T100/'Pie Chart'!$L$28 -> 69763212.57 | V100: =U100/'Pie Chart'!$L$29 -> 58136010.48
S101: 5 | T101: =W94 -> 165248905.3 | U101: =T101/'Pie Chart'!$L$28 -> 99547533.3 | V101: =U101/'Pie Chart'!$L$29 -> 82956277.75
S102: 6 | T102: =X94 -> 155334287.2 | U102: =T102/'Pie Chart'!$L$28 -> 93574871.78 | V102: =U102/'Pie Chart'!$L$29 -> 77979059.82
S103: 7 | T103: =Y94 -> 245505307 | U103: =T103/'Pie Chart'!$L$28 -> 147894763.3 | V103: =U103/'Pie Chart'!$L$29 -> 123245636
S104: 8 | T104: =Z94 -> 139524528.7 | U104: =T104/'Pie Chart'!$L$28 -> 84050920.89 | V104: =U104/'Pie Chart'!$L$29 -> 70042434.07
S105: 9 | T105: =AA94 -> 125020599.4 | U105: =T105/'Pie Chart'!$L$28 -> 75313614.09 | V105: =U105/'Pie Chart'!$L$29 -> 62761345.08

Sheet WIC (hidden)
A1: COUNTYNAME | B1: WIC 2012 | D1: 1 | E1: 2 | F1: 3 | G1: 4 | H1: 5 | I1: 6 | J1: 7 | K1: 8 | L1: 9
A2: ADAMS | B2: 462707.11 | C2: =SUM(D2:L2) -> 462707.11 | D2: =IF(VLOOKUP($A2,'Congressional Districts'!$A$1:$E$93,2,FALSE)=D$1,VLOOKUP($A2,'Congressional Districts'!$A$1:$E$93,3,FALSE)*$B2,IF(VLOOKUP($A2,'Congressional Districts'!$A$1:$E$93,4,FALSE)=D$1,VLOOKUP($A2,'Congressional Districts'!$A$1:$E$93,5,FALSE)*$B2,0)) -> 0 | E2: =IF(VLOOKUP($A2,'Congressional Districts'!$A$1:$E$93,2,FALSE)=E$1,VLOOKUP($A2,'Congressional Districts'!$A$1:$E$93,3,FALSE)*$B2,IF(VLOOKUP($A2,'Congressional Districts'!$A$1:$E$93,4,FALSE)=E$1,VLOOKUP($A2,'Congressional Districts'!$A$1:$E$93,5,FALSE)*$B2,0)) -> 0 | F2: =IF(VLOOKUP($A2,'Congressional Districts'!$A$1:$E$93,2,FALSE)=F$1,VLOOKUP($A2,'Congressional Districts'!$A$1:$E$93,3,FALSE)*$B2,IF(VLOOKUP($A2,'Congressional Districts'!$A$1:$E$93,4,FALSE)=F$1,VLOOKUP($A2,'Congressional Districts'!$A$1:$E$93,5,FALSE)*$B2,0)) -> 462707.11 | G2: =IF(VLOOKUP($A2,'Congressional Districts'!$A$1:$E$93,2,FALSE)=G$1,VLOOKUP($A2,'Congressional Districts'!$A$1:$E$93,3,FALSE)*$B2,IF(VLOOKUP($A2,'Congressional Districts'!$A$1:$E$93,4,FALSE)=G$1,VLOOKUP($A2,'Congressional Districts'!$A$1:$E$93,5,FALSE)*$B2,0)) -> 0 | H2: =IF(VLOOKUP($A2,'Congressional Districts'!$A$1:$E$93,2,FALSE)=H$1,VLOOKUP($A2,'Congressional Districts'!$A$1:$E$93,3,FALSE)*$B2,IF(VLOOKUP($A2,'Congressional Districts'!$A$1:$E$93,4,FALSE)=H$1,VLOOKUP($A2,'Congressional Districts'!$A$1:$E$93,5,FALSE)*$B2,0)) -> 0 | I2: =IF(VLOOKUP($A2,'Congressional Districts'!$A$1:$E$93,2,FALSE)=I$1,VLOOKUP($A2,'Congressional Districts'!$A$1:$E$93,3,FALSE)*$B2,IF(VLOOKUP($A2,'Congressional Districts'!$A$1:$E$93,4,FALSE)=I$1,VLOOKUP($A2,'Congressional Districts'!$A$1:$E$93,5,FALSE)*$B2,0)) -> 0 | J2: =IF(VLOOKUP($A2,'Congressional Districts'!$A$1:$E$93,2,FALSE)=J$1,VLOOKUP($A2,'Congressional Districts'!$A$1:$E$93,3,FALSE)*$B2,IF(VLOOKUP($A2,'Congressional Districts'!$A$1:$E$93,4,FALSE)=J$1,VLOOKUP($A2,'Congressional Districts'!$A$1:$E$93,5,FALSE)*$B2,0)) -> 0 | K2: =IF(VLOOKUP($A2,'Congressional Districts'!$A$1:$E$93,2,FALSE)=K$1,VLOOKUP($A2,'Congressional Districts'!$A$1:$E$93,3,FALSE)*$B2,IF(VLOOKUP($A2,'Congressional Districts'!$A$1:$E$93,4,FALSE)=K$1,VLOOKUP($A2,'Congressional Districts'!$A$1:$E$93,5,FALSE)*$B2,0)) -> 0 | L2: =IF(VLOOKUP($A2,'Congressional Districts'!$A$1:$E$93,2,FALSE)=L$1,VLOOKUP($A2,'Congressional Districts'!$A$1:$E$93,3,FALSE)*$B2,IF(VLOOKUP($A2,'Congressional Districts'!$A$1:$E$93,4,FALSE)=L$1,VLOOKUP($A2,'Congressional Districts'!$A$1:$E$93,5,FALSE)*$B2,0)) -> 0
A3: ALLEN | B3: 7243490.86 | C3: =SUM(D3:L3) -> 7243490.86 | D3: =IF(VLOOKUP($A3,'Congressional Districts'!$A$1:$E$93,2,FALSE)=D$1,VLOOKUP($A3,'Congressional Districts'!$A$1:$E$93,3,FALSE)*$B3,IF(VLOOKUP($A3,'Congressional Districts'!$A$1:$E$93,4,FALSE)=D$1,VLOOKUP($A3,'Congressional Districts'!$A$1:$E$93,5,FALSE)*$B3,0)) -> 0 | E3: =IF(VLOOKUP($A3,'Congressional Districts'!$A$1:$E$93,2,FALSE)=E$1,VLOOKUP($A3,'Congressional Districts'!$A$1:$E$93,3,FALSE)*$B3,IF(VLOOKUP($A3,'Congressional Districts'!$A$1:$E$93,4,FALSE)=E$1,VLOOKUP($A3,'Congressional Districts'!$A$1:$E$93,5,FALSE)*$B3,0)) -> 0 | F3: =IF(VLOOKUP($A3,'Congressional Districts'!$A$1:$E$93,2,FALSE)=F$1,VLOOKUP($A3,'Congressional Districts'!$A$1:$E$93,3,FALSE)*$B3,IF(VLOOKUP($A3,'Congressional Districts'!$A$1:$E$93,4,FALSE)=F$1,VLOOKUP($A3,'Congressional Districts'!$A$1:$E$93,5,FALSE)*$B3,0)) -> 7243490.86 | G3: =IF(VLOOKUP($A3,'Congressional Districts'!$A$1:$E$93,2,FALSE)=G$1,VLOOKUP($A3,'Congressional Districts'!$A$1:$E$93,3,FALSE)*$B3,IF(VLOOKUP($A3,'Congressional Districts'!$A$1:$E$93,4,FALSE)=G$1,VLOOKUP($A3,'Congressional Districts'!$A$1:$E$93,5,FALSE)*$B3,0)) -> 0 | H3: =IF(VLOOKUP($A3,'Congressional Districts'!$A$1:$E$93,2,FALSE)=H$1,VLOOKUP($A3,'Congressional Districts'!$A$1:$E$93,3,FALSE)*$B3,IF(VLOOKUP($A3,'Congressional Districts'!$A$1:$E$93,4,FALSE)=H$1,VLOOKUP($A3,'Congressional Districts'!$A$1:$E$93,5,FALSE)*$B3,0)) -> 0 | I3: =IF(VLOOKUP($A3,'Congressional Districts'!$A$1:$E$93,2,FALSE)=I$1,VLOOKUP($A3,'Congressional Districts'!$A$1:$E$93,3,FALSE)*$B3,IF(VLOOKUP($A3,'Congressional Districts'!$A$1:$E$93,4,FALSE)=I$1,VLOOKUP($A3,'Congressional Districts'!$A$1:$E$93,5,FALSE)*$B3,0)) -> 0 | J3: =IF(VLOOKUP($A3,'Congressional Districts'!$A$1:$E$93,2,FALSE)=J$1,VLOOKUP($A3,'Congressional Districts'!$A$1:$E$93,3,FALSE)*$B3,IF(VLOOKUP($A3,'Congressional Districts'!$A$1:$E$93,4,FALSE)=J$1,VLOOKUP($A3,'Congressional Districts'!$A$1:$E$93,5,FALSE)*$B3,0)) -> 0 | K3: =IF(VLOOKUP($A3,'Congressional Districts'!$A$1:$E$93,2,FALSE)=K$1,VLOOKUP($A3,'Congressional Districts'!$A$1:$E$93,3,FALSE)*$B3,IF(VLOOKUP($A3,'Congressional Districts'!$A$1:$E$93,4,FALSE)=K$1,VLOOKUP($A3,'Congressional Districts'!$A$1:$E$93,5,FALSE)*$B3,0)) -> 0 | L3: =IF(VLOOKUP($A3,'Congressional Districts'!$A$1:$E$93,2,FALSE)=L$1,VLOOKUP($A3,'Congressional Districts'!$A$1:$E$93,3,FALSE)*$B3,IF(VLOOKUP($A3,'Congressional Districts'!$A$1:$E$93,4,FALSE)=L$1,VLOOKUP($A3,'Congressional Districts'!$A$1:$E$93,5,FALSE)*$B3,0)) -> 0
A4: BARTHOLOMEW | B4: 1453459.48 | C4: 1453459.48 | D4: =IF(VLOOKUP($A4,'Congressional Districts'!$A$1:$E$93,2,FALSE)=D$1,VLOOKUP($A4,'Congressional Districts'!$A$1:$E$93,3,FALSE)*$B4,IF(VLOOKUP($A4,'Congressional Districts'!$A$1:$E$93,4,FALSE)=D$1,VLOOKUP($A4,'Congressional Districts'!$A$1:$E$93,5,FALSE)*$B4,0)) -> 0 | E4: =IF(VLOOKUP($A4,'Congressional Districts'!$A$1:$E$93,2,FALSE)=E$1,VLOOKUP($A4,'Congressional Districts'!$A$1:$E$93,3,FALSE)*$B4,IF(VLOOKUP($A4,'Congressional Districts'!$A$1:$E$93,4,FALSE)=E$1,VLOOKUP($A4,'Congressional Districts'!$A$1:$E$93,5,FALSE)*$B4,0)) -> 0 | F4: =IF(VLOOKUP($A4,'Congressional Districts'!$A$1:$E$93,2,FALSE)=F$1,VLOOKUP($A4,'Congressional Districts'!$A$1:$E$93,3,FALSE)*$B4,IF(VLOOKUP($A4,'Congressional Districts'!$A$1:$E$93,4,FALSE)=F$1,VLOOKUP($A4,'Congressional Districts'!$A$1:$E$93,5,FALSE)*$B4,0)) -> 0 | G4: =IF(VLOOKUP($A4,'Congressional Districts'!$A$1:$E$93,2,FALSE)=G$1,VLOOKUP($A4,'Congressional Districts'!$A$1:$E$93,3,FALSE)*$B4,IF(VLOOKUP($A4,'Congressional Districts'!$A$1:$E$93,4,FALSE)=G$1,VLOOKUP($A4,'Congressional Districts'!$A$1:$E$93,5,FALSE)*$B4,0)) -> 0 | H4: =IF(VLOOKUP($A4,'Congressional Districts'!$A$1:$E$93,2,FALSE)=H$1,VLOOKUP($A4,'Congressional Districts'!$A$1:$E$93,3,FALSE)*$B4,IF(VLOOKUP($A4,'Congressional Districts'!$A$1:$E$93,4,FALSE)=H$1,VLOOKUP($A4,'Congressional Districts'!$A$1:$E$93,5,FALSE)*$B4,0)) -> 0 | I4: =IF(VLOOKUP($A4,'Congressional Districts'!$A$1:$E$93,2,FALSE)=I$1,VLOOKUP($A4,'Congressional Districts'!$A$1:$E$93,3,FALSE)*$B4,IF(VLOOKUP($A4,'Congressional Districts'!$A$1:$E$93,4,FALSE)=I$1,VLOOKUP($A4,'Congressional Districts'!$A$1:$E$93,5,FALSE)*$B4,0)) -> 1453459.48 | J4: =IF(VLOOKUP($A4,'Congressional Districts'!$A$1:$E$93,2,FALSE)=J$1,VLOOKUP($A4,'Congressional Districts'!$A$1:$E$93,3,FALSE)*$B4,IF(VLOOKUP($A4,'Congressional Districts'!$A$1:$E$93,4,FALSE)=J$1,VLOOKUP($A4,'Congressional Districts'!$A$1:$E$93,5,FALSE)*$B4,0)) -> 0 | K4: =IF(VLOOKUP($A4,'Congressional Districts'!$A$1:$E$93,2,FALSE)=K$1,VLOOKUP($A4,'Congressional Districts'!$A$1:$E$93,3,FALSE)*$B4,IF(VLOOKUP($A4,'Congressional Districts'!$A$1:$E$93,4,FALSE)=K$1,VLOOKUP($A4,'Congressional Districts'!$A$1:$E$93,5,FALSE)*$B4,0)) -> 0 | L4: =IF(VLOOKUP($A4,'Congressional Districts'!$A$1:$E$93,2,FALSE)=L$1,VLOOKUP($A4,'Congressional Districts'!$A$1:$E$93,3,FALSE)*$B4,IF(VLOOKUP($A4,'Congressional Districts'!$A$1:$E$93,4,FALSE)=L$1,VLOOKUP($A4,'Congressional Districts'!$A$1:$E$93,5,FALSE)*$B4,0)) -> 0
A5: BENTON | B5: 108950.31 | C5: 108950.31 | D5: =IF(VLOOKUP($A5,'Congressional Districts'!$A$1:$E$93,2,FALSE)=D$1,VLOOKUP($A5,'Congressional Districts'!$A$1:$E$93,3,FALSE)*$B5,IF(VLOOKUP($A5,'Congressional Districts'!$A$1:$E$93,4,FALSE)=D$1,VLOOKUP($A5,'Congressional Districts'!$A$1:$E$93,5,FALSE)*$B5,0)) -> 0 | E5: =IF(VLOOKUP($A5,'Congressional Districts'!$A$1:$E$93,2,FALSE)=E$1,VLOOKUP($A5,'Congressional Districts'!$A$1:$E$93,3,FALSE)*$B5,IF(VLOOKUP($A5,'Congressional Districts'!$A$1:$E$93,4,FALSE)=E$1,VLOOKUP($A5,'Congressional Districts'!$A$1:$E$93,5,FALSE)*$B5,0)) -> 0 | F5: =IF(VLOOKUP($A5,'Congressional Districts'!$A$1:$E$93,2,FALSE)=F$1,VLOOKUP($A5,'Congressional Districts'!$A$1:$E$93,3,FALSE)*$B5,IF(VLOOKUP($A5,'Congressional Districts'!$A$1:$E$93,4,FALSE)=F$1,VLOOKUP($A5,'Congressional Districts'!$A$1:$E$93,5,FALSE)*$B5,0)) -> 0 | G5: =IF(VLOOKUP($A5,'Congressional Districts'!$A$1:$E$93,2,FALSE)=G$1,VLOOKUP($A5,'Congressional Districts'!$A$1:$E$93,3,FALSE)*$B5,IF(VLOOKUP($A5,'Congressional Districts'!$A$1:$E$93,4,FALSE)=G$1,VLOOKUP($A5,'Congressional Districts'!$A$1:$E$93,5,FALSE)*$B5,0)) -> 108950.31 | H5: =IF(VLOOKUP($A5,'Congressional Districts'!$A$1:$E$93,2,FALSE)=H$1,VLOOKUP($A5,'Congressional Districts'!$A$1:$E$93,3,FALSE)*$B5,IF(VLOOKUP($A5,'Congressional Districts'!$A$1:$E$93,4,FALSE)=H$1,VLOOKUP($A5,'Congressional Districts'!$A$1:$E$93,5,FALSE)*$B5,0)) -> 0 | I5: =IF(VLOOKUP($A5,'Congressional Districts'!$A$1:$E$93,2,FALSE)=I$1,VLOOKUP($A5,'Congressional Districts'!$A$1:$E$93,3,FALSE)*$B5,IF(VLOOKUP($A5,'Congressional Districts'!$A$1:$E$93,4,FALSE)=I$1,VLOOKUP($A5,'Congressional Districts'!$A$1:$E$93,5,FALSE)*$B5,0)) -> 0 | J5: =IF(VLOOKUP($A5,'Congressional Districts'!$A$1:$E$93,2,FALSE)=J$1,VLOOKUP($A5,'Congressional Districts'!$A$1:$E$93,3,FALSE)*$B5,IF(VLOOKUP($A5,'Congressional Districts'!$A$1:$E$93,4,FALSE)=J$1,VLOOKUP($A5,'Congressional Districts'!$A$1:$E$93,5,FALSE)*$B5,0)) -> 0 | K5: =IF(VLOOKUP($A5,'Congressional Districts'!$A$1:$E$93,2,FALSE)=K$1,VLOOKUP($A5,'Congressional Districts'!$A$1:$E$93,3,FALSE)*$B5,IF(VLOOKUP($A5,'Congressional Districts'!$A$1:$E$93,4,FALSE)=K$1,VLOOKUP($A5,'Congressional Districts'!$A$1:$E$93,5,FALSE)*$B5,0)) -> 0 | L5: =IF(VLOOKUP($A5,'Congressional Districts'!$A$1:$E$93,2,FALSE)=L$1,VLOOKUP($A5,'Congressional Districts'!$A$1:$E$93,3,FALSE)*$B5,IF(VLOOKUP($A5,'Congressional Districts'!$A$1:$E$93,4,FALSE)=L$1,VLOOKUP($A5,'Congressional Districts'!$A$1:$E$93,5,FALSE)*$B5,0)) -> 0
A6: BLACKFORD | B6: 274190.12 | C6: 274190.12 | D6: =IF(VLOOKUP($A6,'Congressional Districts'!$A$1:$E$93,2,FALSE)=D$1,VLOOKUP($A6,'Congressional Districts'!$A$1:$E$93,3,FALSE)*$B6,IF(VLOOKUP($A6,'Congressional Districts'!$A$1:$E$93,4,FALSE)=D$1,VLOOKUP($A6,'Congressional Districts'!$A$1:$E$93,5,FALSE)*$B6,0)) -> 0 | E6: =IF(VLOOKUP($A6,'Congressional Districts'!$A$1:$E$93,2,FALSE)=E$1,VLOOKUP($A6,'Congressional Districts'!$A$1:$E$93,3,FALSE)*$B6,IF(VLOOKUP($A6,'Congressional Districts'!$A$1:$E$93,4,FALSE)=E$1,VLOOKUP($A6,'Congressional Districts'!$A$1:$E$93,5,FALSE)*$B6,0)) -> 0 | F6: =IF(VLOOKUP($A6,'Congressional Districts'!$A$1:$E$93,2,FALSE)=F$1,VLOOKUP($A6,'Congressional Districts'!$A$1:$E$93,3,FALSE)*$B6,IF(VLOOKUP($A6,'Congressional Districts'!$A$1:$E$93,4,FALSE)=F$1,VLOOKUP($A6,'Congressional Districts'!$A$1:$E$93,5,FALSE)*$B6,0)) -> 69808.60278 | G6: =IF(VLOOKUP($A6,'Congressional Districts'!$A$1:$E$93,2,FALSE)=G$1,VLOOKUP($A6,'Congressional Districts'!$A$1:$E$93,3,FALSE)*$B6,IF(VLOOKUP($A6,'Congressional Districts'!$A$1:$E$93,4,FALSE)=G$1,VLOOKUP($A6,'Congressional Districts'!$A$1:$E$93,5,FALSE)*$B6,0)) -> 0 | H6: =IF(VLOOKUP($A6,'Congressional Districts'!$A$1:$E$93,2,FALSE)=H$1,VLOOKUP($A6,'Congressional Districts'!$A$1:$E$93,3,FALSE)*$B6,IF(VLOOKUP($A6,'Congressional Districts'!$A$1:$E$93,4,FALSE)=H$1,VLOOKUP($A6,'Congressional Districts'!$A$1:$E$93,5,FALSE)*$B6,0)) -> 204381.5172 | I6: =IF(VLOOKUP($A6,'Congressional Districts'!$A$1:$E$93,2,FALSE)=I$1,VLOOKUP($A6,'Congressional Districts'!$A$1:$E$93,3,FALSE)*$B6,IF(VLOOKUP($A6,'Congressional Districts'!$A$1:$E$93,4,FALSE)=I$1,VLOOKUP($A6,'Congressional Districts'!$A$1:$E$93,5,FALSE)*$B6,0)) -> 0 | J6: =IF(VLOOKUP($A6,'Congressional Districts'!$A$1:$E$93,2,FALSE)=J$1,VLOOKUP($A6,'Congressional Districts'!$A$1:$E$93,3,FALSE)*$B6,IF(VLOOKUP($A6,'Congressional Districts'!$A$1:$E$93,4,FALSE)=J$1,VLOOKUP($A6,'Congressional Districts'!$A$1:$E$93,5,FALSE)*$B6,0)) -> 0 | K6: =IF(VLOOKUP($A6,'Congressional Districts'!$A$1:$E$93,2,FALSE)=K$1,VLOOKUP($A6,'Congressional Districts'!$A$1:$E$93,3,FALSE)*$B6,IF(VLOOKUP($A6,'Congressional Districts'!$A$1:$E$93,4,FALSE)=K$1,VLOOKUP($A6,'Congressional Districts'!$A$1:$E$93,5,FALSE)*$B6,0)) -> 0 | L6: =IF(VLOOKUP($A6,'Congressional Districts'!$A$1:$E$93,2,FALSE)=L$1,VLOOKUP($A6,'Congressional Districts'!$A$1:$E$93,3,FALSE)*$B6,IF(VLOOKUP($A6,'Congressional Districts'!$A$1:$E$93,4,FALSE)=L$1,VLOOKUP($A6,'Congressional Districts'!$A$1:$E$93,5,FALSE)*$B6,0)) -> 0
A7: BOONE | B7: 436876.33 | C7: 436876.33 | D7: =IF(VLOOKUP($A7,'Congressional Districts'!$A$1:$E$93,2,FALSE)=D$1,VLOOKUP($A7,'Congressional Districts'!$A$1:$E$93,3,FALSE)*$B7,IF(VLOOKUP($A7,'Congressional Districts'!$A$1:$E$93,4,FALSE)=D$1,VLOOKUP($A7,'Congressional Districts'!$A$1:$E$93,5,FALSE)*$B7,0)) -> 0 | E7: =IF(VLOOKUP($A7,'Congressional Districts'!$A$1:$E$93,2,FALSE)=E$1,VLOOKUP($A7,'Congressional Districts'!$A$1:$E$93,3,FALSE)*$B7,IF(VLOOKUP($A7,'Congressional Districts'!$A$1:$E$93,4,FALSE)=E$1,VLOOKUP($A7,'Congressional Districts'!$A$1:$E$93,5,FALSE)*$B7,0)) -> 0 | F7: =IF(VLOOKUP($A7,'Congressional Districts'!$A$1:$E$93,2,FALSE)=F$1,VLOOKUP($A7,'Congressional Districts'!$A$1:$E$93,3,FALSE)*$B7,IF(VLOOKUP($A7,'Congressional Districts'!$A$1:$E$93,4,FALSE)=F$1,VLOOKUP($A7,'Congressional Districts'!$A$1:$E$93,5,FALSE)*$B7,0)) -> 0 | G7: =IF(VLOOKUP($A7,'Congressional Districts'!$A$1:$E$93,2,FALSE)=G$1,VLOOKUP($A7,'Congressional Districts'!$A$1:$E$93,3,FALSE)*$B7,IF(VLOOKUP($A7,'Congressional Districts'!$A$1:$E$93,4,FALSE)=G$1,VLOOKUP($A7,'Congressional Districts'!$A$1:$E$93,5,FALSE)*$B7,0)) -> 225779.4721 | H7: =IF(VLOOKUP($A7,'Congressional Districts'!$A$1:$E$93,2,FALSE)=H$1,VLOOKUP($A7,'Congressional Districts'!$A$1:$E$93,3,FALSE)*$B7,IF(VLOOKUP($A7,'Congressional Districts'!$A$1:$E$93,4,FALSE)=H$1,VLOOKUP($A7,'Congressional Districts'!$A$1:$E$93,5,FALSE)*$B7,0)) -> 211096.8579 | I7: =IF(VLOOKUP($A7,'Congressional Districts'!$A$1:$E$93,2,FALSE)=I$1,VLOOKUP($A7,'Congressional Districts'!$A$1:$E$93,3,FALSE)*$B7,IF(VLOOKUP($A7,'Congressional Districts'!$A$1:$E$93,4,FALSE)=I$1,VLOOKUP($A7,'Congressional Districts'!$A$1:$E$93,5,FALSE)*$B7,0)) -> 0 | J7: =IF(VLOOKUP($A7,'Congressional Districts'!$A$1:$E$93,2,FALSE)=J$1,VLOOKUP($A7,'Congressional Districts'!$A$1:$E$93,3,FALSE)*$B7,IF(VLOOKUP($A7,'Congressional Districts'!$A$1:$E$93,4,FALSE)=J$1,VLOOKUP($A7,'Congressional Districts'!$A$1:$E$93,5,FALSE)*$B7,0)) -> 0 | K7: =IF(VLOOKUP($A7,'Congressional Districts'!$A$1:$E$93,2,FALSE)=K$1,VLOOKUP($A7,'Congressional Districts'!$A$1:$E$93,3,FALSE)*$B7,IF(VLOOKUP($A7,'Congressional Districts'!$A$1:$E$93,4,FALSE)=K$1,VLOOKUP($A7,'Congressional Districts'!$A$1:$E$93,5,FALSE)*$B7,0)) -> 0 | L7: =IF(VLOOKUP($A7,'Congressional Districts'!$A$1:$E$93,2,FALSE)=L$1,VLOOKUP($A7,'Congressional Districts'!$A$1:$E$93,3,FALSE)*$B7,IF(VLOOKUP($A7,'Congressional Districts'!$A$1:$E$93,4,FALSE)=L$1,VLOOKUP($A7,'Congressional Districts'!$A$1:$E$93,5,FALSE)*$B7,0)) -> 0
A8: BROWN | B8: 72481.64 | C8: 72481.64 | D8: =IF(VLOOKUP($A8,'Congressional Districts'!$A$1:$E$93,2,FALSE)=D$1,VLOOKUP($A8,'Congressional Districts'!$A$1:$E$93,3,FALSE)*$B8,IF(VLOOKUP($A8,'Congressional Districts'!$A$1:$E$93,4,FALSE)=D$1,VLOOKUP($A8,'Congressional Districts'!$A$1:$E$93,5,FALSE)*$B8,0)) -> 0 | E8: =IF(VLOOKUP($A8,'Congressional Districts'!$A$1:$E$93,2,FALSE)=E$1,VLOOKUP($A8,'Congressional Districts'!$A$1:$E$93,3,FALSE)*$B8,IF(VLOOKUP($A8,'Congressional Districts'!$A$1:$E$93,4,FALSE)=E$1,VLOOKUP($A8,'Congressional Districts'!$A$1:$E$93,5,FALSE)*$B8,0)) -> 0 | F8: =IF(VLOOKUP($A8,'Congressional Districts'!$A$1:$E$93,2,FALSE)=F$1,VLOOKUP($A8,'Congressional Districts'!$A$1:$E$93,3,FALSE)*$B8,IF(VLOOKUP($A8,'Congressional Districts'!$A$1:$E$93,4,FALSE)=F$1,VLOOKUP($A8,'Congressional Districts'!$A$1:$E$93,5,FALSE)*$B8,0)) -> 0 | G8: =IF(VLOOKUP($A8,'Congressional Districts'!$A$1:$E$93,2,FALSE)=G$1,VLOOKUP($A8,'Congressional Districts'!$A$1:$E$93,3,FALSE)*$B8,IF(VLOOKUP($A8,'Congressional Districts'!$A$1:$E$93,4,FALSE)=G$1,VLOOKUP($A8,'Congressional Districts'!$A$1:$E$93,5,FALSE)*$B8,0)) -> 0 | H8: =IF(VLOOKUP($A8,'Congressional Districts'!$A$1:$E$93,2,FALSE)=H$1,VLOOKUP($A8,'Congressional Districts'!$A$1:$E$93,3,FALSE)*$B8,IF(VLOOKUP($A8,'Congressional Districts'!$A$1:$E$93,4,FALSE)=H$1,VLOOKUP($A8,'Congressional Districts'!$A$1:$E$93,5,FALSE)*$B8,0)) -> 0 | I8: =IF(VLOOKUP($A8,'Congressional Districts'!$A$1:$E$93,2,FALSE)=I$1,VLOOKUP($A8,'Congressional Districts'!$A$1:$E$93,3,FALSE)*$B8,IF(VLOOKUP($A8,'Congressional Districts'!$A$1:$E$93,4,FALSE)=I$1,VLOOKUP($A8,'Congressional Districts'!$A$1:$E$93,5,FALSE)*$B8,0)) -> 0 | J8: =IF(VLOOKUP($A8,'Congressional Districts'!$A$1:$E$93,2,FALSE)=J$1,VLOOKUP($A8,'Congressional Districts'!$A$1:$E$93,3,FALSE)*$B8,IF(VLOOKUP($A8,'Congressional Districts'!$A$1:$E$93,4,FALSE)=J$1,VLOOKUP($A8,'Congressional Districts'!$A$1:$E$93,5,FALSE)*$B8,0)) -> 0 | K8: =IF(VLOOKUP($A8,'Congressional Districts'!$A$1:$E$93,2,FALSE)=K$1,VLOOKUP($A8,'Congressional Districts'!$A$1:$E$93,3,FALSE)*$B8,IF(VLOOKUP($A8,'Congressional Districts'!$A$1:$E$93,4,FALSE)=K$1,VLOOKUP($A8,'Congressional Districts'!$A$1:$E$93,5,FALSE)*$B8,0)) -> 0 | L8: =IF(VLOOKUP($A8,'Congressional Districts'!$A$1:$E$93,2,FALSE)=L$1,VLOOKUP($A8,'Congressional Districts'!$A$1:$E$93,3,FALSE)*$B8,IF(VLOOKUP($A8,'Congressional Districts'!$A$1:$E$93,4,FALSE)=L$1,VLOOKUP($A8,'Congressional Districts'!$A$1:$E$93,5,FALSE)*$B8,0)) -> 72481.64
A9: CARROLL | B9: 156141.53 | C9: 156141.53 | D9: =IF(VLOOKUP($A9,'Congressional Districts'!$A$1:$E$93,2,FALSE)=D$1,VLOOKUP($A9,'Congressional Districts'!$A$1:$E$93,3,FALSE)*$B9,IF(VLOOKUP($A9,'Congressional Districts'!$A$1:$E$93,4,FALSE)=D$1,VLOOKUP($A9,'Congressional Districts'!$A$1:$E$93,5,FALSE)*$B9,0)) -> 0 | E9: =IF(VLOOKUP($A9,'Congressional Districts'!$A$1:$E$93,2,FALSE)=E$1,VLOOKUP($A9,'Congressional Districts'!$A$1:$E$93,3,FALSE)*$B9,IF(VLOOKUP($A9,'Congressional Districts'!$A$1:$E$93,4,FALSE)=E$1,VLOOKUP($A9,'Congressional Districts'!$A$1:$E$93,5,FALSE)*$B9,0)) -> 0 | F9: =IF(VLOOKUP($A9,'Congressional Districts'!$A$1:$E$93,2,FALSE)=F$1,VLOOKUP($A9,'Congressional Districts'!$A$1:$E$93,3,FALSE)*$B9,IF(VLOOKUP($A9,'Congressional Districts'!$A$1:$E$93,4,FALSE)=F$1,VLOOKUP($A9,'Congressional Districts'!$A$1:$E$93,5,FALSE)*$B9,0)) -> 0 | G9: =IF(VLOOKUP($A9,'Congressional Districts'!$A$1:$E$93,2,FALSE)=G$1,VLOOKUP($A9,'Congressional Districts'!$A$1:$E$93,3,FALSE)*$B9,IF(VLOOKUP($A9,'Congressional Districts'!$A$1:$E$93,4,FALSE)=G$1,VLOOKUP($A9,'Congressional Districts'!$A$1:$E$93,5,FALSE)*$B9,0)) -> 156141.53 | H9: =IF(VLOOKUP($A9,'Congressional Districts'!$A$1:$E$93,2,FALSE)=H$1,VLOOKUP($A9,'Congressional Districts'!$A$1:$E$93,3,FALSE)*$B9,IF(VLOOKUP($A9,'Congressional Districts'!$A$1:$E$93,4,FALSE)=H$1,VLOOKUP($A9,'Congressional Districts'!$A$1:$E$93,5,FALSE)*$B9,0)) -> 0 | I9: =IF(VLOOKUP($A9,'Congressional Districts'!$A$1:$E$93,2,FALSE)=I$1,VLOOKUP($A9,'Congressional Districts'!$A$1:$E$93,3,FALSE)*$B9,IF(VLOOKUP($A9,'Congressional Districts'!$A$1:$E$93,4,FALSE)=I$1,VLOOKUP($A9,'Congressional Districts'!$A$1:$E$93,5,FALSE)*$B9,0)) -> 0 | J9: =IF(VLOOKUP($A9,'Congressional Districts'!$A$1:$E$93,2,FALSE)=J$1,VLOOKUP($A9,'Congressional Districts'!$A$1:$E$93,3,FALSE)*$B9,IF(VLOOKUP($A9,'Congressional Districts'!$A$1:$E$93,4,FALSE)=J$1,VLOOKUP($A9,'Congressional Districts'!$A$1:$E$93,5,FALSE)*$B9,0)) -> 0 | K9: =IF(VLOOKUP($A9,'Congressional Districts'!$A$1:$E$93,2,FALSE)=K$1,VLOOKUP($A9,'Congressional Districts'!$A$1:$E$93,3,FALSE)*$B9,IF(VLOOKUP($A9,'Congressional Districts'!$A$1:$E$93,4,FALSE)=K$1,VLOOKUP($A9,'Congressional Districts'!$A$1:$E$93,5,FALSE)*$B9,0)) -> 0 | L9: =IF(VLOOKUP($A9,'Congressional Districts'!$A$1:$E$93,2,FALSE)=L$1,VLOOKUP($A9,'Congressional Districts'!$A$1:$E$93,3,FALSE)*$B9,IF(VLOOKUP($A9,'Congressional Districts'!$A$1:$E$93,4,FALSE)=L$1,VLOOKUP($A9,'Congressional Districts'!$A$1:$E$93,5,FALSE)*$B9,0)) -> 0
